Workbook

Sheet INTRO
C1: The current version should be used in countries endemic for Loasis
B2: PC Joint Reporting Form v.3.1 (L)
B4: The purpose of this template Joint Reporting Form (JRF) - available as an Excel file - is to provide national health authorities and data managers with a standardized tool to address these reporting challenges, facilitate integration and thereby further contribute to improving overall programme management. This template aims to standardize national reporting of programme implementation outcomes, improve availability and coordination of preventive chemotherapy data across the World Health Organization regions. National authorities are requested to complete this form for submission to the World Health Organization any time before 15 August of the current year for reporting data on PC interventions implemented during the previous year.
B6: Structure of the application (worksheets):
B8: INTRO | C8: This worksheet includes guides on how to complete the joint reporting form and information about status of PC for endemic diseases in the country
B9: COUNTRY_INFO | C9: This worksheet includes information about administrative structure of the country, population by age group, status of endemicity for each disease, population requiring PC, planned interventions and interventions implemented
B10: MDA1, MDA4, MDA3, T1, T2 and T3 | C10: These worksheets include information about endemic districts targeted for treatment with specified PC medicines, treatment plan, and number of people who received treatment by age group
B11: DISTRICT | C11: This worksheet includes summary of people treated by disease at the level of implementation. If data by gender is available, it requires to enter.
B12: SUMMARY | C12: This worksheet includes summary of people treated by disease and by PC intervention. Before generating the report (run macros) please select the disease for which you need the report. Follow the same rule to generate various reports. This worksheet should be printed and submitted as a Joint Report (see the instruction for submission in the SUMMARY worksheet).
B14: Instruction for data entry
B16: Most of the cells in the above-mentioned worksheets include formula that are calculated automatically according to the treatment policy recommended by WHO for each disease. See the link http://www.who.int/neglected_diseases/preventive_chemotherapy/pct_manual/en/index.html
B18: Please enter your data into the cells according to their colour code:
C20: White - cell is not protected. Please enter the value of the requested indicator.
C22: Yellow - cell is protected and includes name of indicator. No data entry required.
C24: Orange - cell is not protected and includes a drop-down menu. Please select the value from the drop-down list.
C27: Green - cell is not protected and includes formula. Please change the value only if your data are different from those that are calculated automatically.
C30: Blue - cell is protected and includes formula. No data entry required.
B32: Country data
B34: COUNTRY | E34: Nigeria
B36: Year of reporting data | E36: 2020
B38: Is country endemic for lymphatic filariasis (LF)? | E38: Endemic
B40: Is country endemic for onchocerciasis (ONCHO)? | E40: Endemic
B42: Is country endemic for soil-transmitted helminthiases (STH)? | E42: Endemic
B44: Is country endemic for schistosomiasis (SCH)? | E44: Endemic
B46: How many administrative units in the country? | E46: 774
B47: If demographical data at the second administrative level are not available by age group, please enter the proportion (%) of population by age group in the country. If data are available, please leave these cells blank.
B48: 1-4 years age | C48: Preschool-age children (PreSAC) | E48: 0.16
B49: 5-14 years age | C49: School-age children (SAC) | E49: 0.28
B50: 15 years + | C50: Adults | E50: 0.52

Sheet COUNTRY_INFO
A1: COUNTRY INFORMATION
A2: Administrative structure, population by age group, endemicity status, planned interventions and interventions implemented
A4: TOTAL | D4: =SUM(D$9:D$1000) -> 197414722.7 | E4: =SUM(E$9:E$1000) -> 31586343 | F4: =SUM(F$9:F$1000) -> 55276124 | G4: =SUM(G$9:G$1000) -> 102655664 | M4: =SUM(M$9:M$1000) -> 136378141.2 | N4: =SUM(N$9:N$1000) -> 51730867 | O4: =SUM(O$9:O$1000) -> 46247371 | P4: =SUM(P$9:P$1000) -> 26289930.69
A6: Country administrative structure | D6: Population | H6: Endemicity | M6: Population requiring PC | Q6: Number of treatment rounds planned for the year | U6: PC implemented | AA6: mda1 | AB6: mda3 | AC6: t2 | AD6: t3r1 | AE6: t3r2 | AI6: mda1 | AJ6: t3r1 | AK6: t3r2 | AL6: t2
A7: Country | B7: Province/State | C7: District | D7: Total | E7: PreSAC | F7: SAC | G7: Adults | H7: LF | I7: Oncho | J7: STH | K7: SCH | L7: Loa | M7: LF | N7: Oncho | O7: STH | P7: SCH | Q7: LF | R7: Oncho | S7: STH | T7: SCH | U7: ROUND 1 | V7: ROUND2 | W7: IU_ID | X7: IU_NAME | Y7: x | Z7: x | AA7: x | AB7: x | AC7: x | AD7: x | AE7: x | AF7: x | AG7: x | AH7: x | AI7: x | AJ7: x | AK7: x | AL7: x | AM7: x | AN7: x | AO7: x | AP7: x | AQ7: x | AR7: x | AS7: x | AT7: x | AU7: x | AV7: x | AW7: x | AX7: x | AY7: x | AZ7: x | BA7: x | BB7: x | BC7: x | BD7: x | BE7: x | BF7: x | BG7: t3 | BH7: x | BI7: x | BJ7: x | BK7: x | BL7: x | BM7: x | BN7: x | BO7: x | BP7: x | BQ7: x | BR7: x | BS7: x | BT7: x | BU7: x
A9: =IF(INTRO!$E$34<>0,INTRO!$E$34,"") -> Nigeria | B9: Abia | C9: Aba North | D9: 151588.2131 | E9: =IF(INTRO!$E$48="","",ROUND($D9*INTRO!$E$48,0)) -> 24254 | F9: =IF(INTRO!$E$49="","",ROUND($D9*INTRO!$E$49,0)) -> 42445 | G9: =IF(INTRO!$E$50="","",ROUND($D9*INTRO!$E$50,0)) -> 78826 | H9: 1 | I9: 1 | J9: 2 | K9: 1 | L9: 0 | M9: =IF(INTRO!$E$38="Endemic", IF($H9>0, IF($H9=4,"Unknown", IF($H9=99,"Stopped", $D9)), 0),"Not required") -> 151588.2131 | N9: 57804 | O9: =IF(INTRO!$E$42="Endemic", IF(AND($J9>1,$J9<5), IF($J9=4, "Unknown", E9+F9), 0),"Not required") -> 66699 | P9: =IF(INTRO!$E$44="Endemic", IF(AND($K9>0,$K9<5), IF($K9=4,"Unknown", IF($K9=1, $F9*0.33, IF($K9=2, $F9*0.5+$G9*0.2, SUM(F9:G9)))), 0),"Not required") -> 14006.85 | Q9: 0 | R9: 0 | S9: 0 | T9: 0 | W9: 36337 | X9: Aba North | AA9: ='MDA1'!M9 -> 0 | AB9: ='MDA3'!Q9 -> 0 | AC9: ='T2'!M9 -> 0 | AD9: =T3_R1!N9 -> 0 | AE9: =T3_R2!N9 -> 0 | AI9: ='MDA1'!E9 -> 0 | AJ9: =T3_R1!F9 -> 0 | AK9: =T3_R2!F9 -> 0 | AL9: ='T2'!E9 -> 0
A10: =IF(INTRO!$E$34<>0,INTRO!$E$34,"") -> Nigeria | B10: Abia | C10: Aba South | D10: 597750.1425 | E10: =IF(INTRO!$E$48="","",ROUND($D10*INTRO!$E$48,0)) -> 95640 | F10: =IF(INTRO!$E$49="","",ROUND($D10*INTRO!$E$49,0)) -> 167370 | G10: =IF(INTRO!$E$50="","",ROUND($D10*INTRO!$E$50,0)) -> 310830 | H10: 1 | I10: 1 | J10: 2 | K10: 0 | L10: 0 | M10: =IF(INTRO!$E$38="Endemic", IF($H10>0, IF($H10=4,"Unknown", IF($H10=99,"Stopped", $D10)), 0),"Not required") -> 597750.1425 | N10: 227935 | O10: =IF(INTRO!$E$42="Endemic", IF(AND($J10>1,$J10<5), IF($J10=4, "Unknown", E10+F10), 0),"Not required") -> 263010 | P10: =IF(INTRO!$E$44="Endemic", IF(AND($K10>0,$K10<5), IF($K10=4,"Unknown", IF($K10=1, $F10*0.33, IF($K10=2, $F10*0.5+$G10*0.2, SUM(F10:G10)))), 0),"Not required") -> 0 | Q10: 0 | R10: 0 | S10: 0 | T10: 0 | W10: 36338 | X10: Aba South | AA10: ='MDA1'!M10 -> 0 | AB10: ='MDA3'!Q10 -> 0 | AC10: ='T2'!M10 -> 0 | AD10: =T3_R1!N10 -> 0 | AE10: =T3_R2!N10 -> 0 | AI10: ='MDA1'!E10 -> 0 | AJ10: =T3_R1!F10 -> 0 | AK10: =T3_R2!F10 -> 0 | AL10: ='T2'!E10 -> 0
A11: =IF(INTRO!$E$34<>0,INTRO!$E$34,"") -> Nigeria | B11: Abia | C11: Arochukwu | D11: 240038.1755 | E11: =IF(INTRO!$E$48="","",ROUND($D11*INTRO!$E$48,0)) -> 38406 | F11: =IF(INTRO!$E$49="","",ROUND($D11*INTRO!$E$49,0)) -> 67211 | G11: =IF(INTRO!$E$50="","",ROUND($D11*INTRO!$E$50,0)) -> 124820 | H11: 1 | I11: 1 | J11: 3 | K11: 0 | L11: 0 | M11: =IF(INTRO!$E$38="Endemic", IF($H11>0, IF($H11=4,"Unknown", IF($H11=99,"Stopped", $D11)), 0),"Not required") -> 240038.1755 | N11: 75332 | O11: =IF(INTRO!$E$42="Endemic", IF(AND($J11>1,$J11<5), IF($J11=4, "Unknown", E11+F11), 0),"Not required") -> 105617 | P11: =IF(INTRO!$E$44="Endemic", IF(AND($K11>0,$K11<5), IF($K11=4,"Unknown", IF($K11=1, $F11*0.33, IF($K11=2, $F11*0.5+$G11*0.2, SUM(F11:G11)))), 0),"Not required") -> 0 | Q11: 0 | R11: 0 | S11: 0 | T11: 0 | W11: 36339 | X11: Arochukwu | AA11: ='MDA1'!M11 -> 0 | AB11: ='MDA3'!Q11 -> 0 | AC11: ='T2'!M11 -> 0 | AD11: =T3_R1!N11 -> 0 | AE11: =T3_R2!N11 -> 0 | AI11: ='MDA1'!E11 -> 0 | AJ11: =T3_R1!F11 -> 0 | AK11: =T3_R2!F11 -> 0 | AL11: ='T2'!E11 -> 0
A12: =IF(INTRO!$E$34<>0,INTRO!$E$34,"") -> Nigeria | B12: Abia | C12: Bende | D12: 270930.3663 | E12: =IF(INTRO!$E$48="","",ROUND($D12*INTRO!$E$48,0)) -> 43349 | F12: =IF(INTRO!$E$49="","",ROUND($D12*INTRO!$E$49,0)) -> 75861 | G12: =IF(INTRO!$E$50="","",ROUND($D12*INTRO!$E$50,0)) -> 140884 | H12: 1 | I12: 1 | J12: 3 | K12: 0 | L12: 0 | M12: =IF(INTRO!$E$38="Endemic", IF($H12>0, IF($H12=4,"Unknown", IF($H12=99,"Stopped", $D12)), 0),"Not required") -> 270930.3663 | N12: 92650 | O12: =IF(INTRO!$E$42="Endemic", IF(AND($J12>1,$J12<5), IF($J12=4, "Unknown", E12+F12), 0),"Not required") -> 119210 | P12: =IF(INTRO!$E$44="Endemic", IF(AND($K12>0,$K12<5), IF($K12=4,"Unknown", IF($K12=1, $F12*0.33, IF($K12=2, $F12*0.5+$G12*0.2, SUM(F12:G12)))), 0),"Not required") -> 0 | Q12: 0 | R12: 0 | S12: 0 | T12: 0 | W12: 36340 | X12: Bende | AA12: ='MDA1'!M12 -> 0 | AB12: ='MDA3'!Q12 -> 0 | AC12: ='T2'!M12 -> 0 | AD12: =T3_R1!N12 -> 0 | AE12: =T3_R2!N12 -> 0 | AI12: ='MDA1'!E12 -> 0 | AJ12: =T3_R1!F12 -> 0 | AK12: =T3_R2!F12 -> 0 | AL12: ='T2'!E12 -> 0
A13: =IF(INTRO!$E$34<>0,INTRO!$E$34,"") -> Nigeria | B13: Abia | C13: Ikwuano | D13: 194608.8149 | E13: =IF(INTRO!$E$48="","",ROUND($D13*INTRO!$E$48,0)) -> 31137 | F13: =IF(INTRO!$E$49="","",ROUND($D13*INTRO!$E$49,0)) -> 54490 | G13: =IF(INTRO!$E$50="","",ROUND($D13*INTRO!$E$50,0)) -> 101197 | H13: 1 | I13: 1 | J13: 2 | K13: 1 | L13: 0 | M13: =IF(INTRO!$E$38="Endemic", IF($H13>0, IF($H13=4,"Unknown", IF($H13=99,"Stopped", $D13)), 0),"Not required") -> 194608.8149 | N13: 52573 | O13: =IF(INTRO!$E$42="Endemic", IF(AND($J13>1,$J13<5), IF($J13=4, "Unknown", E13+F13), 0),"Not required") -> 85627 | P13: =IF(INTRO!$E$44="Endemic", IF(AND($K13>0,$K13<5), IF($K13=4,"Unknown", IF($K13=1, $F13*0.33, IF($K13=2, $F13*0.5+$G13*0.2, SUM(F13:G13)))), 0),"Not required") -> 17981.7 | Q13: 0 | R13: 0 | S13: 0 | T13: 0 | W13: 36341 | X13: Ikwuano | AA13: ='MDA1'!M13 -> 0 | AB13: ='MDA3'!Q13 -> 0 | AC13: ='T2'!M13 -> 0 | AD13: =T3_R1!N13 -> 0 | AE13: =T3_R2!N13 -> 0 | AI13: ='MDA1'!E13 -> 0 | AJ13: =T3_R1!F13 -> 0 | AK13: =T3_R2!F13 -> 0 | AL13: ='T2'!E13 -> 0
A14: =IF(INTRO!$E$34<>0,INTRO!$E$34,"") -> Nigeria | B14: Abia | C14: Isiala-Ngwa North | D14: 216808.0377 | E14: =IF(INTRO!$E$48="","",ROUND($D14*INTRO!$E$48,0)) -> 34689 | F14: =IF(INTRO!$E$49="","",ROUND($D14*INTRO!$E$49,0)) -> 60706 | G14: =IF(INTRO!$E$50="","",ROUND($D14*INTRO!$E$50,0)) -> 112740 | H14: 1 | I14: 1 | J14: 2 | K14: 0 | L14: 0 | M14: =IF(INTRO!$E$38="Endemic", IF($H14>0, IF($H14=4,"Unknown", IF($H14=99,"Stopped", $D14)), 0),"Not required") -> 216808.0377 | N14: 82673 | O14: =IF(INTRO!$E$42="Endemic", IF(AND($J14>1,$J14<5), IF($J14=4, "Unknown", E14+F14), 0),"Not required") -> 95395 | P14: =IF(INTRO!$E$44="Endemic", IF(AND($K14>0,$K14<5), IF($K14=4,"Unknown", IF($K14=1, $F14*0.33, IF($K14=2, $F14*0.5+$G14*0.2, SUM(F14:G14)))), 0),"Not required") -> 0 | Q14: 0 | R14: 0 | S14: 0 | T14: 0 | W14: 36342 | X14: Isiala-Ngwa North | AA14: ='MDA1'!M14 -> 0 | AB14: ='MDA3'!Q14 -> 0 | AC14: ='T2'!M14 -> 0 | AD14: =T3_R1!N14 -> 0 | AE14: =T3_R2!N14 -> 0 | AI14: ='MDA1'!E14 -> 0 | AJ14: =T3_R1!F14 -> 0 | AK14: =T3_R2!F14 -> 0 | AL14: ='T2'!E14 -> 0
A15: =IF(INTRO!$E$34<>0,INTRO!$E$34,"") -> Nigeria | B15: Abia | C15: Isiala-Ngwa South | D15: 190052.1991 | E15: =IF(INTRO!$E$48="","",ROUND($D15*INTRO!$E$48,0)) -> 30408 | F15: =IF(INTRO!$E$49="","",ROUND($D15*INTRO!$E$49,0)) -> 53215 | G15: =IF(INTRO!$E$50="","",ROUND($D15*INTRO!$E$50,0)) -> 98827 | H15: 1 | I15: 1 | J15: 2 | K15: 0 | L15: 0 | M15: =IF(INTRO!$E$38="Endemic", IF($H15>0, IF($H15=4,"Unknown", IF($H15=99,"Stopped", $D15)), 0),"Not required") -> 190052.1991 | N15: 72471 | O15: =IF(INTRO!$E$42="Endemic", IF(AND($J15>1,$J15<5), IF($J15=4, "Unknown", E15+F15), 0),"Not required") -> 83623 | P15: =IF(INTRO!$E$44="Endemic", IF(AND($K15>0,$K15<5), IF($K15=4,"Unknown", IF($K15=1, $F15*0.33, IF($K15=2, $F15*0.5+$G15*0.2, SUM(F15:G15)))), 0),"Not required") -> 0 | Q15: 0 | R15: 0 | S15: 0 | T15: 0 | W15: 36343 | X15: Isiala-Ngwa South | AA15: ='MDA1'!M15 -> 0 | AB15: ='MDA3'!Q15 -> 0 | AC15: ='T2'!M15 -> 0 | AD15: =T3_R1!N15 -> 0 | AE15: =T3_R2!N15 -> 0 | AI15: ='MDA1'!E15 -> 0 | AJ15: =T3_R1!F15 -> 0 | AK15: =T3_R2!F15 -> 0 | AL15: ='T2'!E15 -> 0
A16: =IF(INTRO!$E$34<>0,INTRO!$E$34,"") -> Nigeria | B16: Abia | C16: Isuikwuato | D16: 161395.3026 | E16: =IF(INTRO!$E$48="","",ROUND($D16*INTRO!$E$48,0)) -> 25823 | F16: =IF(INTRO!$E$49="","",ROUND($D16*INTRO!$E$49,0)) -> 45191 | G16: =IF(INTRO!$E$50="","",ROUND($D16*INTRO!$E$50,0)) -> 83926 | H16: 1 | I16: 1 | J16: 2 | K16: 0 | L16: 0 | M16: =IF(INTRO!$E$38="Endemic", IF($H16>0, IF($H16=4,"Unknown", IF($H16=99,"Stopped", $D16)), 0),"Not required") -> 161395.3026 | N16: 74970 | O16: =IF(INTRO!$E$42="Endemic", IF(AND($J16>1,$J16<5), IF($J16=4, "Unknown", E16+F16), 0),"Not required") -> 71014 | P16: =IF(INTRO!$E$44="Endemic", IF(AND($K16>0,$K16<5), IF($K16=4,"Unknown", IF($K16=1, $F16*0.33, IF($K16=2, $F16*0.5+$G16*0.2, SUM(F16:G16)))), 0),"Not required") -> 0 | Q16: 0 | R16: 0 | S16: 0 | T16: 0 | W16: 36344 | X16: Isiukwuato | AA16: ='MDA1'!M16 -> 0 | AB16: ='MDA3'!Q16 -> 0 | AC16: ='T2'!M16 -> 0 | AD16: =T3_R1!N16 -> 0 | AE16: =T3_R2!N16 -> 0 | AI16: ='MDA1'!E16 -> 0 | AJ16: =T3_R1!F16 -> 0 | AK16: =T3_R2!F16 -> 0 | AL16: ='T2'!E16 -> 0
A17: =IF(INTRO!$E$34<>0,INTRO!$E$34,"") -> Nigeria | B17: Abia | C17: Obi-Ngwa | D17: 255879.8545 | E17: =IF(INTRO!$E$48="","",ROUND($D17*INTRO!$E$48,0)) -> 40941 | F17: =IF(INTRO!$E$49="","",ROUND($D17*INTRO!$E$49,0)) -> 71646 | G17: =IF(INTRO!$E$50="","",ROUND($D17*INTRO!$E$50,0)) -> 133058 | H17: 1 | I17: 1 | J17: 2 | K17: 0 | L17: 0 | M17: =IF(INTRO!$E$38="Endemic", IF($H17>0, IF($H17=4,"Unknown", IF($H17=99,"Stopped", $D17)), 0),"Not required") -> 255879.8545 | N17: 97572 | O17: =IF(INTRO!$E$42="Endemic", IF(AND($J17>1,$J17<5), IF($J17=4, "Unknown", E17+F17), 0),"Not required") -> 112587 | P17: =IF(INTRO!$E$44="Endemic", IF(AND($K17>0,$K17<5), IF($K17=4,"Unknown", IF($K17=1, $F17*0.33, IF($K17=2, $F17*0.5+$G17*0.2, SUM(F17:G17)))), 0),"Not required") -> 0 | Q17: 0 | R17: 0 | S17: 0 | T17: 0 | W17: 36345 | X17: Obio-Ngwa | AA17: ='MDA1'!M17 -> 0 | AB17: ='MDA3'!Q17 -> 0 | AC17: ='T2'!M17 -> 0 | AD17: =T3_R1!N17 -> 0 | AE17: =T3_R2!N17 -> 0 | AI17: ='MDA1'!E17 -> 0 | AJ17: =T3_R1!F17 -> 0 | AK17: =T3_R2!F17 -> 0 | AL17: ='T2'!E17 -> 0
A18: =IF(INTRO!$E$34<>0,INTRO!$E$34,"") -> Nigeria | B18: Abia | C18: Ohafia | D18: 345721.7636 | E18: =IF(INTRO!$E$48="","",ROUND($D18*INTRO!$E$48,0)) -> 55315 | F18: =IF(INTRO!$E$49="","",ROUND($D18*INTRO!$E$49,0)) -> 96802 | G18: =IF(INTRO!$E$50="","",ROUND($D18*INTRO!$E$50,0)) -> 179775 | H18: 1 | I18: 1 | J18: 2 | K18: 0 | L18: 0 | M18: =IF(INTRO!$E$38="Endemic", IF($H18>0, IF($H18=4,"Unknown", IF($H18=99,"Stopped", $D18)), 0),"Not required") -> 345721.7636 | N18: 75882 | O18: =IF(INTRO!$E$42="Endemic", IF(AND($J18>1,$J18<5), IF($J18=4, "Unknown", E18+F18), 0),"Not required") -> 152117 | P18: =IF(INTRO!$E$44="Endemic", IF(AND($K18>0,$K18<5), IF($K18=4,"Unknown", IF($K18=1, $F18*0.33, IF($K18=2, $F18*0.5+$G18*0.2, SUM(F18:G18)))), 0),"Not required") -> 0 | Q18: 0 | R18: 0 | S18: 0 | T18: 0 | W18: 36346 | X18: Ohafia | AA18: ='MDA1'!M18 -> 0 | AB18: ='MDA3'!Q18 -> 0 | AC18: ='T2'!M18 -> 0 | AD18: =T3_R1!N18 -> 0 | AE18: =T3_R2!N18 -> 0 | AI18: ='MDA1'!E18 -> 0 | AJ18: =T3_R1!F18 -> 0 | AK18: =T3_R2!F18 -> 0 | AL18: ='T2'!E18 -> 0
A19: =IF(INTRO!$E$34<>0,INTRO!$E$34,"") -> Nigeria | B19: Abia | C19: Osisioma Ngwa | D19: 309742.6916 | E19: =IF(INTRO!$E$48="","",ROUND($D19*INTRO!$E$48,0)) -> 49559 | F19: =IF(INTRO!$E$49="","",ROUND($D19*INTRO!$E$49,0)) -> 86728 | G19: =IF(INTRO!$E$50="","",ROUND($D19*INTRO!$E$50,0)) -> 161066 | H19: 1 | I19: 1 | J19: 1 | K19: 0 | L19: 0 | M19: =IF(INTRO!$E$38="Endemic", IF($H19>0, IF($H19=4,"Unknown", IF($H19=99,"Stopped", $D19)), 0),"Not required") -> 309742.6916 | N19: 118111 | O19: =IF(INTRO!$E$42="Endemic", IF(AND($J19>1,$J19<5), IF($J19=4, "Unknown", E19+F19), 0),"Not required") -> 0 | P19: =IF(INTRO!$E$44="Endemic", IF(AND($K19>0,$K19<5), IF($K19=4,"Unknown", IF($K19=1, $F19*0.33, IF($K19=2, $F19*0.5+$G19*0.2, SUM(F19:G19)))), 0),"Not required") -> 0 | Q19: 0 | R19: 0 | S19: 0 | T19: 0 | W19: 36347 | X19: Osisioma Ngwa | AA19: ='MDA1'!M19 -> 0 | AB19: ='MDA3'!Q19 -> 0 | AC19: ='T2'!M19 -> 0 | AD19: =T3_R1!N19 -> 0 | AE19: =T3_R2!N19 -> 0 | AI19: ='MDA1'!E19 -> 0 | AJ19: =T3_R1!F19 -> 0 | AK19: =T3_R2!F19 -> 0 | AL19: ='T2'!E19 -> 0
A20: =IF(INTRO!$E$34<>0,INTRO!$E$34,"") -> Nigeria | B20: Abia | C20: Ugwunagbo | D20: 116514.5411 | E20: =IF(INTRO!$E$48="","",ROUND($D20*INTRO!$E$48,0)) -> 18642 | F20: =IF(INTRO!$E$49="","",ROUND($D20*INTRO!$E$49,0)) -> 32624 | G20: =IF(INTRO!$E$50="","",ROUND($D20*INTRO!$E$50,0)) -> 60588 | H20: 1 | I20: 1 | J20: 3 | K20: 0 | L20: 0 | M20: =IF(INTRO!$E$38="Endemic", IF($H20>0, IF($H20=4,"Unknown", IF($H20=99,"Stopped", $D20)), 0),"Not required") -> 116514.5411 | N20: 44429 | O20: =IF(INTRO!$E$42="Endemic", IF(AND($J20>1,$J20<5), IF($J20=4, "Unknown", E20+F20), 0),"Not required") -> 51266 | P20: =IF(INTRO!$E$44="Endemic", IF(AND($K20>0,$K20<5), IF($K20=4,"Unknown", IF($K20=1, $F20*0.33, IF($K20=2, $F20*0.5+$G20*0.2, SUM(F20:G20)))), 0),"Not required") -> 0 | Q20: 0 | R20: 0 | S20: 0 | T20: 0 | W20: 36348 | X20: Ugwunagbo | AA20: ='MDA1'!M20 -> 0 | AB20: ='MDA3'!Q20 -> 0 | AC20: ='T2'!M20 -> 0 | AD20: =T3_R1!N20 -> 0 | AE20: =T3_R2!N20 -> 0 | AI20: ='MDA1'!E20 -> 0 | AJ20: =T3_R1!F20 -> 0 | AK20: =T3_R2!F20 -> 0 | AL20: ='T2'!E20 -> 0
A21: =IF(INTRO!$E$34<>0,INTRO!$E$34,"") -> Nigeria | B21: Abia | C21: Ukwa East | D21: 83016.15219 | E21: =IF(INTRO!$E$48="","",ROUND($D21*INTRO!$E$48,0)) -> 13283 | F21: =IF(INTRO!$E$49="","",ROUND($D21*INTRO!$E$49,0)) -> 23245 | G21: =IF(INTRO!$E$50="","",ROUND($D21*INTRO!$E$50,0)) -> 43168 | H21: 1 | I21: 1 | J21: 2 | K21: 0 | L21: 0 | M21: =IF(INTRO!$E$38="Endemic", IF($H21>0, IF($H21=4,"Unknown", IF($H21=99,"Stopped", $D21)), 0),"Not required") -> 83016.15219 | N21: 57961 | O21: =IF(INTRO!$E$42="Endemic", IF(AND($J21>1,$J21<5), IF($J21=4, "Unknown", E21+F21), 0),"Not required") -> 36528 | P21: =IF(INTRO!$E$44="Endemic", IF(AND($K21>0,$K21<5), IF($K21=4,"Unknown", IF($K21=1, $F21*0.33, IF($K21=2, $F21*0.5+$G21*0.2, SUM(F21:G21)))), 0),"Not required") -> 0 | Q21: 0 | R21: 0 | S21: 0 | T21: 0 | W21: 36349 | X21: Ukwa East | AA21: ='MDA1'!M21 -> 0 | AB21: ='MDA3'!Q21 -> 0 | AC21: ='T2'!M21 -> 0 | AD21: =T3_R1!N21 -> 0 | AE21: =T3_R2!N21 -> 0 | AI21: ='MDA1'!E21 -> 0 | AJ21: =T3_R1!F21 -> 0 | AK21: =T3_R2!F21 -> 0 | AL21: ='T2'!E21 -> 0
A22: =IF(INTRO!$E$34<>0,INTRO!$E$34,"") -> Nigeria | B22: Abia | C22: Ukwa West | D22: 124887.3755 | E22: =IF(INTRO!$E$48="","",ROUND($D22*INTRO!$E$48,0)) -> 19982 | F22: =IF(INTRO!$E$49="","",ROUND($D22*INTRO!$E$49,0)) -> 34968 | G22: =IF(INTRO!$E$50="","",ROUND($D22*INTRO!$E$50,0)) -> 64941 | H22: 1 | I22: 1 | J22: 2 | K22: 0 | L22: 0 | M22: =IF(INTRO!$E$38="Endemic", IF($H22>0, IF($H22=4,"Unknown", IF($H22=99,"Stopped", $D22)), 0),"Not required") -> 124887.3755 | N22: 75189 | O22: =IF(INTRO!$E$42="Endemic", IF(AND($J22>1,$J22<5), IF($J22=4, "Unknown", E22+F22), 0),"Not required") -> 54950 | P22: =IF(INTRO!$E$44="Endemic", IF(AND($K22>0,$K22<5), IF($K22=4,"Unknown", IF($K22=1, $F22*0.33, IF($K22=2, $F22*0.5+$G22*0.2, SUM(F22:G22)))), 0),"Not required") -> 0 | Q22: 0 | R22: 0 | S22: 0 | T22: 0 | W22: 36350 | X22: Ukwa West | AA22: ='MDA1'!M22 -> 0 | AB22: ='MDA3'!Q22 -> 0 | AC22: ='T2'!M22 -> 0 | AD22: =T3_R1!N22 -> 0 | AE22: =T3_R2!N22 -> 0 | AI22: ='MDA1'!E22 -> 0 | AJ22: =T3_R1!F22 -> 0 | AK22: =T3_R2!F22 -> 0 | AL22: ='T2'!E22 -> 0
A23: =IF(INTRO!$E$34<>0,INTRO!$E$34,"") -> Nigeria | B23: Abia | C23: Umuahia North | D23: 311192.4597 | E23: =IF(INTRO!$E$48="","",ROUND($D23*INTRO!$E$48,0)) -> 49791 | F23: =IF(INTRO!$E$49="","",ROUND($D23*INTRO!$E$49,0)) -> 87134 | G23: =IF(INTRO!$E$50="","",ROUND($D23*INTRO!$E$50,0)) -> 161820 | H23: 1 | I23: 1 | J23: 2 | K23: 1 | L23: 0 | M23: =IF(INTRO!$E$38="Endemic", IF($H23>0, IF($H23=4,"Unknown", IF($H23=99,"Stopped", $D23)), 0),"Not required") -> 311192.4597 | N23: 118664 | O23: =IF(INTRO!$E$42="Endemic", IF(AND($J23>1,$J23<5), IF($J23=4, "Unknown", E23+F23), 0),"Not required") -> 136925 | P23: =IF(INTRO!$E$44="Endemic", IF(AND($K23>0,$K23<5), IF($K23=4,"Unknown", IF($K23=1, $F23*0.33, IF($K23=2, $F23*0.5+$G23*0.2, SUM(F23:G23)))), 0),"Not required") -> 28754.22 | Q23: 0 | R23: 0 | S23: 0 | T23: 0 | W23: 36352 | X23: Umuahia North | AA23: ='MDA1'!M23 -> 0 | AB23: ='MDA3'!Q23 -> 0 | AC23: ='T2'!M23 -> 0 | AD23: =T3_R1!N23 -> 0 | AE23: =T3_R2!N23 -> 0 | AI23: ='MDA1'!E23 -> 0 | AJ23: =T3_R1!F23 -> 0 | AK23: =T3_R2!F23 -> 0 | AL23: ='T2'!E23 -> 0
A24: =IF(INTRO!$E$34<>0,INTRO!$E$34,"") -> Nigeria | B24: Abia | C24: Umuahia South | D24: 195422.5467 | E24: =IF(INTRO!$E$48="","",ROUND($D24*INTRO!$E$48,0)) -> 31268 | F24: =IF(INTRO!$E$49="","",ROUND($D24*INTRO!$E$49,0)) -> 54718 | G24: =IF(INTRO!$E$50="","",ROUND($D24*INTRO!$E$50,0)) -> 101620 | H24: 1 | I24: 1 | J24: 2 | K24: 1 | L24: 0 | M24: =IF(INTRO!$E$38="Endemic", IF($H24>0, IF($H24=4,"Unknown", IF($H24=99,"Stopped", $D24)), 0),"Not required") -> 195422.5467 | N24: 74518 | O24: =IF(INTRO!$E$42="Endemic", IF(AND($J24>1,$J24<5), IF($J24=4, "Unknown", E24+F24), 0),"Not required") -> 85986 | P24: =IF(INTRO!$E$44="Endemic", IF(AND($K24>0,$K24<5), IF($K24=4,"Unknown", IF($K24=1, $F24*0.33, IF($K24=2, $F24*0.5+$G24*0.2, SUM(F24:G24)))), 0),"Not required") -> 18056.94 | Q24: 0 | R24: 0 | S24: 0 | T24: 0 | W24: 36353 | X24: Umuahia South | AA24: ='MDA1'!M24 -> 0 | AB24: ='MDA3'!Q24 -> 0 | AC24: ='T2'!M24 -> 0 | AD24: =T3_R1!N24 -> 0 | AE24: =T3_R2!N24 -> 0 | AI24: ='MDA1'!E24 -> 0 | AJ24: =T3_R1!F24 -> 0 | AK24: =T3_R2!F24 -> 0 | AL24: ='T2'!E24 -> 0
A25: =IF(INTRO!$E$34<>0,INTRO!$E$34,"") -> Nigeria | B25: Abia | C25: Umu-Nneochi | D25: 231184.4355 | E25: =IF(INTRO!$E$48="","",ROUND($D25*INTRO!$E$48,0)) -> 36990 | F25: =IF(INTRO!$E$49="","",ROUND($D25*INTRO!$E$49,0)) -> 64732 | G25: =IF(INTRO!$E$50="","",ROUND($D25*INTRO!$E$50,0)) -> 120216 | H25: 1 | I25: 1 | J25: 2 | K25: 1 | L25: 0 | M25: =IF(INTRO!$E$38="Endemic", IF($H25>0, IF($H25=4,"Unknown", IF($H25=99,"Stopped", $D25)), 0),"Not required") -> 231184.4355 | N25: 104845 | O25: =IF(INTRO!$E$42="Endemic", IF(AND($J25>1,$J25<5), IF($J25=4, "Unknown", E25+F25), 0),"Not required") -> 101722 | P25: =IF(INTRO!$E$44="Endemic", IF(AND($K25>0,$K25<5), IF($K25=4,"Unknown", IF($K25=1, $F25*0.33, IF($K25=2, $F25*0.5+$G25*0.2, SUM(F25:G25)))), 0),"Not required") -> 21361.56 | Q25: 0 | R25: 0 | S25: 0 | T25: 0 | W25: 36351 | X25: Umu-Nneochi | AA25: ='MDA1'!M25 -> 0 | AB25: ='MDA3'!Q25 -> 0 | AC25: ='T2'!M25 -> 0 | AD25: =T3_R1!N25 -> 0 | AE25: =T3_R2!N25 -> 0 | AI25: ='MDA1'!E25 -> 0 | AJ25: =T3_R1!F25 -> 0 | AK25: =T3_R2!F25 -> 0 | AL25: ='T2'!E25 -> 0
A26: =IF(INTRO!$E$34<>0,INTRO!$E$34,"") -> Nigeria | B26: Adamawa | C26: Demsa | D26: 254204.4415 | E26: =IF(INTRO!$E$48="","",ROUND($D26*INTRO!$E$48,0)) -> 40673 | F26: =IF(INTRO!$E$49="","",ROUND($D26*INTRO!$E$49,0)) -> 71177 | G26: =IF(INTRO!$E$50="","",ROUND($D26*INTRO!$E$50,0)) -> 132186 | H26: 1 | I26: 1 | J26: 1 | K26: 2 | L26: 4 | M26: =IF(INTRO!$E$38="Endemic", IF($H26>0, IF($H26=4,"Unknown", IF($H26=99,"Stopped", $D26)), 0),"Not required") -> 254204.4415 | N26: 106540 | O26: =IF(INTRO!$E$42="Endemic", IF(AND($J26>1,$J26<5), IF($J26=4, "Unknown", E26+F26), 0),"Not required") -> 0 | P26: =IF(INTRO!$E$44="Endemic", IF(AND($K26>0,$K26<5), IF($K26=4,"Unknown", IF($K26=1, $F26*0.33, IF($K26=2, $F26*0.5+$G26*0.2, SUM(F26:G26)))), 0),"Not required") -> 62025.7 | Q26: 1 | R26: 1 | S26: 0 | T26: 1 | U26: MDA1 (IVM+ALB) | V26: T2 (PZQ) | W26: 36354 | X26: Demsa | AA26: ='MDA1'!M26 -> 203842 | AB26: ='MDA3'!Q26 -> 0 | AC26: ='T2'!M26 -> 59103 | AD26: =T3_R1!N26 -> 0 | AE26: =T3_R2!N26 -> 0 | AI26: ='MDA1'!E26 -> Nov 2020 | AJ26: =T3_R1!F26 -> 0 | AK26: =T3_R2!F26 -> 0 | AL26: ='T2'!E26 -> Nov 2020
A27: =IF(INTRO!$E$34<>0,INTRO!$E$34,"") -> Nigeria | B27: Adamawa | C27: Fufore | D27: 292332.7808 | E27: =IF(INTRO!$E$48="","",ROUND($D27*INTRO!$E$48,0)) -> 46773 | F27: =IF(INTRO!$E$49="","",ROUND($D27*INTRO!$E$49,0)) -> 81853 | G27: =IF(INTRO!$E$50="","",ROUND($D27*INTRO!$E$50,0)) -> 152013 | H27: 1 | I27: 1 | J27: 1 | K27: 2 | L27: 4 | M27: =IF(INTRO!$E$38="Endemic", IF($H27>0, IF($H27=4,"Unknown", IF($H27=99,"Stopped", $D27)), 0),"Not required") -> 292332.7808 | N27: 79804 | O27: =IF(INTRO!$E$42="Endemic", IF(AND($J27>1,$J27<5), IF($J27=4, "Unknown", E27+F27), 0),"Not required") -> 0 | P27: =IF(INTRO!$E$44="Endemic", IF(AND($K27>0,$K27<5), IF($K27=4,"Unknown", IF($K27=1, $F27*0.33, IF($K27=2, $F27*0.5+$G27*0.2, SUM(F27:G27)))), 0),"Not required") -> 71329.1 | Q27: 1 | R27: 1 | S27: 0 | T27: 1 | U27: MDA1 (IVM+ALB) | W27: 36355 | X27: Fufore | AA27: ='MDA1'!M27 -> 234720 | AB27: ='MDA3'!Q27 -> 0 | AC27: ='T2'!M27 -> 63272 | AD27: =T3_R1!N27 -> 0 | AE27: =T3_R2!N27 -> 0 | AI27: ='MDA1'!E27 -> Nov 2020 | AJ27: =T3_R1!F27 -> 0 | AK27: =T3_R2!F27 -> 0 | AL27: ='T2'!E27 -> Nov 2020
A28: =IF(INTRO!$E$34<>0,INTRO!$E$34,"") -> Nigeria | B28: Adamawa | C28: Ganye | D28: 231408.6701 | E28: =IF(INTRO!$E$48="","",ROUND($D28*INTRO!$E$48,0)) -> 37025 | F28: =IF(INTRO!$E$49="","",ROUND($D28*INTRO!$E$49,0)) -> 64794 | G28: =IF(INTRO!$E$50="","",ROUND($D28*INTRO!$E$50,0)) -> 120333 | H28: 1 | I28: 1 | J28: 1 | K28: 2 | L28: 4 | M28: =IF(INTRO!$E$38="Endemic", IF($H28>0, IF($H28=4,"Unknown", IF($H28=99,"Stopped", $D28)), 0),"Not required") -> 231408.6701 | N28: 114584 | O28: =IF(INTRO!$E$42="Endemic", IF(AND($J28>1,$J28<5), IF($J28=4, "Unknown", E28+F28), 0),"Not required") -> 0 | P28: =IF(INTRO!$E$44="Endemic", IF(AND($K28>0,$K28<5), IF($K28=4,"Unknown", IF($K28=1, $F28*0.33, IF($K28=2, $F28*0.5+$G28*0.2, SUM(F28:G28)))), 0),"Not required") -> 56463.6 | Q28: 1 | R28: 1 | S28: 0 | T28: 1 | U28: MDA1 (IVM+ALB) | W28: 36356 | X28: Ganye | AA28: ='MDA1'!M28 -> 185532 | AB28: ='MDA3'!Q28 -> 0 | AC28: ='T2'!M28 -> 53184 | AD28: =T3_R1!N28 -> 0 | AE28: =T3_R2!N28 -> 0 | AI28: ='MDA1'!E28 -> Nov 2020 | AJ28: =T3_R1!F28 -> 0 | AK28: =T3_R2!F28 -> 0 | AL28: ='T2'!E28 -> Nov 2020
A29: =IF(INTRO!$E$34<>0,INTRO!$E$34,"") -> Nigeria | B29: Adamawa | C29: Girei | D29: 183329.3927 | E29: =IF(INTRO!$E$48="","",ROUND($D29*INTRO!$E$48,0)) -> 29333 | F29: =IF(INTRO!$E$49="","",ROUND($D29*INTRO!$E$49,0)) -> 51332 | G29: =IF(INTRO!$E$50="","",ROUND($D29*INTRO!$E$50,0)) -> 95331 | H29: 1 | I29: 1 | J29: 1 | K29: 1 | L29: 0 | M29: =IF(INTRO!$E$38="Endemic", IF($H29>0, IF($H29=4,"Unknown", IF($H29=99,"Stopped", $D29)), 0),"Not required") -> 183329.3927 | N29: 183616 | O29: =IF(INTRO!$E$42="Endemic", IF(AND($J29>1,$J29<5), IF($J29=4, "Unknown", E29+F29), 0),"Not required") -> 0 | P29: =IF(INTRO!$E$44="Endemic", IF(AND($K29>0,$K29<5), IF($K29=4,"Unknown", IF($K29=1, $F29*0.33, IF($K29=2, $F29*0.5+$G29*0.2, SUM(F29:G29)))), 0),"Not required") -> 16939.56 | Q29: 1 | R29: 1 | S29: 0 | T29: 0 | U29: MDA1 (IVM+ALB) | W29: 36357 | X29: Girei | AA29: ='MDA1'!M29 -> 147013 | AB29: ='MDA3'!Q29 -> 0 | AC29: ='T2'!M29 -> 0 | AD29: =T3_R1!N29 -> 0 | AE29: =T3_R2!N29 -> 0 | AI29: ='MDA1'!E29 -> Nov 2020 | AJ29: =T3_R1!F29 -> 0 | AK29: =T3_R2!F29 -> 0 | AL29: ='T2'!E29 -> 0
A30: =IF(INTRO!$E$34<>0,INTRO!$E$34,"") -> Nigeria | B30: Adamawa | C30: Gombi | D30: 206505.9399 | E30: =IF(INTRO!$E$48="","",ROUND($D30*INTRO!$E$48,0)) -> 33041 | F30: =IF(INTRO!$E$49="","",ROUND($D30*INTRO!$E$49,0)) -> 57822 | G30: =IF(INTRO!$E$50="","",ROUND($D30*INTRO!$E$50,0)) -> 107383 | H30: 1 | I30: 1 | J30: 0 | K30: 2 | L30: 4 | M30: =IF(INTRO!$E$38="Endemic", IF($H30>0, IF($H30=4,"Unknown", IF($H30=99,"Stopped", $D30)), 0),"Not required") -> 206505.9399 | N30: 93790 | O30: =IF(INTRO!$E$42="Endemic", IF(AND($J30>1,$J30<5), IF($J30=4, "Unknown", E30+F30), 0),"Not required") -> 0 | P30: =IF(INTRO!$E$44="Endemic", IF(AND($K30>0,$K30<5), IF($K30=4,"Unknown", IF($K30=1, $F30*0.33, IF($K30=2, $F30*0.5+$G30*0.2, SUM(F30:G30)))), 0),"Not required") -> 50387.6 | Q30: 1 | R30: 1 | S30: 0 | T30: 1 | U30: MDA1 (IVM+ALB) | W30: 36358 | X30: Gombi | AA30: ='MDA1'!M30 -> 147813 | AB30: ='MDA3'!Q30 -> 0 | AC30: ='T2'!M30 -> 47978 | AD30: =T3_R1!N30 -> 0 | AE30: =T3_R2!N30 -> 0 | AI30: ='MDA1'!E30 -> Nov 2020 | AJ30: =T3_R1!F30 -> 0 | AK30: =T3_R2!F30 -> 0 | AL30: ='T2'!E30 -> Nov 2020
A31: =IF(INTRO!$E$34<>0,INTRO!$E$34,"") -> Nigeria | B31: Adamawa | C31: Guyuk | D31: 250726.6902 | E31: =IF(INTRO!$E$48="","",ROUND($D31*INTRO!$E$48,0)) -> 40116 | F31: =IF(INTRO!$E$49="","",ROUND($D31*INTRO!$E$49,0)) -> 70203 | G31: =IF(INTRO!$E$50="","",ROUND($D31*INTRO!$E$50,0)) -> 130378 | H31: 1 | I31: 1 | J31: 1 | K31: 2 | L31: 4 | M31: =IF(INTRO!$E$38="Endemic", IF($H31>0, IF($H31=4,"Unknown", IF($H31=99,"Stopped", $D31)), 0),"Not required") -> 250726.6902 | N31: 123822 | O31: =IF(INTRO!$E$42="Endemic", IF(AND($J31>1,$J31<5), IF($J31=4, "Unknown", E31+F31), 0),"Not required") -> 0 | P31: =IF(INTRO!$E$44="Endemic", IF(AND($K31>0,$K31<5), IF($K31=4,"Unknown", IF($K31=1, $F31*0.33, IF($K31=2, $F31*0.5+$G31*0.2, SUM(F31:G31)))), 0),"Not required") -> 61177.1 | Q31: 1 | R31: 1 | S31: 0 | T31: 1 | U31: MDA1 (IVM+ALB) | W31: 36359 | X31: Guyuk | AA31: ='MDA1'!M31 -> 201932 | AB31: ='MDA3'!Q31 -> 0 | AC31: ='T2'!M31 -> 53554 | AD31: =T3_R1!N31 -> 0 | AE31: =T3_R2!N31 -> 0 | AI31: ='MDA1'!E31 -> Nov 2020 | AJ31: =T3_R1!F31 -> 0 | AK31: =T3_R2!F31 -> 0 | AL31: ='T2'!E31 -> Nov 2020
A32: =IF(INTRO!$E$34<>0,INTRO!$E$34,"") -> Nigeria | B32: Adamawa | C32: Hong | D32: 238515.0727 | E32: =IF(INTRO!$E$48="","",ROUND($D32*INTRO!$E$48,0)) -> 38162 | F32: =IF(INTRO!$E$49="","",ROUND($D32*INTRO!$E$49,0)) -> 66784 | G32: =IF(INTRO!$E$50="","",ROUND($D32*INTRO!$E$50,0)) -> 124028 | H32: 0 | I32: 1 | J32: 1 | K32: 2 | L32: 0 | M32: =IF(INTRO!$E$38="Endemic", IF($H32>0, IF($H32=4,"Unknown", IF($H32=99,"Stopped", $D32)), 0),"Not required") -> 0 | N32: 135482 | O32: =IF(INTRO!$E$42="Endemic", IF(AND($J32>1,$J32<5), IF($J32=4, "Unknown", E32+F32), 0),"Not required") -> 0 | P32: =IF(INTRO!$E$44="Endemic", IF(AND($K32>0,$K32<5), IF($K32=4,"Unknown", IF($K32=1, $F32*0.33, IF($K32=2, $F32*0.5+$G32*0.2, SUM(F32:G32)))), 0),"Not required") -> 58197.6 | Q32: 0 | R32: 0 | S32: 0 | T32: 1 | U32: MDA3 (IVM) | W32: 36360 | X32: Hong | AA32: ='MDA1'!M32 -> 0 | AB32: ='MDA3'!Q32 -> 147822 | AC32: ='T2'!M32 -> 51194 | AD32: =T3_R1!N32 -> 0 | AE32: =T3_R2!N32 -> 0 | AI32: ='MDA1'!E32 -> 0 | AJ32: =T3_R1!F32 -> 0 | AK32: =T3_R2!F32 -> 0 | AL32: ='T2'!E32 -> Nov 2020
A33: =IF(INTRO!$E$34<>0,INTRO!$E$34,"") -> Nigeria | B33: Adamawa | C33: Jada | D33: 237594.1597 | E33: =IF(INTRO!$E$48="","",ROUND($D33*INTRO!$E$48,0)) -> 38015 | F33: =IF(INTRO!$E$49="","",ROUND($D33*INTRO!$E$49,0)) -> 66526 | G33: =IF(INTRO!$E$50="","",ROUND($D33*INTRO!$E$50,0)) -> 123549 | H33: 1 | I33: 1 | J33: 2 | K33: 1 | L33: 0 | M33: =IF(INTRO!$E$38="Endemic", IF($H33>0, IF($H33=4,"Unknown", IF($H33=99,"Stopped", $D33)), 0),"Not required") -> 237594.1597 | N33: 230093 | O33: =IF(INTRO!$E$42="Endemic", IF(AND($J33>1,$J33<5), IF($J33=4, "Unknown", E33+F33), 0),"Not required") -> 104541 | P33: =IF(INTRO!$E$44="Endemic", IF(AND($K33>0,$K33<5), IF($K33=4,"Unknown", IF($K33=1, $F33*0.33, IF($K33=2, $F33*0.5+$G33*0.2, SUM(F33:G33)))), 0),"Not required") -> 21953.58 | Q33: 1 | R33: 1 | S33: 1 | T33: 0 | U33: MDA1 (IVM+ALB) | W33: 36361 | X33: Jada | AA33: ='MDA1'!M33 -> 190532 | AB33: ='MDA3'!Q33 -> 0 | AC33: ='T2'!M33 -> 0 | AD33: =T3_R1!N33 -> 0 | AE33: =T3_R2!N33 -> 0 | AF33: ='MDA1'!K33 -> 73689 | AG33: =AF33=AD33 -> FALSE | AI33: ='MDA1'!E33 -> Nov 2020 | AJ33: =T3_R1!F33 -> 0 | AK33: =T3_R2!F33 -> 0 | AL33: ='T2'!E33 -> 0 | AN33: remove from t3r1
A34: =IF(INTRO!$E$34<>0,INTRO!$E$34,"") -> Nigeria | B34: Adamawa | C34: Lamurde | D34: 159083.8532 | E34: =IF(INTRO!$E$48="","",ROUND($D34*INTRO!$E$48,0)) -> 25453 | F34: =IF(INTRO!$E$49="","",ROUND($D34*INTRO!$E$49,0)) -> 44543 | G34: =IF(INTRO!$E$50="","",ROUND($D34*INTRO!$E$50,0)) -> 82724 | H34: 1 | I34: 1 | J34: 1 | K34: 2 | L34: 4 | M34: =IF(INTRO!$E$38="Endemic", IF($H34>0, IF($H34=4,"Unknown", IF($H34=99,"Stopped", $D34)), 0),"Not required") -> 159083.8532 | N34: 99406 | O34: =IF(INTRO!$E$42="Endemic", IF(AND($J34>1,$J34<5), IF($J34=4, "Unknown", E34+F34), 0),"Not required") -> 0 | P34: =IF(INTRO!$E$44="Endemic", IF(AND($K34>0,$K34<5), IF($K34=4,"Unknown", IF($K34=1, $F34*0.33, IF($K34=2, $F34*0.5+$G34*0.2, SUM(F34:G34)))), 0),"Not required") -> 38816.3 | Q34: 1 | R34: 1 | S34: 0 | T34: 1 | U34: MDA1 (IVM+ALB) | W34: 36362 | X34: Lamurde | AA34: ='MDA1'!M34 -> 105252 | AB34: ='MDA3'!Q34 -> 0 | AC34: ='T2'!M34 -> 33615 | AD34: =T3_R1!N34 -> 0 | AE34: =T3_R2!N34 -> 0 | AI34: ='MDA1'!E34 -> Nov 2020 | AJ34: =T3_R1!F34 -> 0 | AK34: =T3_R2!F34 -> 0 | AL34: ='T2'!E34 -> Nov 2020
A35: =IF(INTRO!$E$34<>0,INTRO!$E$34,"") -> Nigeria | B35: Adamawa | C35: Madagali | D35: 190143.8674 | E35: =IF(INTRO!$E$48="","",ROUND($D35*INTRO!$E$48,0)) -> 30423 | F35: =IF(INTRO!$E$49="","",ROUND($D35*INTRO!$E$49,0)) -> 53240 | G35: =IF(INTRO!$E$50="","",ROUND($D35*INTRO!$E$50,0)) -> 98875 | H35: 0 | I35: 1 | J35: 1 | K35: 1 | L35: 0 | M35: =IF(INTRO!$E$38="Endemic", IF($H35>0, IF($H35=4,"Unknown", IF($H35=99,"Stopped", $D35)), 0),"Not required") -> 0 | N35: 94079 | O35: =IF(INTRO!$E$42="Endemic", IF(AND($J35>1,$J35<5), IF($J35=4, "Unknown", E35+F35), 0),"Not required") -> 0 | P35: =IF(INTRO!$E$44="Endemic", IF(AND($K35>0,$K35<5), IF($K35=4,"Unknown", IF($K35=1, $F35*0.33, IF($K35=2, $F35*0.5+$G35*0.2, SUM(F35:G35)))), 0),"Not required") -> 17569.2 | Q35: 0 | R35: 0 | S35: 0 | T35: 0 | U35: MDA3 (IVM) | W35: 36363 | X35: Madagali | AA35: ='MDA1'!M35 -> 0 | AB35: ='MDA3'!Q35 -> 152617 | AC35: ='T2'!M35 -> 0 | AD35: =T3_R1!N35 -> 0 | AE35: =T3_R2!N35 -> 0 | AI35: ='MDA1'!E35 -> 0 | AJ35: =T3_R1!F35 -> 0 | AK35: =T3_R2!F35 -> 0 | AL35: ='T2'!E35 -> 0
A36: =IF(INTRO!$E$34<>0,INTRO!$E$34,"") -> Nigeria | B36: Adamawa | C36: Maiha | D36: 156844.328 | E36: =IF(INTRO!$E$48="","",ROUND($D36*INTRO!$E$48,0)) -> 25095 | F36: =IF(INTRO!$E$49="","",ROUND($D36*INTRO!$E$49,0)) -> 43916 | G36: =IF(INTRO!$E$50="","",ROUND($D36*INTRO!$E$50,0)) -> 81559 | H36: 1 | I36: 1 | J36: 1 | K36: 2 | L36: 0 | M36: =IF(INTRO!$E$38="Endemic", IF($H36>0, IF($H36=4,"Unknown", IF($H36=99,"Stopped", $D36)), 0),"Not required") -> 156844.328 | N36: 116637 | O36: =IF(INTRO!$E$42="Endemic", IF(AND($J36>1,$J36<5), IF($J36=4, "Unknown", E36+F36), 0),"Not required") -> 0 | P36: =IF(INTRO!$E$44="Endemic", IF(AND($K36>0,$K36<5), IF($K36=4,"Unknown", IF($K36=1, $F36*0.33, IF($K36=2, $F36*0.5+$G36*0.2, SUM(F36:G36)))), 0),"Not required") -> 38269.8 | Q36: 1 | R36: 1 | S36: 0 | T36: 1 | U36: MDA1 (IVM+ALB) | W36: 36364 | X36: Maiha | AA36: ='MDA1'!M36 -> 126715 | AB36: ='MDA3'!Q36 -> 0 | AC36: ='T2'!M36 -> 34263 | AD36: =T3_R1!N36 -> 0 | AE36: =T3_R2!N36 -> 0 | AI36: ='MDA1'!E36 -> Nov 2020 | AJ36: =T3_R1!F36 -> 0 | AK36: =T3_R2!F36 -> 0 | AL36: ='T2'!E36 -> Nov 2020
A37: =IF(INTRO!$E$34<>0,INTRO!$E$34,"") -> Nigeria | B37: Adamawa | C37: Mayo-belwa | D37: 215954.8181 | E37: =IF(INTRO!$E$48="","",ROUND($D37*INTRO!$E$48,0)) -> 34553 | F37: =IF(INTRO!$E$49="","",ROUND($D37*INTRO!$E$49,0)) -> 60467 | G37: =IF(INTRO!$E$50="","",ROUND($D37*INTRO!$E$50,0)) -> 112297 | H37: 1 | I37: 1 | J37: 1 | K37: 2 | L37: 4 | M37: =IF(INTRO!$E$38="Endemic", IF($H37>0, IF($H37=4,"Unknown", IF($H37=99,"Stopped", $D37)), 0),"Not required") -> 215954.8181 | N37: 115311 | O37: =IF(INTRO!$E$42="Endemic", IF(AND($J37>1,$J37<5), IF($J37=4, "Unknown", E37+F37), 0),"Not required") -> 0 | P37: =IF(INTRO!$E$44="Endemic", IF(AND($K37>0,$K37<5), IF($K37=4,"Unknown", IF($K37=1, $F37*0.33, IF($K37=2, $F37*0.5+$G37*0.2, SUM(F37:G37)))), 0),"Not required") -> 52692.9 | Q37: 1 | R37: 1 | S37: 0 | T37: 1 | U37: MDA1 (IVM+ALB) | W37: 36365 | X37: Mayo-belwa | AA37: ='MDA1'!M37 -> 173207 | AB37: ='MDA3'!Q37 -> 0 | AC37: ='T2'!M37 -> 51068 | AD37: =T3_R1!N37 -> 0 | AE37: =T3_R2!N37 -> 0 | AI37: ='MDA1'!E37 -> Nov 2020 | AJ37: =T3_R1!F37 -> 0 | AK37: =T3_R2!F37 -> 0 | AL37: ='T2'!E37 -> Nov 2020
A38: =IF(INTRO!$E$34<>0,INTRO!$E$34,"") -> Nigeria | B38: Adamawa | C38: Michika | D38: 219019.3573 | E38: =IF(INTRO!$E$48="","",ROUND($D38*INTRO!$E$48,0)) -> 35043 | F38: =IF(INTRO!$E$49="","",ROUND($D38*INTRO!$E$49,0)) -> 61325 | G38: =IF(INTRO!$E$50="","",ROUND($D38*INTRO!$E$50,0)) -> 113890 | H38: 1 | I38: 1 | J38: 1 | K38: 1 | L38: 0 | M38: =IF(INTRO!$E$38="Endemic", IF($H38>0, IF($H38=4,"Unknown", IF($H38=99,"Stopped", $D38)), 0),"Not required") -> 219019.3573 | N38: 155837 | O38: =IF(INTRO!$E$42="Endemic", IF(AND($J38>1,$J38<5), IF($J38=4, "Unknown", E38+F38), 0),"Not required") -> 0 | P38: =IF(INTRO!$E$44="Endemic", IF(AND($K38>0,$K38<5), IF($K38=4,"Unknown", IF($K38=1, $F38*0.33, IF($K38=2, $F38*0.5+$G38*0.2, SUM(F38:G38)))), 0),"Not required") -> 20237.25 | Q38: 1 | R38: 1 | S38: 0 | T38: 0 | U38: MDA1 (IVM+ALB) | W38: 36366 | X38: Michika | AA38: ='MDA1'!M38 -> 175607 | AB38: ='MDA3'!Q38 -> 0 | AC38: ='T2'!M38 -> 0 | AD38: =T3_R1!N38 -> 0 | AE38: =T3_R2!N38 -> 0 | AI38: ='MDA1'!E38 -> Nov 2020 | AJ38: =T3_R1!F38 -> 0 | AK38: =T3_R2!F38 -> 0 | AL38: ='T2'!E38 -> 0
A39: =IF(INTRO!$E$34<>0,INTRO!$E$34,"") -> Nigeria | B39: Adamawa | C39: Mubi North | D39: 213053.8715 | E39: =IF(INTRO!$E$48="","",ROUND($D39*INTRO!$E$48,0)) -> 34089 | F39: =IF(INTRO!$E$49="","",ROUND($D39*INTRO!$E$49,0)) -> 59655 | G39: =IF(INTRO!$E$50="","",ROUND($D39*INTRO!$E$50,0)) -> 110788 | H39: 1 | I39: 4 | J39: 1 | K39: 1 | L39: 0 | M39: =IF(INTRO!$E$38="Endemic", IF($H39>0, IF($H39=4,"Unknown", IF($H39=99,"Stopped", $D39)), 0),"Not required") -> 213053.8715 | N39: 0 | O39: =IF(INTRO!$E$42="Endemic", IF(AND($J39>1,$J39<5), IF($J39=4, "Unknown", E39+F39), 0),"Not required") -> 0 | P39: =IF(INTRO!$E$44="Endemic", IF(AND($K39>0,$K39<5), IF($K39=4,"Unknown", IF($K39=1, $F39*0.33, IF($K39=2, $F39*0.5+$G39*0.2, SUM(F39:G39)))), 0),"Not required") -> 19686.15 | Q39: 1 | R39: 0 | S39: 0 | T39: 0 | U39: MDA1 (IVM+ALB) | W39: 36367 | X39: Mubi North | AA39: ='MDA1'!M39 -> 112287 | AB39: ='MDA3'!Q39 -> 0 | AC39: ='T2'!M39 -> 0 | AD39: =T3_R1!N39 -> 0 | AE39: =T3_R2!N39 -> 0 | AI39: ='MDA1'!E39 -> Nov 2020 | AJ39: =T3_R1!F39 -> 0 | AK39: =T3_R2!F39 -> 0 | AL39: ='T2'!E39 -> 0
A40: =IF(INTRO!$E$34<>0,INTRO!$E$34,"") -> Nigeria | B40: Adamawa | C40: Mubi South | D40: 181837.3162 | E40: =IF(INTRO!$E$48="","",ROUND($D40*INTRO!$E$48,0)) -> 29094 | F40: =IF(INTRO!$E$49="","",ROUND($D40*INTRO!$E$49,0)) -> 50914 | G40: =IF(INTRO!$E$50="","",ROUND($D40*INTRO!$E$50,0)) -> 94555 | H40: 1 | I40: 4 | J40: 1 | K40: 2 | L40: 0 | M40: =IF(INTRO!$E$38="Endemic", IF($H40>0, IF($H40=4,"Unknown", IF($H40=99,"Stopped", $D40)), 0),"Not required") -> 181837.3162 | N40: 0 | O40: =IF(INTRO!$E$42="Endemic", IF(AND($J40>1,$J40<5), IF($J40=4, "Unknown", E40+F40), 0),"Not required") -> 0 | P40: =IF(INTRO!$E$44="Endemic", IF(AND($K40>0,$K40<5), IF($K40=4,"Unknown", IF($K40=1, $F40*0.33, IF($K40=2, $F40*0.5+$G40*0.2, SUM(F40:G40)))), 0),"Not required") -> 44368 | Q40: 1 | R40: 0 | S40: 0 | T40: 1 | U40: MDA1 (IVM+ALB) | W40: 36368 | X40: Mubi South | AA40: ='MDA1'!M40 -> 122628 | AB40: ='MDA3'!Q40 -> 0 | AC40: ='T2'!M40 -> 38467 | AD40: =T3_R1!N40 -> 0 | AE40: =T3_R2!N40 -> 0 | AI40: ='MDA1'!E40 -> Nov 2020 | AJ40: =T3_R1!F40 -> 0 | AK40: =T3_R2!F40 -> 0 | AL40: ='T2'!E40 -> Nov 2020
A41: =IF(INTRO!$E$34<>0,INTRO!$E$34,"") -> Nigeria | B41: Adamawa | C41: Numan | D41: 127944.8633 | E41: =IF(INTRO!$E$48="","",ROUND($D41*INTRO!$E$48,0)) -> 20471 | F41: =IF(INTRO!$E$49="","",ROUND($D41*INTRO!$E$49,0)) -> 35825 | G41: =IF(INTRO!$E$50="","",ROUND($D41*INTRO!$E$50,0)) -> 66531 | H41: 1 | I41: 4 | J41: 1 | K41: 2 | L41: 4 | M41: =IF(INTRO!$E$38="Endemic", IF($H41>0, IF($H41=4,"Unknown", IF($H41=99,"Stopped", $D41)), 0),"Not required") -> 127944.8633 | N41: 0 | O41: =IF(INTRO!$E$42="Endemic", IF(AND($J41>1,$J41<5), IF($J41=4, "Unknown", E41+F41), 0),"Not required") -> 0 | P41: =IF(INTRO!$E$44="Endemic", IF(AND($K41>0,$K41<5), IF($K41=4,"Unknown", IF($K41=1, $F41*0.33, IF($K41=2, $F41*0.5+$G41*0.2, SUM(F41:G41)))), 0),"Not required") -> 31218.7 | Q41: 1 | R41: 0 | S41: 0 | T41: 1 | U41: MDA1 (IVM+ALB) | W41: 36369 | X41: Numan | AA41: ='MDA1'!M41 -> 94975 | AB41: ='MDA3'!Q41 -> 0 | AC41: ='T2'!M41 -> 28743 | AD41: =T3_R1!N41 -> 0 | AE41: =T3_R2!N41 -> 0 | AI41: ='MDA1'!E41 -> Nov 2020 | AJ41: =T3_R1!F41 -> 0 | AK41: =T3_R2!F41 -> 0 | AL41: ='T2'!E41 -> Nov 2020
A42: =IF(INTRO!$E$34<>0,INTRO!$E$34,"") -> Nigeria | B42: Adamawa | C42: Shelleng | D42: 210229.0799 | E42: =IF(INTRO!$E$48="","",ROUND($D42*INTRO!$E$48,0)) -> 33637 | F42: =IF(INTRO!$E$49="","",ROUND($D42*INTRO!$E$49,0)) -> 58864 | G42: =IF(INTRO!$E$50="","",ROUND($D42*INTRO!$E$50,0)) -> 109319 | H42: 1 | I42: 1 | J42: 1 | K42: 2 | L42: 0 | M42: =IF(INTRO!$E$38="Endemic", IF($H42>0, IF($H42=4,"Unknown", IF($H42=99,"Stopped", $D42)), 0),"Not required") -> 210229.0799 | N42: 65841 | O42: =IF(INTRO!$E$42="Endemic", IF(AND($J42>1,$J42<5), IF($J42=4, "Unknown", E42+F42), 0),"Not required") -> 0 | P42: =IF(INTRO!$E$44="Endemic", IF(AND($K42>0,$K42<5), IF($K42=4,"Unknown", IF($K42=1, $F42*0.33, IF($K42=2, $F42*0.5+$G42*0.2, SUM(F42:G42)))), 0),"Not required") -> 51295.8 | Q42: 1 | R42: 1 | S42: 0 | T42: 1 | U42: MDA1 (IVM+ALB) | W42: 36370 | X42: Shelleng | AA42: ='MDA1'!M42 -> 168511 | AB42: ='MDA3'!Q42 -> 0 | AC42: ='T2'!M42 -> 44796 | AD42: =T3_R1!N42 -> 0 | AE42: =T3_R2!N42 -> 0 | AI42: ='MDA1'!E42 -> Nov 2020 | AJ42: =T3_R1!F42 -> 0 | AK42: =T3_R2!F42 -> 0 | AL42: ='T2'!E42 -> Nov 2020
A43: =IF(INTRO!$E$34<>0,INTRO!$E$34,"") -> Nigeria | B43: Adamawa | C43: Song | D43: 271756.7906 | E43: =IF(INTRO!$E$48="","",ROUND($D43*INTRO!$E$48,0)) -> 43481 | F43: =IF(INTRO!$E$49="","",ROUND($D43*INTRO!$E$49,0)) -> 76092 | G43: =IF(INTRO!$E$50="","",ROUND($D43*INTRO!$E$50,0)) -> 141314 | H43: 1 | I43: 1 | J43: 1 | K43: 1 | L43: 0 | M43: =IF(INTRO!$E$38="Endemic", IF($H43>0, IF($H43=4,"Unknown", IF($H43=99,"Stopped", $D43)), 0),"Not required") -> 271756.7906 | N43: 272182 | O43: =IF(INTRO!$E$42="Endemic", IF(AND($J43>1,$J43<5), IF($J43=4, "Unknown", E43+F43), 0),"Not required") -> 0 | P43: =IF(INTRO!$E$44="Endemic", IF(AND($K43>0,$K43<5), IF($K43=4,"Unknown", IF($K43=1, $F43*0.33, IF($K43=2, $F43*0.5+$G43*0.2, SUM(F43:G43)))), 0),"Not required") -> 25110.36 | Q43: 1 | R43: 1 | S43: 0 | T43: 0 | U43: MDA1 (IVM+ALB) | W43: 36371 | X43: Song | AA43: ='MDA1'!M43 -> 217992 | AB43: ='MDA3'!Q43 -> 0 | AC43: ='T2'!M43 -> 0 | AD43: =T3_R1!N43 -> 0 | AE43: =T3_R2!N43 -> 0 | AI43: ='MDA1'!E43 -> Nov 2020 | AJ43: =T3_R1!F43 -> 0 | AK43: =T3_R2!F43 -> 0 | AL43: ='T2'!E43 -> 0
A44: =IF(INTRO!$E$34<>0,INTRO!$E$34,"") -> Nigeria | B44: Adamawa | C44: Toungo | D44: 73390.98887 | E44: =IF(INTRO!$E$48="","",ROUND($D44*INTRO!$E$48,0)) -> 11743 | F44: =IF(INTRO!$E$49="","",ROUND($D44*INTRO!$E$49,0)) -> 20549 | G44: =IF(INTRO!$E$50="","",ROUND($D44*INTRO!$E$50,0)) -> 38163 | H44: 1 | I44: 1 | J44: 2 | K44: 2 | L44: 4 | M44: =IF(INTRO!$E$38="Endemic", IF($H44>0, IF($H44=4,"Unknown", IF($H44=99,"Stopped", $D44)), 0),"Not required") -> 73390.98887 | N44: 73506 | O44: =IF(INTRO!$E$42="Endemic", IF(AND($J44>1,$J44<5), IF($J44=4, "Unknown", E44+F44), 0),"Not required") -> 32292 | P44: =IF(INTRO!$E$44="Endemic", IF(AND($K44>0,$K44<5), IF($K44=4,"Unknown", IF($K44=1, $F44*0.33, IF($K44=2, $F44*0.5+$G44*0.2, SUM(F44:G44)))), 0),"Not required") -> 17907.1 | Q44: 1 | R44: 1 | S44: 1 | T44: 1 | U44: MDA1 (IVM+ALB) | W44: 36372 | X44: Toungo | AA44: ='MDA1'!M44 -> 58893 | AB44: ='MDA3'!Q44 -> 0 | AC44: ='T2'!M44 -> 17643 | AD44: =T3_R1!N44 -> 0 | AE44: =T3_R2!N44 -> 0 | AF44: ='MDA1'!K44 -> 21653 | AG44: =AF44=AD44 -> FALSE | AI44: ='MDA1'!E44 -> Nov 2020 | AJ44: =T3_R1!F44 -> 0 | AK44: =T3_R2!F44 -> 0 | AL44: ='T2'!E44 -> Nov 2020 | AN44: remove from t3r1
A45: =IF(INTRO!$E$34<>0,INTRO!$E$34,"") -> Nigeria | B45: Adamawa | C45: Yola North | D45: 279583.8465 | E45: =IF(INTRO!$E$48="","",ROUND($D45*INTRO!$E$48,0)) -> 44733 | F45: =IF(INTRO!$E$49="","",ROUND($D45*INTRO!$E$49,0)) -> 78283 | G45: =IF(INTRO!$E$50="","",ROUND($D45*INTRO!$E$50,0)) -> 145384 | H45: 0 | I45: 1 | J45: 1 | K45: 1 | L45: 4 | M45: =IF(INTRO!$E$38="Endemic", IF($H45>0, IF($H45=4,"Unknown", IF($H45=99,"Stopped", $D45)), 0),"Not required") -> 0 | N45: 43142 | O45: =IF(INTRO!$E$42="Endemic", IF(AND($J45>1,$J45<5), IF($J45=4, "Unknown", E45+F45), 0),"Not required") -> 0 | P45: =IF(INTRO!$E$44="Endemic", IF(AND($K45>0,$K45<5), IF($K45=4,"Unknown", IF($K45=1, $F45*0.33, IF($K45=2, $F45*0.5+$G45*0.2, SUM(F45:G45)))), 0),"Not required") -> 25833.39 | Q45: 0 | R45: 0 | S45: 0 | T45: 0 | W45: 36373 | X45: Yola North | AA45: ='MDA1'!M45 -> 0 | AB45: ='MDA3'!Q45 -> 0 | AC45: ='T2'!M45 -> 0 | AD45: =T3_R1!N45 -> 0 | AE45: =T3_R2!N45 -> 0 | AI45: ='MDA1'!E45 -> 0 | AJ45: =T3_R1!F45 -> 0 | AK45: =T3_R2!F45 -> 0 | AL45: ='T2'!E45 -> 0
A46: =IF(INTRO!$E$34<>0,INTRO!$E$34,"") -> Nigeria | B46: Adamawa | C46: Yola South | D46: 274450.4261 | E46: =IF(INTRO!$E$48="","",ROUND($D46*INTRO!$E$48,0)) -> 43912 | F46: =IF(INTRO!$E$49="","",ROUND($D46*INTRO!$E$49,0)) -> 76846 | G46: =IF(INTRO!$E$50="","",ROUND($D46*INTRO!$E$50,0)) -> 142714 | H46: 1 | I46: 1 | J46: 1 | K46: 2 | L46: 4 | M46: =IF(INTRO!$E$38="Endemic", IF($H46>0, IF($H46=4,"Unknown", IF($H46=99,"Stopped", $D46)), 0),"Not required") -> 274450.4261 | N46: 51975 | O46: =IF(INTRO!$E$42="Endemic", IF(AND($J46>1,$J46<5), IF($J46=4, "Unknown", E46+F46), 0),"Not required") -> 0 | P46: =IF(INTRO!$E$44="Endemic", IF(AND($K46>0,$K46<5), IF($K46=4,"Unknown", IF($K46=1, $F46*0.33, IF($K46=2, $F46*0.5+$G46*0.2, SUM(F46:G46)))), 0),"Not required") -> 66965.8 | Q46: 1 | R46: 1 | S46: 0 | T46: 1 | U46: MDA1 (IVM+ALB) | W46: 36374 | X46: Yola South | AA46: ='MDA1'!M46 -> 220027 | AB46: ='MDA3'!Q46 -> 0 | AC46: ='T2'!M46 -> 58342 | AD46: =T3_R1!N46 -> 0 | AE46: =T3_R2!N46 -> 0 | AI46: ='MDA1'!E46 -> Nov 2020 | AJ46: =T3_R1!F46 -> 0 | AK46: =T3_R2!F46 -> 0 | AL46: ='T2'!E46 -> Nov 2020
A47: =IF(INTRO!$E$34<>0,INTRO!$E$34,"") -> Nigeria | B47: Akwa Ibom | C47: Abak | D47: 196155.8924 | E47: =IF(INTRO!$E$48="","",ROUND($D47*INTRO!$E$48,0)) -> 31385 | F47: =IF(INTRO!$E$49="","",ROUND($D47*INTRO!$E$49,0)) -> 54924 | G47: =IF(INTRO!$E$50="","",ROUND($D47*INTRO!$E$50,0)) -> 102001 | H47: 0 | I47: 4 | J47: 3 | K47: 0 | L47: 0 | M47: =IF(INTRO!$E$38="Endemic", IF($H47>0, IF($H47=4,"Unknown", IF($H47=99,"Stopped", $D47)), 0),"Not required") -> 0 | N47: 0 | O47: =IF(INTRO!$E$42="Endemic", IF(AND($J47>1,$J47<5), IF($J47=4, "Unknown", E47+F47), 0),"Not required") -> 86309 | P47: =IF(INTRO!$E$44="Endemic", IF(AND($K47>0,$K47<5), IF($K47=4,"Unknown", IF($K47=1, $F47*0.33, IF($K47=2, $F47*0.5+$G47*0.2, SUM(F47:G47)))), 0),"Not required") -> 0 | Q47: 0 | R47: 0 | S47: 1 | T47: 0 | V47: T3 (ALB/MBD) | W47: 36375 | X47: Abak | AA47: ='MDA1'!M47 -> 0 | AB47: ='MDA3'!Q47 -> 0 | AC47: ='T2'!M47 -> 0 | AD47: =T3_R1!N47 -> 53265 | AE47: =T3_R2!N47 -> 0 | AI47: ='MDA1'!E47 -> 0 | AJ47: =T3_R1!F47 -> Dec 2020 | AK47: =T3_R2!F47 -> 0 | AL47: ='T2'!E47 -> 0
A48: =IF(INTRO!$E$34<>0,INTRO!$E$34,"") -> Nigeria | B48: Akwa Ibom | C48: Eastern Obolo | D48: 85382.6026 | E48: =IF(INTRO!$E$48="","",ROUND($D48*INTRO!$E$48,0)) -> 13661 | F48: =IF(INTRO!$E$49="","",ROUND($D48*INTRO!$E$49,0)) -> 23907 | G48: =IF(INTRO!$E$50="","",ROUND($D48*INTRO!$E$50,0)) -> 44399 | H48: 1 | I48: 4 | J48: 3 | K48: 0 | L48: 1 | M48: =IF(INTRO!$E$38="Endemic", IF($H48>0, IF($H48=4,"Unknown", IF($H48=99,"Stopped", $D48)), 0),"Not required") -> 85382.6026 | N48: 0 | O48: =IF(INTRO!$E$42="Endemic", IF(AND($J48>1,$J48<5), IF($J48=4, "Unknown", E48+F48), 0),"Not required") -> 37568 | P48: =IF(INTRO!$E$44="Endemic", IF(AND($K48>0,$K48<5), IF($K48=4,"Unknown", IF($K48=1, $F48*0.33, IF($K48=2, $F48*0.5+$G48*0.2, SUM(F48:G48)))), 0),"Not required") -> 0 | Q48: 1 | R48: 0 | S48: 1 | T48: 0 | U48: MDA1 (IVM+ALB) | W48: 36376 | X48: Eastern Obolo | AA48: ='MDA1'!M48 -> 61833 | AB48: ='MDA3'!Q48 -> 0 | AC48: ='T2'!M48 -> 0 | AD48: =T3_R1!N48 -> 0 | AE48: =T3_R2!N48 -> 0 | AF48: ='MDA1'!K48 -> 23044 | AG48: =AF48=AD48 -> FALSE | AI48: ='MDA1'!E48 -> Nov 2020 | AJ48: =T3_R1!F48 -> 0 | AK48: =T3_R2!F48 -> 0 | AL48: ='T2'!E48 -> 0 | AN48: remove from t3r1
A49: =IF(INTRO!$E$34<>0,INTRO!$E$34,"") -> Nigeria | B49: Akwa Ibom | C49: Eket | D49: 243353.7446 | E49: =IF(INTRO!$E$48="","",ROUND($D49*INTRO!$E$48,0)) -> 38937 | F49: =IF(INTRO!$E$49="","",ROUND($D49*INTRO!$E$49,0)) -> 68139 | G49: =IF(INTRO!$E$50="","",ROUND($D49*INTRO!$E$50,0)) -> 126544 | H49: 0 | I49: 4 | J49: 3 | K49: 0 | L49: 0 | M49: =IF(INTRO!$E$38="Endemic", IF($H49>0, IF($H49=4,"Unknown", IF($H49=99,"Stopped", $D49)), 0),"Not required") -> 0 | N49: 0 | O49: =IF(INTRO!$E$42="Endemic", IF(AND($J49>1,$J49<5), IF($J49=4, "Unknown", E49+F49), 0),"Not required") -> 107076 | P49: =IF(INTRO!$E$44="Endemic", IF(AND($K49>0,$K49<5), IF($K49=4,"Unknown", IF($K49=1, $F49*0.33, IF($K49=2, $F49*0.5+$G49*0.2, SUM(F49:G49)))), 0),"Not required") -> 0 | Q49: 0 | R49: 0 | S49: 1 | T49: 0 | V49: T3 (ALB/MBD) | W49: 36377 | X49: Eket | AA49: ='MDA1'!M49 -> 0 | AB49: ='MDA3'!Q49 -> 0 | AC49: ='T2'!M49 -> 0 | AD49: =T3_R1!N49 -> 60731 | AE49: =T3_R2!N49 -> 0 | AI49: ='MDA1'!E49 -> 0 | AJ49: =T3_R1!F49 -> Dec 2020 | AK49: =T3_R2!F49 -> 0 | AL49: ='T2'!E49 -> 0
A50: =IF(INTRO!$E$34<>0,INTRO!$E$34,"") -> Nigeria | B50: Akwa Ibom | C50: Esit Eket | D50: 89836.26791 | E50: =IF(INTRO!$E$48="","",ROUND($D50*INTRO!$E$48,0)) -> 14374 | F50: =IF(INTRO!$E$49="","",ROUND($D50*INTRO!$E$49,0)) -> 25154 | G50: =IF(INTRO!$E$50="","",ROUND($D50*INTRO!$E$50,0)) -> 46715 | H50: 1 | I50: 4 | J50: 3 | K50: 0 | L50: 0 | M50: =IF(INTRO!$E$38="Endemic", IF($H50>0, IF($H50=4,"Unknown", IF($H50=99,"Stopped", $D50)), 0),"Not required") -> 89836.26791 | N50: 0 | O50: =IF(INTRO!$E$42="Endemic", IF(AND($J50>1,$J50<5), IF($J50=4, "Unknown", E50+F50), 0),"Not required") -> 39528 | P50: =IF(INTRO!$E$44="Endemic", IF(AND($K50>0,$K50<5), IF($K50=4,"Unknown", IF($K50=1, $F50*0.33, IF($K50=2, $F50*0.5+$G50*0.2, SUM(F50:G50)))), 0),"Not required") -> 0 | Q50: 1 | R50: 0 | S50: 1 | T50: 0 | U50: MDA1 (IVM+ALB) | W50: 36378 | X50: Esit Eket | AA50: ='MDA1'!M50 -> 71743 | AB50: ='MDA3'!Q50 -> 0 | AC50: ='T2'!M50 -> 0 | AD50: =T3_R1!N50 -> 0 | AE50: =T3_R2!N50 -> 0 | AF50: ='MDA1'!K50 -> 19053 | AG50: =AF50=AD50 -> FALSE | AI50: ='MDA1'!E50 -> Nov 2020 | AJ50: =T3_R1!F50 -> 0 | AK50: =T3_R2!F50 -> 0 | AL50: ='T2'!E50 -> 0 | AN50: remove from t3r1
A51: =IF(INTRO!$E$34<>0,INTRO!$E$34,"") -> Nigeria | B51: Akwa Ibom | C51: Essien Udim | D51: 271715.8925 | E51: =IF(INTRO!$E$48="","",ROUND($D51*INTRO!$E$48,0)) -> 43475 | F51: =IF(INTRO!$E$49="","",ROUND($D51*INTRO!$E$49,0)) -> 76080 | G51: =IF(INTRO!$E$50="","",ROUND($D51*INTRO!$E$50,0)) -> 141292 | H51: 0 | I51: 4 | J51: 2 | K51: 0 | L51: 0 | M51: =IF(INTRO!$E$38="Endemic", IF($H51>0, IF($H51=4,"Unknown", IF($H51=99,"Stopped", $D51)), 0),"Not required") -> 0 | N51: 0 | O51: =IF(INTRO!$E$42="Endemic", IF(AND($J51>1,$J51<5), IF($J51=4, "Unknown", E51+F51), 0),"Not required") -> 119555 | P51: =IF(INTRO!$E$44="Endemic", IF(AND($K51>0,$K51<5), IF($K51=4,"Unknown", IF($K51=1, $F51*0.33, IF($K51=2, $F51*0.5+$G51*0.2, SUM(F51:G51)))), 0),"Not required") -> 0 | Q51: 0 | R51: 0 | S51: 1 | T51: 0 | V51: T3 (ALB/MBD) | W51: 36379 | X51: Essien Udim | AA51: ='MDA1'!M51 -> 0 | AB51: ='MDA3'!Q51 -> 0 | AC51: ='T2'!M51 -> 0 | AD51: =T3_R1!N51 -> 69920 | AE51: =T3_R2!N51 -> 0 | AI51: ='MDA1'!E51 -> 0 | AJ51: =T3_R1!F51 -> Dec 2020 | AK51: =T3_R2!F51 -> 0 | AL51: ='T2'!E51 -> 0
A52: =IF(INTRO!$E$34<>0,INTRO!$E$34,"") -> Nigeria | B52: Akwa Ibom | C52: Etim Ekpo | D52: 148668.9328 | E52: =IF(INTRO!$E$48="","",ROUND($D52*INTRO!$E$48,0)) -> 23787 | F52: =IF(INTRO!$E$49="","",ROUND($D52*INTRO!$E$49,0)) -> 41627 | G52: =IF(INTRO!$E$50="","",ROUND($D52*INTRO!$E$50,0)) -> 77308 | H52: 1 | I52: 4 | J52: 2 | K52: 0 | L52: 0 | M52: =IF(INTRO!$E$38="Endemic", IF($H52>0, IF($H52=4,"Unknown", IF($H52=99,"Stopped", $D52)), 0),"Not required") -> 148668.9328 | N52: 0 | O52: =IF(INTRO!$E$42="Endemic", IF(AND($J52>1,$J52<5), IF($J52=4, "Unknown", E52+F52), 0),"Not required") -> 65414 | P52: =IF(INTRO!$E$44="Endemic", IF(AND($K52>0,$K52<5), IF($K52=4,"Unknown", IF($K52=1, $F52*0.33, IF($K52=2, $F52*0.5+$G52*0.2, SUM(F52:G52)))), 0),"Not required") -> 0 | Q52: 1 | R52: 0 | S52: 1 | T52: 0 | U52: MDA1 (IVM+ALB) | W52: 36380 | X52: Etim Ekpo | AA52: ='MDA1'!M52 -> 112324 | AB52: ='MDA3'!Q52 -> 0 | AC52: ='T2'!M52 -> 0 | AD52: =T3_R1!N52 -> 0 | AE52: =T3_R2!N52 -> 0 | AF52: ='MDA1'!K52 -> 42239 | AG52: =AF52=AD52 -> FALSE | AI52: ='MDA1'!E52 -> Nov 2020 | AJ52: =T3_R1!F52 -> 0 | AK52: =T3_R2!F52 -> 0 | AL52: ='T2'!E52 -> 0 | AN52: remove from t3r1
A53: =IF(INTRO!$E$34<>0,INTRO!$E$34,"") -> Nigeria | B53: Akwa Ibom | C53: Etinan | D53: 238737.897 | E53: =IF(INTRO!$E$48="","",ROUND($D53*INTRO!$E$48,0)) -> 38198 | F53: =IF(INTRO!$E$49="","",ROUND($D53*INTRO!$E$49,0)) -> 66847 | G53: =IF(INTRO!$E$50="","",ROUND($D53*INTRO!$E$50,0)) -> 124144 | H53: 0 | I53: 4 | J53: 2 | K53: 0 | L53: 0 | M53: =IF(INTRO!$E$38="Endemic", IF($H53>0, IF($H53=4,"Unknown", IF($H53=99,"Stopped", $D53)), 0),"Not required") -> 0 | N53: 0 | O53: =IF(INTRO!$E$42="Endemic", IF(AND($J53>1,$J53<5), IF($J53=4, "Unknown", E53+F53), 0),"Not required") -> 105045 | P53: =IF(INTRO!$E$44="Endemic", IF(AND($K53>0,$K53<5), IF($K53=4,"Unknown", IF($K53=1, $F53*0.33, IF($K53=2, $F53*0.5+$G53*0.2, SUM(F53:G53)))), 0),"Not required") -> 0 | Q53: 0 | R53: 0 | S53: 1 | T53: 0 | V53: T3 (ALB/MBD) | W53: 36381 | X53: Etinan | AA53: ='MDA1'!M53 -> 0 | AB53: ='MDA3'!Q53 -> 0 | AC53: ='T2'!M53 -> 0 | AD53: =T3_R1!N53 -> 52269 | AE53: =T3_R2!N53 -> 0 | AI53: ='MDA1'!E53 -> 0 | AJ53: =T3_R1!F53 -> Dec 2020 | AK53: =T3_R2!F53 -> 0 | AL53: ='T2'!E53 -> 0
A54: =IF(INTRO!$E$34<>0,INTRO!$E$34,"") -> Nigeria | B54: Akwa Ibom | C54: Ibeno | D54: 106306.932 | E54: =IF(INTRO!$E$48="","",ROUND($D54*INTRO!$E$48,0)) -> 17009 | F54: =IF(INTRO!$E$49="","",ROUND($D54*INTRO!$E$49,0)) -> 29766 | G54: =IF(INTRO!$E$50="","",ROUND($D54*INTRO!$E$50,0)) -> 55280 | H54: 1 | I54: 4 | J54: 3 | K54: 0 | L54: 0 | M54: =IF(INTRO!$E$38="Endemic", IF($H54>0, IF($H54=4,"Unknown", IF($H54=99,"Stopped", $D54)), 0),"Not required") -> 106306.932 | N54: 0 | O54: =IF(INTRO!$E$42="Endemic", IF(AND($J54>1,$J54<5), IF($J54=4, "Unknown", E54+F54), 0),"Not required") -> 46775 | P54: =IF(INTRO!$E$44="Endemic", IF(AND($K54>0,$K54<5), IF($K54=4,"Unknown", IF($K54=1, $F54*0.33, IF($K54=2, $F54*0.5+$G54*0.2, SUM(F54:G54)))), 0),"Not required") -> 0 | Q54: 1 | R54: 0 | S54: 1 | T54: 0 | U54: MDA1 (IVM+ALB) | W54: 36382 | X54: Ibeno | AA54: ='MDA1'!M54 -> 82991 | AB54: ='MDA3'!Q54 -> 0 | AC54: ='T2'!M54 -> 0 | AD54: =T3_R1!N54 -> 0 | AE54: =T3_R2!N54 -> 0 | AF54: ='MDA1'!K54 -> 30248 | AG54: =AF54=AD54 -> FALSE | AI54: ='MDA1'!E54 -> Nov 2020 | AJ54: =T3_R1!F54 -> 0 | AK54: =T3_R2!F54 -> 0 | AL54: ='T2'!E54 -> 0 | AN54: remove from t3r1
A55: =IF(INTRO!$E$34<>0,INTRO!$E$34,"") -> Nigeria | B55: Akwa Ibom | C55: Ibesikpo Asutan | D55: 193350.8448 | E55: =IF(INTRO!$E$48="","",ROUND($D55*INTRO!$E$48,0)) -> 30936 | F55: =IF(INTRO!$E$49="","",ROUND($D55*INTRO!$E$49,0)) -> 54138 | G55: =IF(INTRO!$E$50="","",ROUND($D55*INTRO!$E$50,0)) -> 100542 | H55: 0 | I55: 4 | J55: 3 | K55: 0 | L55: 0 | M55: =IF(INTRO!$E$38="Endemic", IF($H55>0, IF($H55=4,"Unknown", IF($H55=99,"Stopped", $D55)), 0),"Not required") -> 0 | N55: 0 | O55: =IF(INTRO!$E$42="Endemic", IF(AND($J55>1,$J55<5), IF($J55=4, "Unknown", E55+F55), 0),"Not required") -> 85074 | P55: =IF(INTRO!$E$44="Endemic", IF(AND($K55>0,$K55<5), IF($K55=4,"Unknown", IF($K55=1, $F55*0.33, IF($K55=2, $F55*0.5+$G55*0.2, SUM(F55:G55)))), 0),"Not required") -> 0 | Q55: 0 | R55: 0 | S55: 1 | T55: 0 | V55: T3 (ALB/MBD) | W55: 36383 | X55: Ibesikpo Asutan | AA55: ='MDA1'!M55 -> 0 | AB55: ='MDA3'!Q55 -> 0 | AC55: ='T2'!M55 -> 0 | AD55: =T3_R1!N55 -> 47860 | AE55: =T3_R2!N55 -> 0 | AI55: ='MDA1'!E55 -> 0 | AJ55: =T3_R1!F55 -> Dec 2020 | AK55: =T3_R2!F55 -> 0 | AL55: ='T2'!E55 -> 0
A56: =IF(INTRO!$E$34<>0,INTRO!$E$34,"") -> Nigeria | B56: Akwa Ibom | C56: Ibiono Ibom | D56: 267445.5636 | E56: =IF(INTRO!$E$48="","",ROUND($D56*INTRO!$E$48,0)) -> 42791 | F56: =IF(INTRO!$E$49="","",ROUND($D56*INTRO!$E$49,0)) -> 74885 | G56: =IF(INTRO!$E$50="","",ROUND($D56*INTRO!$E$50,0)) -> 139072 | H56: 0 | I56: 1 | J56: 3 | K56: 0 | L56: 0 | M56: =IF(INTRO!$E$38="Endemic", IF($H56>0, IF($H56=4,"Unknown", IF($H56=99,"Stopped", $D56)), 0),"Not required") -> 0 | N56: 133681 | O56: =IF(INTRO!$E$42="Endemic", IF(AND($J56>1,$J56<5), IF($J56=4, "Unknown", E56+F56), 0),"Not required") -> 117676 | P56: =IF(INTRO!$E$44="Endemic", IF(AND($K56>0,$K56<5), IF($K56=4,"Unknown", IF($K56=1, $F56*0.33, IF($K56=2, $F56*0.5+$G56*0.2, SUM(F56:G56)))), 0),"Not required") -> 0 | Q56: 0 | R56: 0 | S56: 1 | T56: 0 | U56: MDA3 (IVM) | V56: T3 (ALB/MBD) | W56: 36384 | X56: Ibiono Ibom | AA56: ='MDA1'!M56 -> 0 | AB56: ='MDA3'!Q56 -> 216006 | AC56: ='T2'!M56 -> 0 | AD56: =T3_R1!N56 -> 73663 | AE56: =T3_R2!N56 -> 0 | AI56: ='MDA1'!E56 -> 0 | AJ56: =T3_R1!F56 -> Dec 2020 | AK56: =T3_R2!F56 -> 0 | AL56: ='T2'!E56 -> 0
A57: =IF(INTRO!$E$34<>0,INTRO!$E$34,"") -> Nigeria | B57: Akwa Ibom | C57: Ika | D57: 102864.4377 | E57: =IF(INTRO!$E$48="","",ROUND($D57*INTRO!$E$48,0)) -> 16458 | F57: =IF(INTRO!$E$49="","",ROUND($D57*INTRO!$E$49,0)) -> 28802 | G57: =IF(INTRO!$E$50="","",ROUND($D57*INTRO!$E$50,0)) -> 53490 | H57: 0 | I57: 1 | J57: 2 | K57: 0 | L57: 0 | M57: =IF(INTRO!$E$38="Endemic", IF($H57>0, IF($H57=4,"Unknown", IF($H57=99,"Stopped", $D57)), 0),"Not required") -> 0 | N57: 103025 | O57: =IF(INTRO!$E$42="Endemic", IF(AND($J57>1,$J57<5), IF($J57=4, "Unknown", E57+F57), 0),"Not required") -> 45260 | P57: =IF(INTRO!$E$44="Endemic", IF(AND($K57>0,$K57<5), IF($K57=4,"Unknown", IF($K57=1, $F57*0.33, IF($K57=2, $F57*0.5+$G57*0.2, SUM(F57:G57)))), 0),"Not required") -> 0 | Q57: 0 | R57: 0 | S57: 1 | T57: 0 | U57: MDA3 (IVM) | V57: T3 (ALB/MBD) | W57: 36385 | X57: Ika | AA57: ='MDA1'!M57 -> 0 | AB57: ='MDA3'!Q57 -> 87452 | AC57: ='T2'!M57 -> 0 | AD57: =T3_R1!N57 -> 26195 | AE57: =T3_R2!N57 -> 0 | AI57: ='MDA1'!E57 -> 0 | AJ57: =T3_R1!F57 -> Dec 2020 | AK57: =T3_R2!F57 -> 0 | AL57: ='T2'!E57 -> 0
A58: =IF(INTRO!$E$34<>0,INTRO!$E$34,"") -> Nigeria | B58: Akwa Ibom | C58: Ikono | D58: 186021.6179 | E58: =IF(INTRO!$E$48="","",ROUND($D58*INTRO!$E$48,0)) -> 29763 | F58: =IF(INTRO!$E$49="","",ROUND($D58*INTRO!$E$49,0)) -> 52086 | G58: =IF(INTRO!$E$50="","",ROUND($D58*INTRO!$E$50,0)) -> 96731 | H58: 0 | I58: 1 | J58: 2 | K58: 0 | L58: 0 | M58: =IF(INTRO!$E$38="Endemic", IF($H58>0, IF($H58=4,"Unknown", IF($H58=99,"Stopped", $D58)), 0),"Not required") -> 0 | N58: 186313 | O58: =IF(INTRO!$E$42="Endemic", IF(AND($J58>1,$J58<5), IF($J58=4, "Unknown", E58+F58), 0),"Not required") -> 81849 | P58: =IF(INTRO!$E$44="Endemic", IF(AND($K58>0,$K58<5), IF($K58=4,"Unknown", IF($K58=1, $F58*0.33, IF($K58=2, $F58*0.5+$G58*0.2, SUM(F58:G58)))), 0),"Not required") -> 0 | Q58: 0 | R58: 0 | S58: 1 | T58: 0 | U58: MDA3 (IVM) | V58: T3 (ALB/MBD) | W58: 36386 | X58: Ikono | AA58: ='MDA1'!M58 -> 0 | AB58: ='MDA3'!Q58 -> 149549 | AC58: ='T2'!M58 -> 0 | AD58: =T3_R1!N58 -> 41407 | AE58: =T3_R2!N58 -> 0 | AI58: ='MDA1'!E58 -> 0 | AJ58: =T3_R1!F58 -> Dec 2020 | AK58: =T3_R2!F58 -> 0 | AL58: ='T2'!E58 -> 0
A59: =IF(INTRO!$E$34<>0,INTRO!$E$34,"") -> Nigeria | B59: Akwa Ibom | C59: Ikot Abasi | D59: 186189.4413 | E59: =IF(INTRO!$E$48="","",ROUND($D59*INTRO!$E$48,0)) -> 29790 | F59: =IF(INTRO!$E$49="","",ROUND($D59*INTRO!$E$49,0)) -> 52133 | G59: =IF(INTRO!$E$50="","",ROUND($D59*INTRO!$E$50,0)) -> 96819 | H59: 1 | I59: 4 | J59: 3 | K59: 0 | L59: 0 | M59: =IF(INTRO!$E$38="Endemic", IF($H59>0, IF($H59=4,"Unknown", IF($H59=99,"Stopped", $D59)), 0),"Not required") -> 186189.4413 | N59: 0 | O59: =IF(INTRO!$E$42="Endemic", IF(AND($J59>1,$J59<5), IF($J59=4, "Unknown", E59+F59), 0),"Not required") -> 81923 | P59: =IF(INTRO!$E$44="Endemic", IF(AND($K59>0,$K59<5), IF($K59=4,"Unknown", IF($K59=1, $F59*0.33, IF($K59=2, $F59*0.5+$G59*0.2, SUM(F59:G59)))), 0),"Not required") -> 0 | Q59: 1 | R59: 0 | S59: 1 | T59: 0 | U59: MDA1 (IVM+ALB) | W59: 36387 | X59: Ikot Abasi | AA59: ='MDA1'!M59 -> 125282 | AB59: ='MDA3'!Q59 -> 0 | AC59: ='T2'!M59 -> 0 | AD59: =T3_R1!N59 -> 0 | AE59: =T3_R2!N59 -> 0 | AF59: ='MDA1'!K59 -> 42929 | AG59: =AF59=AD59 -> FALSE | AI59: ='MDA1'!E59 -> Nov 2020 | AJ59: =T3_R1!F59 -> 0 | AK59: =T3_R2!F59 -> 0 | AL59: ='T2'!E59 -> 0 | AN59: remove from t3r1
A60: =IF(INTRO!$E$34<>0,INTRO!$E$34,"") -> Nigeria | B60: Akwa Ibom | C60: Ikot Ekpene | D60: 201778.6802 | E60: =IF(INTRO!$E$48="","",ROUND($D60*INTRO!$E$48,0)) -> 32285 | F60: =IF(INTRO!$E$49="","",ROUND($D60*INTRO!$E$49,0)) -> 56498 | G60: =IF(INTRO!$E$50="","",ROUND($D60*INTRO!$E$50,0)) -> 104925 | H60: 1 | I60: 4 | J60: 2 | K60: 0 | L60: 0 | M60: =IF(INTRO!$E$38="Endemic", IF($H60>0, IF($H60=4,"Unknown", IF($H60=99,"Stopped", $D60)), 0),"Not required") -> 201778.6802 | N60: 0 | O60: =IF(INTRO!$E$42="Endemic", IF(AND($J60>1,$J60<5), IF($J60=4, "Unknown", E60+F60), 0),"Not required") -> 88783 | P60: =IF(INTRO!$E$44="Endemic", IF(AND($K60>0,$K60<5), IF($K60=4,"Unknown", IF($K60=1, $F60*0.33, IF($K60=2, $F60*0.5+$G60*0.2, SUM(F60:G60)))), 0),"Not required") -> 0 | Q60: 1 | R60: 0 | S60: 1 | T60: 0 | U60: MDA1 (IVM+ALB) | W60: 36388 | X60: Ikot Ekpene | AA60: ='MDA1'!M60 -> 151294 | AB60: ='MDA3'!Q60 -> 0 | AC60: ='T2'!M60 -> 0 | AD60: =T3_R1!N60 -> 0 | AE60: =T3_R2!N60 -> 0 | AF60: ='MDA1'!K60 -> 44162 | AG60: FALSE | AI60: ='MDA1'!E60 -> Nov 2020 | AJ60: =T3_R1!F60 -> 0 | AK60: =T3_R2!F60 -> 0 | AL60: ='T2'!E60 -> 0 | AN60: remove from t3r1
A61: =IF(INTRO!$E$34<>0,INTRO!$E$34,"") -> Nigeria | B61: Akwa Ibom | C61: Ini | D61: 139894.1686 | E61: =IF(INTRO!$E$48="","",ROUND($D61*INTRO!$E$48,0)) -> 22383 | F61: =IF(INTRO!$E$49="","",ROUND($D61*INTRO!$E$49,0)) -> 39170 | G61: =IF(INTRO!$E$50="","",ROUND($D61*INTRO!$E$50,0)) -> 72745 | H61: 0 | I61: 1 | J61: 3 | K61: 0 | L61: 0 | M61: =IF(INTRO!$E$38="Endemic", IF($H61>0, IF($H61=4,"Unknown", IF($H61=99,"Stopped", $D61)), 0),"Not required") -> 0 | N61: 140113 | O61: =IF(INTRO!$E$42="Endemic", IF(AND($J61>1,$J61<5), IF($J61=4, "Unknown", E61+F61), 0),"Not required") -> 61553 | P61: =IF(INTRO!$E$44="Endemic", IF(AND($K61>0,$K61<5), IF($K61=4,"Unknown", IF($K61=1, $F61*0.33, IF($K61=2, $F61*0.5+$G61*0.2, SUM(F61:G61)))), 0),"Not required") -> 0 | Q61: 0 | R61: 0 | S61: 1 | T61: 0 | U61: MDA3 (IVM) | V61: T3 (ALB/MBD) | W61: 36389 | X61: Ini | AA61: ='MDA1'!M61 -> 0 | AB61: ='MDA3'!Q61 -> 113146 | AC61: ='T2'!M61 -> 0 | AD61: =T3_R1!N61 -> 38141 | AE61: =T3_R2!N61 -> 0 | AI61: ='MDA1'!E61 -> 0 | AJ61: =T3_R1!F61 -> Dec 2020 | AK61: =T3_R2!F61 -> 0 | AL61: ='T2'!E61 -> 0
A62: =IF(INTRO!$E$34<>0,INTRO!$E$34,"") -> Nigeria | B62: Akwa Ibom | C62: Itu | D62: 179152.1424 | E62: =IF(INTRO!$E$48="","",ROUND($D62*INTRO!$E$48,0)) -> 28664 | F62: =IF(INTRO!$E$49="","",ROUND($D62*INTRO!$E$49,0)) -> 50163 | G62: =IF(INTRO!$E$50="","",ROUND($D62*INTRO!$E$50,0)) -> 93159 | H62: 0 | I62: 4 | J62: 3 | K62: 0 | L62: 0 | M62: =IF(INTRO!$E$38="Endemic", IF($H62>0, IF($H62=4,"Unknown", IF($H62=99,"Stopped", $D62)), 0),"Not required") -> 0 | N62: 0 | O62: =IF(INTRO!$E$42="Endemic", IF(AND($J62>1,$J62<5), IF($J62=4, "Unknown", E62+F62), 0),"Not required") -> 78827 | P62: =IF(INTRO!$E$44="Endemic", IF(AND($K62>0,$K62<5), IF($K62=4,"Unknown", IF($K62=1, $F62*0.33, IF($K62=2, $F62*0.5+$G62*0.2, SUM(F62:G62)))), 0),"Not required") -> 0 | Q62: 0 | R62: 0 | S62: 1 | T62: 0 | V62: T3 (ALB/MBD) | W62: 36390 | X62: Itu | AA62: ='MDA1'!M62 -> 0 | AB62: ='MDA3'!Q62 -> 0 | AC62: ='T2'!M62 -> 0 | AD62: =T3_R1!N62 -> 42963 | AE62: =T3_R2!N62 -> 0 | AI62: ='MDA1'!E62 -> 0 | AJ62: =T3_R1!F62 -> Dec 2020 | AK62: =T3_R2!F62 -> 0 | AL62: ='T2'!E62 -> 0
A63: =IF(INTRO!$E$34<>0,INTRO!$E$34,"") -> Nigeria | B63: Akwa Ibom | C63: Mbo | D63: 146686.0787 | E63: =IF(INTRO!$E$48="","",ROUND($D63*INTRO!$E$48,0)) -> 23470 | F63: =IF(INTRO!$E$49="","",ROUND($D63*INTRO!$E$49,0)) -> 41072 | G63: =IF(INTRO!$E$50="","",ROUND($D63*INTRO!$E$50,0)) -> 76277 | H63: 0 | I63: 4 | J63: 3 | K63: 0 | L63: 0 | M63: =IF(INTRO!$E$38="Endemic", IF($H63>0, IF($H63=4,"Unknown", IF($H63=99,"Stopped", $D63)), 0),"Not required") -> 0 | N63: 0 | O63: =IF(INTRO!$E$42="Endemic", IF(AND($J63>1,$J63<5), IF($J63=4, "Unknown", E63+F63), 0),"Not required") -> 64542 | P63: =IF(INTRO!$E$44="Endemic", IF(AND($K63>0,$K63<5), IF($K63=4,"Unknown", IF($K63=1, $F63*0.33, IF($K63=2, $F63*0.5+$G63*0.2, SUM(F63:G63)))), 0),"Not required") -> 0 | Q63: 0 | R63: 0 | S63: 1 | T63: 0 | V63: T3 (ALB/MBD) | W63: 36391 | X63: Mbo | AA63: ='MDA1'!M63 -> 0 | AB63: ='MDA3'!Q63 -> 0 | AC63: ='T2'!M63 -> 0 | AD63: =T3_R1!N63 -> 36285 | AE63: =T3_R2!N63 -> 0 | AI63: ='MDA1'!E63 -> 0 | AJ63: =T3_R1!F63 -> Dec 2020 | AK63: =T3_R2!F63 -> 0 | AL63: ='T2'!E63 -> 0
A64: =IF(INTRO!$E$34<>0,INTRO!$E$34,"") -> Nigeria | B64: Akwa Ibom | C64: Mkpat Enin | D64: 251080.6705 | E64: =IF(INTRO!$E$48="","",ROUND($D64*INTRO!$E$48,0)) -> 40173 | F64: =IF(INTRO!$E$49="","",ROUND($D64*INTRO!$E$49,0)) -> 70303 | G64: =IF(INTRO!$E$50="","",ROUND($D64*INTRO!$E$50,0)) -> 130562 | H64: 0 | I64: 4 | J64: 3 | K64: 0 | L64: 0 | M64: =IF(INTRO!$E$38="Endemic", IF($H64>0, IF($H64=4,"Unknown", IF($H64=99,"Stopped", $D64)), 0),"Not required") -> 0 | N64: 0 | O64: =IF(INTRO!$E$42="Endemic", IF(AND($J64>1,$J64<5), IF($J64=4, "Unknown", E64+F64), 0),"Not required") -> 110476 | P64: =IF(INTRO!$E$44="Endemic", IF(AND($K64>0,$K64<5), IF($K64=4,"Unknown", IF($K64=1, $F64*0.33, IF($K64=2, $F64*0.5+$G64*0.2, SUM(F64:G64)))), 0),"Not required") -> 0 | Q64: 0 | R64: 0 | S64: 1 | T64: 0 | V64: T3 (ALB/MBD) | W64: 36392 | X64: Mkpat Enin | AA64: ='MDA1'!M64 -> 0 | AB64: ='MDA3'!Q64 -> 0 | AC64: ='T2'!M64 -> 0 | AD64: =T3_R1!N64 -> 57487 | AE64: =T3_R2!N64 -> 0 | AI64: ='MDA1'!E64 -> 0 | AJ64: =T3_R1!F64 -> Dec 2020 | AK64: =T3_R2!F64 -> 0 | AL64: ='T2'!E64 -> 0
A65: =IF(INTRO!$E$34<>0,INTRO!$E$34,"") -> Nigeria | B65: Akwa Ibom | C65: Nsit Atai | D65: 105199.8619 | E65: =IF(INTRO!$E$48="","",ROUND($D65*INTRO!$E$48,0)) -> 16832 | F65: =IF(INTRO!$E$49="","",ROUND($D65*INTRO!$E$49,0)) -> 29456 | G65: =IF(INTRO!$E$50="","",ROUND($D65*INTRO!$E$50,0)) -> 54704 | H65: 0 | I65: 4 | J65: 3 | K65: 0 | L65: 0 | M65: =IF(INTRO!$E$38="Endemic", IF($H65>0, IF($H65=4,"Unknown", IF($H65=99,"Stopped", $D65)), 0),"Not required") -> 0 | N65: 0 | O65: =IF(INTRO!$E$42="Endemic", IF(AND($J65>1,$J65<5), IF($J65=4, "Unknown", E65+F65), 0),"Not required") -> 46288 | P65: =IF(INTRO!$E$44="Endemic", IF(AND($K65>0,$K65<5), IF($K65=4,"Unknown", IF($K65=1, $F65*0.33, IF($K65=2, $F65*0.5+$G65*0.2, SUM(F65:G65)))), 0),"Not required") -> 0 | Q65: 0 | R65: 0 | S65: 1 | T65: 0 | V65: T3 (ALB/MBD) | W65: 36393 | X65: Nsit Atai | AA65: ='MDA1'!M65 -> 0 | AB65: ='MDA3'!Q65 -> 0 | AC65: ='T2'!M65 -> 0 | AD65: =T3_R1!N65 -> 28995 | AE65: =T3_R2!N65 -> 0 | AI65: ='MDA1'!E65 -> 0 | AJ65: =T3_R1!F65 -> Dec 2020 | AK65: =T3_R2!F65 -> 0 | AL65: ='T2'!E65 -> 0
A66: =IF(INTRO!$E$34<>0,INTRO!$E$34,"") -> Nigeria | B66: Akwa Ibom | C66: Nsit Ibom | D66: 153171.958 | E66: =IF(INTRO!$E$48="","",ROUND($D66*INTRO!$E$48,0)) -> 24508 | F66: =IF(INTRO!$E$49="","",ROUND($D66*INTRO!$E$49,0)) -> 42888 | G66: =IF(INTRO!$E$50="","",ROUND($D66*INTRO!$E$50,0)) -> 79649 | H66: 0 | I66: 4 | J66: 2 | K66: 0 | L66: 0 | M66: =IF(INTRO!$E$38="Endemic", IF($H66>0, IF($H66=4,"Unknown", IF($H66=99,"Stopped", $D66)), 0),"Not required") -> 0 | N66: 0 | O66: =IF(INTRO!$E$42="Endemic", IF(AND($J66>1,$J66<5), IF($J66=4, "Unknown", E66+F66), 0),"Not required") -> 67396 | P66: =IF(INTRO!$E$44="Endemic", IF(AND($K66>0,$K66<5), IF($K66=4,"Unknown", IF($K66=1, $F66*0.33, IF($K66=2, $F66*0.5+$G66*0.2, SUM(F66:G66)))), 0),"Not required") -> 0 | Q66: 0 | R66: 0 | S66: 1 | T66: 0 | V66: T3 (ALB/MBD) | W66: 36394 | X66: Nsit Ibom | AA66: ='MDA1'!M66 -> 0 | AB66: ='MDA3'!Q66 -> 0 | AC66: ='T2'!M66 -> 0 | AD66: =T3_R1!N66 -> 38936 | AE66: =T3_R2!N66 -> 0 | AI66: ='MDA1'!E66 -> 0 | AJ66: =T3_R1!F66 -> Dec 2020 | AK66: =T3_R2!F66 -> 0 | AL66: ='T2'!E66 -> 0
A67: =IF(INTRO!$E$34<>0,INTRO!$E$34,"") -> Nigeria | B67: Akwa Ibom | C67: Nsit Ubiom | D67: 180841.6582 | E67: =IF(INTRO!$E$48="","",ROUND($D67*INTRO!$E$48,0)) -> 28935 | F67: =IF(INTRO!$E$49="","",ROUND($D67*INTRO!$E$49,0)) -> 50636 | G67: =IF(INTRO!$E$50="","",ROUND($D67*INTRO!$E$50,0)) -> 94038 | H67: 0 | I67: 4 | J67: 3 | K67: 0 | L67: 0 | M67: =IF(INTRO!$E$38="Endemic", IF($H67>0, IF($H67=4,"Unknown", IF($H67=99,"Stopped", $D67)), 0),"Not required") -> 0 | N67: 0 | O67: =IF(INTRO!$E$42="Endemic", IF(AND($J67>1,$J67<5), IF($J67=4, "Unknown", E67+F67), 0),"Not required") -> 79571 | P67: =IF(INTRO!$E$44="Endemic", IF(AND($K67>0,$K67<5), IF($K67=4,"Unknown", IF($K67=1, $F67*0.33, IF($K67=2, $F67*0.5+$G67*0.2, SUM(F67:G67)))), 0),"Not required") -> 0 | Q67: 0 | R67: 0 | S67: 1 | T67: 0 | V67: T3 (ALB/MBD) | W67: 36395 | X67: Nsit Ubiom | AA67: ='MDA1'!M67 -> 0 | AB67: ='MDA3'!Q67 -> 0 | AC67: ='T2'!M67 -> 0 | AD67: =T3_R1!N67 -> 45651 | AE67: =T3_R2!N67 -> 0 | AI67: ='MDA1'!E67 -> 0 | AJ67: =T3_R1!F67 -> Dec 2020 | AK67: =T3_R2!F67 -> 0 | AL67: ='T2'!E67 -> 0
A68: =IF(INTRO!$E$34<>0,INTRO!$E$34,"") -> Nigeria | B68: Akwa Ibom | C68: Obot Akara | D68: 209117.779 | E68: =IF(INTRO!$E$48="","",ROUND($D68*INTRO!$E$48,0)) -> 33459 | F68: =IF(INTRO!$E$49="","",ROUND($D68*INTRO!$E$49,0)) -> 58553 | G68: =IF(INTRO!$E$50="","",ROUND($D68*INTRO!$E$50,0)) -> 108741 | H68: 0 | I68: 4 | J68: 3 | K68: 0 | L68: 0 | M68: =IF(INTRO!$E$38="Endemic", IF($H68>0, IF($H68=4,"Unknown", IF($H68=99,"Stopped", $D68)), 0),"Not required") -> 0 | N68: 0 | O68: =IF(INTRO!$E$42="Endemic", IF(AND($J68>1,$J68<5), IF($J68=4, "Unknown", E68+F68), 0),"Not required") -> 92012 | P68: =IF(INTRO!$E$44="Endemic", IF(AND($K68>0,$K68<5), IF($K68=4,"Unknown", IF($K68=1, $F68*0.33, IF($K68=2, $F68*0.5+$G68*0.2, SUM(F68:G68)))), 0),"Not required") -> 0 | Q68: 0 | R68: 0 | S68: 1 | T68: 0 | V68: T3 (ALB/MBD) | W68: 36396 | X68: Obot Akara | AA68: ='MDA1'!M68 -> 0 | AB68: ='MDA3'!Q68 -> 0 | AC68: ='T2'!M68 -> 0 | AD68: =T3_R1!N68 -> 54619 | AE68: =T3_R2!N68 -> 0 | AI68: ='MDA1'!E68 -> 0 | AJ68: =T3_R1!F68 -> Dec 2020 | AK68: =T3_R2!F68 -> 0 | AL68: ='T2'!E68 -> 0
A69: =IF(INTRO!$E$34<>0,INTRO!$E$34,"") -> Nigeria | B69: Akwa Ibom | C69: Okobo | D69: 146749.5413 | E69: =IF(INTRO!$E$48="","",ROUND($D69*INTRO!$E$48,0)) -> 23480 | F69: =IF(INTRO!$E$49="","",ROUND($D69*INTRO!$E$49,0)) -> 41090 | G69: =IF(INTRO!$E$50="","",ROUND($D69*INTRO!$E$50,0)) -> 76310 | H69: 1 | I69: 4 | J69: 3 | K69: 0 | L69: 0 | M69: =IF(INTRO!$E$38="Endemic", IF($H69>0, IF($H69=4,"Unknown", IF($H69=99,"Stopped", $D69)), 0),"Not required") -> 146749.5413 | N69: 0 | O69: =IF(INTRO!$E$42="Endemic", IF(AND($J69>1,$J69<5), IF($J69=4, "Unknown", E69+F69), 0),"Not required") -> 64570 | P69: =IF(INTRO!$E$44="Endemic", IF(AND($K69>0,$K69<5), IF($K69=4,"Unknown", IF($K69=1, $F69*0.33, IF($K69=2, $F69*0.5+$G69*0.2, SUM(F69:G69)))), 0),"Not required") -> 0 | Q69: 1 | R69: 0 | S69: 1 | T69: 0 | U69: MDA1 (IVM+ALB) | W69: 36397 | X69: Okobo | AA69: ='MDA1'!M69 -> 115412 | AB69: ='MDA3'!Q69 -> 0 | AC69: ='T2'!M69 -> 0 | AD69: =T3_R1!N69 -> 0 | AE69: =T3_R2!N69 -> 0 | AF69: ='MDA1'!K69 -> 37145 | AG69: =AF69=AD69 -> FALSE | AI69: ='MDA1'!E69 -> Nov 2020 | AJ69: =T3_R1!F69 -> 0 | AK69: =T3_R2!F69 -> 0 | AL69: ='T2'!E69 -> 0 | AN69: remove from t3r1
A70: =IF(INTRO!$E$34<>0,INTRO!$E$34,"") -> Nigeria | B70: Akwa Ibom | C70: Onna | D70: 173990.5163 | E70: =IF(INTRO!$E$48="","",ROUND($D70*INTRO!$E$48,0)) -> 27838 | F70: =IF(INTRO!$E$49="","",ROUND($D70*INTRO!$E$49,0)) -> 48717 | G70: =IF(INTRO!$E$50="","",ROUND($D70*INTRO!$E$50,0)) -> 90475 | H70: 1 | I70: 4 | J70: 3 | K70: 0 | L70: 1 | M70: =IF(INTRO!$E$38="Endemic", IF($H70>0, IF($H70=4,"Unknown", IF($H70=99,"Stopped", $D70)), 0),"Not required") -> 173990.5163 | N70: 0 | O70: =IF(INTRO!$E$42="Endemic", IF(AND($J70>1,$J70<5), IF($J70=4, "Unknown", E70+F70), 0),"Not required") -> 76555 | P70: =IF(INTRO!$E$44="Endemic", IF(AND($K70>0,$K70<5), IF($K70=4,"Unknown", IF($K70=1, $F70*0.33, IF($K70=2, $F70*0.5+$G70*0.2, SUM(F70:G70)))), 0),"Not required") -> 0 | Q70: 1 | R70: 0 | S70: 1 | T70: 0 | U70: MDA1 (IVM+ALB) | W70: 36398 | X70: Onna | AA70: ='MDA1'!M70 -> 130206 | AB70: ='MDA3'!Q70 -> 0 | AC70: ='T2'!M70 -> 0 | AD70: =T3_R1!N70 -> 0 | AE70: =T3_R2!N70 -> 0 | AF70: ='MDA1'!K70 -> 48101 | AG70: FALSE | AI70: ='MDA1'!E70 -> Nov 2020 | AJ70: =T3_R1!F70 -> 0 | AK70: =T3_R2!F70 -> 0 | AL70: ='T2'!E70 -> 0 | AN70: remove from t3r1
A71: =IF(INTRO!$E$34<>0,INTRO!$E$34,"") -> Nigeria | B71: Akwa Ibom | C71: Oron | D71: 123344.5288 | E71: =IF(INTRO!$E$48="","",ROUND($D71*INTRO!$E$48,0)) -> 19735 | F71: =IF(INTRO!$E$49="","",ROUND($D71*INTRO!$E$49,0)) -> 34536 | G71: =IF(INTRO!$E$50="","",ROUND($D71*INTRO!$E$50,0)) -> 64139 | H71: 1 | I71: 4 | J71: 3 | K71: 0 | L71: 0 | M71: =IF(INTRO!$E$38="Endemic", IF($H71>0, IF($H71=4,"Unknown", IF($H71=99,"Stopped", $D71)), 0),"Not required") -> 123344.5288 | N71: 0 | O71: =IF(INTRO!$E$42="Endemic", IF(AND($J71>1,$J71<5), IF($J71=4, "Unknown", E71+F71), 0),"Not required") -> 54271 | P71: =IF(INTRO!$E$44="Endemic", IF(AND($K71>0,$K71<5), IF($K71=4,"Unknown", IF($K71=1, $F71*0.33, IF($K71=2, $F71*0.5+$G71*0.2, SUM(F71:G71)))), 0),"Not required") -> 0 | Q71: 1 | R71: 0 | S71: 1 | T71: 0 | U71: MDA1 (IVM+ALB) | W71: 36399 | X71: Oron | AA71: ='MDA1'!M71 -> 92940 | AB71: ='MDA3'!Q71 -> 0 | AC71: ='T2'!M71 -> 0 | AD71: =T3_R1!N71 -> 0 | AE71: =T3_R2!N71 -> 0 | AF71: ='MDA1'!K71 -> 35162 | AG71: FALSE | AI71: ='MDA1'!E71 -> Nov 2020 | AJ71: =T3_R1!F71 -> 0 | AK71: =T3_R2!F71 -> 0 | AL71: ='T2'!E71 -> 0 | AN71: remove from t3r1
A72: =IF(INTRO!$E$34<>0,INTRO!$E$34,"") -> Nigeria | B72: Akwa Ibom | C72: Oruk Anam | D72: 243490.5418 | E72: =IF(INTRO!$E$48="","",ROUND($D72*INTRO!$E$48,0)) -> 38958 | F72: =IF(INTRO!$E$49="","",ROUND($D72*INTRO!$E$49,0)) -> 68177 | G72: =IF(INTRO!$E$50="","",ROUND($D72*INTRO!$E$50,0)) -> 126615 | H72: 0 | I72: 4 | J72: 3 | K72: 0 | L72: 0 | M72: =IF(INTRO!$E$38="Endemic", IF($H72>0, IF($H72=4,"Unknown", IF($H72=99,"Stopped", $D72)), 0),"Not required") -> 0 | N72: 0 | O72: =IF(INTRO!$E$42="Endemic", IF(AND($J72>1,$J72<5), IF($J72=4, "Unknown", E72+F72), 0),"Not required") -> 107135 | P72: =IF(INTRO!$E$44="Endemic", IF(AND($K72>0,$K72<5), IF($K72=4,"Unknown", IF($K72=1, $F72*0.33, IF($K72=2, $F72*0.5+$G72*0.2, SUM(F72:G72)))), 0),"Not required") -> 0 | Q72: 0 | R72: 0 | S72: 1 | T72: 0 | V72: T3 (ALB/MBD) | W72: 36400 | X72: Oruk Anam | AA72: ='MDA1'!M72 -> 0 | AB72: ='MDA3'!Q72 -> 0 | AC72: ='T2'!M72 -> 0 | AD72: =T3_R1!N72 -> 54125 | AE72: =T3_R2!N72 -> 0 | AI72: ='MDA1'!E72 -> 0 | AJ72: =T3_R1!F72 -> Dec 2020 | AK72: =T3_R2!F72 -> 0 | AL72: ='T2'!E72 -> 0
A73: =IF(INTRO!$E$34<>0,INTRO!$E$34,"") -> Nigeria | B73: Akwa Ibom | C73: Udung Uko | D73: 75136.91593 | E73: =IF(INTRO!$E$48="","",ROUND($D73*INTRO!$E$48,0)) -> 12022 | F73: =IF(INTRO!$E$49="","",ROUND($D73*INTRO!$E$49,0)) -> 21038 | G73: =IF(INTRO!$E$50="","",ROUND($D73*INTRO!$E$50,0)) -> 39071 | H73: 1 | I73: 4 | J73: 3 | K73: 1 | L73: 0 | M73: =IF(INTRO!$E$38="Endemic", IF($H73>0, IF($H73=4,"Unknown", IF($H73=99,"Stopped", $D73)), 0),"Not required") -> 75136.91593 | N73: 0 | O73: =IF(INTRO!$E$42="Endemic", IF(AND($J73>1,$J73<5), IF($J73=4, "Unknown", E73+F73), 0),"Not required") -> 33060 | P73: =IF(INTRO!$E$44="Endemic", IF(AND($K73>0,$K73<5), IF($K73=4,"Unknown", IF($K73=1, $F73*0.33, IF($K73=2, $F73*0.5+$G73*0.2, SUM(F73:G73)))), 0),"Not required") -> 6942.54 | Q73: 1 | R73: 0 | S73: 1 | T73: 0 | U73: MDA1 (IVM+ALB) | W73: 36401 | X73: Udung Uko | AA73: ='MDA1'!M73 -> 53889 | AB73: ='MDA3'!Q73 -> 0 | AC73: ='T2'!M73 -> 0 | AD73: =T3_R1!N73 -> 0 | AE73: =T3_R2!N73 -> 0 | AF73: ='MDA1'!K73 -> 18778 | AG73: =AF73=AD73 -> FALSE | AI73: ='MDA1'!E73 -> Nov 2020 | AJ73: =T3_R1!F73 -> 0 | AK73: =T3_R2!F73 -> 0 | AL73: ='T2'!E73 -> 0 | AN73: remove from t3r1
A74: =IF(INTRO!$E$34<>0,INTRO!$E$34,"") -> Nigeria | B74: Akwa Ibom | C74: Ukanafun | D74: 179152.1424 | E74: =IF(INTRO!$E$48="","",ROUND($D74*INTRO!$E$48,0)) -> 28664 | F74: =IF(INTRO!$E$49="","",ROUND($D74*INTRO!$E$49,0)) -> 50163 | G74: =IF(INTRO!$E$50="","",ROUND($D74*INTRO!$E$50,0)) -> 93159 | H74: 0 | I74: 4 | J74: 2 | K74: 0 | L74: 0 | M74: =IF(INTRO!$E$38="Endemic", IF($H74>0, IF($H74=4,"Unknown", IF($H74=99,"Stopped", $D74)), 0),"Not required") -> 0 | N74: 0 | O74: =IF(INTRO!$E$42="Endemic", IF(AND($J74>1,$J74<5), IF($J74=4, "Unknown", E74+F74), 0),"Not required") -> 78827 | P74: =IF(INTRO!$E$44="Endemic", IF(AND($K74>0,$K74<5), IF($K74=4,"Unknown", IF($K74=1, $F74*0.33, IF($K74=2, $F74*0.5+$G74*0.2, SUM(F74:G74)))), 0),"Not required") -> 0 | Q74: 0 | R74: 0 | S74: 1 | T74: 0 | V74: T3 (ALB/MBD) | W74: 36402 | X74: Ukanafun | AA74: ='MDA1'!M74 -> 0 | AB74: ='MDA3'!Q74 -> 0 | AC74: ='T2'!M74 -> 0 | AD74: =T3_R1!N74 -> 48831 | AE74: =T3_R2!N74 -> 0 | AI74: ='MDA1'!E74 -> 0 | AJ74: =T3_R1!F74 -> Dec 2020 | AK74: =T3_R2!F74 -> 0 | AL74: ='T2'!E74 -> 0
A75: =IF(INTRO!$E$34<>0,INTRO!$E$34,"") -> Nigeria | B75: Akwa Ibom | C75: Uruan | D75: 166836.1642 | E75: =IF(INTRO!$E$48="","",ROUND($D75*INTRO!$E$48,0)) -> 26694 | F75: =IF(INTRO!$E$49="","",ROUND($D75*INTRO!$E$49,0)) -> 46714 | G75: =IF(INTRO!$E$50="","",ROUND($D75*INTRO!$E$50,0)) -> 86755 | H75: 1 | I75: 4 | J75: 3 | K75: 0 | L75: 0 | M75: =IF(INTRO!$E$38="Endemic", IF($H75>0, IF($H75=4,"Unknown", IF($H75=99,"Stopped", $D75)), 0),"Not required") -> 166836.1642 | N75: 0 | O75: =IF(INTRO!$E$42="Endemic", IF(AND($J75>1,$J75<5), IF($J75=4, "Unknown", E75+F75), 0),"Not required") -> 73408 | P75: =IF(INTRO!$E$44="Endemic", IF(AND($K75>0,$K75<5), IF($K75=4,"Unknown", IF($K75=1, $F75*0.33, IF($K75=2, $F75*0.5+$G75*0.2, SUM(F75:G75)))), 0),"Not required") -> 0 | Q75: 0 | R75: 0 | S75: 0 | T75: 0 | W75: 36403 | X75: Uruan | AA75: ='MDA1'!M75 -> 0 | AB75: ='MDA3'!Q75 -> 0 | AC75: ='T2'!M75 -> 0 | AD75: =T3_R1!N75 -> 0 | AE75: =T3_R2!N75 -> 0 | AI75: ='MDA1'!E75 -> 0 | AJ75: =T3_R1!F75 -> 0 | AK75: =T3_R2!F75 -> 0 | AL75: ='T2'!E75 -> 0
A76: =IF(INTRO!$E$34<>0,INTRO!$E$34,"") -> Nigeria | B76: Akwa Ibom | C76: Urue-Offong/Oruko | D76: 100354.1387 | E76: =IF(INTRO!$E$48="","",ROUND($D76*INTRO!$E$48,0)) -> 16057 | F76: =IF(INTRO!$E$49="","",ROUND($D76*INTRO!$E$49,0)) -> 28099 | G76: =IF(INTRO!$E$50="","",ROUND($D76*INTRO!$E$50,0)) -> 52184 | H76: 0 | I76: 4 | J76: 3 | K76: 0 | L76: 0 | M76: =IF(INTRO!$E$38="Endemic", IF($H76>0, IF($H76=4,"Unknown", IF($H76=99,"Stopped", $D76)), 0),"Not required") -> 0 | N76: 0 | O76: =IF(INTRO!$E$42="Endemic", IF(AND($J76>1,$J76<5), IF($J76=4, "Unknown", E76+F76), 0),"Not required") -> 44156 | P76: =IF(INTRO!$E$44="Endemic", IF(AND($K76>0,$K76<5), IF($K76=4,"Unknown", IF($K76=1, $F76*0.33, IF($K76=2, $F76*0.5+$G76*0.2, SUM(F76:G76)))), 0),"Not required") -> 0 | Q76: 0 | R76: 0 | S76: 1 | T76: 0 | V76: T3 (ALB/MBD) | W76: 36404 | X76: Urue-Offong/Oruko | AA76: ='MDA1'!M76 -> 0 | AB76: ='MDA3'!Q76 -> 0 | AC76: ='T2'!M76 -> 0 | AD76: =T3_R1!N76 -> 21851 | AE76: =T3_R2!N76 -> 0 | AI76: ='MDA1'!E76 -> 0 | AJ76: =T3_R1!F76 -> Dec 2020 | AK76: =T3_R2!F76 -> 0 | AL76: ='T2'!E76 -> 0
A77: =IF(INTRO!$E$34<>0,INTRO!$E$34,"") -> Nigeria | B77: Akwa Ibom | C77: Uyo | D77: 436584.7156 | E77: =IF(INTRO!$E$48="","",ROUND($D77*INTRO!$E$48,0)) -> 69854 | F77: =IF(INTRO!$E$49="","",ROUND($D77*INTRO!$E$49,0)) -> 122244 | G77: =IF(INTRO!$E$50="","",ROUND($D77*INTRO!$E$50,0)) -> 227024 | H77: 0 | I77: 4 | J77: 2 | K77: 0 | L77: 0 | M77: =IF(INTRO!$E$38="Endemic", IF($H77>0, IF($H77=4,"Unknown", IF($H77=99,"Stopped", $D77)), 0),"Not required") -> 0 | N77: 0 | O77: =IF(INTRO!$E$42="Endemic", IF(AND($J77>1,$J77<5), IF($J77=4, "Unknown", E77+F77), 0),"Not required") -> 192098 | P77: =IF(INTRO!$E$44="Endemic", IF(AND($K77>0,$K77<5), IF($K77=4,"Unknown", IF($K77=1, $F77*0.33, IF($K77=2, $F77*0.5+$G77*0.2, SUM(F77:G77)))), 0),"Not required") -> 0 | Q77: 0 | R77: 0 | S77: 1 | T77: 0 | V77: T3 (ALB/MBD) | W77: 36405 | X77: Uyo | AA77: ='MDA1'!M77 -> 0 | AB77: ='MDA3'!Q77 -> 0 | AC77: ='T2'!M77 -> 0 | AD77: =T3_R1!N77 -> 113800 | AE77: =T3_R2!N77 -> 0 | AI77: ='MDA1'!E77 -> 0 | AJ77: =T3_R1!F77 -> Dec 2020 | AK77: =T3_R2!F77 -> 0 | AL77: ='T2'!E77 -> 0
A78: =IF(INTRO!$E$34<>0,INTRO!$E$34,"") -> Nigeria | B78: Anambra | C78: Aguata | D78: 522046.2939 | E78: =IF(INTRO!$E$48="","",ROUND($D78*INTRO!$E$48,0)) -> 83527 | F78: =IF(INTRO!$E$49="","",ROUND($D78*INTRO!$E$49,0)) -> 146173 | G78: =IF(INTRO!$E$50="","",ROUND($D78*INTRO!$E$50,0)) -> 271464 | H78: 1 | I78: 1 | J78: 2 | K78: 0 | L78: 0 | M78: =IF(INTRO!$E$38="Endemic", IF($H78>0, IF($H78=4,"Unknown", IF($H78=99,"Stopped", $D78)), 0),"Not required") -> 522046.2939 | N78: 72567 | O78: =IF(INTRO!$E$42="Endemic", IF(AND($J78>1,$J78<5), IF($J78=4, "Unknown", E78+F78), 0),"Not required") -> 229700 | P78: =IF(INTRO!$E$44="Endemic", IF(AND($K78>0,$K78<5), IF($K78=4,"Unknown", IF($K78=1, $F78*0.33, IF($K78=2, $F78*0.5+$G78*0.2, SUM(F78:G78)))), 0),"Not required") -> 0 | Q78: 0 | R78: 0 | S78: 1 | T78: 0 | V78: T3 (ALB/MBD) | W78: 36406 | X78: Aguata | AA78: ='MDA1'!M78 -> 0 | AB78: ='MDA3'!Q78 -> 0 | AC78: ='T2'!M78 -> 0 | AD78: =T3_R1!N78 -> 93895 | AE78: =T3_R2!N78 -> 0 | AI78: ='MDA1'!E78 -> 0 | AJ78: =T3_R1!F78 -> Dec 2020 | AK78: =T3_R2!F78 -> 0 | AL78: ='T2'!E78 -> 0
A79: =IF(INTRO!$E$34<>0,INTRO!$E$34,"") -> Nigeria | B79: Anambra | C79: Anambra East | D79: 216239.6948 | E79: =IF(INTRO!$E$48="","",ROUND($D79*INTRO!$E$48,0)) -> 34598 | F79: =IF(INTRO!$E$49="","",ROUND($D79*INTRO!$E$49,0)) -> 60547 | G79: =IF(INTRO!$E$50="","",ROUND($D79*INTRO!$E$50,0)) -> 112445 | H79: 1 | I79: 4 | J79: 1 | K79: 0 | L79: 0 | M79: =IF(INTRO!$E$38="Endemic", IF($H79>0, IF($H79=4,"Unknown", IF($H79=99,"Stopped", $D79)), 0),"Not required") -> 216239.6948 | N79: 0 | O79: =IF(INTRO!$E$42="Endemic", IF(AND($J79>1,$J79<5), IF($J79=4, "Unknown", E79+F79), 0),"Not required") -> 0 | P79: =IF(INTRO!$E$44="Endemic", IF(AND($K79>0,$K79<5), IF($K79=4,"Unknown", IF($K79=1, $F79*0.33, IF($K79=2, $F79*0.5+$G79*0.2, SUM(F79:G79)))), 0),"Not required") -> 0 | Q79: 0 | R79: 0 | S79: 0 | T79: 0 | W79: 36407 | X79: Anambra East | AA79: ='MDA1'!M79 -> 0 | AB79: ='MDA3'!Q79 -> 0 | AC79: ='T2'!M79 -> 0 | AD79: =T3_R1!N79 -> 0 | AE79: =T3_R2!N79 -> 0 | AI79: ='MDA1'!E79 -> 0 | AJ79: =T3_R1!F79 -> 0 | AK79: =T3_R2!F79 -> 0 | AL79: ='T2'!E79 -> 0
A80: =IF(INTRO!$E$34<>0,INTRO!$E$34,"") -> Nigeria | B80: Anambra | C80: Anambra West | D80: 236103.4933 | E80: =IF(INTRO!$E$48="","",ROUND($D80*INTRO!$E$48,0)) -> 37777 | F80: =IF(INTRO!$E$49="","",ROUND($D80*INTRO!$E$49,0)) -> 66109 | G80: =IF(INTRO!$E$50="","",ROUND($D80*INTRO!$E$50,0)) -> 122774 | H80: 1 | I80: 4 | J80: 1 | K80: 1 | L80: 0 | M80: =IF(INTRO!$E$38="Endemic", IF($H80>0, IF($H80=4,"Unknown", IF($H80=99,"Stopped", $D80)), 0),"Not required") -> 236103.4933 | N80: 0 | O80: =IF(INTRO!$E$42="Endemic", IF(AND($J80>1,$J80<5), IF($J80=4, "Unknown", E80+F80), 0),"Not required") -> 0 | P80: =IF(INTRO!$E$44="Endemic", IF(AND($K80>0,$K80<5), IF($K80=4,"Unknown", IF($K80=1, $F80*0.33, IF($K80=2, $F80*0.5+$G80*0.2, SUM(F80:G80)))), 0),"Not required") -> 21815.97 | Q80: 1 | R80: 0 | S80: 0 | T80: 0 | U80: MDA1 (IVM+ALB) | W80: 36408 | X80: Anambra West | AA80: ='MDA1'!M80 -> 161603 | AB80: ='MDA3'!Q80 -> 0 | AC80: ='T2'!M80 -> 0 | AD80: =T3_R1!N80 -> 0 | AE80: =T3_R2!N80 -> 0 | AI80: ='MDA1'!E80 -> Nov 2020 | AJ80: =T3_R1!F80 -> 0 | AK80: =T3_R2!F80 -> 0 | AL80: ='T2'!E80 -> 0
A81: =IF(INTRO!$E$34<>0,INTRO!$E$34,"") -> Nigeria | B81: Anambra | C81: Anaocha | D81: 401932.7174 | E81: =IF(INTRO!$E$48="","",ROUND($D81*INTRO!$E$48,0)) -> 64309 | F81: =IF(INTRO!$E$49="","",ROUND($D81*INTRO!$E$49,0)) -> 112541 | G81: =IF(INTRO!$E$50="","",ROUND($D81*INTRO!$E$50,0)) -> 209005 | H81: 1 | I81: 1 | J81: 1 | K81: 0 | L81: 0 | M81: =IF(INTRO!$E$38="Endemic", IF($H81>0, IF($H81=4,"Unknown", IF($H81=99,"Stopped", $D81)), 0),"Not required") -> 401932.7174 | N81: 61574 | O81: =IF(INTRO!$E$42="Endemic", IF(AND($J81>1,$J81<5), IF($J81=4, "Unknown", E81+F81), 0),"Not required") -> 0 | P81: =IF(INTRO!$E$44="Endemic", IF(AND($K81>0,$K81<5), IF($K81=4,"Unknown", IF($K81=1, $F81*0.33, IF($K81=2, $F81*0.5+$G81*0.2, SUM(F81:G81)))), 0),"Not required") -> 0 | Q81: 0 | R81: 0 | S81: 0 | T81: 0 | W81: 36409 | X81: Anaocha | AA81: ='MDA1'!M81 -> 0 | AB81: ='MDA3'!Q81 -> 0 | AC81: ='T2'!M81 -> 0 | AD81: =T3_R1!N81 -> 0 | AE81: =T3_R2!N81 -> 0 | AI81: ='MDA1'!E81 -> 0 | AJ81: =T3_R1!F81 -> 0 | AK81: =T3_R2!F81 -> 0 | AL81: ='T2'!E81 -> 0
A82: =IF(INTRO!$E$34<>0,INTRO!$E$34,"") -> Nigeria | B82: Anambra | C82: Awka North | D82: 158808.8485 | E82: =IF(INTRO!$E$48="","",ROUND($D82*INTRO!$E$48,0)) -> 25409 | F82: =IF(INTRO!$E$49="","",ROUND($D82*INTRO!$E$49,0)) -> 44466 | G82: =IF(INTRO!$E$50="","",ROUND($D82*INTRO!$E$50,0)) -> 82581 | H82: 1 | I82: 1 | J82: 2 | K82: 0 | L82: 0 | M82: =IF(INTRO!$E$38="Endemic", IF($H82>0, IF($H82=4,"Unknown", IF($H82=99,"Stopped", $D82)), 0),"Not required") -> 158808.8485 | N82: 48308 | O82: =IF(INTRO!$E$42="Endemic", IF(AND($J82>1,$J82<5), IF($J82=4, "Unknown", E82+F82), 0),"Not required") -> 69875 | P82: =IF(INTRO!$E$44="Endemic", IF(AND($K82>0,$K82<5), IF($K82=4,"Unknown", IF($K82=1, $F82*0.33, IF($K82=2, $F82*0.5+$G82*0.2, SUM(F82:G82)))), 0),"Not required") -> 0 | Q82: 0 | R82: 0 | S82: 1 | T82: 0 | V82: T3 (ALB/MBD) | W82: 36410 | X82: Awka North | AA82: ='MDA1'!M82 -> 0 | AB82: ='MDA3'!Q82 -> 0 | AC82: ='T2'!M82 -> 0 | AD82: =T3_R1!N82 -> 30113 | AE82: =T3_R2!N82 -> 0 | AI82: ='MDA1'!E82 -> 0 | AJ82: =T3_R1!F82 -> Dec 2020 | AK82: =T3_R2!F82 -> 0 | AL82: ='T2'!E82 -> 0
A83: =IF(INTRO!$E$34<>0,INTRO!$E$34,"") -> Nigeria | B83: Anambra | C83: Awka south | D83: 266612.0879 | E83: =IF(INTRO!$E$48="","",ROUND($D83*INTRO!$E$48,0)) -> 42658 | F83: =IF(INTRO!$E$49="","",ROUND($D83*INTRO!$E$49,0)) -> 74651 | G83: =IF(INTRO!$E$50="","",ROUND($D83*INTRO!$E$50,0)) -> 138638 | H83: 1 | I83: 1 | J83: 2 | K83: 1 | L83: 0 | M83: =IF(INTRO!$E$38="Endemic", IF($H83>0, IF($H83=4,"Unknown", IF($H83=99,"Stopped", $D83)), 0),"Not required") -> 266612.0879 | N83: 45886 | O83: =IF(INTRO!$E$42="Endemic", IF(AND($J83>1,$J83<5), IF($J83=4, "Unknown", E83+F83), 0),"Not required") -> 117309 | P83: =IF(INTRO!$E$44="Endemic", IF(AND($K83>0,$K83<5), IF($K83=4,"Unknown", IF($K83=1, $F83*0.33, IF($K83=2, $F83*0.5+$G83*0.2, SUM(F83:G83)))), 0),"Not required") -> 24634.83 | Q83: 0 | R83: 0 | S83: 1 | T83: 0 | V83: T3 (ALB/MBD) | W83: 36411 | X83: Awka south | AA83: ='MDA1'!M83 -> 0 | AB83: ='MDA3'!Q83 -> 0 | AC83: ='T2'!M83 -> 0 | AD83: =T3_R1!N83 -> 57874 | AE83: =T3_R2!N83 -> 0 | AI83: ='MDA1'!E83 -> 0 | AJ83: =T3_R1!F83 -> Dec 2020 | AK83: =T3_R2!F83 -> 0 | AL83: ='T2'!E83 -> 0
A84: =IF(INTRO!$E$34<>0,INTRO!$E$34,"") -> Nigeria | B84: Anambra | C84: Ayamelum | D84: 223402.5086 | E84: =IF(INTRO!$E$48="","",ROUND($D84*INTRO!$E$48,0)) -> 35744 | F84: =IF(INTRO!$E$49="","",ROUND($D84*INTRO!$E$49,0)) -> 62553 | G84: =IF(INTRO!$E$50="","",ROUND($D84*INTRO!$E$50,0)) -> 116169 | H84: 1 | I84: 1 | J84: 2 | K84: 0 | L84: 0 | M84: =IF(INTRO!$E$38="Endemic", IF($H84>0, IF($H84=4,"Unknown", IF($H84=99,"Stopped", $D84)), 0),"Not required") -> 223402.5086 | N84: 56226 | O84: =IF(INTRO!$E$42="Endemic", IF(AND($J84>1,$J84<5), IF($J84=4, "Unknown", E84+F84), 0),"Not required") -> 98297 | P84: =IF(INTRO!$E$44="Endemic", IF(AND($K84>0,$K84<5), IF($K84=4,"Unknown", IF($K84=1, $F84*0.33, IF($K84=2, $F84*0.5+$G84*0.2, SUM(F84:G84)))), 0),"Not required") -> 0 | Q84: 0 | R84: 0 | S84: 0 | T84: 0 | W84: 36412 | X84: Ayamelum | AA84: ='MDA1'!M84 -> 0 | AB84: ='MDA3'!Q84 -> 0 | AC84: ='T2'!M84 -> 0 | AD84: =T3_R1!N84 -> 0 | AE84: =T3_R2!N84 -> 0 | AI84: ='MDA1'!E84 -> 0 | AJ84: =T3_R1!F84 -> 0 | AK84: =T3_R2!F84 -> 0 | AL84: ='T2'!E84 -> 0
A85: =IF(INTRO!$E$34<>0,INTRO!$E$34,"") -> Nigeria | B85: Anambra | C85: Dunukofia | D85: 135925.6397 | E85: =IF(INTRO!$E$48="","",ROUND($D85*INTRO!$E$48,0)) -> 21748 | F85: =IF(INTRO!$E$49="","",ROUND($D85*INTRO!$E$49,0)) -> 38059 | G85: =IF(INTRO!$E$50="","",ROUND($D85*INTRO!$E$50,0)) -> 70681 | H85: 1 | I85: 1 | J85: 2 | K85: 1 | L85: 0 | M85: =IF(INTRO!$E$38="Endemic", IF($H85>0, IF($H85=4,"Unknown", IF($H85=99,"Stopped", $D85)), 0),"Not required") -> 135925.6397 | N85: 46625 | O85: =IF(INTRO!$E$42="Endemic", IF(AND($J85>1,$J85<5), IF($J85=4, "Unknown", E85+F85), 0),"Not required") -> 59807 | P85: =IF(INTRO!$E$44="Endemic", IF(AND($K85>0,$K85<5), IF($K85=4,"Unknown", IF($K85=1, $F85*0.33, IF($K85=2, $F85*0.5+$G85*0.2, SUM(F85:G85)))), 0),"Not required") -> 12559.47 | Q85: 0 | R85: 0 | S85: 1 | T85: 1 | V85: T3 (ALB/MBD) | W85: 36413 | X85: Dunukofia | AA85: ='MDA1'!M85 -> 0 | AB85: ='MDA3'!Q85 -> 0 | AC85: ='T2'!M85 -> 0 | AD85: =T3_R1!N85 -> 24724 | AE85: =T3_R2!N85 -> 0 | AI85: ='MDA1'!E85 -> 0 | AJ85: =T3_R1!F85 -> Dec 2020 | AK85: =T3_R2!F85 -> 0 | AL85: ='T2'!E85 -> 0
A86: =IF(INTRO!$E$34<>0,INTRO!$E$34,"") -> Nigeria | B86: Anambra | C86: Ekwusigo | D86: 223150.0684 | E86: =IF(INTRO!$E$48="","",ROUND($D86*INTRO!$E$48,0)) -> 35704 | F86: =IF(INTRO!$E$49="","",ROUND($D86*INTRO!$E$49,0)) -> 62482 | G86: =IF(INTRO!$E$50="","",ROUND($D86*INTRO!$E$50,0)) -> 116038 | H86: 1 | I86: 1 | J86: 2 | K86: 0 | L86: 0 | M86: =IF(INTRO!$E$38="Endemic", IF($H86>0, IF($H86=4,"Unknown", IF($H86=99,"Stopped", $D86)), 0),"Not required") -> 223150.0684 | N86: 53358 | O86: =IF(INTRO!$E$42="Endemic", IF(AND($J86>1,$J86<5), IF($J86=4, "Unknown", E86+F86), 0),"Not required") -> 98186 | P86: =IF(INTRO!$E$44="Endemic", IF(AND($K86>0,$K86<5), IF($K86=4,"Unknown", IF($K86=1, $F86*0.33, IF($K86=2, $F86*0.5+$G86*0.2, SUM(F86:G86)))), 0),"Not required") -> 0 | Q86: 0 | R86: 0 | S86: 0 | T86: 0 | W86: 36414 | X86: Ekwusiko | AA86: ='MDA1'!M86 -> 0 | AB86: ='MDA3'!Q86 -> 0 | AC86: ='T2'!M86 -> 0 | AD86: =T3_R1!N86 -> 0 | AE86: =T3_R2!N86 -> 0 | AI86: ='MDA1'!E86 -> 0 | AJ86: =T3_R1!F86 -> 0 | AK86: =T3_R2!F86 -> 0 | AL86: ='T2'!E86 -> 0
A87: =IF(INTRO!$E$34<>0,INTRO!$E$34,"") -> Nigeria | B87: Anambra | C87: Idemili North | D87: 607524.7955 | E87: =IF(INTRO!$E$48="","",ROUND($D87*INTRO!$E$48,0)) -> 97204 | F87: =IF(INTRO!$E$49="","",ROUND($D87*INTRO!$E$49,0)) -> 170107 | G87: =IF(INTRO!$E$50="","",ROUND($D87*INTRO!$E$50,0)) -> 315913 | H87: 1 | I87: 1 | J87: 1 | K87: 1 | L87: 0 | M87: =IF(INTRO!$E$38="Endemic", IF($H87>0, IF($H87=4,"Unknown", IF($H87=99,"Stopped", $D87)), 0),"Not required") -> 607524.7955 | N87: 77440 | O87: =IF(INTRO!$E$42="Endemic", IF(AND($J87>1,$J87<5), IF($J87=4, "Unknown", E87+F87), 0),"Not required") -> 0 | P87: =IF(INTRO!$E$44="Endemic", IF(AND($K87>0,$K87<5), IF($K87=4,"Unknown", IF($K87=1, $F87*0.33, IF($K87=2, $F87*0.5+$G87*0.2, SUM(F87:G87)))), 0),"Not required") -> 56135.31 | Q87: 1 | R87: 1 | S87: 0 | T87: 0 | U87: MDA1 (IVM+ALB) | W87: 36415 | X87: Idimili North | AA87: ='MDA1'!M87 -> 544161 | AB87: ='MDA3'!Q87 -> 0 | AC87: ='T2'!M87 -> 0 | AD87: =T3_R1!N87 -> 0 | AE87: =T3_R2!N87 -> 0 | AI87: ='MDA1'!E87 -> Nov 2020 | AJ87: =T3_R1!F87 -> 0 | AK87: =T3_R2!F87 -> 0 | AL87: ='T2'!E87 -> 0
A88: =IF(INTRO!$E$34<>0,INTRO!$E$34,"") -> Nigeria | B88: Anambra | C88: Idemili South | D88: 292891.2518 | E88: =IF(INTRO!$E$48="","",ROUND($D88*INTRO!$E$48,0)) -> 46863 | F88: =IF(INTRO!$E$49="","",ROUND($D88*INTRO!$E$49,0)) -> 82010 | G88: =IF(INTRO!$E$50="","",ROUND($D88*INTRO!$E$50,0)) -> 152303 | H88: 1 | I88: 1 | J88: 1 | K88: 0 | L88: 0 | M88: =IF(INTRO!$E$38="Endemic", IF($H88>0, IF($H88=4,"Unknown", IF($H88=99,"Stopped", $D88)), 0),"Not required") -> 292891.2518 | N88: 52904 | O88: =IF(INTRO!$E$42="Endemic", IF(AND($J88>1,$J88<5), IF($J88=4, "Unknown", E88+F88), 0),"Not required") -> 0 | P88: =IF(INTRO!$E$44="Endemic", IF(AND($K88>0,$K88<5), IF($K88=4,"Unknown", IF($K88=1, $F88*0.33, IF($K88=2, $F88*0.5+$G88*0.2, SUM(F88:G88)))), 0),"Not required") -> 0 | Q88: 0 | R88: 0 | S88: 0 | T88: 0 | W88: 36416 | X88: Idimili South | AA88: ='MDA1'!M88 -> 0 | AB88: ='MDA3'!Q88 -> 0 | AC88: ='T2'!M88 -> 0 | AD88: =T3_R1!N88 -> 0 | AE88: =T3_R2!N88 -> 0 | AI88: ='MDA1'!E88 -> 0 | AJ88: =T3_R1!F88 -> 0 | AK88: =T3_R2!F88 -> 0 | AL88: ='T2'!E88 -> 0
A89: =IF(INTRO!$E$34<>0,INTRO!$E$34,"") -> Nigeria | B89: Anambra | C89: Ihiala | D89: 426127.4869 | E89: =IF(INTRO!$E$48="","",ROUND($D89*INTRO!$E$48,0)) -> 68180 | F89: =IF(INTRO!$E$49="","",ROUND($D89*INTRO!$E$49,0)) -> 119316 | G89: =IF(INTRO!$E$50="","",ROUND($D89*INTRO!$E$50,0)) -> 221586 | H89: 1 | I89: 1 | J89: 2 | K89: 0 | L89: 0 | M89: =IF(INTRO!$E$38="Endemic", IF($H89>0, IF($H89=4,"Unknown", IF($H89=99,"Stopped", $D89)), 0),"Not required") -> 426127.4869 | N89: 57232 | O89: =IF(INTRO!$E$42="Endemic", IF(AND($J89>1,$J89<5), IF($J89=4, "Unknown", E89+F89), 0),"Not required") -> 187496 | P89: =IF(INTRO!$E$44="Endemic", IF(AND($K89>0,$K89<5), IF($K89=4,"Unknown", IF($K89=1, $F89*0.33, IF($K89=2, $F89*0.5+$G89*0.2, SUM(F89:G89)))), 0),"Not required") -> 0 | Q89: 0 | R89: 0 | S89: 0 | T89: 0 | W89: 36417 | X89: Ihiala | AA89: ='MDA1'!M89 -> 0 | AB89: ='MDA3'!Q89 -> 0 | AC89: ='T2'!M89 -> 0 | AD89: =T3_R1!N89 -> 0 | AE89: =T3_R2!N89 -> 0 | AI89: ='MDA1'!E89 -> 0 | AJ89: =T3_R1!F89 -> 0 | AK89: =T3_R2!F89 -> 0 | AL89: ='T2'!E89 -> 0
A90: =IF(INTRO!$E$34<>0,INTRO!$E$34,"") -> Nigeria | B90: Anambra | C90: Njikoka | D90: 209377.2706 | E90: =IF(INTRO!$E$48="","",ROUND($D90*INTRO!$E$48,0)) -> 33500 | F90: =IF(INTRO!$E$49="","",ROUND($D90*INTRO!$E$49,0)) -> 58626 | G90: =IF(INTRO!$E$50="","",ROUND($D90*INTRO!$E$50,0)) -> 108876 | H90: 1 | I90: 1 | J90: 2 | K90: 1 | L90: 0 | M90: =IF(INTRO!$E$38="Endemic", IF($H90>0, IF($H90=4,"Unknown", IF($H90=99,"Stopped", $D90)), 0),"Not required") -> 209377.2706 | N90: 47191 | O90: =IF(INTRO!$E$42="Endemic", IF(AND($J90>1,$J90<5), IF($J90=4, "Unknown", E90+F90), 0),"Not required") -> 92126 | P90: =IF(INTRO!$E$44="Endemic", IF(AND($K90>0,$K90<5), IF($K90=4,"Unknown", IF($K90=1, $F90*0.33, IF($K90=2, $F90*0.5+$G90*0.2, SUM(F90:G90)))), 0),"Not required") -> 19346.58 | Q90: 0 | R90: 0 | S90: 0 | T90: 0 | W90: 36418 | X90: Njikoka | AA90: ='MDA1'!M90 -> 0 | AB90: ='MDA3'!Q90 -> 0 | AC90: ='T2'!M90 -> 0 | AD90: =T3_R1!N90 -> 0 | AE90: =T3_R2!N90 -> 0 | AI90: ='MDA1'!E90 -> 0 | AJ90: =T3_R1!F90 -> 0 | AK90: =T3_R2!F90 -> 0 | AL90: ='T2'!E90 -> 0
A91: =IF(INTRO!$E$34<>0,INTRO!$E$34,"") -> Nigeria | B91: Anambra | C91: Nnewi North | D91: 222216.4628 | E91: =IF(INTRO!$E$48="","",ROUND($D91*INTRO!$E$48,0)) -> 35555 | F91: =IF(INTRO!$E$49="","",ROUND($D91*INTRO!$E$49,0)) -> 62221 | G91: =IF(INTRO!$E$50="","",ROUND($D91*INTRO!$E$50,0)) -> 115553 | H91: 1 | I91: 1 | J91: 2 | K91: 1 | L91: 0 | M91: =IF(INTRO!$E$38="Endemic", IF($H91>0, IF($H91=4,"Unknown", IF($H91=99,"Stopped", $D91)), 0),"Not required") -> 222216.4628 | N91: 92727 | O91: =IF(INTRO!$E$42="Endemic", IF(AND($J91>1,$J91<5), IF($J91=4, "Unknown", E91+F91), 0),"Not required") -> 97776 | P91: =IF(INTRO!$E$44="Endemic", IF(AND($K91>0,$K91<5), IF($K91=4,"Unknown", IF($K91=1, $F91*0.33, IF($K91=2, $F91*0.5+$G91*0.2, SUM(F91:G91)))), 0),"Not required") -> 20532.93 | Q91: 0 | R91: 0 | S91: 0 | T91: 0 | W91: 36419 | X91: Nnewi North | AA91: ='MDA1'!M91 -> 0 | AB91: ='MDA3'!Q91 -> 0 | AC91: ='T2'!M91 -> 0 | AD91: =T3_R1!N91 -> 0 | AE91: =T3_R2!N91 -> 0 | AI91: ='MDA1'!E91 -> 0 | AJ91: =T3_R1!F91 -> 0 | AK91: =T3_R2!F91 -> 0 | AL91: ='T2'!E91 -> 0
A92: =IF(INTRO!$E$34<>0,INTRO!$E$34,"") -> Nigeria | B92: Anambra | C92: Nnewi South | D92: 329523.2836 | E92: =IF(INTRO!$E$48="","",ROUND($D92*INTRO!$E$48,0)) -> 52724 | F92: =IF(INTRO!$E$49="","",ROUND($D92*INTRO!$E$49,0)) -> 92267 | G92: =IF(INTRO!$E$50="","",ROUND($D92*INTRO!$E$50,0)) -> 171352 | H92: 1 | I92: 1 | J92: 2 | K92: 1 | L92: 0 | M92: =IF(INTRO!$E$38="Endemic", IF($H92>0, IF($H92=4,"Unknown", IF($H92=99,"Stopped", $D92)), 0),"Not required") -> 329523.2836 | N92: 53278 | O92: =IF(INTRO!$E$42="Endemic", IF(AND($J92>1,$J92<5), IF($J92=4, "Unknown", E92+F92), 0),"Not required") -> 144991 | P92: =IF(INTRO!$E$44="Endemic", IF(AND($K92>0,$K92<5), IF($K92=4,"Unknown", IF($K92=1, $F92*0.33, IF($K92=2, $F92*0.5+$G92*0.2, SUM(F92:G92)))), 0),"Not required") -> 30448.11 | Q92: 0 | R92: 0 | S92: 0 | T92: 0 | W92: 36420 | X92: Nnewi South | AA92: ='MDA1'!M92 -> 0 | AB92: ='MDA3'!Q92 -> 0 | AC92: ='T2'!M92 -> 0 | AD92: =T3_R1!N92 -> 0 | AE92: =T3_R2!N92 -> 0 | AI92: ='MDA1'!E92 -> 0 | AJ92: =T3_R1!F92 -> 0 | AK92: =T3_R2!F92 -> 0 | AL92: ='T2'!E92 -> 0
A93: =IF(INTRO!$E$34<>0,INTRO!$E$34,"") -> Nigeria | B93: Anambra | C93: Ogbaru | D93: 312911.5915 | E93: =IF(INTRO!$E$48="","",ROUND($D93*INTRO!$E$48,0)) -> 50066 | F93: =IF(INTRO!$E$49="","",ROUND($D93*INTRO!$E$49,0)) -> 87615 | G93: =IF(INTRO!$E$50="","",ROUND($D93*INTRO!$E$50,0)) -> 162714 | H93: 1 | I93: 4 | J93: 1 | K93: 1 | L93: 0 | M93: =IF(INTRO!$E$38="Endemic", IF($H93>0, IF($H93=4,"Unknown", IF($H93=99,"Stopped", $D93)), 0),"Not required") -> 312911.5915 | N93: 0 | O93: =IF(INTRO!$E$42="Endemic", IF(AND($J93>1,$J93<5), IF($J93=4, "Unknown", E93+F93), 0),"Not required") -> 0 | P93: =IF(INTRO!$E$44="Endemic", IF(AND($K93>0,$K93<5), IF($K93=4,"Unknown", IF($K93=1, $F93*0.33, IF($K93=2, $F93*0.5+$G93*0.2, SUM(F93:G93)))), 0),"Not required") -> 28912.95 | Q93: 0 | R93: 0 | S93: 0 | T93: 0 | W93: 36421 | X93: Ogbaru | AA93: ='MDA1'!M93 -> 0 | AB93: ='MDA3'!Q93 -> 0 | AC93: ='T2'!M93 -> 0 | AD93: =T3_R1!N93 -> 0 | AE93: =T3_R2!N93 -> 0 | AI93: ='MDA1'!E93 -> 0 | AJ93: =T3_R1!F93 -> 0 | AK93: =T3_R2!F93 -> 0 | AL93: ='T2'!E93 -> 0
A94: =IF(INTRO!$E$34<>0,INTRO!$E$34,"") -> Nigeria | B94: Anambra | C94: Onitsha North | D94: 176203.2462 | E94: =IF(INTRO!$E$48="","",ROUND($D94*INTRO!$E$48,0)) -> 28193 | F94: =IF(INTRO!$E$49="","",ROUND($D94*INTRO!$E$49,0)) -> 49337 | G94: =IF(INTRO!$E$50="","",ROUND($D94*INTRO!$E$50,0)) -> 91626 | H94: 1 | I94: 4 | J94: 1 | K94: 0 | L94: 0 | M94: =IF(INTRO!$E$38="Endemic", IF($H94>0, IF($H94=4,"Unknown", IF($H94=99,"Stopped", $D94)), 0),"Not required") -> 176203.2462 | N94: 0 | O94: =IF(INTRO!$E$42="Endemic", IF(AND($J94>1,$J94<5), IF($J94=4, "Unknown", E94+F94), 0),"Not required") -> 0 | P94: =IF(INTRO!$E$44="Endemic", IF(AND($K94>0,$K94<5), IF($K94=4,"Unknown", IF($K94=1, $F94*0.33, IF($K94=2, $F94*0.5+$G94*0.2, SUM(F94:G94)))), 0),"Not required") -> 0 | Q94: 1 | R94: 0 | S94: 0 | T94: 0 | U94: MDA1 (IVM+ALB) | W94: 36422 | X94: Onitsha North | AA94: ='MDA1'!M94 -> 485963 | AB94: ='MDA3'!Q94 -> 0 | AC94: ='T2'!M94 -> 0 | AD94: =T3_R1!N94 -> 0 | AE94: =T3_R2!N94 -> 0 | AI94: ='MDA1'!E94 -> Nov 2020 | AJ94: =T3_R1!F94 -> 0 | AK94: =T3_R2!F94 -> 0 | AL94: ='T2'!E94 -> 0
A95: =IF(INTRO!$E$34<>0,INTRO!$E$34,"") -> Nigeria | B95: Anambra | C95: Onitsha South | D95: 192731.7318 | E95: =IF(INTRO!$E$48="","",ROUND($D95*INTRO!$E$48,0)) -> 30837 | F95: =IF(INTRO!$E$49="","",ROUND($D95*INTRO!$E$49,0)) -> 53965 | G95: =IF(INTRO!$E$50="","",ROUND($D95*INTRO!$E$50,0)) -> 100221 | H95: 1 | I95: 4 | J95: 1 | K95: 1 | L95: 0 | M95: =IF(INTRO!$E$38="Endemic", IF($H95>0, IF($H95=4,"Unknown", IF($H95=99,"Stopped", $D95)), 0),"Not required") -> 192731.7318 | N95: 0 | O95: =IF(INTRO!$E$42="Endemic", IF(AND($J95>1,$J95<5), IF($J95=4, "Unknown", E95+F95), 0),"Not required") -> 0 | P95: =IF(INTRO!$E$44="Endemic", IF(AND($K95>0,$K95<5), IF($K95=4,"Unknown", IF($K95=1, $F95*0.33, IF($K95=2, $F95*0.5+$G95*0.2, SUM(F95:G95)))), 0),"Not required") -> 17808.45 | Q95: 0 | R95: 0 | S95: 0 | T95: 0 | W95: 36423 | X95: Onitsha South | AA95: ='MDA1'!M95 -> 0 | AB95: ='MDA3'!Q95 -> 0 | AC95: ='T2'!M95 -> 0 | AD95: =T3_R1!N95 -> 0 | AE95: =T3_R2!N95 -> 0 | AI95: ='MDA1'!E95 -> 0 | AJ95: =T3_R1!F95 -> 0 | AK95: =T3_R2!F95 -> 0 | AL95: ='T2'!E95 -> 0
A96: =IF(INTRO!$E$34<>0,INTRO!$E$34,"") -> Nigeria | B96: Anambra | C96: Orumba North | D96: 243139.382 | E96: =IF(INTRO!$E$48="","",ROUND($D96*INTRO!$E$48,0)) -> 38902 | F96: =IF(INTRO!$E$49="","",ROUND($D96*INTRO!$E$49,0)) -> 68079 | G96: =IF(INTRO!$E$50="","",ROUND($D96*INTRO!$E$50,0)) -> 126432 | H96: 1 | I96: 1 | J96: 1 | K96: 1 | L96: 0 | M96: =IF(INTRO!$E$38="Endemic", IF($H96>0, IF($H96=4,"Unknown", IF($H96=99,"Stopped", $D96)), 0),"Not required") -> 243139.382 | N96: 62895 | O96: =IF(INTRO!$E$42="Endemic", IF(AND($J96>1,$J96<5), IF($J96=4, "Unknown", E96+F96), 0),"Not required") -> 0 | P96: =IF(INTRO!$E$44="Endemic", IF(AND($K96>0,$K96<5), IF($K96=4,"Unknown", IF($K96=1, $F96*0.33, IF($K96=2, $F96*0.5+$G96*0.2, SUM(F96:G96)))), 0),"Not required") -> 22466.07 | Q96: 0 | R96: 0 | S96: 0 | T96: 0 | W96: 36424 | X96: Orumba North | AA96: ='MDA1'!M96 -> 0 | AB96: ='MDA3'!Q96 -> 0 | AC96: ='T2'!M96 -> 0 | AD96: =T3_R1!N96 -> 0 | AE96: =T3_R2!N96 -> 0 | AI96: ='MDA1'!E96 -> 0 | AJ96: =T3_R1!F96 -> 0 | AK96: =T3_R2!F96 -> 0 | AL96: ='T2'!E96 -> 0
A97: =IF(INTRO!$E$34<>0,INTRO!$E$34,"") -> Nigeria | B97: Anambra | C97: Orumba South | D97: 264001.659 | E97: =IF(INTRO!$E$48="","",ROUND($D97*INTRO!$E$48,0)) -> 42240 | F97: =IF(INTRO!$E$49="","",ROUND($D97*INTRO!$E$49,0)) -> 73920 | G97: =IF(INTRO!$E$50="","",ROUND($D97*INTRO!$E$50,0)) -> 137281 | H97: 1 | I97: 1 | J97: 2 | K97: 1 | L97: 0 | M97: =IF(INTRO!$E$38="Endemic", IF($H97>0, IF($H97=4,"Unknown", IF($H97=99,"Stopped", $D97)), 0),"Not required") -> 264001.659 | N97: 62428 | O97: =IF(INTRO!$E$42="Endemic", IF(AND($J97>1,$J97<5), IF($J97=4, "Unknown", E97+F97), 0),"Not required") -> 116160 | P97: =IF(INTRO!$E$44="Endemic", IF(AND($K97>0,$K97<5), IF($K97=4,"Unknown", IF($K97=1, $F97*0.33, IF($K97=2, $F97*0.5+$G97*0.2, SUM(F97:G97)))), 0),"Not required") -> 24393.6 | Q97: 0 | R97: 0 | S97: 1 | T97: 0 | V97: T3 (ALB/MBD) | W97: 36425 | X97: Orumba South | AA97: ='MDA1'!M97 -> 0 | AB97: ='MDA3'!Q97 -> 0 | AC97: ='T2'!M97 -> 0 | AD97: =T3_R1!N97 -> 47815 | AE97: =T3_R2!N97 -> 0 | AI97: ='MDA1'!E97 -> 0 | AJ97: =T3_R1!F97 -> Dec 2020 | AK97: =T3_R2!F97 -> 0 | AL97: ='T2'!E97 -> 0
A98: =IF(INTRO!$E$34<>0,INTRO!$E$34,"") -> Nigeria | B98: Anambra | C98: Oyi | D98: 236967.9952 | E98: =IF(INTRO!$E$48="","",ROUND($D98*INTRO!$E$48,0)) -> 37915 | F98: =IF(INTRO!$E$49="","",ROUND($D98*INTRO!$E$49,0)) -> 66351 | G98: =IF(INTRO!$E$50="","",ROUND($D98*INTRO!$E$50,0)) -> 123223 | H98: 1 | I98: 1 | J98: 2 | K98: 0 | L98: 0 | M98: =IF(INTRO!$E$38="Endemic", IF($H98>0, IF($H98=4,"Unknown", IF($H98=99,"Stopped", $D98)), 0),"Not required") -> 236967.9952 | N98: 42678 | O98: =IF(INTRO!$E$42="Endemic", IF(AND($J98>1,$J98<5), IF($J98=4, "Unknown", E98+F98), 0),"Not required") -> 104266 | P98: =IF(INTRO!$E$44="Endemic", IF(AND($K98>0,$K98<5), IF($K98=4,"Unknown", IF($K98=1, $F98*0.33, IF($K98=2, $F98*0.5+$G98*0.2, SUM(F98:G98)))), 0),"Not required") -> 0 | Q98: 0 | R98: 0 | S98: 1 | T98: 0 | V98: T3 (ALB/MBD) | W98: 36426 | X98: Oyi | AA98: ='MDA1'!M98 -> 0 | AB98: ='MDA3'!Q98 -> 0 | AC98: ='T2'!M98 -> 0 | AD98: =T3_R1!N98 -> 43692 | AE98: =T3_R2!N98 -> 0 | AI98: ='MDA1'!E98 -> 0 | AJ98: =T3_R1!F98 -> Dec 2020 | AK98: =T3_R2!F98 -> 0 | AL98: ='T2'!E98 -> 0
A99: =IF(INTRO!$E$34<>0,INTRO!$E$34,"") -> Nigeria | B99: Bauchi | C99: Alkaleri | D99: 464562.0746 | E99: =IF(INTRO!$E$48="","",ROUND($D99*INTRO!$E$48,0)) -> 74330 | F99: =IF(INTRO!$E$49="","",ROUND($D99*INTRO!$E$49,0)) -> 130077 | G99: =IF(INTRO!$E$50="","",ROUND($D99*INTRO!$E$50,0)) -> 241572 | H99: 1 | I99: 1 | J99: 1 | K99: 2 | L99: 0 | M99: =IF(INTRO!$E$38="Endemic", IF($H99>0, IF($H99=4,"Unknown", IF($H99=99,"Stopped", $D99)), 0),"Not required") -> 464562.0746 | N99: 293670 | O99: =IF(INTRO!$E$42="Endemic", IF(AND($J99>1,$J99<5), IF($J99=4, "Unknown", E99+F99), 0),"Not required") -> 0 | P99: =IF(INTRO!$E$44="Endemic", IF(AND($K99>0,$K99<5), IF($K99=4,"Unknown", IF($K99=1, $F99*0.33, IF($K99=2, $F99*0.5+$G99*0.2, SUM(F99:G99)))), 0),"Not required") -> 113352.9 | Q99: 1 | R99: 1 | S99: 0 | T99: 1 | U99: MDA1 (IVM+ALB) | W99: 36427 | X99: Alkaleri | AA99: ='MDA1'!M99 -> 367945 | AB99: ='MDA3'!Q99 -> 0 | AC99: ='T2'!M99 -> 104486 | AD99: =T3_R1!N99 -> 0 | AE99: =T3_R2!N99 -> 0 | AI99: ='MDA1'!E99 -> Dec 2020 | AJ99: =T3_R1!F99 -> 0 | AK99: =T3_R2!F99 -> 0 | AL99: ='T2'!E99 -> Dec 2020
A100: =IF(INTRO!$E$34<>0,INTRO!$E$34,"") -> Nigeria | B100: Bauchi | C100: Bauchi | D100: 696383.3784 | E100: =IF(INTRO!$E$48="","",ROUND($D100*INTRO!$E$48,0)) -> 111421 | F100: =IF(INTRO!$E$49="","",ROUND($D100*INTRO!$E$49,0)) -> 194987 | G100: =IF(INTRO!$E$50="","",ROUND($D100*INTRO!$E$50,0)) -> 362119 | H100: 0 | I100: 1 | J100: 1 | K100: 2 | L100: 0 | M100: =IF(INTRO!$E$38="Endemic", IF($H100>0, IF($H100=4,"Unknown", IF($H100=99,"Stopped", $D100)), 0),"Not required") -> 0 | N100: 146391 | O100: =IF(INTRO!$E$42="Endemic", IF(AND($J100>1,$J100<5), IF($J100=4, "Unknown", E100+F100), 0),"Not required") -> 0 | P100: =IF(INTRO!$E$44="Endemic", IF(AND($K100>0,$K100<5), IF($K100=4,"Unknown", IF($K100=1, $F100*0.33, IF($K100=2, $F100*0.5+$G100*0.2, SUM(F100:G100)))), 0),"Not required") -> 169917.3 | Q100: 0 | R100: 0 | S100: 0 | T100: 1 | U100: MDA3 (IVM) | W100: 36428 | X100: Bauchi | AA100: ='MDA1'!M100 -> 0 | AB100: ='MDA3'!Q100 -> 282876 | AC100: ='T2'!M100 -> 169929 | AD100: =T3_R1!N100 -> 0 | AE100: =T3_R2!N100 -> 0 | AI100: ='MDA1'!E100 -> 0 | AJ100: =T3_R1!F100 -> 0 | AK100: =T3_R2!F100 -> 0 | AL100: ='T2'!E100 -> Dec 2020
A101: =IF(INTRO!$E$34<>0,INTRO!$E$34,"") -> Nigeria | B101: Bauchi | C101: Bogoro | D101: 118762.1276 | E101: =IF(INTRO!$E$48="","",ROUND($D101*INTRO!$E$48,0)) -> 19002 | F101: =IF(INTRO!$E$49="","",ROUND($D101*INTRO!$E$49,0)) -> 33253 | G101: =IF(INTRO!$E$50="","",ROUND($D101*INTRO!$E$50,0)) -> 61756 | H101: 1 | I101: 1 | J101: 1 | K101: 2 | L101: 0 | M101: =IF(INTRO!$E$38="Endemic", IF($H101>0, IF($H101=4,"Unknown", IF($H101=99,"Stopped", $D101)), 0),"Not required") -> 118762.1276 | N101: 210790 | O101: =IF(INTRO!$E$42="Endemic", IF(AND($J101>1,$J101<5), IF($J101=4, "Unknown", E101+F101), 0),"Not required") -> 0 | P101: =IF(INTRO!$E$44="Endemic", IF(AND($K101>0,$K101<5), IF($K101=4,"Unknown", IF($K101=1, $F101*0.33, IF($K101=2, $F101*0.5+$G101*0.2, SUM(F101:G101)))), 0),"Not required") -> 28977.7 | Q101: 1 | R101: 1 | S101: 0 | T101: 1 | U101: MDA1 (IVM+ALB) | W101: 36429 | X101: Bogoro | AA101: ='MDA1'!M101 -> 92851 | AB101: ='MDA3'!Q101 -> 0 | AC101: ='T2'!M101 -> 29717 | AD101: =T3_R1!N101 -> 0 | AE101: =T3_R2!N101 -> 0 | AI101: ='MDA1'!E101 -> Dec 2020 | AJ101: =T3_R1!F101 -> 0 | AK101: =T3_R2!F101 -> 0 | AL101: ='T2'!E101 -> Dec 2020
A102: =IF(INTRO!$E$34<>0,INTRO!$E$34,"") -> Nigeria | B102: Bauchi | C102: Damban | D102: 212834.0298 | E102: =IF(INTRO!$E$48="","",ROUND($D102*INTRO!$E$48,0)) -> 34053 | F102: =IF(INTRO!$E$49="","",ROUND($D102*INTRO!$E$49,0)) -> 59594 | G102: =IF(INTRO!$E$50="","",ROUND($D102*INTRO!$E$50,0)) -> 110674 | H102: 0 | I102: 4 | J102: 1 | K102: 0 | L102: 0 | M102: =IF(INTRO!$E$38="Endemic", IF($H102>0, IF($H102=4,"Unknown", IF($H102=99,"Stopped", $D102)), 0),"Not required") -> 0 | N102: 0 | O102: =IF(INTRO!$E$42="Endemic", IF(AND($J102>1,$J102<5), IF($J102=4, "Unknown", E102+F102), 0),"Not required") -> 0 | P102: =IF(INTRO!$E$44="Endemic", IF(AND($K102>0,$K102<5), IF($K102=4,"Unknown", IF($K102=1, $F102*0.33, IF($K102=2, $F102*0.5+$G102*0.2, SUM(F102:G102)))), 0),"Not required") -> 0 | Q102: 0 | R102: 0 | S102: 0 | T102: 0 | W102: 36430 | X102: Damban | AA102: ='MDA1'!M102 -> 0 | AB102: ='MDA3'!Q102 -> 0 | AC102: ='T2'!M102 -> 0 | AD102: =T3_R1!N102 -> 0 | AE102: =T3_R2!N102 -> 0 | AI102: ='MDA1'!E102 -> Dec 2020 | AJ102: =T3_R1!F102 -> 0 | AK102: =T3_R2!F102 -> 0 | AL102: ='T2'!E102 -> 0
A103: =IF(INTRO!$E$34<>0,INTRO!$E$34,"") -> Nigeria | B103: Bauchi | C103: Darazo | D103: 354808.4665 | E103: =IF(INTRO!$E$48="","",ROUND($D103*INTRO!$E$48,0)) -> 56769 | F103: =IF(INTRO!$E$49="","",ROUND($D103*INTRO!$E$49,0)) -> 99346 | G103: =IF(INTRO!$E$50="","",ROUND($D103*INTRO!$E$50,0)) -> 184500 | H103: 1 | I103: 1 | J103: 1 | K103: 1 | L103: 0 | M103: =IF(INTRO!$E$38="Endemic", IF($H103>0, IF($H103=4,"Unknown", IF($H103=99,"Stopped", $D103)), 0),"Not required") -> 354808.4665 | N103: 109556 | O103: =IF(INTRO!$E$42="Endemic", IF(AND($J103>1,$J103<5), IF($J103=4, "Unknown", E103+F103), 0),"Not required") -> 0 | P103: =IF(INTRO!$E$44="Endemic", IF(AND($K103>0,$K103<5), IF($K103=4,"Unknown", IF($K103=1, $F103*0.33, IF($K103=2, $F103*0.5+$G103*0.2, SUM(F103:G103)))), 0),"Not required") -> 32784.18 | Q103: 1 | R103: 1 | S103: 0 | T103: 1 | U103: MDA1 (IVM+ALB) | W103: 36431 | X103: Darazo | AA103: ='MDA1'!M103 -> 280089 | AB103: ='MDA3'!Q103 -> 0 | AC103: ='T2'!M103 -> 0 | AD103: =T3_R1!N103 -> 0 | AE103: =T3_R2!N103 -> 0 | AI103: ='MDA1'!E103 -> Dec 2020 | AJ103: =T3_R1!F103 -> 0 | AK103: =T3_R2!F103 -> 0 | AL103: ='T2'!E103 -> 0
A104: =IF(INTRO!$E$34<>0,INTRO!$E$34,"") -> Nigeria | B104: Bauchi | C104: Dass | D104: 126839.8983 | E104: =IF(INTRO!$E$48="","",ROUND($D104*INTRO!$E$48,0)) -> 20294 | F104: =IF(INTRO!$E$49="","",ROUND($D104*INTRO!$E$49,0)) -> 35515 | G104: =IF(INTRO!$E$50="","",ROUND($D104*INTRO!$E$50,0)) -> 65957 | H104: 0 | I104: 4 | J104: 1 | K104: 1 | L104: 0 | M104: =IF(INTRO!$E$38="Endemic", IF($H104>0, IF($H104=4,"Unknown", IF($H104=99,"Stopped", $D104)), 0),"Not required") -> 0 | N104: 0 | O104: =IF(INTRO!$E$42="Endemic", IF(AND($J104>1,$J104<5), IF($J104=4, "Unknown", E104+F104), 0),"Not required") -> 0 | P104: =IF(INTRO!$E$44="Endemic", IF(AND($K104>0,$K104<5), IF($K104=4,"Unknown", IF($K104=1, $F104*0.33, IF($K104=2, $F104*0.5+$G104*0.2, SUM(F104:G104)))), 0),"Not required") -> 11719.95 | Q104: 0 | R104: 0 | S104: 0 | T104: 1 | W104: 36432 | X104: Dass | AA104: ='MDA1'!M104 -> 0 | AB104: ='MDA3'!Q104 -> 0 | AC104: ='T2'!M104 -> 0 | AD104: =T3_R1!N104 -> 0 | AE104: =T3_R2!N104 -> 0 | AI104: ='MDA1'!E104 -> 0 | AJ104: =T3_R1!F104 -> 0 | AK104: =T3_R2!F104 -> 0 | AL104: ='T2'!E104 -> 0
A105: =IF(INTRO!$E$34<>0,INTRO!$E$34,"") -> Nigeria | B105: Bauchi | C105: Gamawa | D105: 403871.6166 | E105: =IF(INTRO!$E$48="","",ROUND($D105*INTRO!$E$48,0)) -> 64619 | F105: =IF(INTRO!$E$49="","",ROUND($D105*INTRO!$E$49,0)) -> 113084 | G105: =IF(INTRO!$E$50="","",ROUND($D105*INTRO!$E$50,0)) -> 210013 | H105: 0 | I105: 4 | J105: 1 | K105: 2 | L105: 0 | M105: =IF(INTRO!$E$38="Endemic", IF($H105>0, IF($H105=4,"Unknown", IF($H105=99,"Stopped", $D105)), 0),"Not required") -> 0 | N105: 0 | O105: =IF(INTRO!$E$42="Endemic", IF(AND($J105>1,$J105<5), IF($J105=4, "Unknown", E105+F105), 0),"Not required") -> 0 | P105: =IF(INTRO!$E$44="Endemic", IF(AND($K105>0,$K105<5), IF($K105=4,"Unknown", IF($K105=1, $F105*0.33, IF($K105=2, $F105*0.5+$G105*0.2, SUM(F105:G105)))), 0),"Not required") -> 98544.6 | Q105: 0 | R105: 0 | S105: 0 | T105: 1 | W105: 36433 | X105: Gamawa | AA105: ='MDA1'!M105 -> 0 | AB105: ='MDA3'!Q105 -> 0 | AC105: ='T2'!M105 -> 96466 | AD105: =T3_R1!N105 -> 0 | AE105: =T3_R2!N105 -> 0 | AI105: ='MDA1'!E105 -> 0 | AJ105: =T3_R1!F105 -> 0 | AK105: =T3_R2!F105 -> 0 | AL105: ='T2'!E105 -> Dec 2020
A106: =IF(INTRO!$E$34<>0,INTRO!$E$34,"") -> Nigeria | B106: Bauchi | C106: Ganjuwa | D106: 395664.105 | E106: =IF(INTRO!$E$48="","",ROUND($D106*INTRO!$E$48,0)) -> 63306 | F106: =IF(INTRO!$E$49="","",ROUND($D106*INTRO!$E$49,0)) -> 110786 | G106: =IF(INTRO!$E$50="","",ROUND($D106*INTRO!$E$50,0)) -> 205745 | H106: 1 | I106: 1 | J106: 1 | K106: 2 | L106: 0 | M106: =IF(INTRO!$E$38="Endemic", IF($H106>0, IF($H106=4,"Unknown", IF($H106=99,"Stopped", $D106)), 0),"Not required") -> 395664.105 | N106: 167221 | O106: =IF(INTRO!$E$42="Endemic", IF(AND($J106>1,$J106<5), IF($J106=4, "Unknown", E106+F106), 0),"Not required") -> 0 | P106: =IF(INTRO!$E$44="Endemic", IF(AND($K106>0,$K106<5), IF($K106=4,"Unknown", IF($K106=1, $F106*0.33, IF($K106=2, $F106*0.5+$G106*0.2, SUM(F106:G106)))), 0),"Not required") -> 96542 | Q106: 1 | R106: 1 | S106: 0 | T106: 1 | U106: MDA1 (IVM+ALB) | W106: 36434 | X106: Ganjuwa | AA106: ='MDA1'!M106 -> 316883 | AB106: ='MDA3'!Q106 -> 0 | AC106: ='T2'!M106 -> 99064 | AD106: =T3_R1!N106 -> 0 | AE106: =T3_R2!N106 -> 0 | AI106: ='MDA1'!E106 -> Dec 2020 | AJ106: =T3_R1!F106 -> 0 | AK106: =T3_R2!F106 -> 0 | AL106: ='T2'!E106 -> Dec 2020
A107: =IF(INTRO!$E$34<>0,INTRO!$E$34,"") -> Nigeria | B107: Bauchi | C107: Giade | D107: 221361.6624 | E107: =IF(INTRO!$E$48="","",ROUND($D107*INTRO!$E$48,0)) -> 35418 | F107: =IF(INTRO!$E$49="","",ROUND($D107*INTRO!$E$49,0)) -> 61981 | G107: =IF(INTRO!$E$50="","",ROUND($D107*INTRO!$E$50,0)) -> 115108 | H107: 1 | I107: 1 | J107: 1 | K107: 0 | L107: 0 | M107: =IF(INTRO!$E$38="Endemic", IF($H107>0, IF($H107=4,"Unknown", IF($H107=99,"Stopped", $D107)), 0),"Not required") -> 221361.6624 | N107: 221717 | O107: =IF(INTRO!$E$42="Endemic", IF(AND($J107>1,$J107<5), IF($J107=4, "Unknown", E107+F107), 0),"Not required") -> 0 | P107: =IF(INTRO!$E$44="Endemic", IF(AND($K107>0,$K107<5), IF($K107=4,"Unknown", IF($K107=1, $F107*0.33, IF($K107=2, $F107*0.5+$G107*0.2, SUM(F107:G107)))), 0),"Not required") -> 0 | Q107: 1 | R107: 1 | S107: 0 | T107: 0 | U107: MDA1 (IVM+ALB) | W107: 36435 | X107: Giade | AA107: ='MDA1'!M107 -> 175614 | AB107: ='MDA3'!Q107 -> 0 | AC107: ='T2'!M107 -> 0 | AD107: =T3_R1!N107 -> 0 | AE107: =T3_R2!N107 -> 0 | AI107: ='MDA1'!E107 -> Dec 2020 | AJ107: =T3_R1!F107 -> 0 | AK107: =T3_R2!F107 -> 0 | AL107: ='T2'!E107 -> 0
A108: =IF(INTRO!$E$34<>0,INTRO!$E$34,"") -> Nigeria | B108: Bauchi | C108: Itas/Gadua | D108: 324346.1888 | E108: =IF(INTRO!$E$48="","",ROUND($D108*INTRO!$E$48,0)) -> 51895 | F108: =IF(INTRO!$E$49="","",ROUND($D108*INTRO!$E$49,0)) -> 90817 | G108: =IF(INTRO!$E$50="","",ROUND($D108*INTRO!$E$50,0)) -> 168660 | H108: 1 | I108: 4 | J108: 1 | K108: 2 | L108: 0 | M108: =IF(INTRO!$E$38="Endemic", IF($H108>0, IF($H108=4,"Unknown", IF($H108=99,"Stopped", $D108)), 0),"Not required") -> 324346.1888 | N108: 0 | O108: =IF(INTRO!$E$42="Endemic", IF(AND($J108>1,$J108<5), IF($J108=4, "Unknown", E108+F108), 0),"Not required") -> 0 | P108: =IF(INTRO!$E$44="Endemic", IF(AND($K108>0,$K108<5), IF($K108=4,"Unknown", IF($K108=1, $F108*0.33, IF($K108=2, $F108*0.5+$G108*0.2, SUM(F108:G108)))), 0),"Not required") -> 79140.5 | Q108: 1 | R108: 0 | S108: 0 | T108: 1 | U108: MDA1 (IVM+ALB) | W108: 36436 | X108: Itas/Gadua | AA108: ='MDA1'!M108 -> 256332 | AB108: ='MDA3'!Q108 -> 0 | AC108: ='T2'!M108 -> 82647 | AD108: =T3_R1!N108 -> 0 | AE108: =T3_R2!N108 -> 0 | AI108: ='MDA1'!E108 -> Dec 2020 | AJ108: =T3_R1!F108 -> 0 | AK108: =T3_R2!F108 -> 0 | AL108: ='T2'!E108 -> Dec 2020
A109: =IF(INTRO!$E$34<>0,INTRO!$E$34,"") -> Nigeria | B109: Bauchi | C109: Jama'are | D109: 166241.5945 | E109: =IF(INTRO!$E$48="","",ROUND($D109*INTRO!$E$48,0)) -> 26599 | F109: =IF(INTRO!$E$49="","",ROUND($D109*INTRO!$E$49,0)) -> 46548 | G109: =IF(INTRO!$E$50="","",ROUND($D109*INTRO!$E$50,0)) -> 86446 | H109: 0 | I109: 4 | J109: 1 | K109: 1 | L109: 0 | M109: =IF(INTRO!$E$38="Endemic", IF($H109>0, IF($H109=4,"Unknown", IF($H109=99,"Stopped", $D109)), 0),"Not required") -> 0 | N109: 0 | O109: =IF(INTRO!$E$42="Endemic", IF(AND($J109>1,$J109<5), IF($J109=4, "Unknown", E109+F109), 0),"Not required") -> 0 | P109: =IF(INTRO!$E$44="Endemic", IF(AND($K109>0,$K109<5), IF($K109=4,"Unknown", IF($K109=1, $F109*0.33, IF($K109=2, $F109*0.5+$G109*0.2, SUM(F109:G109)))), 0),"Not required") -> 15360.84 | Q109: 0 | R109: 0 | S109: 0 | T109: 1 | W109: 36437 | X109: Jama'are | AA109: ='MDA1'!M109 -> 0 | AB109: ='MDA3'!Q109 -> 0 | AC109: ='T2'!M109 -> 0 | AD109: =T3_R1!N109 -> 0 | AE109: =T3_R2!N109 -> 0 | AI109: ='MDA1'!E109 -> 0 | AJ109: =T3_R1!F109 -> 0 | AK109: =T3_R2!F109 -> 0 | AL109: ='T2'!E109 -> 0
A110: =IF(INTRO!$E$34<>0,INTRO!$E$34,"") -> Nigeria | B110: Bauchi | C110: Katagun | D110: 417384.3958 | E110: =IF(INTRO!$E$48="","",ROUND($D110*INTRO!$E$48,0)) -> 66782 | F110: =IF(INTRO!$E$49="","",ROUND($D110*INTRO!$E$49,0)) -> 116868 | G110: =IF(INTRO!$E$50="","",ROUND($D110*INTRO!$E$50,0)) -> 217040 | H110: 0 | I110: 4 | J110: 1 | K110: 0 | L110: 0 | M110: =IF(INTRO!$E$38="Endemic", IF($H110>0, IF($H110=4,"Unknown", IF($H110=99,"Stopped", $D110)), 0),"Not required") -> 0 | N110: 0 | O110: =IF(INTRO!$E$42="Endemic", IF(AND($J110>1,$J110<5), IF($J110=4, "Unknown", E110+F110), 0),"Not required") -> 0 | P110: =IF(INTRO!$E$44="Endemic", IF(AND($K110>0,$K110<5), IF($K110=4,"Unknown", IF($K110=1, $F110*0.33, IF($K110=2, $F110*0.5+$G110*0.2, SUM(F110:G110)))), 0),"Not required") -> 0 | Q110: 0 | R110: 0 | S110: 0 | T110: 0 | W110: 36438 | X110: Katagun | AA110: ='MDA1'!M110 -> 0 | AB110: ='MDA3'!Q110 -> 0 | AC110: ='T2'!M110 -> 0 | AD110: =T3_R1!N110 -> 0 | AE110: =T3_R2!N110 -> 0 | AI110: ='MDA1'!E110 -> 0 | AJ110: =T3_R1!F110 -> 0 | AK110: =T3_R2!F110 -> 0 | AL110: ='T2'!E110 -> 0
A111: =IF(INTRO!$E$34<>0,INTRO!$E$34,"") -> Nigeria | B111: Bauchi | C111: Kirfi | D111: 208174.6452 | E111: =IF(INTRO!$E$48="","",ROUND($D111*INTRO!$E$48,0)) -> 33308 | F111: =IF(INTRO!$E$49="","",ROUND($D111*INTRO!$E$49,0)) -> 58289 | G111: =IF(INTRO!$E$50="","",ROUND($D111*INTRO!$E$50,0)) -> 108251 | H111: 0 | I111: 1 | J111: 1 | K111: 1 | L111: 0 | M111: =IF(INTRO!$E$38="Endemic", IF($H111>0, IF($H111=4,"Unknown", IF($H111=99,"Stopped", $D111)), 0),"Not required") -> 0 | N111: 138922 | O111: =IF(INTRO!$E$42="Endemic", IF(AND($J111>1,$J111<5), IF($J111=4, "Unknown", E111+F111), 0),"Not required") -> 0 | P111: =IF(INTRO!$E$44="Endemic", IF(AND($K111>0,$K111<5), IF($K111=4,"Unknown", IF($K111=1, $F111*0.33, IF($K111=2, $F111*0.5+$G111*0.2, SUM(F111:G111)))), 0),"Not required") -> 19235.37 | Q111: 0 | R111: 0 | S111: 0 | T111: 1 | U111: MDA3 (IVM) | W111: 36439 | X111: Kirfi | AA111: ='MDA1'!M111 -> 0 | AB111: ='MDA3'!Q111 -> 161662 | AC111: ='T2'!M111 -> 0 | AD111: =T3_R1!N111 -> 0 | AE111: =T3_R2!N111 -> 0 | AI111: ='MDA1'!E111 -> 0 | AJ111: =T3_R1!F111 -> 0 | AK111: =T3_R2!F111 -> 0 | AL111: ='T2'!E111 -> 0
A112: =IF(INTRO!$E$34<>0,INTRO!$E$34,"") -> Nigeria | B112: Bauchi | C112: Misau | D112: 371576.0459 | E112: =IF(INTRO!$E$48="","",ROUND($D112*INTRO!$E$48,0)) -> 59452 | F112: =IF(INTRO!$E$49="","",ROUND($D112*INTRO!$E$49,0)) -> 104041 | G112: =IF(INTRO!$E$50="","",ROUND($D112*INTRO!$E$50,0)) -> 193220 | H112: 1 | I112: 1 | J112: 1 | K112: 0 | L112: 0 | M112: =IF(INTRO!$E$38="Endemic", IF($H112>0, IF($H112=4,"Unknown", IF($H112=99,"Stopped", $D112)), 0),"Not required") -> 371576.0459 | N112: 196138 | O112: =IF(INTRO!$E$42="Endemic", IF(AND($J112>1,$J112<5), IF($J112=4, "Unknown", E112+F112), 0),"Not required") -> 0 | P112: =IF(INTRO!$E$44="Endemic", IF(AND($K112>0,$K112<5), IF($K112=4,"Unknown", IF($K112=1, $F112*0.33, IF($K112=2, $F112*0.5+$G112*0.2, SUM(F112:G112)))), 0),"Not required") -> 0 | Q112: 1 | R112: 1 | S112: 0 | T112: 0 | U112: MDA1 (IVM+ALB) | W112: 36440 | X112: Misau | AA112: ='MDA1'!M112 -> 297304 | AB112: ='MDA3'!Q112 -> 0 | AC112: ='T2'!M112 -> 0 | AD112: =T3_R1!N112 -> 0 | AE112: =T3_R2!N112 -> 0 | AI112: ='MDA1'!E112 -> Dec 2020 | AJ112: =T3_R1!F112 -> 0 | AK112: =T3_R2!F112 -> 0 | AL112: ='T2'!E112 -> 0
A113: =IF(INTRO!$E$34<>0,INTRO!$E$34,"") -> Nigeria | B113: Bauchi | C113: Ningi | D113: 546027.9724 | E113: =IF(INTRO!$E$48="","",ROUND($D113*INTRO!$E$48,0)) -> 87364 | F113: =IF(INTRO!$E$49="","",ROUND($D113*INTRO!$E$49,0)) -> 152888 | G113: =IF(INTRO!$E$50="","",ROUND($D113*INTRO!$E$50,0)) -> 283935 | H113: 1 | I113: 1 | J113: 1 | K113: 2 | L113: 0 | M113: =IF(INTRO!$E$38="Endemic", IF($H113>0, IF($H113=4,"Unknown", IF($H113=99,"Stopped", $D113)), 0),"Not required") -> 546027.9724 | N113: 147305 | O113: =IF(INTRO!$E$42="Endemic", IF(AND($J113>1,$J113<5), IF($J113=4, "Unknown", E113+F113), 0),"Not required") -> 0 | P113: =IF(INTRO!$E$44="Endemic", IF(AND($K113>0,$K113<5), IF($K113=4,"Unknown", IF($K113=1, $F113*0.33, IF($K113=2, $F113*0.5+$G113*0.2, SUM(F113:G113)))), 0),"Not required") -> 133231 | Q113: 1 | R113: 1 | S113: 0 | T113: 1 | U113: MDA1 (IVM+ALB) | W113: 36441 | X113: Ningi | AA113: ='MDA1'!M113 -> 436943 | AB113: ='MDA3'!Q113 -> 0 | AC113: ='T2'!M113 -> 146561 | AD113: =T3_R1!N113 -> 0 | AE113: =T3_R2!N113 -> 0 | AI113: ='MDA1'!E113 -> Dec 2020 | AJ113: =T3_R1!F113 -> 0 | AK113: =T3_R2!F113 -> 0 | AL113: ='T2'!E113 -> Dec 2020
A114: =IF(INTRO!$E$34<>0,INTRO!$E$34,"") -> Nigeria | B114: Bauchi | C114: Shira | D114: 330012.4743 | E114: =IF(INTRO!$E$48="","",ROUND($D114*INTRO!$E$48,0)) -> 52802 | F114: =IF(INTRO!$E$49="","",ROUND($D114*INTRO!$E$49,0)) -> 92403 | G114: =IF(INTRO!$E$50="","",ROUND($D114*INTRO!$E$50,0)) -> 171606 | H114: 0 | I114: 4 | J114: 1 | K114: 2 | L114: 0 | M114: =IF(INTRO!$E$38="Endemic", IF($H114>0, IF($H114=4,"Unknown", IF($H114=99,"Stopped", $D114)), 0),"Not required") -> 0 | N114: 0 | O114: =IF(INTRO!$E$42="Endemic", IF(AND($J114>1,$J114<5), IF($J114=4, "Unknown", E114+F114), 0),"Not required") -> 0 | P114: =IF(INTRO!$E$44="Endemic", IF(AND($K114>0,$K114<5), IF($K114=4,"Unknown", IF($K114=1, $F114*0.33, IF($K114=2, $F114*0.5+$G114*0.2, SUM(F114:G114)))), 0),"Not required") -> 80522.7 | Q114: 0 | R114: 0 | S114: 0 | T114: 1 | W114: 36442 | X114: Shira | AA114: ='MDA1'!M114 -> 0 | AB114: ='MDA3'!Q114 -> 0 | AC114: ='T2'!M114 -> 85525 | AD114: =T3_R1!N114 -> 0 | AE114: =T3_R2!N114 -> 0 | AI114: ='MDA1'!E114 -> 0 | AJ114: =T3_R1!F114 -> 0 | AK114: =T3_R2!F114 -> 0 | AL114: ='T2'!E114 -> Dec 2020
A115: =IF(INTRO!$E$34<>0,INTRO!$E$34,"") -> Nigeria | B115: Bauchi | C115: Tafawa-Balewa | D115: 310232.6535 | E115: =IF(INTRO!$E$48="","",ROUND($D115*INTRO!$E$48,0)) -> 49637 | F115: =IF(INTRO!$E$49="","",ROUND($D115*INTRO!$E$49,0)) -> 86865 | G115: =IF(INTRO!$E$50="","",ROUND($D115*INTRO!$E$50,0)) -> 161321 | H115: 1 | I115: 1 | J115: 1 | K115: 2 | L115: 0 | M115: =IF(INTRO!$E$38="Endemic", IF($H115>0, IF($H115=4,"Unknown", IF($H115=99,"Stopped", $D115)), 0),"Not required") -> 310232.6535 | N115: 204890 | O115: =IF(INTRO!$E$42="Endemic", IF(AND($J115>1,$J115<5), IF($J115=4, "Unknown", E115+F115), 0),"Not required") -> 0 | P115: =IF(INTRO!$E$44="Endemic", IF(AND($K115>0,$K115<5), IF($K115=4,"Unknown", IF($K115=1, $F115*0.33, IF($K115=2, $F115*0.5+$G115*0.2, SUM(F115:G115)))), 0),"Not required") -> 75696.7 | Q115: 1 | R115: 1 | S115: 0 | T115: 1 | U115: MDA1 (IVM+ALB) | W115: 36443 | X115: Tafawa-Balewa | AA115: ='MDA1'!M115 -> 248721 | AB115: ='MDA3'!Q115 -> 0 | AC115: ='T2'!M115 -> 72886 | AD115: =T3_R1!N115 -> 0 | AE115: =T3_R2!N115 -> 0 | AI115: ='MDA1'!E115 -> Dec 2020 | AJ115: =T3_R1!F115 -> 0 | AK115: =T3_R2!F115 -> 0 | AL115: ='T2'!E115 -> Dec 2020
A116: =IF(INTRO!$E$34<>0,INTRO!$E$34,"") -> Nigeria | B116: Bauchi | C116: Toro | D116: 494148.6023 | E116: =IF(INTRO!$E$48="","",ROUND($D116*INTRO!$E$48,0)) -> 79064 | F116: =IF(INTRO!$E$49="","",ROUND($D116*INTRO!$E$49,0)) -> 138362 | G116: =IF(INTRO!$E$50="","",ROUND($D116*INTRO!$E$50,0)) -> 256957 | H116: 1 | I116: 1 | J116: 1 | K116: 1 | L116: 0 | M116: =IF(INTRO!$E$38="Endemic", IF($H116>0, IF($H116=4,"Unknown", IF($H116=99,"Stopped", $D116)), 0),"Not required") -> 494148.6023 | N116: 290167 | O116: =IF(INTRO!$E$42="Endemic", IF(AND($J116>1,$J116<5), IF($J116=4, "Unknown", E116+F116), 0),"Not required") -> 0 | P116: =IF(INTRO!$E$44="Endemic", IF(AND($K116>0,$K116<5), IF($K116=4,"Unknown", IF($K116=1, $F116*0.33, IF($K116=2, $F116*0.5+$G116*0.2, SUM(F116:G116)))), 0),"Not required") -> 45659.46 | Q116: 1 | R116: 1 | S116: 0 | T116: 1 | U116: MDA1 (IVM+ALB) | W116: 36444 | X116: Toro | AA116: ='MDA1'!M116 -> 395752 | AB116: ='MDA3'!Q116 -> 0 | AC116: ='T2'!M116 -> 0 | AD116: =T3_R1!N116 -> 0 | AE116: =T3_R2!N116 -> 0 | AI116: ='MDA1'!E116 -> Dec 2020 | AJ116: =T3_R1!F116 -> 0 | AK116: =T3_R2!F116 -> 0 | AL116: ='T2'!E116 -> 0
A117: =IF(INTRO!$E$34<>0,INTRO!$E$34,"") -> Nigeria | B117: Bauchi | C117: Warji | D117: 161781.0518 | E117: =IF(INTRO!$E$48="","",ROUND($D117*INTRO!$E$48,0)) -> 25885 | F117: =IF(INTRO!$E$49="","",ROUND($D117*INTRO!$E$49,0)) -> 45299 | G117: =IF(INTRO!$E$50="","",ROUND($D117*INTRO!$E$50,0)) -> 84126 | H117: 1 | I117: 1 | J117: 1 | K117: 2 | L117: 0 | M117: =IF(INTRO!$E$38="Endemic", IF($H117>0, IF($H117=4,"Unknown", IF($H117=99,"Stopped", $D117)), 0),"Not required") -> 161781.0518 | N117: 450913 | O117: =IF(INTRO!$E$42="Endemic", IF(AND($J117>1,$J117<5), IF($J117=4, "Unknown", E117+F117), 0),"Not required") -> 0 | P117: =IF(INTRO!$E$44="Endemic", IF(AND($K117>0,$K117<5), IF($K117=4,"Unknown", IF($K117=1, $F117*0.33, IF($K117=2, $F117*0.5+$G117*0.2, SUM(F117:G117)))), 0),"Not required") -> 39474.7 | Q117: 1 | R117: 1 | S117: 0 | T117: 1 | U117: MDA1 (IVM+ALB) | W117: 36445 | X117: Warji | AA117: ='MDA1'!M117 -> 129580 | AB117: ='MDA3'!Q117 -> 0 | AC117: ='T2'!M117 -> 42621 | AD117: =T3_R1!N117 -> 0 | AE117: =T3_R2!N117 -> 0 | AI117: ='MDA1'!E117 -> Dec 2020 | AJ117: =T3_R1!F117 -> 0 | AK117: =T3_R2!F117 -> 0 | AL117: ='T2'!E117 -> Dec 2020
A118: =IF(INTRO!$E$34<>0,INTRO!$E$34,"") -> Nigeria | B118: Bauchi | C118: Zaki | D118: 269997.5142 | E118: =IF(INTRO!$E$48="","",ROUND($D118*INTRO!$E$48,0)) -> 43200 | F118: =IF(INTRO!$E$49="","",ROUND($D118*INTRO!$E$49,0)) -> 75599 | G118: =IF(INTRO!$E$50="","",ROUND($D118*INTRO!$E$50,0)) -> 140399 | H118: 0 | I118: 4 | J118: 1 | K118: 2 | L118: 0 | M118: =IF(INTRO!$E$38="Endemic", IF($H118>0, IF($H118=4,"Unknown", IF($H118=99,"Stopped", $D118)), 0),"Not required") -> 0 | N118: 0 | O118: =IF(INTRO!$E$42="Endemic", IF(AND($J118>1,$J118<5), IF($J118=4, "Unknown", E118+F118), 0),"Not required") -> 0 | P118: =IF(INTRO!$E$44="Endemic", IF(AND($K118>0,$K118<5), IF($K118=4,"Unknown", IF($K118=1, $F118*0.33, IF($K118=2, $F118*0.5+$G118*0.2, SUM(F118:G118)))), 0),"Not required") -> 65879.3 | Q118: 0 | R118: 0 | S118: 0 | T118: 1 | W118: 36446 | X118: Zaki | AA118: ='MDA1'!M118 -> 0 | AB118: ='MDA3'!Q118 -> 0 | AC118: ='T2'!M118 -> 64962 | AD118: =T3_R1!N118 -> 0 | AE118: =T3_R2!N118 -> 0 | AI118: ='MDA1'!E118 -> 0 | AJ118: =T3_R1!F118 -> 0 | AK118: =T3_R2!F118 -> 0 | AL118: ='T2'!E118 -> Dec 2020
A119: =IF(INTRO!$E$34<>0,INTRO!$E$34,"") -> Nigeria | B119: Bayelsa | C119: Brass | D119: 260970.9666 | E119: =IF(INTRO!$E$48="","",ROUND($D119*INTRO!$E$48,0)) -> 41755 | F119: =IF(INTRO!$E$49="","",ROUND($D119*INTRO!$E$49,0)) -> 73072 | G119: =IF(INTRO!$E$50="","",ROUND($D119*INTRO!$E$50,0)) -> 135705 | H119: 1 | I119: 4 | J119: 3 | K119: 0 | L119: 0 | M119: =IF(INTRO!$E$38="Endemic", IF($H119>0, IF($H119=4,"Unknown", IF($H119=99,"Stopped", $D119)), 0),"Not required") -> 260970.9666 | N119: 0 | O119: =IF(INTRO!$E$42="Endemic", IF(AND($J119>1,$J119<5), IF($J119=4, "Unknown", E119+F119), 0),"Not required") -> 114827 | P119: =IF(INTRO!$E$44="Endemic", IF(AND($K119>0,$K119<5), IF($K119=4,"Unknown", IF($K119=1, $F119*0.33, IF($K119=2, $F119*0.5+$G119*0.2, SUM(F119:G119)))), 0),"Not required") -> 0 | Q119: 0 | R119: 0 | S119: 0 | T119: 0 | W119: 36447 | X119: Brass | AA119: ='MDA1'!M119 -> 0 | AB119: ='MDA3'!Q119 -> 0 | AC119: ='T2'!M119 -> 0 | AD119: =T3_R1!N119 -> 0 | AE119: =T3_R2!N119 -> 0 | AI119: ='MDA1'!E119 -> 0 | AJ119: =T3_R1!F119 -> 0 | AK119: =T3_R2!F119 -> 0 | AL119: ='T2'!E119 -> 0
A120: =IF(INTRO!$E$34<>0,INTRO!$E$34,"") -> Nigeria | B120: Bayelsa | C120: Ekeremo | D120: 381138.1337 | E120: =IF(INTRO!$E$48="","",ROUND($D120*INTRO!$E$48,0)) -> 60982 | F120: =IF(INTRO!$E$49="","",ROUND($D120*INTRO!$E$49,0)) -> 106719 | G120: =IF(INTRO!$E$50="","",ROUND($D120*INTRO!$E$50,0)) -> 198192 | H120: 0 | I120: 4 | J120: 2 | K120: 1 | L120: 4 | M120: =IF(INTRO!$E$38="Endemic", IF($H120>0, IF($H120=4,"Unknown", IF($H120=99,"Stopped", $D120)), 0),"Not required") -> 0 | N120: 0 | O120: =IF(INTRO!$E$42="Endemic", IF(AND($J120>1,$J120<5), IF($J120=4, "Unknown", E120+F120), 0),"Not required") -> 167701 | P120: =IF(INTRO!$E$44="Endemic", IF(AND($K120>0,$K120<5), IF($K120=4,"Unknown", IF($K120=1, $F120*0.33, IF($K120=2, $F120*0.5+$G120*0.2, SUM(F120:G120)))), 0),"Not required") -> 35217.27 | Q120: 0 | R120: 0 | S120: 0 | T120: 0 | W120: 36448 | X120: Ekeremo | AA120: ='MDA1'!M120 -> 0 | AB120: ='MDA3'!Q120 -> 0 | AC120: ='T2'!M120 -> 0 | AD120: =T3_R1!N120 -> 0 | AE120: =T3_R2!N120 -> 0 | AI120: ='MDA1'!E120 -> 0 | AJ120: =T3_R1!F120 -> 0 | AK120: =T3_R2!F120 -> 0 | AL120: ='T2'!E120 -> 0
A121: =IF(INTRO!$E$34<>0,INTRO!$E$34,"") -> Nigeria | B121: Bayelsa | C121: Kolokuma/Opokuma | D121: 109003.388 | E121: =IF(INTRO!$E$48="","",ROUND($D121*INTRO!$E$48,0)) -> 17441 | F121: =IF(INTRO!$E$49="","",ROUND($D121*INTRO!$E$49,0)) -> 30521 | G121: =IF(INTRO!$E$50="","",ROUND($D121*INTRO!$E$50,0)) -> 56682 | H121: 1 | I121: 4 | J121: 1 | K121: 0 | L121: 0 | M121: =IF(INTRO!$E$38="Endemic", IF($H121>0, IF($H121=4,"Unknown", IF($H121=99,"Stopped", $D121)), 0),"Not required") -> 109003.388 | N121: 0 | O121: =IF(INTRO!$E$42="Endemic", IF(AND($J121>1,$J121<5), IF($J121=4, "Unknown", E121+F121), 0),"Not required") -> 0 | P121: =IF(INTRO!$E$44="Endemic", IF(AND($K121>0,$K121<5), IF($K121=4,"Unknown", IF($K121=1, $F121*0.33, IF($K121=2, $F121*0.5+$G121*0.2, SUM(F121:G121)))), 0),"Not required") -> 0 | Q121: 1 | R121: 0 | S121: 0 | T121: 0 | U121: MDA1 (IVM+ALB) | W121: 36449 | X121: Kolokuma/Opokuma | AA121: ='MDA1'!M121 -> 87965 | AB121: ='MDA3'!Q121 -> 0 | AC121: ='T2'!M121 -> 0 | AD121: =T3_R1!N121 -> 0 | AE121: =T3_R2!N121 -> 0 | AI121: ='MDA1'!E121 -> Dec 2020 | AJ121: =T3_R1!F121 -> 0 | AK121: =T3_R2!F121 -> 0 | AL121: ='T2'!E121 -> 0
A122: =IF(INTRO!$E$34<>0,INTRO!$E$34,"") -> Nigeria | B122: Bayelsa | C122: Nembe | D122: 184649.4151 | E122: =IF(INTRO!$E$48="","",ROUND($D122*INTRO!$E$48,0)) -> 29544 | F122: =IF(INTRO!$E$49="","",ROUND($D122*INTRO!$E$49,0)) -> 51702 | G122: =IF(INTRO!$E$50="","",ROUND($D122*INTRO!$E$50,0)) -> 96018 | H122: 1 | I122: 4 | J122: 1 | K122: 0 | L122: 0 | M122: =IF(INTRO!$E$38="Endemic", IF($H122>0, IF($H122=4,"Unknown", IF($H122=99,"Stopped", $D122)), 0),"Not required") -> 184649.4151 | N122: 0 | O122: =IF(INTRO!$E$42="Endemic", IF(AND($J122>1,$J122<5), IF($J122=4, "Unknown", E122+F122), 0),"Not required") -> 0 | P122: =IF(INTRO!$E$44="Endemic", IF(AND($K122>0,$K122<5), IF($K122=4,"Unknown", IF($K122=1, $F122*0.33, IF($K122=2, $F122*0.5+$G122*0.2, SUM(F122:G122)))), 0),"Not required") -> 0 | Q122: 1 | R122: 0 | S122: 0 | T122: 0 | U122: MDA1 (IVM+ALB) | W122: 36450 | X122: Nembe | AA122: ='MDA1'!M122 -> 124524 | AB122: ='MDA3'!Q122 -> 0 | AC122: ='T2'!M122 -> 0 | AD122: =T3_R1!N122 -> 0 | AE122: =T3_R2!N122 -> 0 | AI122: ='MDA1'!E122 -> Dec 2020 | AJ122: =T3_R1!F122 -> 0 | AK122: =T3_R2!F122 -> 0 | AL122: ='T2'!E122 -> 0
A123: =IF(INTRO!$E$34<>0,INTRO!$E$34,"") -> Nigeria | B123: Bayelsa | C123: Ogbia | D123: 253746.1004 | E123: =IF(INTRO!$E$48="","",ROUND($D123*INTRO!$E$48,0)) -> 40599 | F123: =IF(INTRO!$E$49="","",ROUND($D123*INTRO!$E$49,0)) -> 71049 | G123: =IF(INTRO!$E$50="","",ROUND($D123*INTRO!$E$50,0)) -> 131948 | H123: 1 | I123: 4 | J123: 2 | K123: 1 | L123: 0 | M123: =IF(INTRO!$E$38="Endemic", IF($H123>0, IF($H123=4,"Unknown", IF($H123=99,"Stopped", $D123)), 0),"Not required") -> 253746.1004 | N123: 0 | O123: =IF(INTRO!$E$42="Endemic", IF(AND($J123>1,$J123<5), IF($J123=4, "Unknown", E123+F123), 0),"Not required") -> 111648 | P123: =IF(INTRO!$E$44="Endemic", IF(AND($K123>0,$K123<5), IF($K123=4,"Unknown", IF($K123=1, $F123*0.33, IF($K123=2, $F123*0.5+$G123*0.2, SUM(F123:G123)))), 0),"Not required") -> 23446.17 | Q123: 1 | R123: 0 | S123: 1 | T123: 0 | U123: MDA1 (IVM+ALB) | W123: 36451 | X123: Ogbia | AA123: ='MDA1'!M123 -> 183474 | AB123: ='MDA3'!Q123 -> 0 | AC123: ='T2'!M123 -> 0 | AD123: =T3_R1!N123 -> 0 | AE123: =T3_R2!N123 -> 0 | AF123: ='MDA1'!K123 -> 69729 | AG123: =AF123=AD123 -> FALSE | AI123: ='MDA1'!E123 -> Dec 2020 | AJ123: =T3_R1!F123 -> 0 | AK123: =T3_R2!F123 -> 0 | AL123: ='T2'!E123 -> 0 | AN123: remove from t3r1
A124: =IF(INTRO!$E$34<>0,INTRO!$E$34,"") -> Nigeria | B124: Bayelsa | C124: Sagbama | D124: 263928.3244 | E124: =IF(INTRO!$E$48="","",ROUND($D124*INTRO!$E$48,0)) -> 42229 | F124: =IF(INTRO!$E$49="","",ROUND($D124*INTRO!$E$49,0)) -> 73900 | G124: =IF(INTRO!$E$50="","",ROUND($D124*INTRO!$E$50,0)) -> 137243 | H124: 1 | I124: 4 | J124: 1 | K124: 0 | L124: 0 | M124: =IF(INTRO!$E$38="Endemic", IF($H124>0, IF($H124=4,"Unknown", IF($H124=99,"Stopped", $D124)), 0),"Not required") -> 263928.3244 | N124: 0 | O124: =IF(INTRO!$E$42="Endemic", IF(AND($J124>1,$J124<5), IF($J124=4, "Unknown", E124+F124), 0),"Not required") -> 0 | P124: =IF(INTRO!$E$44="Endemic", IF(AND($K124>0,$K124<5), IF($K124=4,"Unknown", IF($K124=1, $F124*0.33, IF($K124=2, $F124*0.5+$G124*0.2, SUM(F124:G124)))), 0),"Not required") -> 0 | Q124: 0 | R124: 0 | S124: 0 | T124: 0 | W124: 36452 | X124: Sagbama | AA124: ='MDA1'!M124 -> 0 | AB124: ='MDA3'!Q124 -> 0 | AC124: ='T2'!M124 -> 0 | AD124: =T3_R1!N124 -> 0 | AE124: =T3_R2!N124 -> 0 | AI124: ='MDA1'!E124 -> 0 | AJ124: =T3_R1!F124 -> 0 | AK124: =T3_R2!F124 -> 0 | AL124: ='T2'!E124 -> 0
A125: =IF(INTRO!$E$34<>0,INTRO!$E$34,"") -> Nigeria | B125: Bayelsa | C125: Southern Ijaw | D125: 450461.8741 | E125: =IF(INTRO!$E$48="","",ROUND($D125*INTRO!$E$48,0)) -> 72074 | F125: =IF(INTRO!$E$49="","",ROUND($D125*INTRO!$E$49,0)) -> 126129 | G125: =IF(INTRO!$E$50="","",ROUND($D125*INTRO!$E$50,0)) -> 234240 | H125: 1 | I125: 4 | J125: 3 | K125: 0 | L125: 0 | M125: =IF(INTRO!$E$38="Endemic", IF($H125>0, IF($H125=4,"Unknown", IF($H125=99,"Stopped", $D125)), 0),"Not required") -> 450461.8741 | N125: 0 | O125: =IF(INTRO!$E$42="Endemic", IF(AND($J125>1,$J125<5), IF($J125=4, "Unknown", E125+F125), 0),"Not required") -> 198203 | P125: =IF(INTRO!$E$44="Endemic", IF(AND($K125>0,$K125<5), IF($K125=4,"Unknown", IF($K125=1, $F125*0.33, IF($K125=2, $F125*0.5+$G125*0.2, SUM(F125:G125)))), 0),"Not required") -> 0 | Q125: 1 | R125: 0 | S125: 1 | T125: 0 | U125: MDA1 (IVM+ALB) | W125: 36453 | X125: Southern Ijaw | AA125: ='MDA1'!M125 -> 326741 | AB125: ='MDA3'!Q125 -> 0 | AC125: ='T2'!M125 -> 0 | AD125: =T3_R1!N125 -> 0 | AE125: =T3_R2!N125 -> 0 | AF125: ='MDA1'!K125 -> 136124 | AG125: =AF125=AD125 -> FALSE | AI125: ='MDA1'!E125 -> Dec 2020 | AJ125: =T3_R1!F125 -> 0 | AK125: =T3_R2!F125 -> 0 | AL125: ='T2'!E125 -> 0 | AN125: remove from t3r1
A126: =IF(INTRO!$E$34<>0,INTRO!$E$34,"") -> Nigeria | B126: Bayelsa | C126: Yenegoa | D126: 498314.0963 | E126: =IF(INTRO!$E$48="","",ROUND($D126*INTRO!$E$48,0)) -> 79730 | F126: =IF(INTRO!$E$49="","",ROUND($D126*INTRO!$E$49,0)) -> 139528 | G126: =IF(INTRO!$E$50="","",ROUND($D126*INTRO!$E$50,0)) -> 259123 | H126: 1 | I126: 4 | J126: 2 | K126: 0 | L126: 0 | M126: =IF(INTRO!$E$38="Endemic", IF($H126>0, IF($H126=4,"Unknown", IF($H126=99,"Stopped", $D126)), 0),"Not required") -> 498314.0963 | N126: 0 | O126: =IF(INTRO!$E$42="Endemic", IF(AND($J126>1,$J126<5), IF($J126=4, "Unknown", E126+F126), 0),"Not required") -> 219258 | P126: =IF(INTRO!$E$44="Endemic", IF(AND($K126>0,$K126<5), IF($K126=4,"Unknown", IF($K126=1, $F126*0.33, IF($K126=2, $F126*0.5+$G126*0.2, SUM(F126:G126)))), 0),"Not required") -> 0 | Q126: 0 | R126: 0 | S126: 0 | T126: 0 | W126: 36454 | X126: Yenegoa | AA126: ='MDA1'!M126 -> 0 | AB126: ='MDA3'!Q126 -> 0 | AC126: ='T2'!M126 -> 0 | AD126: =T3_R1!N126 -> 0 | AE126: =T3_R2!N126 -> 0 | AI126: ='MDA1'!E126 -> 0 | AJ126: =T3_R1!F126 -> 0 | AK126: =T3_R2!F126 -> 0 | AL126: ='T2'!E126 -> 0
A127: =IF(INTRO!$E$34<>0,INTRO!$E$34,"") -> Nigeria | B127: Benue | C127: Ado | D127: 252273.7677 | E127: =IF(INTRO!$E$48="","",ROUND($D127*INTRO!$E$48,0)) -> 40364 | F127: =IF(INTRO!$E$49="","",ROUND($D127*INTRO!$E$49,0)) -> 70637 | G127: =IF(INTRO!$E$50="","",ROUND($D127*INTRO!$E$50,0)) -> 131182 | H127: 1 | I127: 1 | J127: 2 | K127: 1 | L127: 0 | M127: =IF(INTRO!$E$38="Endemic", IF($H127>0, IF($H127=4,"Unknown", IF($H127=99,"Stopped", $D127)), 0),"Not required") -> 252273.7677 | N127: 169087 | O127: =IF(INTRO!$E$42="Endemic", IF(AND($J127>1,$J127<5), IF($J127=4, "Unknown", E127+F127), 0),"Not required") -> 111001 | P127: =IF(INTRO!$E$44="Endemic", IF(AND($K127>0,$K127<5), IF($K127=4,"Unknown", IF($K127=1, $F127*0.33, IF($K127=2, $F127*0.5+$G127*0.2, SUM(F127:G127)))), 0),"Not required") -> 23310.21 | Q127: 1 | R127: 1 | S127: 1 | T127: 1 | U127: MDA1 (IVM+ALB) | W127: 36455 | X127: Ado | AA127: ='MDA1'!M127 -> 169371 | AB127: ='MDA3'!Q127 -> 0 | AC127: ='T2'!M127 -> 0 | AD127: =T3_R1!N127 -> 0 | AE127: =T3_R2!N127 -> 0 | AI127: ='MDA1'!E127 -> Dec 2020 | AJ127: =T3_R1!F127 -> 0 | AK127: =T3_R2!F127 -> 0 | AL127: ='T2'!E127 -> 0
A128: =IF(INTRO!$E$34<>0,INTRO!$E$34,"") -> Nigeria | B128: Benue | C128: Agatu | D128: 162919.8157 | E128: =IF(INTRO!$E$48="","",ROUND($D128*INTRO!$E$48,0)) -> 26067 | F128: =IF(INTRO!$E$49="","",ROUND($D128*INTRO!$E$49,0)) -> 45618 | G128: =IF(INTRO!$E$50="","",ROUND($D128*INTRO!$E$50,0)) -> 84718 | H128: 0 | I128: 1 | J128: 2 | K128: 1 | L128: 0 | M128: =IF(INTRO!$E$38="Endemic", IF($H128>0, IF($H128=4,"Unknown", IF($H128=99,"Stopped", $D128)), 0),"Not required") -> 0 | N128: 129396 | O128: =IF(INTRO!$E$42="Endemic", IF(AND($J128>1,$J128<5), IF($J128=4, "Unknown", E128+F128), 0),"Not required") -> 71685 | P128: =IF(INTRO!$E$44="Endemic", IF(AND($K128>0,$K128<5), IF($K128=4,"Unknown", IF($K128=1, $F128*0.33, IF($K128=2, $F128*0.5+$G128*0.2, SUM(F128:G128)))), 0),"Not required") -> 15053.94 | Q128: 0 | R128: 0 | S128: 1 | T128: 0 | U128: MDA3 (IVM) | V128: T3 (ALB/MBD) | W128: 36456 | X128: Agatu | AA128: ='MDA1'!M128 -> 0 | AB128: ='MDA3'!Q128 -> 113348 | AC128: ='T2'!M128 -> 0 | AD128: =T3_R1!N128 -> 34312 | AE128: =T3_R2!N128 -> 0 | AI128: ='MDA1'!E128 -> 0 | AJ128: =T3_R1!F128 -> Dec 2020 | AK128: =T3_R2!F128 -> 0 | AL128: ='T2'!E128 -> 0
A129: =IF(INTRO!$E$34<>0,INTRO!$E$34,"") -> Nigeria | B129: Benue | C129: Apa | D129: 136465.7771 | E129: =IF(INTRO!$E$48="","",ROUND($D129*INTRO!$E$48,0)) -> 21835 | F129: =IF(INTRO!$E$49="","",ROUND($D129*INTRO!$E$49,0)) -> 38210 | G129: =IF(INTRO!$E$50="","",ROUND($D129*INTRO!$E$50,0)) -> 70962 | H129: 1 | I129: 1 | J129: 2 | K129: 2 | L129: 0 | M129: =IF(INTRO!$E$38="Endemic", IF($H129>0, IF($H129=4,"Unknown", IF($H129=99,"Stopped", $D129)), 0),"Not required") -> 136465.7771 | N129: 102309 | O129: =IF(INTRO!$E$42="Endemic", IF(AND($J129>1,$J129<5), IF($J129=4, "Unknown", E129+F129), 0),"Not required") -> 60045 | P129: =IF(INTRO!$E$44="Endemic", IF(AND($K129>0,$K129<5), IF($K129=4,"Unknown", IF($K129=1, $F129*0.33, IF($K129=2, $F129*0.5+$G129*0.2, SUM(F129:G129)))), 0),"Not required") -> 33297.4 | Q129: 1 | R129: 1 | S129: 1 | T129: 0 | U129: MDA1 (IVM+ALB) | W129: 36457 | X129: Apa | AA129: ='MDA1'!M129 -> 90908 | AB129: ='MDA3'!Q129 -> 0 | AC129: ='T2'!M129 -> 0 | AD129: =T3_R1!N129 -> 0 | AE129: =T3_R2!N129 -> 0 | AI129: ='MDA1'!E129 -> Dec 2020 | AJ129: =T3_R1!F129 -> 0 | AK129: =T3_R2!F129 -> 0 | AL129: ='T2'!E129 -> 0
A130: =IF(INTRO!$E$34<>0,INTRO!$E$34,"") -> Nigeria | B130: Benue | C130: Buruku | D130: 287303.7211 | E130: =IF(INTRO!$E$48="","",ROUND($D130*INTRO!$E$48,0)) -> 45969 | F130: =IF(INTRO!$E$49="","",ROUND($D130*INTRO!$E$49,0)) -> 80445 | G130: =IF(INTRO!$E$50="","",ROUND($D130*INTRO!$E$50,0)) -> 149398 | H130: 0 | I130: 1 | J130: 2 | K130: 2 | L130: 0 | M130: =IF(INTRO!$E$38="Endemic", IF($H130>0, IF($H130=4,"Unknown", IF($H130=99,"Stopped", $D130)), 0),"Not required") -> 0 | N130: 234394 | O130: =IF(INTRO!$E$42="Endemic", IF(AND($J130>1,$J130<5), IF($J130=4, "Unknown", E130+F130), 0),"Not required") -> 126414 | P130: =IF(INTRO!$E$44="Endemic", IF(AND($K130>0,$K130<5), IF($K130=4,"Unknown", IF($K130=1, $F130*0.33, IF($K130=2, $F130*0.5+$G130*0.2, SUM(F130:G130)))), 0),"Not required") -> 70102.1 | Q130: 0 | R130: 0 | S130: 1 | T130: 1 | U130: MDA3 (IVM) | V130: T3 (ALB/MBD) | W130: 36458 | X130: Buruku | AA130: ='MDA1'!M130 -> 0 | AB130: ='MDA3'!Q130 -> 187325 | AC130: ='T2'!M130 -> 60450 | AD130: =T3_R1!N130 -> 60450 | AE130: =T3_R2!N130 -> 0 | AI130: ='MDA1'!E130 -> 0 | AJ130: =T3_R1!F130 -> Dec 2020 | AK130: =T3_R2!F130 -> 0 | AL130: ='T2'!E130 -> Dec 2020
A131: =IF(INTRO!$E$34<>0,INTRO!$E$34,"") -> Nigeria | B131: Benue | C131: Gboko | D131: 506200.384 | E131: =IF(INTRO!$E$48="","",ROUND($D131*INTRO!$E$48,0)) -> 80992 | F131: =IF(INTRO!$E$49="","",ROUND($D131*INTRO!$E$49,0)) -> 141736 | G131: =IF(INTRO!$E$50="","",ROUND($D131*INTRO!$E$50,0)) -> 263224 | H131: 1 | I131: 1 | J131: 2 | K131: 2 | L131: 0 | M131: =IF(INTRO!$E$38="Endemic", IF($H131>0, IF($H131=4,"Unknown", IF($H131=99,"Stopped", $D131)), 0),"Not required") -> 506200.384 | N131: 373912 | O131: =IF(INTRO!$E$42="Endemic", IF(AND($J131>1,$J131<5), IF($J131=4, "Unknown", E131+F131), 0),"Not required") -> 222728 | P131: =IF(INTRO!$E$44="Endemic", IF(AND($K131>0,$K131<5), IF($K131=4,"Unknown", IF($K131=1, $F131*0.33, IF($K131=2, $F131*0.5+$G131*0.2, SUM(F131:G131)))), 0),"Not required") -> 123512.8 | Q131: 1 | R131: 1 | S131: 1 | T131: 1 | U131: MDA1 (IVM+ALB) | W131: 36459 | X131: Gboko | AA131: ='MDA1'!M131 -> 330108 | AB131: ='MDA3'!Q131 -> 0 | AC131: ='T2'!M131 -> 106681 | AD131: =T3_R1!N131 -> 0 | AE131: =T3_R2!N131 -> 0 | AI131: ='MDA1'!E131 -> Dec 2020 | AJ131: =T3_R1!F131 -> 0 | AK131: =T3_R2!F131 -> 0 | AL131: ='T2'!E131 -> Dec 2020
A132: =IF(INTRO!$E$34<>0,INTRO!$E$34,"") -> Nigeria | B132: Benue | C132: Guma | D132: 270208.3028 | E132: =IF(INTRO!$E$48="","",ROUND($D132*INTRO!$E$48,0)) -> 43233 | F132: =IF(INTRO!$E$49="","",ROUND($D132*INTRO!$E$49,0)) -> 75658 | G132: =IF(INTRO!$E$50="","",ROUND($D132*INTRO!$E$50,0)) -> 140508 | H132: 1 | I132: 1 | J132: 2 | K132: 2 | L132: 0 | M132: =IF(INTRO!$E$38="Endemic", IF($H132>0, IF($H132=4,"Unknown", IF($H132=99,"Stopped", $D132)), 0),"Not required") -> 270208.3028 | N132: 161268 | O132: =IF(INTRO!$E$42="Endemic", IF(AND($J132>1,$J132<5), IF($J132=4, "Unknown", E132+F132), 0),"Not required") -> 118891 | P132: =IF(INTRO!$E$44="Endemic", IF(AND($K132>0,$K132<5), IF($K132=4,"Unknown", IF($K132=1, $F132*0.33, IF($K132=2, $F132*0.5+$G132*0.2, SUM(F132:G132)))), 0),"Not required") -> 65930.6 | Q132: 1 | R132: 1 | S132: 1 | T132: 1 | U132: MDA1 (IVM+ALB) | W132: 36460 | X132: Guma | AA132: ='MDA1'!M132 -> 180847 | AB132: ='MDA3'!Q132 -> 0 | AC132: ='T2'!M132 -> 57427 | AD132: =T3_R1!N132 -> 0 | AE132: =T3_R2!N132 -> 0 | AI132: ='MDA1'!E132 -> Dec 2020 | AJ132: =T3_R1!F132 -> 0 | AK132: =T3_R2!F132 -> 0 | AL132: ='T2'!E132 -> Dec 2020
A133: =IF(INTRO!$E$34<>0,INTRO!$E$34,"") -> Nigeria | B133: Benue | C133: Gwer East | D133: 230788.1467 | E133: =IF(INTRO!$E$48="","",ROUND($D133*INTRO!$E$48,0)) -> 36926 | F133: =IF(INTRO!$E$49="","",ROUND($D133*INTRO!$E$49,0)) -> 64621 | G133: =IF(INTRO!$E$50="","",ROUND($D133*INTRO!$E$50,0)) -> 120010 | H133: 1 | I133: 1 | J133: 2 | K133: 2 | L133: 0 | M133: =IF(INTRO!$E$38="Endemic", IF($H133>0, IF($H133=4,"Unknown", IF($H133=99,"Stopped", $D133)), 0),"Not required") -> 230788.1467 | N133: 102372 | O133: =IF(INTRO!$E$42="Endemic", IF(AND($J133>1,$J133<5), IF($J133=4, "Unknown", E133+F133), 0),"Not required") -> 101547 | P133: =IF(INTRO!$E$44="Endemic", IF(AND($K133>0,$K133<5), IF($K133=4,"Unknown", IF($K133=1, $F133*0.33, IF($K133=2, $F133*0.5+$G133*0.2, SUM(F133:G133)))), 0),"Not required") -> 56312.5 | Q133: 1 | R133: 1 | S133: 1 | T133: 1 | U133: MDA1 (IVM+ALB) | W133: 36461 | X133: Gwer East | AA133: ='MDA1'!M133 -> 154388 | AB133: ='MDA3'!Q133 -> 0 | AC133: ='T2'!M133 -> 52576 | AD133: =T3_R1!N133 -> 0 | AE133: =T3_R2!N133 -> 0 | AI133: ='MDA1'!E133 -> Dec 2020 | AJ133: =T3_R1!F133 -> 0 | AK133: =T3_R2!F133 -> 0 | AL133: ='T2'!E133 -> Dec 2020
A134: =IF(INTRO!$E$34<>0,INTRO!$E$34,"") -> Nigeria | B134: Benue | C134: Gwer West | D134: 172258.6921 | E134: =IF(INTRO!$E$48="","",ROUND($D134*INTRO!$E$48,0)) -> 27561 | F134: =IF(INTRO!$E$49="","",ROUND($D134*INTRO!$E$49,0)) -> 48232 | G134: =IF(INTRO!$E$50="","",ROUND($D134*INTRO!$E$50,0)) -> 89575 | H134: 0 | I134: 1 | J134: 2 | K134: 2 | L134: 0 | M134: =IF(INTRO!$E$38="Endemic", IF($H134>0, IF($H134=4,"Unknown", IF($H134=99,"Stopped", $D134)), 0),"Not required") -> 0 | N134: 115820 | O134: =IF(INTRO!$E$42="Endemic", IF(AND($J134>1,$J134<5), IF($J134=4, "Unknown", E134+F134), 0),"Not required") -> 75793 | P134: =IF(INTRO!$E$44="Endemic", IF(AND($K134>0,$K134<5), IF($K134=4,"Unknown", IF($K134=1, $F134*0.33, IF($K134=2, $F134*0.5+$G134*0.2, SUM(F134:G134)))), 0),"Not required") -> 42031 | Q134: 0 | R134: 0 | S134: 1 | T134: 1 | U134: MDA3 (IVM) | V134: T3 (ALB/MBD) | W134: 36462 | X134: Gwer West | AA134: ='MDA1'!M134 -> 0 | AB134: ='MDA3'!Q134 -> 113635 | AC134: ='T2'!M134 -> 36295 | AD134: =T3_R1!N134 -> 36296 | AE134: =T3_R2!N134 -> 0 | AI134: ='MDA1'!E134 -> 0 | AJ134: =T3_R1!F134 -> Dec 2020 | AK134: =T3_R2!F134 -> 0 | AL134: ='T2'!E134 -> Dec 2020
A135: =IF(INTRO!$E$34<>0,INTRO!$E$34,"") -> Nigeria | B135: Benue | C135: Katsina-Ala | D135: 316915.3774 | E135: =IF(INTRO!$E$48="","",ROUND($D135*INTRO!$E$48,0)) -> 50706 | F135: =IF(INTRO!$E$49="","",ROUND($D135*INTRO!$E$49,0)) -> 88736 | G135: =IF(INTRO!$E$50="","",ROUND($D135*INTRO!$E$50,0)) -> 164796 | H135: 1 | I135: 1 | J135: 1 | K135: 2 | L135: 0 | M135: =IF(INTRO!$E$38="Endemic", IF($H135>0, IF($H135=4,"Unknown", IF($H135=99,"Stopped", $D135)), 0),"Not required") -> 316915.3774 | N135: 306969 | O135: =IF(INTRO!$E$42="Endemic", IF(AND($J135>1,$J135<5), IF($J135=4, "Unknown", E135+F135), 0),"Not required") -> 0 | P135: =IF(INTRO!$E$44="Endemic", IF(AND($K135>0,$K135<5), IF($K135=4,"Unknown", IF($K135=1, $F135*0.33, IF($K135=2, $F135*0.5+$G135*0.2, SUM(F135:G135)))), 0),"Not required") -> 77327.2 | Q135: 1 | R135: 1 | S135: 0 | T135: 1 | U135: MDA1 (IVM+ALB) | W135: 36463 | X135: Katsina-Ala | AA135: ='MDA1'!M135 -> 209604 | AB135: ='MDA3'!Q135 -> 0 | AC135: ='T2'!M135 -> 69814 | AD135: =T3_R1!N135 -> 0 | AE135: =T3_R2!N135 -> 0 | AI135: ='MDA1'!E135 -> Dec 2020 | AJ135: =T3_R1!F135 -> 0 | AK135: =T3_R2!F135 -> 0 | AL135: ='T2'!E135 -> Dec 2020
A136: =IF(INTRO!$E$34<>0,INTRO!$E$34,"") -> Nigeria | B136: Benue | C136: Konshisha | D136: 318260.7848 | E136: =IF(INTRO!$E$48="","",ROUND($D136*INTRO!$E$48,0)) -> 50922 | F136: =IF(INTRO!$E$49="","",ROUND($D136*INTRO!$E$49,0)) -> 89113 | G136: =IF(INTRO!$E$50="","",ROUND($D136*INTRO!$E$50,0)) -> 165496 | H136: 1 | I136: 1 | J136: 2 | K136: 1 | L136: 0 | M136: =IF(INTRO!$E$38="Endemic", IF($H136>0, IF($H136=4,"Unknown", IF($H136=99,"Stopped", $D136)), 0),"Not required") -> 318260.7848 | N136: 244807 | O136: =IF(INTRO!$E$42="Endemic", IF(AND($J136>1,$J136<5), IF($J136=4, "Unknown", E136+F136), 0),"Not required") -> 140035 | P136: =IF(INTRO!$E$44="Endemic", IF(AND($K136>0,$K136<5), IF($K136=4,"Unknown", IF($K136=1, $F136*0.33, IF($K136=2, $F136*0.5+$G136*0.2, SUM(F136:G136)))), 0),"Not required") -> 29407.29 | Q136: 1 | R136: 1 | S136: 1 | T136: 0 | U136: MDA1 (IVM+ALB) | W136: 36464 | X136: Konshisha | AA136: ='MDA1'!M136 -> 213531 | AB136: ='MDA3'!Q136 -> 0 | AC136: ='T2'!M136 -> 0 | AD136: =T3_R1!N136 -> 0 | AE136: =T3_R2!N136 -> 0 | AI136: ='MDA1'!E136 -> Dec 2020 | AJ136: =T3_R1!F136 -> 0 | AK136: =T3_R2!F136 -> 0 | AL136: ='T2'!E136 -> 0
A137: =IF(INTRO!$E$34<>0,INTRO!$E$34,"") -> Nigeria | B137: Benue | C137: Kwande | D137: 350732.4896 | E137: =IF(INTRO!$E$48="","",ROUND($D137*INTRO!$E$48,0)) -> 56117 | F137: =IF(INTRO!$E$49="","",ROUND($D137*INTRO!$E$49,0)) -> 98205 | G137: =IF(INTRO!$E$50="","",ROUND($D137*INTRO!$E$50,0)) -> 182381 | H137: 1 | I137: 1 | J137: 2 | K137: 2 | L137: 0 | M137: =IF(INTRO!$E$38="Endemic", IF($H137>0, IF($H137=4,"Unknown", IF($H137=99,"Stopped", $D137)), 0),"Not required") -> 350732.4896 | N137: 351281 | O137: =IF(INTRO!$E$42="Endemic", IF(AND($J137>1,$J137<5), IF($J137=4, "Unknown", E137+F137), 0),"Not required") -> 154322 | P137: =IF(INTRO!$E$44="Endemic", IF(AND($K137>0,$K137<5), IF($K137=4,"Unknown", IF($K137=1, $F137*0.33, IF($K137=2, $F137*0.5+$G137*0.2, SUM(F137:G137)))), 0),"Not required") -> 85578.7 | Q137: 1 | R137: 1 | S137: 1 | T137: 1 | U137: MDA1 (IVM+ALB) | W137: 36465 | X137: Kwande | AA137: ='MDA1'!M137 -> 234055 | AB137: ='MDA3'!Q137 -> 0 | AC137: ='T2'!M137 -> 80177 | AD137: =T3_R1!N137 -> 0 | AE137: =T3_R2!N137 -> 0 | AI137: ='MDA1'!E137 -> Dec 2020 | AJ137: =T3_R1!F137 -> 0 | AK137: =T3_R2!F137 -> 0 | AL137: ='T2'!E137 -> Dec 2020
A138: =IF(INTRO!$E$34<>0,INTRO!$E$34,"") -> Nigeria | B138: Benue | C138: Logo | D138: 238426.2251 | E138: =IF(INTRO!$E$48="","",ROUND($D138*INTRO!$E$48,0)) -> 38148 | F138: =IF(INTRO!$E$49="","",ROUND($D138*INTRO!$E$49,0)) -> 66759 | G138: =IF(INTRO!$E$50="","",ROUND($D138*INTRO!$E$50,0)) -> 123982 | H138: 1 | I138: 1 | J138: 1 | K138: 2 | L138: 0 | M138: =IF(INTRO!$E$38="Endemic", IF($H138>0, IF($H138=4,"Unknown", IF($H138=99,"Stopped", $D138)), 0),"Not required") -> 238426.2251 | N138: 163093 | O138: =IF(INTRO!$E$42="Endemic", IF(AND($J138>1,$J138<5), IF($J138=4, "Unknown", E138+F138), 0),"Not required") -> 0 | P138: =IF(INTRO!$E$44="Endemic", IF(AND($K138>0,$K138<5), IF($K138=4,"Unknown", IF($K138=1, $F138*0.33, IF($K138=2, $F138*0.5+$G138*0.2, SUM(F138:G138)))), 0),"Not required") -> 58175.9 | Q138: 1 | R138: 1 | S138: 0 | T138: 1 | U138: MDA1 (IVM+ALB) | W138: 36466 | X138: Logo | AA138: ='MDA1'!M138 -> 158321 | AB138: ='MDA3'!Q138 -> 0 | AC138: ='T2'!M138 -> 51124 | AD138: =T3_R1!N138 -> 0 | AE138: =T3_R2!N138 -> 0 | AI138: ='MDA1'!E138 -> Dec 2020 | AJ138: =T3_R1!F138 -> 0 | AK138: =T3_R2!F138 -> 0 | AL138: ='T2'!E138 -> Dec 2020
A139: =IF(INTRO!$E$34<>0,INTRO!$E$34,"") -> Nigeria | B139: Benue | C139: Makurdi | D139: 419414.5524 | E139: =IF(INTRO!$E$48="","",ROUND($D139*INTRO!$E$48,0)) -> 67106 | F139: =IF(INTRO!$E$49="","",ROUND($D139*INTRO!$E$49,0)) -> 117436 | G139: =IF(INTRO!$E$50="","",ROUND($D139*INTRO!$E$50,0)) -> 218096 | H139: 1 | I139: 1 | J139: 2 | K139: 2 | L139: 0 | M139: =IF(INTRO!$E$38="Endemic", IF($H139>0, IF($H139=4,"Unknown", IF($H139=99,"Stopped", $D139)), 0),"Not required") -> 419414.5524 | N139: 41929 | O139: =IF(INTRO!$E$42="Endemic", IF(AND($J139>1,$J139<5), IF($J139=4, "Unknown", E139+F139), 0),"Not required") -> 184542 | P139: =IF(INTRO!$E$44="Endemic", IF(AND($K139>0,$K139<5), IF($K139=4,"Unknown", IF($K139=1, $F139*0.33, IF($K139=2, $F139*0.5+$G139*0.2, SUM(F139:G139)))), 0),"Not required") -> 102337.2 | Q139: 1 | R139: 1 | S139: 1 | T139: 1 | U139: MDA1 (IVM+ALB) | W139: 36467 | X139: Makurdi | AA139: ='MDA1'!M139 -> 85885 | AB139: ='MDA3'!Q139 -> 0 | AC139: ='T2'!M139 -> 93295 | AD139: =T3_R1!N139 -> 0 | AE139: =T3_R2!N139 -> 0 | AI139: ='MDA1'!E139 -> Dec 2020 | AJ139: =T3_R1!F139 -> 0 | AK139: =T3_R2!F139 -> 0 | AL139: ='T2'!E139 -> Dec 2020
A140: =IF(INTRO!$E$34<>0,INTRO!$E$34,"") -> Nigeria | B140: Benue | C140: Obi | D140: 139413.263 | E140: =IF(INTRO!$E$48="","",ROUND($D140*INTRO!$E$48,0)) -> 22306 | F140: =IF(INTRO!$E$49="","",ROUND($D140*INTRO!$E$49,0)) -> 39036 | G140: =IF(INTRO!$E$50="","",ROUND($D140*INTRO!$E$50,0)) -> 72495 | H140: 1 | I140: 1 | J140: 2 | K140: 2 | L140: 0 | M140: =IF(INTRO!$E$38="Endemic", IF($H140>0, IF($H140=4,"Unknown", IF($H140=99,"Stopped", $D140)), 0),"Not required") -> 139413.263 | N140: 113212 | O140: =IF(INTRO!$E$42="Endemic", IF(AND($J140>1,$J140<5), IF($J140=4, "Unknown", E140+F140), 0),"Not required") -> 61342 | P140: =IF(INTRO!$E$44="Endemic", IF(AND($K140>0,$K140<5), IF($K140=4,"Unknown", IF($K140=1, $F140*0.33, IF($K140=2, $F140*0.5+$G140*0.2, SUM(F140:G140)))), 0),"Not required") -> 34017 | Q140: 1 | R140: 1 | S140: 1 | T140: 1 | U140: MDA1 (IVM+ALB) | W140: 36468 | X140: Obi | AA140: ='MDA1'!M140 -> 90892 | AB140: ='MDA3'!Q140 -> 0 | AC140: ='T2'!M140 -> 31502 | AD140: =T3_R1!N140 -> 0 | AE140: =T3_R2!N140 -> 0 | AI140: ='MDA1'!E140 -> Dec 2020 | AJ140: =T3_R1!F140 -> 0 | AK140: =T3_R2!F140 -> 0 | AL140: ='T2'!E140 -> Dec 2020
A141: =IF(INTRO!$E$34<>0,INTRO!$E$34,"") -> Nigeria | B141: Benue | C141: Ogbadibo | D141: 181512.9517 | E141: =IF(INTRO!$E$48="","",ROUND($D141*INTRO!$E$48,0)) -> 29042 | F141: =IF(INTRO!$E$49="","",ROUND($D141*INTRO!$E$49,0)) -> 50824 | G141: =IF(INTRO!$E$50="","",ROUND($D141*INTRO!$E$50,0)) -> 94387 | H141: 0 | I141: 1 | J141: 2 | K141: 1 | L141: 0 | M141: =IF(INTRO!$E$38="Endemic", IF($H141>0, IF($H141=4,"Unknown", IF($H141=99,"Stopped", $D141)), 0),"Not required") -> 0 | N141: 181797 | O141: =IF(INTRO!$E$42="Endemic", IF(AND($J141>1,$J141<5), IF($J141=4, "Unknown", E141+F141), 0),"Not required") -> 79866 | P141: =IF(INTRO!$E$44="Endemic", IF(AND($K141>0,$K141<5), IF($K141=4,"Unknown", IF($K141=1, $F141*0.33, IF($K141=2, $F141*0.5+$G141*0.2, SUM(F141:G141)))), 0),"Not required") -> 16771.92 | Q141: 0 | R141: 0 | S141: 1 | T141: 0 | U141: MDA3 (IVM) | V141: T3 (ALB/MBD) | W141: 36469 | X141: Ogbadibo | AA141: ='MDA1'!M141 -> 0 | AB141: ='MDA3'!Q141 -> 118576 | AC141: ='T2'!M141 -> 0 | AD141: =T3_R1!N141 -> 38206 | AE141: =T3_R2!N141 -> 0 | AI141: ='MDA1'!E141 -> 0 | AJ141: =T3_R1!F141 -> Dec 2020 | AK141: =T3_R2!F141 -> 0 | AL141: ='T2'!E141 -> 0
A142: =IF(INTRO!$E$34<>0,INTRO!$E$34,"") -> Nigeria | B142: Benue | C142: Ohimini | D142: 100809.6592 | E142: =IF(INTRO!$E$48="","",ROUND($D142*INTRO!$E$48,0)) -> 16130 | F142: =IF(INTRO!$E$49="","",ROUND($D142*INTRO!$E$49,0)) -> 28227 | G142: =IF(INTRO!$E$50="","",ROUND($D142*INTRO!$E$50,0)) -> 52421 | H142: 1 | I142: 1 | J142: 2 | K142: 1 | L142: 0 | M142: =IF(INTRO!$E$38="Endemic", IF($H142>0, IF($H142=4,"Unknown", IF($H142=99,"Stopped", $D142)), 0),"Not required") -> 100809.6592 | N142: 100967 | O142: =IF(INTRO!$E$42="Endemic", IF(AND($J142>1,$J142<5), IF($J142=4, "Unknown", E142+F142), 0),"Not required") -> 44357 | P142: =IF(INTRO!$E$44="Endemic", IF(AND($K142>0,$K142<5), IF($K142=4,"Unknown", IF($K142=1, $F142*0.33, IF($K142=2, $F142*0.5+$G142*0.2, SUM(F142:G142)))), 0),"Not required") -> 9314.91 | Q142: 1 | R142: 1 | S142: 1 | T142: 0 | U142: MDA1 (IVM+ALB) | W142: 36470 | X142: Ohimini | AA142: ='MDA1'!M142 -> 67329 | AB142: ='MDA3'!Q142 -> 0 | AC142: ='T2'!M142 -> 0 | AD142: =T3_R1!N142 -> 0 | AE142: =T3_R2!N142 -> 0 | AI142: ='MDA1'!E142 -> Dec 2020 | AJ142: =T3_R1!F142 -> 0 | AK142: =T3_R2!F142 -> 0 | AL142: ='T2'!E142 -> 0
A143: =IF(INTRO!$E$34<>0,INTRO!$E$34,"") -> Nigeria | B143: Benue | C143: Oju | D143: 240080.4839 | E143: =IF(INTRO!$E$48="","",ROUND($D143*INTRO!$E$48,0)) -> 38413 | F143: =IF(INTRO!$E$49="","",ROUND($D143*INTRO!$E$49,0)) -> 67223 | G143: =IF(INTRO!$E$50="","",ROUND($D143*INTRO!$E$50,0)) -> 124842 | H143: 1 | I143: 1 | J143: 2 | K143: 2 | L143: 0 | M143: =IF(INTRO!$E$38="Endemic", IF($H143>0, IF($H143=4,"Unknown", IF($H143=99,"Stopped", $D143)), 0),"Not required") -> 240080.4839 | N143: 123566 | O143: =IF(INTRO!$E$42="Endemic", IF(AND($J143>1,$J143<5), IF($J143=4, "Unknown", E143+F143), 0),"Not required") -> 105636 | P143: =IF(INTRO!$E$44="Endemic", IF(AND($K143>0,$K143<5), IF($K143=4,"Unknown", IF($K143=1, $F143*0.33, IF($K143=2, $F143*0.5+$G143*0.2, SUM(F143:G143)))), 0),"Not required") -> 58579.9 | Q143: 1 | R143: 1 | S143: 1 | T143: 1 | U143: MDA1 (IVM+ALB) | W143: 36471 | X143: Oju | AA143: ='MDA1'!M143 -> 157552 | AB143: ='MDA3'!Q143 -> 0 | AC143: ='T2'!M143 -> 51015 | AD143: =T3_R1!N143 -> 0 | AE143: =T3_R2!N143 -> 0 | AI143: ='MDA1'!E143 -> Dec 2020 | AJ143: =T3_R1!F143 -> 0 | AK143: =T3_R2!F143 -> 0 | AL143: ='T2'!E143 -> Dec 2020
A144: =IF(INTRO!$E$34<>0,INTRO!$E$34,"") -> Nigeria | B144: Benue | C144: Okpokwu | D144: 249121.7912 | E144: =IF(INTRO!$E$48="","",ROUND($D144*INTRO!$E$48,0)) -> 39859 | F144: =IF(INTRO!$E$49="","",ROUND($D144*INTRO!$E$49,0)) -> 69754 | G144: =IF(INTRO!$E$50="","",ROUND($D144*INTRO!$E$50,0)) -> 129543 | H144: 0 | I144: 1 | J144: 1 | K144: 0 | L144: 0 | M144: =IF(INTRO!$E$38="Endemic", IF($H144>0, IF($H144=4,"Unknown", IF($H144=99,"Stopped", $D144)), 0),"Not required") -> 0 | N144: 169310 | O144: =IF(INTRO!$E$42="Endemic", IF(AND($J144>1,$J144<5), IF($J144=4, "Unknown", E144+F144), 0),"Not required") -> 0 | P144: =IF(INTRO!$E$44="Endemic", IF(AND($K144>0,$K144<5), IF($K144=4,"Unknown", IF($K144=1, $F144*0.33, IF($K144=2, $F144*0.5+$G144*0.2, SUM(F144:G144)))), 0),"Not required") -> 0 | Q144: 0 | R144: 0 | S144: 0 | T144: 0 | U144: MDA3 (IVM) | W144: 36472 | X144: Okpokwu | AA144: ='MDA1'!M144 -> 0 | AB144: ='MDA3'!Q144 -> 171774 | AC144: ='T2'!M144 -> 0 | AD144: =T3_R1!N144 -> 0 | AE144: =T3_R2!N144 -> 0 | AI144: ='MDA1'!E144 -> 0 | AJ144: =T3_R1!F144 -> 0 | AK144: =T3_R2!F144 -> 0 | AL144: ='T2'!E144 -> 0
A145: =IF(INTRO!$E$34<>0,INTRO!$E$34,"") -> Nigeria | B145: Benue | C145: Otukpo | D145: 369022.4153 | E145: =IF(INTRO!$E$48="","",ROUND($D145*INTRO!$E$48,0)) -> 59044 | F145: =IF(INTRO!$E$49="","",ROUND($D145*INTRO!$E$49,0)) -> 103326 | G145: =IF(INTRO!$E$50="","",ROUND($D145*INTRO!$E$50,0)) -> 191892 | H145: 1 | I145: 1 | J145: 1 | K145: 2 | L145: 0 | M145: =IF(INTRO!$E$38="Endemic", IF($H145>0, IF($H145=4,"Unknown", IF($H145=99,"Stopped", $D145)), 0),"Not required") -> 369022.4153 | N145: 191806 | O145: =IF(INTRO!$E$42="Endemic", IF(AND($J145>1,$J145<5), IF($J145=4, "Unknown", E145+F145), 0),"Not required") -> 0 | P145: =IF(INTRO!$E$44="Endemic", IF(AND($K145>0,$K145<5), IF($K145=4,"Unknown", IF($K145=1, $F145*0.33, IF($K145=2, $F145*0.5+$G145*0.2, SUM(F145:G145)))), 0),"Not required") -> 90041.4 | Q145: 1 | R145: 1 | S145: 0 | T145: 1 | U145: MDA1 (IVM+ALB) | W145: 36473 | X145: Otorkpo | AA145: ='MDA1'!M145 -> 245946 | AB145: ='MDA3'!Q145 -> 0 | AC145: ='T2'!M145 -> 77987 | AD145: =T3_R1!N145 -> 0 | AE145: =T3_R2!N145 -> 0 | AI145: ='MDA1'!E145 -> Dec 2020 | AJ145: =T3_R1!F145 -> 0 | AK145: =T3_R2!F145 -> 0 | AL145: ='T2'!E145 -> Dec 2020
A146: =IF(INTRO!$E$34<>0,INTRO!$E$34,"") -> Nigeria | B146: Benue | C146: Tarka | D146: 112108.8253 | E146: =IF(INTRO!$E$48="","",ROUND($D146*INTRO!$E$48,0)) -> 17937 | F146: =IF(INTRO!$E$49="","",ROUND($D146*INTRO!$E$49,0)) -> 31390 | G146: =IF(INTRO!$E$50="","",ROUND($D146*INTRO!$E$50,0)) -> 58297 | H146: 1 | I146: 1 | J146: 2 | K146: 2 | L146: 0 | M146: =IF(INTRO!$E$38="Endemic", IF($H146>0, IF($H146=4,"Unknown", IF($H146=99,"Stopped", $D146)), 0),"Not required") -> 112108.8253 | N146: 84946 | O146: =IF(INTRO!$E$42="Endemic", IF(AND($J146>1,$J146<5), IF($J146=4, "Unknown", E146+F146), 0),"Not required") -> 49327 | P146: =IF(INTRO!$E$44="Endemic", IF(AND($K146>0,$K146<5), IF($K146=4,"Unknown", IF($K146=1, $F146*0.33, IF($K146=2, $F146*0.5+$G146*0.2, SUM(F146:G146)))), 0),"Not required") -> 27354.4 | Q146: 1 | R146: 1 | S146: 1 | T146: 1 | U146: MDA1 (IVM+ALB) | W146: 36474 | X146: Tarka | AA146: ='MDA1'!M146 -> 75000 | AB146: ='MDA3'!Q146 -> 0 | AC146: ='T2'!M146 -> 23853 | AD146: =T3_R1!N146 -> 0 | AE146: =T3_R2!N146 -> 0 | AI146: ='MDA1'!E146 -> Dec 2020 | AJ146: =T3_R1!F146 -> 0 | AK146: =T3_R2!F146 -> 0 | AL146: ='T2'!E146 -> Dec 2020
A147: =IF(INTRO!$E$34<>0,INTRO!$E$34,"") -> Nigeria | B147: Benue | C147: Ukum | D147: 305932.1141 | E147: =IF(INTRO!$E$48="","",ROUND($D147*INTRO!$E$48,0)) -> 48949 | F147: =IF(INTRO!$E$49="","",ROUND($D147*INTRO!$E$49,0)) -> 85661 | G147: =IF(INTRO!$E$50="","",ROUND($D147*INTRO!$E$50,0)) -> 159085 | H147: 1 | I147: 1 | J147: 2 | K147: 2 | L147: 0 | M147: =IF(INTRO!$E$38="Endemic", IF($H147>0, IF($H147=4,"Unknown", IF($H147=99,"Stopped", $D147)), 0),"Not required") -> 305932.1141 | N147: 224056 | O147: =IF(INTRO!$E$42="Endemic", IF(AND($J147>1,$J147<5), IF($J147=4, "Unknown", E147+F147), 0),"Not required") -> 134610 | P147: =IF(INTRO!$E$44="Endemic", IF(AND($K147>0,$K147<5), IF($K147=4,"Unknown", IF($K147=1, $F147*0.33, IF($K147=2, $F147*0.5+$G147*0.2, SUM(F147:G147)))), 0),"Not required") -> 74647.5 | Q147: 1 | R147: 1 | S147: 1 | T147: 1 | U147: MDA1 (IVM+ALB) | W147: 36475 | X147: Ukum | AA147: ='MDA1'!M147 -> 204098 | AB147: ='MDA3'!Q147 -> 0 | AC147: ='T2'!M147 -> 64499 | AD147: =T3_R1!N147 -> 0 | AE147: =T3_R2!N147 -> 0 | AI147: ='MDA1'!E147 -> Dec 2020 | AJ147: =T3_R1!F147 -> 0 | AK147: =T3_R2!F147 -> 0 | AL147: ='T2'!E147 -> Dec 2020
A148: =IF(INTRO!$E$34<>0,INTRO!$E$34,"") -> Nigeria | B148: Benue | C148: Ushongo | D148: 265613.6094 | E148: =IF(INTRO!$E$48="","",ROUND($D148*INTRO!$E$48,0)) -> 42498 | F148: =IF(INTRO!$E$49="","",ROUND($D148*INTRO!$E$49,0)) -> 74372 | G148: =IF(INTRO!$E$50="","",ROUND($D148*INTRO!$E$50,0)) -> 138119 | H148: 0 | I148: 1 | J148: 1 | K148: 2 | L148: 0 | M148: =IF(INTRO!$E$38="Endemic", IF($H148>0, IF($H148=4,"Unknown", IF($H148=99,"Stopped", $D148)), 0),"Not required") -> 0 | N148: 216159 | O148: =IF(INTRO!$E$42="Endemic", IF(AND($J148>1,$J148<5), IF($J148=4, "Unknown", E148+F148), 0),"Not required") -> 0 | P148: =IF(INTRO!$E$44="Endemic", IF(AND($K148>0,$K148<5), IF($K148=4,"Unknown", IF($K148=1, $F148*0.33, IF($K148=2, $F148*0.5+$G148*0.2, SUM(F148:G148)))), 0),"Not required") -> 64809.8 | Q148: 0 | R148: 0 | S148: 0 | T148: 1 | U148: MDA3 (IVM) | W148: 36476 | X148: Ushongo | AA148: ='MDA1'!M148 -> 0 | AB148: ='MDA3'!Q148 -> 178256 | AC148: ='T2'!M148 -> 56756 | AD148: =T3_R1!N148 -> 0 | AE148: =T3_R2!N148 -> 0 | AI148: ='MDA1'!E148 -> 0 | AJ148: =T3_R1!F148 -> 0 | AK148: =T3_R2!F148 -> 0 | AL148: ='T2'!E148 -> Dec 2020
A149: =IF(INTRO!$E$34<>0,INTRO!$E$34,"") -> Nigeria | B149: Benue | C149: Vandeikya | D149: 324533.7118 | E149: =IF(INTRO!$E$48="","",ROUND($D149*INTRO!$E$48,0)) -> 51925 | F149: =IF(INTRO!$E$49="","",ROUND($D149*INTRO!$E$49,0)) -> 90869 | G149: =IF(INTRO!$E$50="","",ROUND($D149*INTRO!$E$50,0)) -> 168758 | H149: 0 | I149: 1 | J149: 2 | K149: 2 | L149: 0 | M149: =IF(INTRO!$E$38="Endemic", IF($H149>0, IF($H149=4,"Unknown", IF($H149=99,"Stopped", $D149)), 0),"Not required") -> 0 | N149: 108681 | O149: =IF(INTRO!$E$42="Endemic", IF(AND($J149>1,$J149<5), IF($J149=4, "Unknown", E149+F149), 0),"Not required") -> 142794 | P149: =IF(INTRO!$E$44="Endemic", IF(AND($K149>0,$K149<5), IF($K149=4,"Unknown", IF($K149=1, $F149*0.33, IF($K149=2, $F149*0.5+$G149*0.2, SUM(F149:G149)))), 0),"Not required") -> 79186.1 | Q149: 0 | R149: 0 | S149: 1 | T149: 1 | U149: MDA3 (IVM) | V149: T3 (ALB/MBD) | W149: 36477 | X149: Vandeikya | AA149: ='MDA1'!M149 -> 0 | AB149: ='MDA3'!Q149 -> 227042 | AC149: ='T2'!M149 -> 68388 | AD149: =T3_R1!N149 -> 68388 | AE149: =T3_R2!N149 -> 0 | AI149: ='MDA1'!E149 -> 0 | AJ149: =T3_R1!F149 -> Dec 2020 | AK149: =T3_R2!F149 -> 0 | AL149: ='T2'!E149 -> Dec 2020
A150: =IF(INTRO!$E$34<>0,INTRO!$E$34,"") -> Nigeria | B150: Borno | C150: Abadam | D150: 141281.8844 | E150: =IF(INTRO!$E$48="","",ROUND($D150*INTRO!$E$48,0)) -> 22605 | F150: =IF(INTRO!$E$49="","",ROUND($D150*INTRO!$E$49,0)) -> 39559 | G150: =IF(INTRO!$E$50="","",ROUND($D150*INTRO!$E$50,0)) -> 73467 | H150: 1 | I150: 4 | J150: 0 | K150: 2 | L150: 4 | M150: =IF(INTRO!$E$38="Endemic", IF($H150>0, IF($H150=4,"Unknown", IF($H150=99,"Stopped", $D150)), 0),"Not required") -> 141281.8844 | N150: 0 | O150: =IF(INTRO!$E$42="Endemic", IF(AND($J150>1,$J150<5), IF($J150=4, "Unknown", E150+F150), 0),"Not required") -> 0 | P150: =IF(INTRO!$E$44="Endemic", IF(AND($K150>0,$K150<5), IF($K150=4,"Unknown", IF($K150=1, $F150*0.33, IF($K150=2, $F150*0.5+$G150*0.2, SUM(F150:G150)))), 0),"Not required") -> 34472.9 | Q150: 0 | R150: 0 | S150: 0 | T150: 0 | W150: 36478 | X150: Adadara | AA150: ='MDA1'!M150 -> 0 | AB150: ='MDA3'!Q150 -> 0 | AC150: ='T2'!M150 -> 0 | AD150: =T3_R1!N150 -> 0 | AE150: =T3_R2!N150 -> 0 | AI150: ='MDA1'!E150 -> 0 | AJ150: =T3_R1!F150 -> 0 | AK150: =T3_R2!F150 -> 0 | AL150: ='T2'!E150 -> 0
A151: =IF(INTRO!$E$34<>0,INTRO!$E$34,"") -> Nigeria | B151: Borno | C151: Askira/Uba | D151: 194747.0224 | E151: =IF(INTRO!$E$48="","",ROUND($D151*INTRO!$E$48,0)) -> 31160 | F151: =IF(INTRO!$E$49="","",ROUND($D151*INTRO!$E$49,0)) -> 54529 | G151: =IF(INTRO!$E$50="","",ROUND($D151*INTRO!$E$50,0)) -> 101268 | H151: 1 | I151: 1 | J151: 0 | K151: 2 | L151: 4 | M151: =IF(INTRO!$E$38="Endemic", IF($H151>0, IF($H151=4,"Unknown", IF($H151=99,"Stopped", $D151)), 0),"Not required") -> 194747.0224 | N151: 195051 | O151: =IF(INTRO!$E$42="Endemic", IF(AND($J151>1,$J151<5), IF($J151=4, "Unknown", E151+F151), 0),"Not required") -> 0 | P151: =IF(INTRO!$E$44="Endemic", IF(AND($K151>0,$K151<5), IF($K151=4,"Unknown", IF($K151=1, $F151*0.33, IF($K151=2, $F151*0.5+$G151*0.2, SUM(F151:G151)))), 0),"Not required") -> 47518.1 | Q151: 0 | R151: 0 | S151: 0 | T151: 0 | W151: 36479 | X151: Askir/Uba | AA151: ='MDA1'!M151 -> 0 | AB151: ='MDA3'!Q151 -> 0 | AC151: ='T2'!M151 -> 0 | AD151: =T3_R1!N151 -> 0 | AE151: =T3_R2!N151 -> 0 | AI151: ='MDA1'!E151 -> 0 | AJ151: =T3_R1!F151 -> 0 | AK151: =T3_R2!F151 -> 0 | AL151: ='T2'!E151 -> 0
A152: =IF(INTRO!$E$34<>0,INTRO!$E$34,"") -> Nigeria | B152: Borno | C152: Bama | D152: 380755.9478 | E152: =IF(INTRO!$E$48="","",ROUND($D152*INTRO!$E$48,0)) -> 60921 | F152: =IF(INTRO!$E$49="","",ROUND($D152*INTRO!$E$49,0)) -> 106612 | G152: =IF(INTRO!$E$50="","",ROUND($D152*INTRO!$E$50,0)) -> 197993 | H152: 0 | I152: 1 | J152: 1 | K152: 1 | L152: 4 | M152: =IF(INTRO!$E$38="Endemic", IF($H152>0, IF($H152=4,"Unknown", IF($H152=99,"Stopped", $D152)), 0),"Not required") -> 0 | N152: 129415 | O152: =IF(INTRO!$E$42="Endemic", IF(AND($J152>1,$J152<5), IF($J152=4, "Unknown", E152+F152), 0),"Not required") -> 0 | P152: =IF(INTRO!$E$44="Endemic", IF(AND($K152>0,$K152<5), IF($K152=4,"Unknown", IF($K152=1, $F152*0.33, IF($K152=2, $F152*0.5+$G152*0.2, SUM(F152:G152)))), 0),"Not required") -> 35181.96 | Q152: 0 | R152: 0 | S152: 0 | T152: 0 | W152: 36480 | X152: Bama | AA152: ='MDA1'!M152 -> 0 | AB152: ='MDA3'!Q152 -> 0 | AC152: ='T2'!M152 -> 0 | AD152: =T3_R1!N152 -> 0 | AE152: =T3_R2!N152 -> 0 | AI152: ='MDA1'!E152 -> 0 | AJ152: =T3_R1!F152 -> 0 | AK152: =T3_R2!F152 -> 0 | AL152: ='T2'!E152 -> 0
A153: =IF(INTRO!$E$34<>0,INTRO!$E$34,"") -> Nigeria | B153: Borno | C153: Bayo | D153: 111381.1207 | E153: =IF(INTRO!$E$48="","",ROUND($D153*INTRO!$E$48,0)) -> 17821 | F153: =IF(INTRO!$E$49="","",ROUND($D153*INTRO!$E$49,0)) -> 31187 | G153: =IF(INTRO!$E$50="","",ROUND($D153*INTRO!$E$50,0)) -> 57918 | H153: 0 | I153: 1 | J153: 1 | K153: 1 | L153: 4 | M153: =IF(INTRO!$E$38="Endemic", IF($H153>0, IF($H153=4,"Unknown", IF($H153=99,"Stopped", $D153)), 0),"Not required") -> 0 | N153: 111555 | O153: =IF(INTRO!$E$42="Endemic", IF(AND($J153>1,$J153<5), IF($J153=4, "Unknown", E153+F153), 0),"Not required") -> 0 | P153: =IF(INTRO!$E$44="Endemic", IF(AND($K153>0,$K153<5), IF($K153=4,"Unknown", IF($K153=1, $F153*0.33, IF($K153=2, $F153*0.5+$G153*0.2, SUM(F153:G153)))), 0),"Not required") -> 10291.71 | Q153: 0 | R153: 0 | S153: 0 | T153: 0 | W153: 36481 | X153: Bayo | AA153: ='MDA1'!M153 -> 0 | AB153: ='MDA3'!Q153 -> 0 | AC153: ='T2'!M153 -> 0 | AD153: =T3_R1!N153 -> 0 | AE153: =T3_R2!N153 -> 0 | AI153: ='MDA1'!E153 -> 0 | AJ153: =T3_R1!F153 -> 0 | AK153: =T3_R2!F153 -> 0 | AL153: ='T2'!E153 -> 0
A154: =IF(INTRO!$E$34<>0,INTRO!$E$34,"") -> Nigeria | B154: Borno | C154: Biu | D154: 248310.88 | E154: =IF(INTRO!$E$48="","",ROUND($D154*INTRO!$E$48,0)) -> 39730 | F154: =IF(INTRO!$E$49="","",ROUND($D154*INTRO!$E$49,0)) -> 69527 | G154: =IF(INTRO!$E$50="","",ROUND($D154*INTRO!$E$50,0)) -> 129122 | H154: 1 | I154: 1 | J154: 0 | K154: 2 | L154: 4 | M154: =IF(INTRO!$E$38="Endemic", IF($H154>0, IF($H154=4,"Unknown", IF($H154=99,"Stopped", $D154)), 0),"Not required") -> 248310.88 | N154: 227450 | O154: =IF(INTRO!$E$42="Endemic", IF(AND($J154>1,$J154<5), IF($J154=4, "Unknown", E154+F154), 0),"Not required") -> 0 | P154: =IF(INTRO!$E$44="Endemic", IF(AND($K154>0,$K154<5), IF($K154=4,"Unknown", IF($K154=1, $F154*0.33, IF($K154=2, $F154*0.5+$G154*0.2, SUM(F154:G154)))), 0),"Not required") -> 60587.9 | Q154: 0 | R154: 0 | S154: 0 | T154: 0 | W154: 36482 | X154: Biu | AA154: ='MDA1'!M154 -> 0 | AB154: ='MDA3'!Q154 -> 0 | AC154: ='T2'!M154 -> 0 | AD154: =T3_R1!N154 -> 0 | AE154: =T3_R2!N154 -> 0 | AI154: ='MDA1'!E154 -> 0 | AJ154: =T3_R1!F154 -> 0 | AK154: =T3_R2!F154 -> 0 | AL154: ='T2'!E154 -> 0
A155: =IF(INTRO!$E$34<>0,INTRO!$E$34,"") -> Nigeria | B155: Borno | C155: Chibok | D155: 93226.58185 | E155: =IF(INTRO!$E$48="","",ROUND($D155*INTRO!$E$48,0)) -> 14916 | F155: =IF(INTRO!$E$49="","",ROUND($D155*INTRO!$E$49,0)) -> 26103 | G155: =IF(INTRO!$E$50="","",ROUND($D155*INTRO!$E$50,0)) -> 48478 | H155: 0 | I155: 1 | J155: 1 | K155: 2 | L155: 4 | M155: =IF(INTRO!$E$38="Endemic", IF($H155>0, IF($H155=4,"Unknown", IF($H155=99,"Stopped", $D155)), 0),"Not required") -> 0 | N155: 93372 | O155: =IF(INTRO!$E$42="Endemic", IF(AND($J155>1,$J155<5), IF($J155=4, "Unknown", E155+F155), 0),"Not required") -> 0 | P155: =IF(INTRO!$E$44="Endemic", IF(AND($K155>0,$K155<5), IF($K155=4,"Unknown", IF($K155=1, $F155*0.33, IF($K155=2, $F155*0.5+$G155*0.2, SUM(F155:G155)))), 0),"Not required") -> 22747.1 | Q155: 0 | R155: 0 | S155: 0 | T155: 0 | W155: 36483 | X155: Chibok | AA155: ='MDA1'!M155 -> 0 | AB155: ='MDA3'!Q155 -> 0 | AC155: ='T2'!M155 -> 0 | AD155: =T3_R1!N155 -> 0 | AE155: =T3_R2!N155 -> 0 | AI155: ='MDA1'!E155 -> 0 | AJ155: =T3_R1!F155 -> 0 | AK155: =T3_R2!F155 -> 0 | AL155: ='T2'!E155 -> 0
A156: =IF(INTRO!$E$34<>0,INTRO!$E$34,"") -> Nigeria | B156: Borno | C156: Damboa | D156: 326582.8491 | E156: =IF(INTRO!$E$48="","",ROUND($D156*INTRO!$E$48,0)) -> 52253 | F156: =IF(INTRO!$E$49="","",ROUND($D156*INTRO!$E$49,0)) -> 91443 | G156: =IF(INTRO!$E$50="","",ROUND($D156*INTRO!$E$50,0)) -> 169823 | H156: 1 | I156: 1 | J156: 0 | K156: 2 | L156: 4 | M156: =IF(INTRO!$E$38="Endemic", IF($H156>0, IF($H156=4,"Unknown", IF($H156=99,"Stopped", $D156)), 0),"Not required") -> 326582.8491 | N156: 114055 | O156: =IF(INTRO!$E$42="Endemic", IF(AND($J156>1,$J156<5), IF($J156=4, "Unknown", E156+F156), 0),"Not required") -> 0 | P156: =IF(INTRO!$E$44="Endemic", IF(AND($K156>0,$K156<5), IF($K156=4,"Unknown", IF($K156=1, $F156*0.33, IF($K156=2, $F156*0.5+$G156*0.2, SUM(F156:G156)))), 0),"Not required") -> 79686.1 | Q156: 0 | R156: 0 | S156: 0 | T156: 0 | W156: 36484 | X156: Damboa | AA156: ='MDA1'!M156 -> 0 | AB156: ='MDA3'!Q156 -> 0 | AC156: ='T2'!M156 -> 0 | AD156: =T3_R1!N156 -> 0 | AE156: =T3_R2!N156 -> 0 | AI156: ='MDA1'!E156 -> 0 | AJ156: =T3_R1!F156 -> 0 | AK156: =T3_R2!F156 -> 0 | AL156: ='T2'!E156 -> 0
A157: =IF(INTRO!$E$34<>0,INTRO!$E$34,"") -> Nigeria | B157: Borno | C157: Dikwa | D157: 149361.3805 | E157: =IF(INTRO!$E$48="","",ROUND($D157*INTRO!$E$48,0)) -> 23898 | F157: =IF(INTRO!$E$49="","",ROUND($D157*INTRO!$E$49,0)) -> 41821 | G157: =IF(INTRO!$E$50="","",ROUND($D157*INTRO!$E$50,0)) -> 77668 | H157: 0 | I157: 1 | J157: 1 | K157: 2 | L157: 4 | M157: =IF(INTRO!$E$38="Endemic", IF($H157>0, IF($H157=4,"Unknown", IF($H157=99,"Stopped", $D157)), 0),"Not required") -> 0 | N157: 72816 | O157: =IF(INTRO!$E$42="Endemic", IF(AND($J157>1,$J157<5), IF($J157=4, "Unknown", E157+F157), 0),"Not required") -> 0 | P157: =IF(INTRO!$E$44="Endemic", IF(AND($K157>0,$K157<5), IF($K157=4,"Unknown", IF($K157=1, $F157*0.33, IF($K157=2, $F157*0.5+$G157*0.2, SUM(F157:G157)))), 0),"Not required") -> 36444.1 | Q157: 0 | R157: 0 | S157: 0 | T157: 0 | W157: 36485 | X157: Dikwa | AA157: ='MDA1'!M157 -> 0 | AB157: ='MDA3'!Q157 -> 0 | AC157: ='T2'!M157 -> 0 | AD157: =T3_R1!N157 -> 0 | AE157: =T3_R2!N157 -> 0 | AI157: ='MDA1'!E157 -> 0 | AJ157: =T3_R1!F157 -> 0 | AK157: =T3_R2!F157 -> 0 | AL157: ='T2'!E157 -> 0
A158: =IF(INTRO!$E$34<>0,INTRO!$E$34,"") -> Nigeria | B158: Borno | C158: Gubio | D158: 215459.8097 | E158: =IF(INTRO!$E$48="","",ROUND($D158*INTRO!$E$48,0)) -> 34474 | F158: =IF(INTRO!$E$49="","",ROUND($D158*INTRO!$E$49,0)) -> 60329 | G158: =IF(INTRO!$E$50="","",ROUND($D158*INTRO!$E$50,0)) -> 112039 | H158: 1 | I158: 4 | J158: 1 | K158: 1 | L158: 4 | M158: =IF(INTRO!$E$38="Endemic", IF($H158>0, IF($H158=4,"Unknown", IF($H158=99,"Stopped", $D158)), 0),"Not required") -> 215459.8097 | N158: 0 | O158: =IF(INTRO!$E$42="Endemic", IF(AND($J158>1,$J158<5), IF($J158=4, "Unknown", E158+F158), 0),"Not required") -> 0 | P158: =IF(INTRO!$E$44="Endemic", IF(AND($K158>0,$K158<5), IF($K158=4,"Unknown", IF($K158=1, $F158*0.33, IF($K158=2, $F158*0.5+$G158*0.2, SUM(F158:G158)))), 0),"Not required") -> 19908.57 | Q158: 1 | R158: 0 | S158: 0 | T158: 0 | U158: MDA1 (IVM+ALB) | W158: 36486 | X158: Gubio | AA158: ='MDA1'!M158 -> 6905 | AB158: ='MDA3'!Q158 -> 0 | AC158: ='T2'!M158 -> 0 | AD158: =T3_R1!N158 -> 0 | AE158: =T3_R2!N158 -> 0 | AI158: ='MDA1'!E158 -> Feb 2020 | AJ158: =T3_R1!F158 -> 0 | AK158: =T3_R2!F158 -> 0 | AL158: ='T2'!E158 -> 0
A159: =IF(INTRO!$E$34<>0,INTRO!$E$34,"") -> Nigeria | B159: Borno | C159: Guzamala | D159: 134890.4939 | E159: =IF(INTRO!$E$48="","",ROUND($D159*INTRO!$E$48,0)) -> 21582 | F159: =IF(INTRO!$E$49="","",ROUND($D159*INTRO!$E$49,0)) -> 37769 | G159: =IF(INTRO!$E$50="","",ROUND($D159*INTRO!$E$50,0)) -> 70143 | H159: 1 | I159: 4 | J159: 1 | K159: 2 | L159: 4 | M159: =IF(INTRO!$E$38="Endemic", IF($H159>0, IF($H159=4,"Unknown", IF($H159=99,"Stopped", $D159)), 0),"Not required") -> 134890.4939 | N159: 0 | O159: =IF(INTRO!$E$42="Endemic", IF(AND($J159>1,$J159<5), IF($J159=4, "Unknown", E159+F159), 0),"Not required") -> 0 | P159: =IF(INTRO!$E$44="Endemic", IF(AND($K159>0,$K159<5), IF($K159=4,"Unknown", IF($K159=1, $F159*0.33, IF($K159=2, $F159*0.5+$G159*0.2, SUM(F159:G159)))), 0),"Not required") -> 32913.1 | Q159: 0 | R159: 0 | S159: 0 | T159: 0 | W159: 36487 | X159: Guzamala | AA159: ='MDA1'!M159 -> 0 | AB159: ='MDA3'!Q159 -> 0 | AC159: ='T2'!M159 -> 0 | AD159: =T3_R1!N159 -> 0 | AE159: =T3_R2!N159 -> 0 | AI159: ='MDA1'!E159 -> 0 | AJ159: =T3_R1!F159 -> 0 | AK159: =T3_R2!F159 -> 0 | AL159: ='T2'!E159 -> 0
A160: =IF(INTRO!$E$34<>0,INTRO!$E$34,"") -> Nigeria | B160: Borno | C160: Gwoza | D160: 389677.3812 | E160: =IF(INTRO!$E$48="","",ROUND($D160*INTRO!$E$48,0)) -> 62348 | F160: =IF(INTRO!$E$49="","",ROUND($D160*INTRO!$E$49,0)) -> 109110 | G160: =IF(INTRO!$E$50="","",ROUND($D160*INTRO!$E$50,0)) -> 202632 | H160: 0 | I160: 1 | J160: 0 | K160: 2 | L160: 4 | M160: =IF(INTRO!$E$38="Endemic", IF($H160>0, IF($H160=4,"Unknown", IF($H160=99,"Stopped", $D160)), 0),"Not required") -> 0 | N160: 198133 | O160: =IF(INTRO!$E$42="Endemic", IF(AND($J160>1,$J160<5), IF($J160=4, "Unknown", E160+F160), 0),"Not required") -> 0 | P160: =IF(INTRO!$E$44="Endemic", IF(AND($K160>0,$K160<5), IF($K160=4,"Unknown", IF($K160=1, $F160*0.33, IF($K160=2, $F160*0.5+$G160*0.2, SUM(F160:G160)))), 0),"Not required") -> 95081.4 | Q160: 0 | R160: 0 | S160: 0 | T160: 0 | W160: 36488 | X160: Gwoza | AA160: ='MDA1'!M160 -> 0 | AB160: ='MDA3'!Q160 -> 0 | AC160: ='T2'!M160 -> 0 | AD160: =T3_R1!N160 -> 0 | AE160: =T3_R2!N160 -> 0 | AI160: ='MDA1'!E160 -> 0 | AJ160: =T3_R1!F160 -> 0 | AK160: =T3_R2!F160 -> 0 | AL160: ='T2'!E160 -> 0
A161: =IF(INTRO!$E$34<>0,INTRO!$E$34,"") -> Nigeria | B161: Borno | C161: Hawul | D161: 169676.4688 | E161: =IF(INTRO!$E$48="","",ROUND($D161*INTRO!$E$48,0)) -> 27148 | F161: =IF(INTRO!$E$49="","",ROUND($D161*INTRO!$E$49,0)) -> 47509 | G161: =IF(INTRO!$E$50="","",ROUND($D161*INTRO!$E$50,0)) -> 88232 | H161: 1 | I161: 1 | J161: 1 | K161: 2 | L161: 4 | M161: =IF(INTRO!$E$38="Endemic", IF($H161>0, IF($H161=4,"Unknown", IF($H161=99,"Stopped", $D161)), 0),"Not required") -> 169676.4688 | N161: 100105 | O161: =IF(INTRO!$E$42="Endemic", IF(AND($J161>1,$J161<5), IF($J161=4, "Unknown", E161+F161), 0),"Not required") -> 0 | P161: =IF(INTRO!$E$44="Endemic", IF(AND($K161>0,$K161<5), IF($K161=4,"Unknown", IF($K161=1, $F161*0.33, IF($K161=2, $F161*0.5+$G161*0.2, SUM(F161:G161)))), 0),"Not required") -> 41400.9 | Q161: 0 | R161: 0 | S161: 0 | T161: 0 | W161: 36489 | X161: Hawul | AA161: ='MDA1'!M161 -> 0 | AB161: ='MDA3'!Q161 -> 0 | AC161: ='T2'!M161 -> 0 | AD161: =T3_R1!N161 -> 0 | AE161: =T3_R2!N161 -> 0 | AI161: ='MDA1'!E161 -> 0 | AJ161: =T3_R1!F161 -> 0 | AK161: =T3_R2!F161 -> 0 | AL161: ='T2'!E161 -> 0
A162: =IF(INTRO!$E$34<>0,INTRO!$E$34,"") -> Nigeria | B162: Borno | C162: Jere | D162: 297856.8489 | E162: =IF(INTRO!$E$48="","",ROUND($D162*INTRO!$E$48,0)) -> 47657 | F162: =IF(INTRO!$E$49="","",ROUND($D162*INTRO!$E$49,0)) -> 83400 | G162: =IF(INTRO!$E$50="","",ROUND($D162*INTRO!$E$50,0)) -> 154886 | H162: 1 | I162: 4 | J162: 0 | K162: 2 | L162: 4 | M162: =IF(INTRO!$E$38="Endemic", IF($H162>0, IF($H162=4,"Unknown", IF($H162=99,"Stopped", $D162)), 0),"Not required") -> 297856.8489 | N162: 0 | O162: =IF(INTRO!$E$42="Endemic", IF(AND($J162>1,$J162<5), IF($J162=4, "Unknown", E162+F162), 0),"Not required") -> 0 | P162: =IF(INTRO!$E$44="Endemic", IF(AND($K162>0,$K162<5), IF($K162=4,"Unknown", IF($K162=1, $F162*0.33, IF($K162=2, $F162*0.5+$G162*0.2, SUM(F162:G162)))), 0),"Not required") -> 72677.2 | Q162: 0 | R162: 0 | S162: 0 | T162: 0 | W162: 36490 | X162: Jere | AA162: ='MDA1'!M162 -> 0 | AB162: ='MDA3'!Q162 -> 0 | AC162: ='T2'!M162 -> 0 | AD162: =T3_R1!N162 -> 0 | AE162: =T3_R2!N162 -> 0 | AI162: ='MDA1'!E162 -> 0 | AJ162: =T3_R1!F162 -> 0 | AK162: =T3_R2!F162 -> 0 | AL162: ='T2'!E162 -> 0
A163: =IF(INTRO!$E$34<>0,INTRO!$E$34,"") -> Nigeria | B163: Borno | C163: Kaga | D163: 126946.3848 | E163: =IF(INTRO!$E$48="","",ROUND($D163*INTRO!$E$48,0)) -> 20311 | F163: =IF(INTRO!$E$49="","",ROUND($D163*INTRO!$E$49,0)) -> 35545 | G163: =IF(INTRO!$E$50="","",ROUND($D163*INTRO!$E$50,0)) -> 66012 | H163: 0 | I163: 4 | J163: 1 | K163: 2 | L163: 4 | M163: =IF(INTRO!$E$38="Endemic", IF($H163>0, IF($H163=4,"Unknown", IF($H163=99,"Stopped", $D163)), 0),"Not required") -> 0 | N163: 0 | O163: =IF(INTRO!$E$42="Endemic", IF(AND($J163>1,$J163<5), IF($J163=4, "Unknown", E163+F163), 0),"Not required") -> 0 | P163: =IF(INTRO!$E$44="Endemic", IF(AND($K163>0,$K163<5), IF($K163=4,"Unknown", IF($K163=1, $F163*0.33, IF($K163=2, $F163*0.5+$G163*0.2, SUM(F163:G163)))), 0),"Not required") -> 30974.9 | Q163: 0 | R163: 0 | S163: 0 | T163: 0 | W163: 36491 | X163: Kaga | AA163: ='MDA1'!M163 -> 0 | AB163: ='MDA3'!Q163 -> 0 | AC163: ='T2'!M163 -> 0 | AD163: =T3_R1!N163 -> 0 | AE163: =T3_R2!N163 -> 0 | AI163: ='MDA1'!E163 -> 0 | AJ163: =T3_R1!F163 -> 0 | AK163: =T3_R2!F163 -> 0 | AL163: ='T2'!E163 -> 0
A164: =IF(INTRO!$E$34<>0,INTRO!$E$34,"") -> Nigeria | B164: Borno | C164: Kala Balge | D164: 85740.81381 | E164: =IF(INTRO!$E$48="","",ROUND($D164*INTRO!$E$48,0)) -> 13719 | F164: =IF(INTRO!$E$49="","",ROUND($D164*INTRO!$E$49,0)) -> 24007 | G164: =IF(INTRO!$E$50="","",ROUND($D164*INTRO!$E$50,0)) -> 44585 | H164: 0 | I164: 1 | J164: 0 | K164: 2 | L164: 4 | M164: =IF(INTRO!$E$38="Endemic", IF($H164>0, IF($H164=4,"Unknown", IF($H164=99,"Stopped", $D164)), 0),"Not required") -> 0 | N164: 85875 | O164: =IF(INTRO!$E$42="Endemic", IF(AND($J164>1,$J164<5), IF($J164=4, "Unknown", E164+F164), 0),"Not required") -> 0 | P164: =IF(INTRO!$E$44="Endemic", IF(AND($K164>0,$K164<5), IF($K164=4,"Unknown", IF($K164=1, $F164*0.33, IF($K164=2, $F164*0.5+$G164*0.2, SUM(F164:G164)))), 0),"Not required") -> 20920.5 | Q164: 0 | R164: 0 | S164: 0 | T164: 0 | W164: 36492 | X164: Kala Balge | AA164: ='MDA1'!M164 -> 0 | AB164: ='MDA3'!Q164 -> 0 | AC164: ='T2'!M164 -> 0 | AD164: =T3_R1!N164 -> 0 | AE164: =T3_R2!N164 -> 0 | AI164: ='MDA1'!E164 -> 0 | AJ164: =T3_R1!F164 -> 0 | AK164: =T3_R2!F164 -> 0 | AL164: ='T2'!E164 -> 0
A165: =IF(INTRO!$E$34<>0,INTRO!$E$34,"") -> Nigeria | B165: Borno | C165: Konduga | D165: 220799.1311 | E165: =IF(INTRO!$E$48="","",ROUND($D165*INTRO!$E$48,0)) -> 35328 | F165: =IF(INTRO!$E$49="","",ROUND($D165*INTRO!$E$49,0)) -> 61824 | G165: =IF(INTRO!$E$50="","",ROUND($D165*INTRO!$E$50,0)) -> 114816 | H165: 0 | I165: 4 | J165: 0 | K165: 2 | L165: 4 | M165: =IF(INTRO!$E$38="Endemic", IF($H165>0, IF($H165=4,"Unknown", IF($H165=99,"Stopped", $D165)), 0),"Not required") -> 0 | N165: 0 | O165: =IF(INTRO!$E$42="Endemic", IF(AND($J165>1,$J165<5), IF($J165=4, "Unknown", E165+F165), 0),"Not required") -> 0 | P165: =IF(INTRO!$E$44="Endemic", IF(AND($K165>0,$K165<5), IF($K165=4,"Unknown", IF($K165=1, $F165*0.33, IF($K165=2, $F165*0.5+$G165*0.2, SUM(F165:G165)))), 0),"Not required") -> 53875.2 | Q165: 0 | R165: 0 | S165: 0 | T165: 0 | W165: 36493 | X165: Konduga | AA165: ='MDA1'!M165 -> 0 | AB165: ='MDA3'!Q165 -> 0 | AC165: ='T2'!M165 -> 0 | AD165: =T3_R1!N165 -> 0 | AE165: =T3_R2!N165 -> 0 | AI165: ='MDA1'!E165 -> 0 | AJ165: =T3_R1!F165 -> 0 | AK165: =T3_R2!F165 -> 0 | AL165: ='T2'!E165 -> 0
A166: =IF(INTRO!$E$34<>0,INTRO!$E$34,"") -> Nigeria | B166: Borno | C166: Kukawa | D166: 287505.3912 | E166: =IF(INTRO!$E$48="","",ROUND($D166*INTRO!$E$48,0)) -> 46001 | F166: =IF(INTRO!$E$49="","",ROUND($D166*INTRO!$E$49,0)) -> 80502 | G166: =IF(INTRO!$E$50="","",ROUND($D166*INTRO!$E$50,0)) -> 149503 | H166: 0 | I166: 4 | J166: 1 | K166: 2 | L166: 4 | M166: =IF(INTRO!$E$38="Endemic", IF($H166>0, IF($H166=4,"Unknown", IF($H166=99,"Stopped", $D166)), 0),"Not required") -> 0 | N166: 0 | O166: =IF(INTRO!$E$42="Endemic", IF(AND($J166>1,$J166<5), IF($J166=4, "Unknown", E166+F166), 0),"Not required") -> 0 | P166: =IF(INTRO!$E$44="Endemic", IF(AND($K166>0,$K166<5), IF($K166=4,"Unknown", IF($K166=1, $F166*0.33, IF($K166=2, $F166*0.5+$G166*0.2, SUM(F166:G166)))), 0),"Not required") -> 70151.6 | Q166: 0 | R166: 0 | S166: 0 | T166: 0 | W166: 36494 | X166: Kukawa | AA166: ='MDA1'!M166 -> 0 | AB166: ='MDA3'!Q166 -> 0 | AC166: ='T2'!M166 -> 0 | AD166: =T3_R1!N166 -> 0 | AE166: =T3_R2!N166 -> 0 | AI166: ='MDA1'!E166 -> 0 | AJ166: =T3_R1!F166 -> 0 | AK166: =T3_R2!F166 -> 0 | AL166: ='T2'!E166 -> 0
A167: =IF(INTRO!$E$34<>0,INTRO!$E$34,"") -> Nigeria | B167: Borno | C167: Kwaya Kusar | D167: 79680.83919 | E167: =IF(INTRO!$E$48="","",ROUND($D167*INTRO!$E$48,0)) -> 12749 | F167: =IF(INTRO!$E$49="","",ROUND($D167*INTRO!$E$49,0)) -> 22311 | G167: =IF(INTRO!$E$50="","",ROUND($D167*INTRO!$E$50,0)) -> 41434 | H167: 1 | I167: 1 | J167: 1 | K167: 1 | L167: 4 | M167: =IF(INTRO!$E$38="Endemic", IF($H167>0, IF($H167=4,"Unknown", IF($H167=99,"Stopped", $D167)), 0),"Not required") -> 79680.83919 | N167: 79805 | O167: =IF(INTRO!$E$42="Endemic", IF(AND($J167>1,$J167<5), IF($J167=4, "Unknown", E167+F167), 0),"Not required") -> 0 | P167: =IF(INTRO!$E$44="Endemic", IF(AND($K167>0,$K167<5), IF($K167=4,"Unknown", IF($K167=1, $F167*0.33, IF($K167=2, $F167*0.5+$G167*0.2, SUM(F167:G167)))), 0),"Not required") -> 7362.63 | Q167: 0 | R167: 0 | S167: 0 | T167: 0 | W167: 36495 | X167: Kwaya Kusar | AA167: ='MDA1'!M167 -> 0 | AB167: ='MDA3'!Q167 -> 0 | AC167: ='T2'!M167 -> 0 | AD167: =T3_R1!N167 -> 0 | AE167: =T3_R2!N167 -> 0 | AI167: ='MDA1'!E167 -> 0 | AJ167: =T3_R1!F167 -> 0 | AK167: =T3_R2!F167 -> 0 | AL167: ='T2'!E167 -> 0
A168: =IF(INTRO!$E$34<>0,INTRO!$E$34,"") -> Nigeria | B168: Borno | C168: Mafa | D168: 145989.4002 | E168: =IF(INTRO!$E$48="","",ROUND($D168*INTRO!$E$48,0)) -> 23358 | F168: =IF(INTRO!$E$49="","",ROUND($D168*INTRO!$E$49,0)) -> 40877 | G168: =IF(INTRO!$E$50="","",ROUND($D168*INTRO!$E$50,0)) -> 75914 | H168: 0 | I168: 4 | J168: 1 | K168: 2 | L168: 4 | M168: =IF(INTRO!$E$38="Endemic", IF($H168>0, IF($H168=4,"Unknown", IF($H168=99,"Stopped", $D168)), 0),"Not required") -> 0 | N168: 0 | O168: =IF(INTRO!$E$42="Endemic", IF(AND($J168>1,$J168<5), IF($J168=4, "Unknown", E168+F168), 0),"Not required") -> 0 | P168: =IF(INTRO!$E$44="Endemic", IF(AND($K168>0,$K168<5), IF($K168=4,"Unknown", IF($K168=1, $F168*0.33, IF($K168=2, $F168*0.5+$G168*0.2, SUM(F168:G168)))), 0),"Not required") -> 35621.3 | Q168: 0 | R168: 0 | S168: 0 | T168: 0 | W168: 36496 | X168: Mafa | AA168: ='MDA1'!M168 -> 0 | AB168: ='MDA3'!Q168 -> 0 | AC168: ='T2'!M168 -> 0 | AD168: =T3_R1!N168 -> 0 | AE168: =T3_R2!N168 -> 0 | AI168: ='MDA1'!E168 -> 0 | AJ168: =T3_R1!F168 -> 0 | AK168: =T3_R2!F168 -> 0 | AL168: ='T2'!E168 -> 0
A169: =IF(INTRO!$E$34<>0,INTRO!$E$34,"") -> Nigeria | B169: Borno | C169: Magumeri | D169: 197765.0223 | E169: =IF(INTRO!$E$48="","",ROUND($D169*INTRO!$E$48,0)) -> 31642 | F169: =IF(INTRO!$E$49="","",ROUND($D169*INTRO!$E$49,0)) -> 55374 | G169: =IF(INTRO!$E$50="","",ROUND($D169*INTRO!$E$50,0)) -> 102838 | H169: 1 | I169: 4 | J169: 0 | K169: 1 | L169: 4 | M169: =IF(INTRO!$E$38="Endemic", IF($H169>0, IF($H169=4,"Unknown", IF($H169=99,"Stopped", $D169)), 0),"Not required") -> 197765.0223 | N169: 0 | O169: =IF(INTRO!$E$42="Endemic", IF(AND($J169>1,$J169<5), IF($J169=4, "Unknown", E169+F169), 0),"Not required") -> 0 | P169: =IF(INTRO!$E$44="Endemic", IF(AND($K169>0,$K169<5), IF($K169=4,"Unknown", IF($K169=1, $F169*0.33, IF($K169=2, $F169*0.5+$G169*0.2, SUM(F169:G169)))), 0),"Not required") -> 18273.42 | Q169: 1 | R169: 0 | S169: 0 | T169: 0 | U169: MDA1 (IVM+ALB) | W169: 36497 | X169: Magumeri | AA169: ='MDA1'!M169 -> 19036 | AB169: ='MDA3'!Q169 -> 0 | AC169: ='T2'!M169 -> 0 | AD169: =T3_R1!N169 -> 0 | AE169: =T3_R2!N169 -> 0 | AI169: ='MDA1'!E169 -> Feb 2020 | AJ169: =T3_R1!F169 -> 0 | AK169: =T3_R2!F169 -> 0 | AL169: ='T2'!E169 -> 0
A170: =IF(INTRO!$E$34<>0,INTRO!$E$34,"") -> Nigeria | B170: Borno | C170: Maiduguri | D170: 735449.9149 | E170: =IF(INTRO!$E$48="","",ROUND($D170*INTRO!$E$48,0)) -> 117672 | F170: =IF(INTRO!$E$49="","",ROUND($D170*INTRO!$E$49,0)) -> 205926 | G170: =IF(INTRO!$E$50="","",ROUND($D170*INTRO!$E$50,0)) -> 382434 | H170: 1 | I170: 4 | J170: 0 | K170: 3 | L170: 4 | M170: =IF(INTRO!$E$38="Endemic", IF($H170>0, IF($H170=4,"Unknown", IF($H170=99,"Stopped", $D170)), 0),"Not required") -> 735449.9149 | N170: 0 | O170: =IF(INTRO!$E$42="Endemic", IF(AND($J170>1,$J170<5), IF($J170=4, "Unknown", E170+F170), 0),"Not required") -> 0 | P170: =IF(INTRO!$E$44="Endemic", IF(AND($K170>0,$K170<5), IF($K170=4,"Unknown", IF($K170=1, $F170*0.33, IF($K170=2, $F170*0.5+$G170*0.2, SUM(F170:G170)))), 0),"Not required") -> 588360 | Q170: 1 | R170: 0 | S170: 0 | T170: 0 | U170: MDA1 (IVM+ALB) | W170: 36498 | X170: Maiduguri | AA170: ='MDA1'!M170 -> 35067 | AB170: ='MDA3'!Q170 -> 0 | AC170: ='T2'!M170 -> 0 | AD170: =T3_R1!N170 -> 0 | AE170: =T3_R2!N170 -> 0 | AI170: ='MDA1'!E170 -> Feb 2020 | AJ170: =T3_R1!F170 -> 0 | AK170: =T3_R2!F170 -> 0 | AL170: ='T2'!E170 -> 0
A171: =IF(INTRO!$E$34<>0,INTRO!$E$34,"") -> Nigeria | B171: Borno | C171: Marte | D171: 182447.9675 | E171: =IF(INTRO!$E$48="","",ROUND($D171*INTRO!$E$48,0)) -> 29192 | F171: =IF(INTRO!$E$49="","",ROUND($D171*INTRO!$E$49,0)) -> 51085 | G171: =IF(INTRO!$E$50="","",ROUND($D171*INTRO!$E$50,0)) -> 94873 | H171: 0 | I171: 4 | J171: 1 | K171: 2 | L171: 4 | M171: =IF(INTRO!$E$38="Endemic", IF($H171>0, IF($H171=4,"Unknown", IF($H171=99,"Stopped", $D171)), 0),"Not required") -> 0 | N171: 0 | O171: =IF(INTRO!$E$42="Endemic", IF(AND($J171>1,$J171<5), IF($J171=4, "Unknown", E171+F171), 0),"Not required") -> 0 | P171: =IF(INTRO!$E$44="Endemic", IF(AND($K171>0,$K171<5), IF($K171=4,"Unknown", IF($K171=1, $F171*0.33, IF($K171=2, $F171*0.5+$G171*0.2, SUM(F171:G171)))), 0),"Not required") -> 44517.1 | Q171: 0 | R171: 0 | S171: 0 | T171: 0 | W171: 36499 | X171: Marte | AA171: ='MDA1'!M171 -> 0 | AB171: ='MDA3'!Q171 -> 0 | AC171: ='T2'!M171 -> 0 | AD171: =T3_R1!N171 -> 0 | AE171: =T3_R2!N171 -> 0 | AI171: ='MDA1'!E171 -> 0 | AJ171: =T3_R1!F171 -> 0 | AK171: =T3_R2!F171 -> 0 | AL171: ='T2'!E171 -> 0
A172: =IF(INTRO!$E$34<>0,INTRO!$E$34,"") -> Nigeria | B172: Borno | C172: Mobbar | D172: 164514.8427 | E172: =IF(INTRO!$E$48="","",ROUND($D172*INTRO!$E$48,0)) -> 26322 | F172: =IF(INTRO!$E$49="","",ROUND($D172*INTRO!$E$49,0)) -> 46064 | G172: =IF(INTRO!$E$50="","",ROUND($D172*INTRO!$E$50,0)) -> 85548 | H172: 1 | I172: 1 | J172: 0 | K172: 2 | L172: 4 | M172: =IF(INTRO!$E$38="Endemic", IF($H172>0, IF($H172=4,"Unknown", IF($H172=99,"Stopped", $D172)), 0),"Not required") -> 164514.8427 | N172: 76504 | O172: =IF(INTRO!$E$42="Endemic", IF(AND($J172>1,$J172<5), IF($J172=4, "Unknown", E172+F172), 0),"Not required") -> 0 | P172: =IF(INTRO!$E$44="Endemic", IF(AND($K172>0,$K172<5), IF($K172=4,"Unknown", IF($K172=1, $F172*0.33, IF($K172=2, $F172*0.5+$G172*0.2, SUM(F172:G172)))), 0),"Not required") -> 40141.6 | Q172: 1 | R172: 1 | S172: 0 | T172: 0 | U172: MDA1 (IVM+ALB) | W172: 36500 | X172: Mobbar | AA172: ='MDA1'!M172 -> 9000 | AB172: ='MDA3'!Q172 -> 0 | AC172: ='T2'!M172 -> 0 | AD172: =T3_R1!N172 -> 0 | AE172: =T3_R2!N172 -> 0 | AI172: ='MDA1'!E172 -> Feb 2020 | AJ172: =T3_R1!F172 -> 0 | AK172: =T3_R2!F172 -> 0 | AL172: ='T2'!E172 -> 0
A173: =IF(INTRO!$E$34<>0,INTRO!$E$34,"") -> Nigeria | B173: Borno | C173: Monguno | D173: 154920.7056 | E173: =IF(INTRO!$E$48="","",ROUND($D173*INTRO!$E$48,0)) -> 24787 | F173: =IF(INTRO!$E$49="","",ROUND($D173*INTRO!$E$49,0)) -> 43378 | G173: =IF(INTRO!$E$50="","",ROUND($D173*INTRO!$E$50,0)) -> 80559 | H173: 1 | I173: 4 | J173: 1 | K173: 2 | L173: 4 | M173: =IF(INTRO!$E$38="Endemic", IF($H173>0, IF($H173=4,"Unknown", IF($H173=99,"Stopped", $D173)), 0),"Not required") -> 154920.7056 | N173: 0 | O173: =IF(INTRO!$E$42="Endemic", IF(AND($J173>1,$J173<5), IF($J173=4, "Unknown", E173+F173), 0),"Not required") -> 0 | P173: =IF(INTRO!$E$44="Endemic", IF(AND($K173>0,$K173<5), IF($K173=4,"Unknown", IF($K173=1, $F173*0.33, IF($K173=2, $F173*0.5+$G173*0.2, SUM(F173:G173)))), 0),"Not required") -> 37800.8 | Q173: 0 | R173: 0 | S173: 0 | T173: 0 | W173: 36501 | X173: Monguno | AA173: ='MDA1'!M173 -> 0 | AB173: ='MDA3'!Q173 -> 0 | AC173: ='T2'!M173 -> 0 | AD173: =T3_R1!N173 -> 0 | AE173: =T3_R2!N173 -> 0 | AI173: ='MDA1'!E173 -> 0 | AJ173: =T3_R1!F173 -> 0 | AK173: =T3_R2!F173 -> 0 | AL173: ='T2'!E173 -> 0
A174: =IF(INTRO!$E$34<>0,INTRO!$E$34,"") -> Nigeria | B174: Borno | C174: Ngala | D174: 334336.5704 | E174: =IF(INTRO!$E$48="","",ROUND($D174*INTRO!$E$48,0)) -> 53494 | F174: =IF(INTRO!$E$49="","",ROUND($D174*INTRO!$E$49,0)) -> 93614 | G174: =IF(INTRO!$E$50="","",ROUND($D174*INTRO!$E$50,0)) -> 173855 | H174: 1 | I174: 4 | J174: 1 | K174: 2 | L174: 4 | M174: =IF(INTRO!$E$38="Endemic", IF($H174>0, IF($H174=4,"Unknown", IF($H174=99,"Stopped", $D174)), 0),"Not required") -> 334336.5704 | N174: 0 | O174: =IF(INTRO!$E$42="Endemic", IF(AND($J174>1,$J174<5), IF($J174=4, "Unknown", E174+F174), 0),"Not required") -> 0 | P174: =IF(INTRO!$E$44="Endemic", IF(AND($K174>0,$K174<5), IF($K174=4,"Unknown", IF($K174=1, $F174*0.33, IF($K174=2, $F174*0.5+$G174*0.2, SUM(F174:G174)))), 0),"Not required") -> 81578 | Q174: 0 | R174: 0 | S174: 0 | T174: 0 | W174: 36502 | X174: Ngala | AA174: ='MDA1'!M174 -> 0 | AB174: ='MDA3'!Q174 -> 0 | AC174: ='T2'!M174 -> 0 | AD174: =T3_R1!N174 -> 0 | AE174: =T3_R2!N174 -> 0 | AI174: ='MDA1'!E174 -> 0 | AJ174: =T3_R1!F174 -> 0 | AK174: =T3_R2!F174 -> 0 | AL174: ='T2'!E174 -> 0
A175: =IF(INTRO!$E$34<>0,INTRO!$E$34,"") -> Nigeria | B175: Borno | C175: Nganzai | D175: 140744.5676 | E175: =IF(INTRO!$E$48="","",ROUND($D175*INTRO!$E$48,0)) -> 22519 | F175: =IF(INTRO!$E$49="","",ROUND($D175*INTRO!$E$49,0)) -> 39408 | G175: =IF(INTRO!$E$50="","",ROUND($D175*INTRO!$E$50,0)) -> 73187 | H175: 0 | I175: 4 | J175: 1 | K175: 2 | L175: 4 | M175: =IF(INTRO!$E$38="Endemic", IF($H175>0, IF($H175=4,"Unknown", IF($H175=99,"Stopped", $D175)), 0),"Not required") -> 0 | N175: 0 | O175: =IF(INTRO!$E$42="Endemic", IF(AND($J175>1,$J175<5), IF($J175=4, "Unknown", E175+F175), 0),"Not required") -> 0 | P175: =IF(INTRO!$E$44="Endemic", IF(AND($K175>0,$K175<5), IF($K175=4,"Unknown", IF($K175=1, $F175*0.33, IF($K175=2, $F175*0.5+$G175*0.2, SUM(F175:G175)))), 0),"Not required") -> 34341.4 | Q175: 1 | R175: 0 | S175: 0 | T175: 0 | U175: MDA1 (IVM+ALB) | W175: 36503 | X175: Nganzai | AA175: ='MDA1'!M175 -> 40000 | AB175: ='MDA3'!Q175 -> 0 | AC175: ='T2'!M175 -> 0 | AD175: =T3_R1!N175 -> 0 | AE175: =T3_R2!N175 -> 0 | AI175: ='MDA1'!E175 -> Feb 2020 | AJ175: =T3_R1!F175 -> 0 | AK175: =T3_R2!F175 -> 0 | AL175: ='T2'!E175 -> 0
A176: =IF(INTRO!$E$34<>0,INTRO!$E$34,"") -> Nigeria | B176: Borno | C176: Shani | D176: 144295.6535 | E176: =IF(INTRO!$E$48="","",ROUND($D176*INTRO!$E$48,0)) -> 23087 | F176: =IF(INTRO!$E$49="","",ROUND($D176*INTRO!$E$49,0)) -> 40403 | G176: =IF(INTRO!$E$50="","",ROUND($D176*INTRO!$E$50,0)) -> 75034 | H176: 1 | I176: 1 | J176: 1 | K176: 2 | L176: 4 | M176: =IF(INTRO!$E$38="Endemic", IF($H176>0, IF($H176=4,"Unknown", IF($H176=99,"Stopped", $D176)), 0),"Not required") -> 144295.6535 | N176: 144521 | O176: =IF(INTRO!$E$42="Endemic", IF(AND($J176>1,$J176<5), IF($J176=4, "Unknown", E176+F176), 0),"Not required") -> 0 | P176: =IF(INTRO!$E$44="Endemic", IF(AND($K176>0,$K176<5), IF($K176=4,"Unknown", IF($K176=1, $F176*0.33, IF($K176=2, $F176*0.5+$G176*0.2, SUM(F176:G176)))), 0),"Not required") -> 35208.3 | Q176: 0 | R176: 0 | S176: 0 | T176: 0 | W176: 36504 | X176: Shani | AA176: ='MDA1'!M176 -> 0 | AB176: ='MDA3'!Q176 -> 0 | AC176: ='T2'!M176 -> 0 | AD176: =T3_R1!N176 -> 0 | AE176: =T3_R2!N176 -> 0 | AI176: ='MDA1'!E176 -> 0 | AJ176: =T3_R1!F176 -> 0 | AK176: =T3_R2!F176 -> 0 | AL176: ='T2'!E176 -> 0
A177: =IF(INTRO!$E$34<>0,INTRO!$E$34,"") -> Nigeria | B177: Cross River | C177: Abi | D177: 204211.4137 | E177: =IF(INTRO!$E$48="","",ROUND($D177*INTRO!$E$48,0)) -> 32674 | F177: =IF(INTRO!$E$49="","",ROUND($D177*INTRO!$E$49,0)) -> 57179 | G177: =IF(INTRO!$E$50="","",ROUND($D177*INTRO!$E$50,0)) -> 106190 | H177: 99 | I177: 4 | J177: 1 | K177: 0 | L177: 0 | M177: =IF(INTRO!$E$38="Endemic", IF($H177>0, IF($H177=4,"Unknown", IF($H177=99,"Stopped", $D177)), 0),"Not required") -> Stopped | N177: 0 | O177: =IF(INTRO!$E$42="Endemic", IF(AND($J177>1,$J177<5), IF($J177=4, "Unknown", E177+F177), 0),"Not required") -> 0 | P177: =IF(INTRO!$E$44="Endemic", IF(AND($K177>0,$K177<5), IF($K177=4,"Unknown", IF($K177=1, $F177*0.33, IF($K177=2, $F177*0.5+$G177*0.2, SUM(F177:G177)))), 0),"Not required") -> 0 | Q177: 0 | R177: 0 | S177: 0 | T177: 0 | W177: 36505 | X177: Abi | AA177: ='MDA1'!M177 -> 0 | AB177: ='MDA3'!Q177 -> 0 | AC177: ='T2'!M177 -> 0 | AD177: =T3_R1!N177 -> 0 | AE177: =T3_R2!N177 -> 0 | AI177: ='MDA1'!E177 -> 0 | AJ177: =T3_R1!F177 -> 0 | AK177: =T3_R2!F177 -> 0 | AL177: ='T2'!E177 -> 0
A178: =IF(INTRO!$E$34<>0,INTRO!$E$34,"") -> Nigeria | B178: Cross River | C178: Akamkpa | D178: 213128.6163 | E178: =IF(INTRO!$E$48="","",ROUND($D178*INTRO!$E$48,0)) -> 34101 | F178: =IF(INTRO!$E$49="","",ROUND($D178*INTRO!$E$49,0)) -> 59676 | G178: =IF(INTRO!$E$50="","",ROUND($D178*INTRO!$E$50,0)) -> 110827 | H178: 99 | I178: 1 | J178: 2 | K178: 0 | L178: 0 | M178: =IF(INTRO!$E$38="Endemic", IF($H178>0, IF($H178=4,"Unknown", IF($H178=99,"Stopped", $D178)), 0),"Not required") -> Stopped | N178: 173223 | O178: =IF(INTRO!$E$42="Endemic", IF(AND($J178>1,$J178<5), IF($J178=4, "Unknown", E178+F178), 0),"Not required") -> 93777 | P178: =IF(INTRO!$E$44="Endemic", IF(AND($K178>0,$K178<5), IF($K178=4,"Unknown", IF($K178=1, $F178*0.33, IF($K178=2, $F178*0.5+$G178*0.2, SUM(F178:G178)))), 0),"Not required") -> 0 | Q178: 0 | R178: 1 | S178: 1 | T178: 0 | U178: MDA3 (IVM) | V178: T3 (ALB/MBD) | W178: 36506 | X178: Akamkpa | AA178: ='MDA1'!M178 -> 0 | AB178: ='MDA3'!Q178 -> 182941 | AC178: ='T2'!M178 -> 0 | AD178: =T3_R1!N178 -> 45194 | AE178: =T3_R2!N178 -> 0 | AI178: ='MDA1'!E178 -> 0 | AJ178: =T3_R1!F178 -> Dec 2020 | AK178: =T3_R2!F178 -> 0 | AL178: ='T2'!E178 -> 0
A179: =IF(INTRO!$E$34<>0,INTRO!$E$34,"") -> Nigeria | B179: Cross River | C179: Akpabuyo | D179: 382743.0328 | E179: =IF(INTRO!$E$48="","",ROUND($D179*INTRO!$E$48,0)) -> 61239 | F179: =IF(INTRO!$E$49="","",ROUND($D179*INTRO!$E$49,0)) -> 107168 | G179: =IF(INTRO!$E$50="","",ROUND($D179*INTRO!$E$50,0)) -> 199026 | H179: 0 | I179: 1 | J179: 2 | K179: 0 | L179: 4 | M179: =IF(INTRO!$E$38="Endemic", IF($H179>0, IF($H179=4,"Unknown", IF($H179=99,"Stopped", $D179)), 0),"Not required") -> 0 | N179: 73754 | O179: =IF(INTRO!$E$42="Endemic", IF(AND($J179>1,$J179<5), IF($J179=4, "Unknown", E179+F179), 0),"Not required") -> 168407 | P179: =IF(INTRO!$E$44="Endemic", IF(AND($K179>0,$K179<5), IF($K179=4,"Unknown", IF($K179=1, $F179*0.33, IF($K179=2, $F179*0.5+$G179*0.2, SUM(F179:G179)))), 0),"Not required") -> 0 | Q179: 0 | R179: 1 | S179: 1 | T179: 0 | U179: MDA3 (IVM) | V179: T3 (ALB/MBD) | W179: 36507 | X179: Akpabuyo | AA179: ='MDA1'!M179 -> 0 | AB179: ='MDA3'!Q179 -> 311655 | AC179: ='T2'!M179 -> 0 | AD179: =T3_R1!N179 -> 81934 | AE179: =T3_R2!N179 -> 0 | AI179: ='MDA1'!E179 -> 0 | AJ179: =T3_R1!F179 -> Dec 2020 | AK179: =T3_R2!F179 -> 0 | AL179: ='T2'!E179 -> 0
A180: =IF(INTRO!$E$34<>0,INTRO!$E$34,"") -> Nigeria | B180: Cross River | C180: Bakasi | D180: 45671.9288 | E180: =IF(INTRO!$E$48="","",ROUND($D180*INTRO!$E$48,0)) -> 7308 | F180: =IF(INTRO!$E$49="","",ROUND($D180*INTRO!$E$49,0)) -> 12788 | G180: =IF(INTRO!$E$50="","",ROUND($D180*INTRO!$E$50,0)) -> 23749 | H180: 0 | I180: 1 | J180: 2 | K180: 0 | L180: 4 | M180: =IF(INTRO!$E$38="Endemic", IF($H180>0, IF($H180=4,"Unknown", IF($H180=99,"Stopped", $D180)), 0),"Not required") -> 0 | N180: 45743 | O180: =IF(INTRO!$E$42="Endemic", IF(AND($J180>1,$J180<5), IF($J180=4, "Unknown", E180+F180), 0),"Not required") -> 20096 | P180: =IF(INTRO!$E$44="Endemic", IF(AND($K180>0,$K180<5), IF($K180=4,"Unknown", IF($K180=1, $F180*0.33, IF($K180=2, $F180*0.5+$G180*0.2, SUM(F180:G180)))), 0),"Not required") -> 0 | Q180: 0 | R180: 1 | S180: 1 | T180: 0 | U180: MDA3 (IVM) | V180: T3 (ALB/MBD) | W180: 36508 | X180: Bakasi | AA180: ='MDA1'!M180 -> 0 | AB180: ='MDA3'!Q180 -> 38048 | AC180: ='T2'!M180 -> 0 | AD180: =T3_R1!N180 -> 9883 | AE180: =T3_R2!N180 -> 0 | AI180: ='MDA1'!E180 -> 0 | AJ180: =T3_R1!F180 -> Dec 2020 | AK180: =T3_R2!F180 -> 0 | AL180: ='T2'!E180 -> 0
A181: =IF(INTRO!$E$34<>0,INTRO!$E$34,"") -> Nigeria | B181: Cross River | C181: Bekwara | D181: 149238.6861 | E181: =IF(INTRO!$E$48="","",ROUND($D181*INTRO!$E$48,0)) -> 23878 | F181: =IF(INTRO!$E$49="","",ROUND($D181*INTRO!$E$49,0)) -> 41787 | G181: =IF(INTRO!$E$50="","",ROUND($D181*INTRO!$E$50,0)) -> 77604 | H181: 1 | I181: 1 | J181: 1 | K181: 2 | L181: 4 | M181: =IF(INTRO!$E$38="Endemic", IF($H181>0, IF($H181=4,"Unknown", IF($H181=99,"Stopped", $D181)), 0),"Not required") -> 149238.6861 | N181: 110307 | O181: =IF(INTRO!$E$42="Endemic", IF(AND($J181>1,$J181<5), IF($J181=4, "Unknown", E181+F181), 0),"Not required") -> 0 | P181: =IF(INTRO!$E$44="Endemic", IF(AND($K181>0,$K181<5), IF($K181=4,"Unknown", IF($K181=1, $F181*0.33, IF($K181=2, $F181*0.5+$G181*0.2, SUM(F181:G181)))), 0),"Not required") -> 36414.3 | Q181: 0 | R181: 0 | S181: 0 | T181: 1 | W181: 36509 | X181: Bekwara | AA181: ='MDA1'!M181 -> 0 | AB181: ='MDA3'!Q181 -> 0 | AC181: ='T2'!M181 -> 38943 | AD181: =T3_R1!N181 -> 0 | AE181: =T3_R2!N181 -> 0 | AI181: ='MDA1'!E181 -> 0 | AJ181: =T3_R1!F181 -> 0 | AK181: =T3_R2!F181 -> 0 | AL181: ='T2'!E181 -> Dec 2020
A182: =IF(INTRO!$E$34<>0,INTRO!$E$34,"") -> Nigeria | B182: Cross River | C182: Biase | D182: 238595.4587 | E182: =IF(INTRO!$E$48="","",ROUND($D182*INTRO!$E$48,0)) -> 38175 | F182: =IF(INTRO!$E$49="","",ROUND($D182*INTRO!$E$49,0)) -> 66807 | G182: =IF(INTRO!$E$50="","",ROUND($D182*INTRO!$E$50,0)) -> 124070 | H182: 99 | I182: 1 | J182: 2 | K182: 0 | L182: 0 | M182: =IF(INTRO!$E$38="Endemic", IF($H182>0, IF($H182=4,"Unknown", IF($H182=99,"Stopped", $D182)), 0),"Not required") -> Stopped | N182: 106535 | O182: =IF(INTRO!$E$42="Endemic", IF(AND($J182>1,$J182<5), IF($J182=4, "Unknown", E182+F182), 0),"Not required") -> 104982 | P182: =IF(INTRO!$E$44="Endemic", IF(AND($K182>0,$K182<5), IF($K182=4,"Unknown", IF($K182=1, $F182*0.33, IF($K182=2, $F182*0.5+$G182*0.2, SUM(F182:G182)))), 0),"Not required") -> 0 | Q182: 0 | R182: 1 | S182: 1 | T182: 0 | U182: MDA3 (IVM) | V182: T3 (ALB/MBD) | W182: 36510 | X182: Biase | AA182: ='MDA1'!M182 -> 0 | AB182: ='MDA3'!Q182 -> 190460 | AC182: ='T2'!M182 -> 0 | AD182: =T3_R1!N182 -> 50968 | AE182: =T3_R2!N182 -> 0 | AI182: ='MDA1'!E182 -> 0 | AJ182: =T3_R1!F182 -> Dec 2020 | AK182: =T3_R2!F182 -> 0 | AL182: ='T2'!E182 -> 0
A183: =IF(INTRO!$E$34<>0,INTRO!$E$34,"") -> Nigeria | B183: Cross River | C183: Boki | D183: 262510.9927 | E183: =IF(INTRO!$E$48="","",ROUND($D183*INTRO!$E$48,0)) -> 42002 | F183: =IF(INTRO!$E$49="","",ROUND($D183*INTRO!$E$49,0)) -> 73503 | G183: =IF(INTRO!$E$50="","",ROUND($D183*INTRO!$E$50,0)) -> 136506 | H183: 99 | I183: 1 | J183: 1 | K183: 1 | L183: 4 | M183: =IF(INTRO!$E$38="Endemic", IF($H183>0, IF($H183=4,"Unknown", IF($H183=99,"Stopped", $D183)), 0),"Not required") -> Stopped | N183: 262921 | O183: =IF(INTRO!$E$42="Endemic", IF(AND($J183>1,$J183<5), IF($J183=4, "Unknown", E183+F183), 0),"Not required") -> 0 | P183: =IF(INTRO!$E$44="Endemic", IF(AND($K183>0,$K183<5), IF($K183=4,"Unknown", IF($K183=1, $F183*0.33, IF($K183=2, $F183*0.5+$G183*0.2, SUM(F183:G183)))), 0),"Not required") -> 24255.99 | Q183: 0 | R183: 1 | S183: 0 | T183: 1 | U183: MDA3 (IVM) | W183: 36511 | X183: Boki | AA183: ='MDA1'!M183 -> 0 | AB183: ='MDA3'!Q183 -> 226184 | AC183: ='T2'!M183 -> 0 | AD183: =T3_R1!N183 -> 0 | AE183: =T3_R2!N183 -> 0 | AI183: ='MDA1'!E183 -> 0 | AJ183: =T3_R1!F183 -> 0 | AK183: =T3_R2!F183 -> 0 | AL183: ='T2'!E183 -> 0
A184: =IF(INTRO!$E$34<>0,INTRO!$E$34,"") -> Nigeria | B184: Cross River | C184: Calabar Municipal | D184: 252993.0107 | E184: =IF(INTRO!$E$48="","",ROUND($D184*INTRO!$E$48,0)) -> 40479 | F184: =IF(INTRO!$E$49="","",ROUND($D184*INTRO!$E$49,0)) -> 70838 | G184: =IF(INTRO!$E$50="","",ROUND($D184*INTRO!$E$50,0)) -> 131556 | H184: 0 | I184: 4 | J184: 2 | K184: 0 | L184: 0 | M184: =IF(INTRO!$E$38="Endemic", IF($H184>0, IF($H184=4,"Unknown", IF($H184=99,"Stopped", $D184)), 0),"Not required") -> 0 | N184: 0 | O184: =IF(INTRO!$E$42="Endemic", IF(AND($J184>1,$J184<5), IF($J184=4, "Unknown", E184+F184), 0),"Not required") -> 111317 | P184: =IF(INTRO!$E$44="Endemic", IF(AND($K184>0,$K184<5), IF($K184=4,"Unknown", IF($K184=1, $F184*0.33, IF($K184=2, $F184*0.5+$G184*0.2, SUM(F184:G184)))), 0),"Not required") -> 0 | Q184: 0 | R184: 0 | S184: 1 | T184: 0 | V184: T3 (ALB/MBD) | W184: 36513 | X184: Calabar Municipal | AA184: ='MDA1'!M184 -> 0 | AB184: ='MDA3'!Q184 -> 0 | AC184: ='T2'!M184 -> 0 | AD184: =T3_R1!N184 -> 57870 | AE184: =T3_R2!N184 -> 0 | AI184: ='MDA1'!E184 -> 0 | AJ184: =T3_R1!F184 -> Dec 2020 | AK184: =T3_R2!F184 -> 0 | AL184: ='T2'!E184 -> 0
A185: =IF(INTRO!$E$34<>0,INTRO!$E$34,"") -> Nigeria | B185: Cross River | C185: Calabar South | D185: 270252.0215 | E185: =IF(INTRO!$E$48="","",ROUND($D185*INTRO!$E$48,0)) -> 43240 | F185: =IF(INTRO!$E$49="","",ROUND($D185*INTRO!$E$49,0)) -> 75671 | G185: =IF(INTRO!$E$50="","",ROUND($D185*INTRO!$E$50,0)) -> 140531 | H185: 1 | I185: 4 | J185: 2 | K185: 0 | L185: 0 | M185: =IF(INTRO!$E$38="Endemic", IF($H185>0, IF($H185=4,"Unknown", IF($H185=99,"Stopped", $D185)), 0),"Not required") -> 270252.0215 | N185: 0 | O185: =IF(INTRO!$E$42="Endemic", IF(AND($J185>1,$J185<5), IF($J185=4, "Unknown", E185+F185), 0),"Not required") -> 118911 | P185: =IF(INTRO!$E$44="Endemic", IF(AND($K185>0,$K185<5), IF($K185=4,"Unknown", IF($K185=1, $F185*0.33, IF($K185=2, $F185*0.5+$G185*0.2, SUM(F185:G185)))), 0),"Not required") -> 0 | Q185: 0 | R185: 0 | S185: 0 | T185: 0 | W185: 36512 | X185: Caabar South | AA185: ='MDA1'!M185 -> 0 | AB185: ='MDA3'!Q185 -> 0 | AC185: ='T2'!M185 -> 0 | AD185: =T3_R1!N185 -> 0 | AE185: =T3_R2!N185 -> 0 | AI185: ='MDA1'!E185 -> 0 | AJ185: =T3_R1!F185 -> 0 | AK185: =T3_R2!F185 -> 0 | AL185: ='T2'!E185 -> 0
A186: =IF(INTRO!$E$34<>0,INTRO!$E$34,"") -> Nigeria | B186: Cross River | C186: Etung | D186: 113098.8421 | E186: =IF(INTRO!$E$48="","",ROUND($D186*INTRO!$E$48,0)) -> 18096 | F186: =IF(INTRO!$E$49="","",ROUND($D186*INTRO!$E$49,0)) -> 31668 | G186: =IF(INTRO!$E$50="","",ROUND($D186*INTRO!$E$50,0)) -> 58811 | H186: 0 | I186: 1 | J186: 2 | K186: 0 | L186: 4 | M186: =IF(INTRO!$E$38="Endemic", IF($H186>0, IF($H186=4,"Unknown", IF($H186=99,"Stopped", $D186)), 0),"Not required") -> 0 | N186: 113276 | O186: =IF(INTRO!$E$42="Endemic", IF(AND($J186>1,$J186<5), IF($J186=4, "Unknown", E186+F186), 0),"Not required") -> 49764 | P186: =IF(INTRO!$E$44="Endemic", IF(AND($K186>0,$K186<5), IF($K186=4,"Unknown", IF($K186=1, $F186*0.33, IF($K186=2, $F186*0.5+$G186*0.2, SUM(F186:G186)))), 0),"Not required") -> 0 | Q186: 0 | R186: 1 | S186: 1 | T186: 0 | U186: MDA3 (IVM) | V186: T3 (ALB/MBD) | W186: 36514 | X186: Etung | AA186: ='MDA1'!M186 -> 0 | AB186: ='MDA3'!Q186 -> 94641 | AC186: ='T2'!M186 -> 0 | AD186: =T3_R1!N186 -> 23772 | AE186: =T3_R2!N186 -> 0 | AI186: ='MDA1'!E186 -> 0 | AJ186: =T3_R1!F186 -> Dec 2020 | AK186: =T3_R2!F186 -> 0 | AL186: ='T2'!E186 -> 0
A187: =IF(INTRO!$E$34<>0,INTRO!$E$34,"") -> Nigeria | B187: Cross River | C187: Ikom | D187: 229005.5524 | E187: =IF(INTRO!$E$48="","",ROUND($D187*INTRO!$E$48,0)) -> 36641 | F187: =IF(INTRO!$E$49="","",ROUND($D187*INTRO!$E$49,0)) -> 64122 | G187: =IF(INTRO!$E$50="","",ROUND($D187*INTRO!$E$50,0)) -> 119083 | H187: 99 | I187: 1 | J187: 1 | K187: 0 | L187: 0 | M187: =IF(INTRO!$E$38="Endemic", IF($H187>0, IF($H187=4,"Unknown", IF($H187=99,"Stopped", $D187)), 0),"Not required") -> Stopped | N187: 130700 | O187: =IF(INTRO!$E$42="Endemic", IF(AND($J187>1,$J187<5), IF($J187=4, "Unknown", E187+F187), 0),"Not required") -> 0 | P187: =IF(INTRO!$E$44="Endemic", IF(AND($K187>0,$K187<5), IF($K187=4,"Unknown", IF($K187=1, $F187*0.33, IF($K187=2, $F187*0.5+$G187*0.2, SUM(F187:G187)))), 0),"Not required") -> 0 | Q187: 0 | R187: 1 | S187: 0 | T187: 0 | U187: MDA3 (IVM) | W187: 36515 | X187: Ikom | AA187: ='MDA1'!M187 -> 0 | AB187: ='MDA3'!Q187 -> 184173 | AC187: ='T2'!M187 -> 0 | AD187: =T3_R1!N187 -> 0 | AE187: =T3_R2!N187 -> 0 | AI187: ='MDA1'!E187 -> 0 | AJ187: =T3_R1!F187 -> 0 | AK187: =T3_R2!F187 -> 0 | AL187: ='T2'!E187 -> 0
A188: =IF(INTRO!$E$34<>0,INTRO!$E$34,"") -> Nigeria | B188: Cross River | C188: Obanliku | D188: 155587.7682 | E188: =IF(INTRO!$E$48="","",ROUND($D188*INTRO!$E$48,0)) -> 24894 | F188: =IF(INTRO!$E$49="","",ROUND($D188*INTRO!$E$49,0)) -> 43565 | G188: =IF(INTRO!$E$50="","",ROUND($D188*INTRO!$E$50,0)) -> 80906 | H188: 0 | I188: 1 | J188: 1 | K188: 2 | L188: 4 | M188: =IF(INTRO!$E$38="Endemic", IF($H188>0, IF($H188=4,"Unknown", IF($H188=99,"Stopped", $D188)), 0),"Not required") -> 0 | N188: 62364 | O188: =IF(INTRO!$E$42="Endemic", IF(AND($J188>1,$J188<5), IF($J188=4, "Unknown", E188+F188), 0),"Not required") -> 0 | P188: =IF(INTRO!$E$44="Endemic", IF(AND($K188>0,$K188<5), IF($K188=4,"Unknown", IF($K188=1, $F188*0.33, IF($K188=2, $F188*0.5+$G188*0.2, SUM(F188:G188)))), 0),"Not required") -> 37963.7 | Q188: 0 | R188: 1 | S188: 0 | T188: 1 | U188: MDA3 (IVM) | W188: 36516 | X188: Obanliku | AA188: ='MDA1'!M188 -> 0 | AB188: ='MDA3'!Q188 -> 131582 | AC188: ='T2'!M188 -> 36548 | AD188: =T3_R1!N188 -> 0 | AE188: =T3_R2!N188 -> 0 | AI188: ='MDA1'!E188 -> 0 | AJ188: =T3_R1!F188 -> 0 | AK188: =T3_R2!F188 -> 0 | AL188: ='T2'!E188 -> Dec 2020
A189: =IF(INTRO!$E$34<>0,INTRO!$E$34,"") -> Nigeria | B189: Cross River | C189: Obubra | D189: 243194.3829 | E189: =IF(INTRO!$E$48="","",ROUND($D189*INTRO!$E$48,0)) -> 38911 | F189: =IF(INTRO!$E$49="","",ROUND($D189*INTRO!$E$49,0)) -> 68094 | G189: =IF(INTRO!$E$50="","",ROUND($D189*INTRO!$E$50,0)) -> 126461 | H189: 99 | I189: 1 | J189: 1 | K189: 0 | L189: 0 | M189: =IF(INTRO!$E$38="Endemic", IF($H189>0, IF($H189=4,"Unknown", IF($H189=99,"Stopped", $D189)), 0),"Not required") -> Stopped | N189: 78581 | O189: =IF(INTRO!$E$42="Endemic", IF(AND($J189>1,$J189<5), IF($J189=4, "Unknown", E189+F189), 0),"Not required") -> 0 | P189: =IF(INTRO!$E$44="Endemic", IF(AND($K189>0,$K189<5), IF($K189=4,"Unknown", IF($K189=1, $F189*0.33, IF($K189=2, $F189*0.5+$G189*0.2, SUM(F189:G189)))), 0),"Not required") -> 0 | Q189: 0 | R189: 1 | S189: 0 | T189: 0 | U189: MDA3 (IVM) | W189: 36517 | X189: Obubra | AA189: ='MDA1'!M189 -> 0 | AB189: ='MDA3'!Q189 -> 200593 | AC189: ='T2'!M189 -> 0 | AD189: =T3_R1!N189 -> 0 | AE189: =T3_R2!N189 -> 0 | AI189: ='MDA1'!E189 -> 0 | AJ189: =T3_R1!F189 -> 0 | AK189: =T3_R2!F189 -> 0 | AL189: ='T2'!E189 -> 0
A190: =IF(INTRO!$E$34<>0,INTRO!$E$34,"") -> Nigeria | B190: Cross River | C190: Obudu | D190: 225794.3441 | E190: =IF(INTRO!$E$48="","",ROUND($D190*INTRO!$E$48,0)) -> 36127 | F190: =IF(INTRO!$E$49="","",ROUND($D190*INTRO!$E$49,0)) -> 63222 | G190: =IF(INTRO!$E$50="","",ROUND($D190*INTRO!$E$50,0)) -> 117413 | H190: 0 | I190: 1 | J190: 1 | K190: 2 | L190: 4 | M190: =IF(INTRO!$E$38="Endemic", IF($H190>0, IF($H190=4,"Unknown", IF($H190=99,"Stopped", $D190)), 0),"Not required") -> 0 | N190: 62130 | O190: =IF(INTRO!$E$42="Endemic", IF(AND($J190>1,$J190<5), IF($J190=4, "Unknown", E190+F190), 0),"Not required") -> 0 | P190: =IF(INTRO!$E$44="Endemic", IF(AND($K190>0,$K190<5), IF($K190=4,"Unknown", IF($K190=1, $F190*0.33, IF($K190=2, $F190*0.5+$G190*0.2, SUM(F190:G190)))), 0),"Not required") -> 55093.6 | Q190: 0 | R190: 1 | S190: 0 | T190: 1 | U190: MDA3 (IVM) | W190: 36518 | X190: Obudu | AA190: ='MDA1'!M190 -> 0 | AB190: ='MDA3'!Q190 -> 209500 | AC190: ='T2'!M190 -> 81039 | AD190: =T3_R1!N190 -> 0 | AE190: =T3_R2!N190 -> 0 | AI190: ='MDA1'!E190 -> 0 | AJ190: =T3_R1!F190 -> 0 | AK190: =T3_R2!F190 -> 0 | AL190: ='T2'!E190 -> Dec 2020
A191: =IF(INTRO!$E$34<>0,INTRO!$E$34,"") -> Nigeria | B191: Cross River | C191: Odukpani | D191: 271399.9897 | E191: =IF(INTRO!$E$48="","",ROUND($D191*INTRO!$E$48,0)) -> 43424 | F191: =IF(INTRO!$E$49="","",ROUND($D191*INTRO!$E$49,0)) -> 75992 | G191: =IF(INTRO!$E$50="","",ROUND($D191*INTRO!$E$50,0)) -> 141128 | H191: 0 | I191: 1 | J191: 3 | K191: 0 | L191: 4 | M191: =IF(INTRO!$E$38="Endemic", IF($H191>0, IF($H191=4,"Unknown", IF($H191=99,"Stopped", $D191)), 0),"Not required") -> 0 | N191: 123057 | O191: =IF(INTRO!$E$42="Endemic", IF(AND($J191>1,$J191<5), IF($J191=4, "Unknown", E191+F191), 0),"Not required") -> 119416 | P191: =IF(INTRO!$E$44="Endemic", IF(AND($K191>0,$K191<5), IF($K191=4,"Unknown", IF($K191=1, $F191*0.33, IF($K191=2, $F191*0.5+$G191*0.2, SUM(F191:G191)))), 0),"Not required") -> 0 | Q191: 0 | R191: 1 | S191: 1 | T191: 0 | U191: MDA3 (IVM) | V191: T3 (ALB/MBD) | W191: 36519 | X191: Odukpani | AA191: ='MDA1'!M191 -> 0 | AB191: ='MDA3'!Q191 -> 272736 | AC191: ='T2'!M191 -> 0 | AD191: =T3_R1!N191 -> 75977 | AE191: =T3_R2!N191 -> 0 | AI191: ='MDA1'!E191 -> 0 | AJ191: =T3_R1!F191 -> Dec 2020 | AK191: =T3_R2!F191 -> 0 | AL191: ='T2'!E191 -> 0
A192: =IF(INTRO!$E$34<>0,INTRO!$E$34,"") -> Nigeria | B192: Cross River | C192: Ogoja | D192: 242428.6007 | E192: =IF(INTRO!$E$48="","",ROUND($D192*INTRO!$E$48,0)) -> 38789 | F192: =IF(INTRO!$E$49="","",ROUND($D192*INTRO!$E$49,0)) -> 67880 | G192: =IF(INTRO!$E$50="","",ROUND($D192*INTRO!$E$50,0)) -> 126063 | H192: 99 | I192: 1 | J192: 1 | K192: 2 | L192: 0 | M192: =IF(INTRO!$E$38="Endemic", IF($H192>0, IF($H192=4,"Unknown", IF($H192=99,"Stopped", $D192)), 0),"Not required") -> Stopped | N192: 125117 | O192: =IF(INTRO!$E$42="Endemic", IF(AND($J192>1,$J192<5), IF($J192=4, "Unknown", E192+F192), 0),"Not required") -> 0 | P192: =IF(INTRO!$E$44="Endemic", IF(AND($K192>0,$K192<5), IF($K192=4,"Unknown", IF($K192=1, $F192*0.33, IF($K192=2, $F192*0.5+$G192*0.2, SUM(F192:G192)))), 0),"Not required") -> 59152.6 | Q192: 0 | R192: 1 | S192: 0 | T192: 1 | U192: MDA3 (IVM) | W192: 36520 | X192: Ogoja | AA192: ='MDA1'!M192 -> 0 | AB192: ='MDA3'!Q192 -> 268677 | AC192: ='T2'!M192 -> 53750 | AD192: =T3_R1!N192 -> 0 | AE192: =T3_R2!N192 -> 0 | AI192: ='MDA1'!E192 -> 0 | AJ192: =T3_R1!F192 -> 0 | AK192: =T3_R2!F192 -> 0 | AL192: ='T2'!E192 -> Dec 2020
A193: =IF(INTRO!$E$34<>0,INTRO!$E$34,"") -> Nigeria | B193: Cross River | C193: Yakur | D193: 277049.5727 | E193: =IF(INTRO!$E$48="","",ROUND($D193*INTRO!$E$48,0)) -> 44328 | F193: =IF(INTRO!$E$49="","",ROUND($D193*INTRO!$E$49,0)) -> 77574 | G193: =IF(INTRO!$E$50="","",ROUND($D193*INTRO!$E$50,0)) -> 144066 | H193: 0 | I193: 1 | J193: 2 | K193: 0 | L193: 4 | M193: =IF(INTRO!$E$38="Endemic", IF($H193>0, IF($H193=4,"Unknown", IF($H193=99,"Stopped", $D193)), 0),"Not required") -> 0 | N193: 78166 | O193: =IF(INTRO!$E$42="Endemic", IF(AND($J193>1,$J193<5), IF($J193=4, "Unknown", E193+F193), 0),"Not required") -> 121902 | P193: =IF(INTRO!$E$44="Endemic", IF(AND($K193>0,$K193<5), IF($K193=4,"Unknown", IF($K193=1, $F193*0.33, IF($K193=2, $F193*0.5+$G193*0.2, SUM(F193:G193)))), 0),"Not required") -> 0 | Q193: 0 | R193: 1 | S193: 1 | T193: 0 | U193: MDA3 (IVM) | V193: T3 (ALB/MBD) | W193: 36521 | X193: Yakur | AA193: ='MDA1'!M193 -> 0 | AB193: ='MDA3'!Q193 -> 258370 | AC193: ='T2'!M193 -> 0 | AD193: =T3_R1!N193 -> 74773 | AE193: =T3_R2!N193 -> 0 | AI193: ='MDA1'!E193 -> 0 | AJ193: =T3_R1!F193 -> Dec 2020 | AK193: =T3_R2!F193 -> 0 | AL193: ='T2'!E193 -> 0
A194: =IF(INTRO!$E$34<>0,INTRO!$E$34,"") -> Nigeria | B194: Cross River | C194: Yala | D194: 297347.7376 | E194: =IF(INTRO!$E$48="","",ROUND($D194*INTRO!$E$48,0)) -> 47576 | F194: =IF(INTRO!$E$49="","",ROUND($D194*INTRO!$E$49,0)) -> 83257 | G194: =IF(INTRO!$E$50="","",ROUND($D194*INTRO!$E$50,0)) -> 154621 | H194: 1 | I194: 1 | J194: 1 | K194: 2 | L194: 0 | M194: =IF(INTRO!$E$38="Endemic", IF($H194>0, IF($H194=4,"Unknown", IF($H194=99,"Stopped", $D194)), 0),"Not required") -> 297347.7376 | N194: 223264 | O194: =IF(INTRO!$E$42="Endemic", IF(AND($J194>1,$J194<5), IF($J194=4, "Unknown", E194+F194), 0),"Not required") -> 0 | P194: =IF(INTRO!$E$44="Endemic", IF(AND($K194>0,$K194<5), IF($K194=4,"Unknown", IF($K194=1, $F194*0.33, IF($K194=2, $F194*0.5+$G194*0.2, SUM(F194:G194)))), 0),"Not required") -> 72552.7 | Q194: 1 | R194: 1 | S194: 0 | T194: 1 | U194: MDA1 (IVM+ALB) | W194: 36522 | X194: Yala | AA194: ='MDA1'!M194 -> 199198 | AB194: ='MDA3'!Q194 -> 0 | AC194: ='T2'!M194 -> 67156 | AD194: =T3_R1!N194 -> 0 | AE194: =T3_R2!N194 -> 0 | AI194: ='MDA1'!E194 -> Dec 2020 | AJ194: =T3_R1!F194 -> 0 | AK194: =T3_R2!F194 -> 0 | AL194: ='T2'!E194 -> Dec 2020
A195: =IF(INTRO!$E$34<>0,INTRO!$E$34,"") -> Nigeria | B195: Delta | C195: Aniocha North | D195: 147671.8646 | E195: =IF(INTRO!$E$48="","",ROUND($D195*INTRO!$E$48,0)) -> 23627 | F195: =IF(INTRO!$E$49="","",ROUND($D195*INTRO!$E$49,0)) -> 41348 | G195: =IF(INTRO!$E$50="","",ROUND($D195*INTRO!$E$50,0)) -> 76789 | H195: 1 | I195: 1 | J195: 2 | K195: 0 | L195: 0 | M195: =IF(INTRO!$E$38="Endemic", IF($H195>0, IF($H195=4,"Unknown", IF($H195=99,"Stopped", $D195)), 0),"Not required") -> 147671.8646 | N195: 84932 | O195: =IF(INTRO!$E$42="Endemic", IF(AND($J195>1,$J195<5), IF($J195=4, "Unknown", E195+F195), 0),"Not required") -> 64975 | P195: =IF(INTRO!$E$44="Endemic", IF(AND($K195>0,$K195<5), IF($K195=4,"Unknown", IF($K195=1, $F195*0.33, IF($K195=2, $F195*0.5+$G195*0.2, SUM(F195:G195)))), 0),"Not required") -> 0 | Q195: 1 | R195: 1 | S195: 1 | T195: 0 | U195: MDA1 (IVM+ALB) | W195: 36523 | X195: Aniocha North | AA195: ='MDA1'!M195 -> 99129 | AB195: ='MDA3'!Q195 -> 0 | AC195: ='T2'!M195 -> 0 | AD195: =T3_R1!N195 -> 0 | AE195: =T3_R2!N195 -> 0 | AF195: ='MDA1'!K195 -> 27756 | AG195: =AF195=AD195 -> FALSE | AI195: ='MDA1'!E195 -> Dec 2020 | AJ195: =T3_R1!F195 -> 0 | AK195: =T3_R2!F195 -> 0 | AL195: ='T2'!E195 -> 0 | AN195: check mda1 = t3r1
A196: =IF(INTRO!$E$34<>0,INTRO!$E$34,"") -> Nigeria | B196: Delta | C196: Aniocha South | D196: 198291.0569 | E196: =IF(INTRO!$E$48="","",ROUND($D196*INTRO!$E$48,0)) -> 31727 | F196: =IF(INTRO!$E$49="","",ROUND($D196*INTRO!$E$49,0)) -> 55521 | G196: =IF(INTRO!$E$50="","",ROUND($D196*INTRO!$E$50,0)) -> 103111 | H196: 1 | I196: 1 | J196: 2 | K196: 0 | L196: 0 | M196: =IF(INTRO!$E$38="Endemic", IF($H196>0, IF($H196=4,"Unknown", IF($H196=99,"Stopped", $D196)), 0),"Not required") -> 198291.0569 | N196: 82784 | O196: =IF(INTRO!$E$42="Endemic", IF(AND($J196>1,$J196<5), IF($J196=4, "Unknown", E196+F196), 0),"Not required") -> 87248 | P196: =IF(INTRO!$E$44="Endemic", IF(AND($K196>0,$K196<5), IF($K196=4,"Unknown", IF($K196=1, $F196*0.33, IF($K196=2, $F196*0.5+$G196*0.2, SUM(F196:G196)))), 0),"Not required") -> 0 | Q196: 1 | R196: 1 | S196: 1 | T196: 0 | U196: MDA1 (IVM+ALB) | W196: 36524 | X196: Aniocha South | AA196: ='MDA1'!M196 -> 131122 | AB196: ='MDA3'!Q196 -> 0 | AC196: ='T2'!M196 -> 0 | AD196: =T3_R1!N196 -> 0 | AE196: =T3_R2!N196 -> 0 | AF196: ='MDA1'!K196 -> 36714 | AG196: FALSE | AI196: ='MDA1'!E196 -> Dec 2020 | AJ196: =T3_R1!F196 -> 0 | AK196: =T3_R2!F196 -> 0 | AL196: ='T2'!E196 -> 0 | AN196: check mda1 = t3r1
A197: =IF(INTRO!$E$34<>0,INTRO!$E$34,"") -> Nigeria | B197: Delta | C197: Bomadi | D197: 122192.3297 | E197: =IF(INTRO!$E$48="","",ROUND($D197*INTRO!$E$48,0)) -> 19551 | F197: =IF(INTRO!$E$49="","",ROUND($D197*INTRO!$E$49,0)) -> 34214 | G197: =IF(INTRO!$E$50="","",ROUND($D197*INTRO!$E$50,0)) -> 63540 | H197: 1 | I197: 4 | J197: 3 | K197: 1 | L197: 0 | M197: =IF(INTRO!$E$38="Endemic", IF($H197>0, IF($H197=4,"Unknown", IF($H197=99,"Stopped", $D197)), 0),"Not required") -> 122192.3297 | N197: 0 | O197: =IF(INTRO!$E$42="Endemic", IF(AND($J197>1,$J197<5), IF($J197=4, "Unknown", E197+F197), 0),"Not required") -> 53765 | P197: =IF(INTRO!$E$44="Endemic", IF(AND($K197>0,$K197<5), IF($K197=4,"Unknown", IF($K197=1, $F197*0.33, IF($K197=2, $F197*0.5+$G197*0.2, SUM(F197:G197)))), 0),"Not required") -> 11290.62 | Q197: 1 | R197: 0 | S197: 1 | T197: 1 | U197: MDA1 (IVM+ALB) | W197: 36525 | X197: Bomadi | AA197: ='MDA1'!M197 -> 80801 | AB197: ='MDA3'!Q197 -> 0 | AC197: ='T2'!M197 -> 0 | AD197: =T3_R1!N197 -> 0 | AE197: =T3_R2!N197 -> 0 | AF197: ='MDA1'!K197 -> 22624 | AG197: FALSE | AI197: ='MDA1'!E197 -> Dec 2020 | AJ197: =T3_R1!F197 -> 0 | AK197: =T3_R2!F197 -> 0 | AL197: ='T2'!E197 -> 0 | AN197: check mda1 = t3r1
A198: =IF(INTRO!$E$34<>0,INTRO!$E$34,"") -> Nigeria | B198: Delta | C198: Burutu | D198: 295687.8377 | E198: =IF(INTRO!$E$48="","",ROUND($D198*INTRO!$E$48,0)) -> 47310 | F198: =IF(INTRO!$E$49="","",ROUND($D198*INTRO!$E$49,0)) -> 82793 | G198: =IF(INTRO!$E$50="","",ROUND($D198*INTRO!$E$50,0)) -> 153758 | H198: 0 | I198: 4 | J198: 3 | K198: 1 | L198: 0 | M198: =IF(INTRO!$E$38="Endemic", IF($H198>0, IF($H198=4,"Unknown", IF($H198=99,"Stopped", $D198)), 0),"Not required") -> 0 | N198: 0 | O198: =IF(INTRO!$E$42="Endemic", IF(AND($J198>1,$J198<5), IF($J198=4, "Unknown", E198+F198), 0),"Not required") -> 130103 | P198: =IF(INTRO!$E$44="Endemic", IF(AND($K198>0,$K198<5), IF($K198=4,"Unknown", IF($K198=1, $F198*0.33, IF($K198=2, $F198*0.5+$G198*0.2, SUM(F198:G198)))), 0),"Not required") -> 27321.69 | Q198: 0 | R198: 0 | S198: 0 | T198: 0 | W198: 36526 | X198: Burutu | AA198: ='MDA1'!M198 -> 0 | AB198: ='MDA3'!Q198 -> 0 | AC198: ='T2'!M198 -> 0 | AD198: =T3_R1!N198 -> 0 | AE198: =T3_R2!N198 -> 0 | AI198: ='MDA1'!E198 -> 0 | AJ198: =T3_R1!F198 -> 0 | AK198: =T3_R2!F198 -> 0 | AL198: ='T2'!E198 -> 0
A199: =IF(INTRO!$E$34<>0,INTRO!$E$34,"") -> Nigeria | B199: Delta | C199: Ethiope East | D199: 283173.01 | E199: =IF(INTRO!$E$48="","",ROUND($D199*INTRO!$E$48,0)) -> 45308 | F199: =IF(INTRO!$E$49="","",ROUND($D199*INTRO!$E$49,0)) -> 79288 | G199: =IF(INTRO!$E$50="","",ROUND($D199*INTRO!$E$50,0)) -> 147250 | H199: 1 | I199: 1 | J199: 3 | K199: 1 | L199: 0 | M199: =IF(INTRO!$E$38="Endemic", IF($H199>0, IF($H199=4,"Unknown", IF($H199=99,"Stopped", $D199)), 0),"Not required") -> 283173.01 | N199: 134975 | O199: =IF(INTRO!$E$42="Endemic", IF(AND($J199>1,$J199<5), IF($J199=4, "Unknown", E199+F199), 0),"Not required") -> 124596 | P199: =IF(INTRO!$E$44="Endemic", IF(AND($K199>0,$K199<5), IF($K199=4,"Unknown", IF($K199=1, $F199*0.33, IF($K199=2, $F199*0.5+$G199*0.2, SUM(F199:G199)))), 0),"Not required") -> 26165.04 | Q199: 1 | R199: 1 | S199: 1 | T199: 0 | U199: MDA1 (IVM+ALB) | W199: 36527 | X199: Ethiope East | AA199: ='MDA1'!M199 -> 187251 | AB199: ='MDA3'!Q199 -> 0 | AC199: ='T2'!M199 -> 0 | AD199: =T3_R1!N199 -> 0 | AE199: =T3_R2!N199 -> 0 | AF199: ='MDA1'!K199 -> 52430 | AG199: =AF199=AD199 -> FALSE | AI199: ='MDA1'!E199 -> Dec 2020 | AJ199: =T3_R1!F199 -> 0 | AK199: =T3_R2!F199 -> 0 | AL199: ='T2'!E199 -> 0 | AN199: check mda1 = t3r1
A200: =IF(INTRO!$E$34<>0,INTRO!$E$34,"") -> Nigeria | B200: Delta | C200: Ethiope West | D200: 287121.7949 | E200: =IF(INTRO!$E$48="","",ROUND($D200*INTRO!$E$48,0)) -> 45939 | F200: =IF(INTRO!$E$49="","",ROUND($D200*INTRO!$E$49,0)) -> 80394 | G200: =IF(INTRO!$E$50="","",ROUND($D200*INTRO!$E$50,0)) -> 149303 | H200: 0 | I200: 1 | J200: 3 | K200: 0 | L200: 0 | M200: =IF(INTRO!$E$38="Endemic", IF($H200>0, IF($H200=4,"Unknown", IF($H200=99,"Stopped", $D200)), 0),"Not required") -> 0 | N200: 287571 | O200: =IF(INTRO!$E$42="Endemic", IF(AND($J200>1,$J200<5), IF($J200=4, "Unknown", E200+F200), 0),"Not required") -> 126333 | P200: =IF(INTRO!$E$44="Endemic", IF(AND($K200>0,$K200<5), IF($K200=4,"Unknown", IF($K200=1, $F200*0.33, IF($K200=2, $F200*0.5+$G200*0.2, SUM(F200:G200)))), 0),"Not required") -> 0 | Q200: 0 | R200: 1 | S200: 1 | T200: 0 | U200: MDA3 (IVM) | V200: T3 (ALB/MBD) | W200: 36528 | X200: Ethiope West | AA200: ='MDA1'!M200 -> 0 | AB200: ='MDA3'!Q200 -> 158219 | AC200: ='T2'!M200 -> 0 | AD200: =T3_R1!N200 -> 62021 | AE200: =T3_R2!N200 -> 0 | AI200: ='MDA1'!E200 -> 0 | AJ200: =T3_R1!F200 -> Dec 2020 | AK200: =T3_R2!F200 -> 0 | AL200: ='T2'!E200 -> 0
A201: =IF(INTRO!$E$34<>0,INTRO!$E$34,"") -> Nigeria | B201: Delta | C201: Ika North East | D201: 259007.8563 | E201: =IF(INTRO!$E$48="","",ROUND($D201*INTRO!$E$48,0)) -> 41441 | F201: =IF(INTRO!$E$49="","",ROUND($D201*INTRO!$E$49,0)) -> 72522 | G201: =IF(INTRO!$E$50="","",ROUND($D201*INTRO!$E$50,0)) -> 134684 | H201: 1 | I201: 1 | J201: 3 | K201: 0 | L201: 0 | M201: =IF(INTRO!$E$38="Endemic", IF($H201>0, IF($H201=4,"Unknown", IF($H201=99,"Stopped", $D201)), 0),"Not required") -> 259007.8563 | N201: 87205 | O201: =IF(INTRO!$E$42="Endemic", IF(AND($J201>1,$J201<5), IF($J201=4, "Unknown", E201+F201), 0),"Not required") -> 113963 | P201: =IF(INTRO!$E$44="Endemic", IF(AND($K201>0,$K201<5), IF($K201=4,"Unknown", IF($K201=1, $F201*0.33, IF($K201=2, $F201*0.5+$G201*0.2, SUM(F201:G201)))), 0),"Not required") -> 0 | Q201: 1 | R201: 1 | S201: 1 | T201: 0 | U201: MDA1 (IVM+ALB) | W201: 36529 | X201: Ika North East | AA201: ='MDA1'!M201 -> 168677 | AB201: ='MDA3'!Q201 -> 0 | AC201: ='T2'!M201 -> 0 | AD201: =T3_R1!N201 -> 0 | AE201: =T3_R2!N201 -> 0 | AF201: ='MDA1'!K201 -> 47230 | AG201: =AF201=AD201 -> FALSE | AI201: ='MDA1'!E201 -> Dec 2020 | AJ201: =T3_R1!F201 -> 0 | AK201: =T3_R2!F201 -> 0 | AL201: ='T2'!E201 -> 0 | AN201: check mda1 = t3r1
A202: =IF(INTRO!$E$34<>0,INTRO!$E$34,"") -> Nigeria | B202: Delta | C202: Ika South | D202: 229303.1215 | E202: =IF(INTRO!$E$48="","",ROUND($D202*INTRO!$E$48,0)) -> 36688 | F202: =IF(INTRO!$E$49="","",ROUND($D202*INTRO!$E$49,0)) -> 64205 | G202: =IF(INTRO!$E$50="","",ROUND($D202*INTRO!$E$50,0)) -> 119238 | H202: 1 | I202: 1 | J202: 2 | K202: 0 | L202: 0 | M202: =IF(INTRO!$E$38="Endemic", IF($H202>0, IF($H202=4,"Unknown", IF($H202=99,"Stopped", $D202)), 0),"Not required") -> 229303.1215 | N202: 84236 | O202: =IF(INTRO!$E$42="Endemic", IF(AND($J202>1,$J202<5), IF($J202=4, "Unknown", E202+F202), 0),"Not required") -> 100893 | P202: =IF(INTRO!$E$44="Endemic", IF(AND($K202>0,$K202<5), IF($K202=4,"Unknown", IF($K202=1, $F202*0.33, IF($K202=2, $F202*0.5+$G202*0.2, SUM(F202:G202)))), 0),"Not required") -> 0 | Q202: 1 | R202: 1 | S202: 1 | T202: 0 | U202: MDA1 (IVM+ALB) | W202: 36530 | X202: Ika South | AA202: ='MDA1'!M202 -> 149332 | AB202: ='MDA3'!Q202 -> 0 | AC202: ='T2'!M202 -> 0 | AD202: =T3_R1!N202 -> 0 | AE202: =T3_R2!N202 -> 0 | AF202: ='MDA1'!K202 -> 41813 | AG202: FALSE | AI202: ='MDA1'!E202 -> Dec 2020 | AJ202: =T3_R1!F202 -> 0 | AK202: =T3_R2!F202 -> 0 | AL202: ='T2'!E202 -> 0 | AN202: check mda1 = t3r1
A203: =IF(INTRO!$E$34<>0,INTRO!$E$34,"") -> Nigeria | B203: Delta | C203: Isoko North | D203: 203298.9624 | E203: =IF(INTRO!$E$48="","",ROUND($D203*INTRO!$E$48,0)) -> 32528 | F203: =IF(INTRO!$E$49="","",ROUND($D203*INTRO!$E$49,0)) -> 56924 | G203: =IF(INTRO!$E$50="","",ROUND($D203*INTRO!$E$50,0)) -> 105715 | H203: 1 | I203: 1 | J203: 3 | K203: 1 | L203: 0 | M203: =IF(INTRO!$E$38="Endemic", IF($H203>0, IF($H203=4,"Unknown", IF($H203=99,"Stopped", $D203)), 0),"Not required") -> 203298.9624 | N203: 96902 | O203: =IF(INTRO!$E$42="Endemic", IF(AND($J203>1,$J203<5), IF($J203=4, "Unknown", E203+F203), 0),"Not required") -> 89452 | P203: =IF(INTRO!$E$44="Endemic", IF(AND($K203>0,$K203<5), IF($K203=4,"Unknown", IF($K203=1, $F203*0.33, IF($K203=2, $F203*0.5+$G203*0.2, SUM(F203:G203)))), 0),"Not required") -> 18784.92 | Q203: 1 | R203: 1 | S203: 1 | T203: 1 | U203: MDA1 (IVM+ALB) | W203: 36531 | X203: Isoko North | AA203: ='MDA1'!M203 -> 136470 | AB203: ='MDA3'!Q203 -> 0 | AC203: ='T2'!M203 -> 0 | AD203: =T3_R1!N203 -> 0 | AE203: =T3_R2!N203 -> 0 | AF203: ='MDA1'!K203 -> 31026 | AG203: FALSE | AI203: ='MDA1'!E203 -> Dec 2020 | AJ203: =T3_R1!F203 -> 0 | AK203: =T3_R2!F203 -> 0 | AL203: ='T2'!E203 -> 0 | AN203: check mda1 = t3r1
... 579 more rows

Sheet MDA1
A1: MDA 1 - Ivermectin (IVM) and Albendazole (ALB)
A2: Administrative structure, population requiring PC by age group, population treated by age group and coverage
A4: TOTAL | G4: =SUM(G$9:G$1000) -> 30620601 | H4: =SUM(H$9:H$1000) -> 56866844 | I4: =SUM(I$9:I$1000) -> 87487445 | K4: =SUM(K$9:K$1000) -> 28219959.46 | L4: =SUM(L$9:L$1000) -> 47204799.83 | M4: =SUM(M$9:M$1000) -> 75424759.29 | O4: =IF(G4<>0, IF(K4/G4*100=0, "-", K4/G4*100), " ") -> 92.16004434 | P4: =IF(H4<>0, IF(L4/H4*100=0, "-", L4/H4*100), " ") -> 83.00935397 | Q4: =IF(I4<>0, IF(M4/I4*100=0, "-", M4/I4*100), " ") -> 86.21209511
D6: PC implemented | E6: Date | F6: Population targeted for MDA 1 | J6: Population treated | N6: Programme coverage (%) | U6: mda1 | Y6: t3r1
A7: Country | B7: Province/State | C7: District | F7: PreSAC | G7: SAC | H7: Adults | I7: Total | J7: PreSAC | K7: SAC | L7: Adults | M7: Total | N7: PreSAC | O7: SAC | P7: Adults | Q7: Total | R7: x | S7: x | T7: x | U7: sac | V7: adults | W7: tot | X7: x | Y7: x | Z7: x | AA7: x | AB7: x | AC7: x | AD7: x | AE7: x | AF7: x | AG7: x | AH7: x | AI7: x | AJ7: x
A9: =IF(COUNTRY_INFO!A9=0," ",COUNTRY_INFO!A9) -> Nigeria | B9: =IF(COUNTRY_INFO!B9=0," ",COUNTRY_INFO!B9) -> Abia | C9: =IF(COUNTRY_INFO!C9=0," ",COUNTRY_INFO!C9) -> Aba North | D9: =IF(COUNTRY_INFO!$U$9:$U$1000="MDA1 (IVM+ALB)", COUNTRY_INFO!$U$9:$U$1000, " ") ->  | I9: =SUM(F9:H9) -> 0 | M9: =SUM(J9:L9) -> 0 | O9: =IF(G9<>0, IF(K9/G9*100=0, "-", K9/G9*100), " ") ->  | P9: =IF(H9<>0, IF(L9/H9*100=0, "-", L9/H9*100), " ") ->  | W9: 0
A10: =IF(COUNTRY_INFO!A10=0," ",COUNTRY_INFO!A10) -> Nigeria | B10: =IF(COUNTRY_INFO!B10=0," ",COUNTRY_INFO!B10) -> Abia | C10: =IF(COUNTRY_INFO!C10=0," ",COUNTRY_INFO!C10) -> Aba South | D10: =IF(COUNTRY_INFO!$U$9:$U$1000="MDA1 (IVM+ALB)", COUNTRY_INFO!$U$9:$U$1000, " ") ->  | I10: =SUM(F10:H10) -> 0 | M10: =SUM(J10:L10) -> 0 | O10: =IF(G10<>0, IF(K10/G10*100=0, "-", K10/G10*100), " ") ->  | P10: =IF(H10<>0, IF(L10/H10*100=0, "-", L10/H10*100), " ") ->  | Q10: =IF(I10<>0, IF(M10/I10*100=0, "-", M10/I10*100), " ") ->  | W10: 0
A11: =IF(COUNTRY_INFO!A11=0," ",COUNTRY_INFO!A11) -> Nigeria | B11: =IF(COUNTRY_INFO!B11=0," ",COUNTRY_INFO!B11) -> Abia | C11: =IF(COUNTRY_INFO!C11=0," ",COUNTRY_INFO!C11) -> Arochukwu | D11: =IF(COUNTRY_INFO!$U$9:$U$1000="MDA1 (IVM+ALB)", COUNTRY_INFO!$U$9:$U$1000, " ") ->  | I11: 0 | M11: 0 | W11: 0
A12: =IF(COUNTRY_INFO!A12=0," ",COUNTRY_INFO!A12) -> Nigeria | B12: =IF(COUNTRY_INFO!B12=0," ",COUNTRY_INFO!B12) -> Abia | C12: =IF(COUNTRY_INFO!C12=0," ",COUNTRY_INFO!C12) -> Bende | D12: =IF(COUNTRY_INFO!$U$9:$U$1000="MDA1 (IVM+ALB)", COUNTRY_INFO!$U$9:$U$1000, " ") ->  | I12: 0 | M12: 0 | W12: 0
A13: =IF(COUNTRY_INFO!A13=0," ",COUNTRY_INFO!A13) -> Nigeria | B13: =IF(COUNTRY_INFO!B13=0," ",COUNTRY_INFO!B13) -> Abia | C13: =IF(COUNTRY_INFO!C13=0," ",COUNTRY_INFO!C13) -> Ikwuano | D13: =IF(COUNTRY_INFO!$U$9:$U$1000="MDA1 (IVM+ALB)", COUNTRY_INFO!$U$9:$U$1000, " ") ->  | I13: 0 | M13: 0 | W13: 0
A14: =IF(COUNTRY_INFO!A14=0," ",COUNTRY_INFO!A14) -> Nigeria | B14: =IF(COUNTRY_INFO!B14=0," ",COUNTRY_INFO!B14) -> Abia | C14: =IF(COUNTRY_INFO!C14=0," ",COUNTRY_INFO!C14) -> Isiala-Ngwa North | D14: =IF(COUNTRY_INFO!$U$9:$U$1000="MDA1 (IVM+ALB)", COUNTRY_INFO!$U$9:$U$1000, " ") ->  | I14: 0 | M14: 0 | W14: 0
A15: =IF(COUNTRY_INFO!A15=0," ",COUNTRY_INFO!A15) -> Nigeria | B15: =IF(COUNTRY_INFO!B15=0," ",COUNTRY_INFO!B15) -> Abia | C15: =IF(COUNTRY_INFO!C15=0," ",COUNTRY_INFO!C15) -> Isiala-Ngwa South | D15: =IF(COUNTRY_INFO!$U$9:$U$1000="MDA1 (IVM+ALB)", COUNTRY_INFO!$U$9:$U$1000, " ") ->  | I15: 0 | M15: 0 | W15: 0
A16: =IF(COUNTRY_INFO!A16=0," ",COUNTRY_INFO!A16) -> Nigeria | B16: =IF(COUNTRY_INFO!B16=0," ",COUNTRY_INFO!B16) -> Abia | C16: =IF(COUNTRY_INFO!C16=0," ",COUNTRY_INFO!C16) -> Isuikwuato | D16: =IF(COUNTRY_INFO!$U$9:$U$1000="MDA1 (IVM+ALB)", COUNTRY_INFO!$U$9:$U$1000, " ") ->  | I16: 0 | M16: 0 | W16: 0
A17: =IF(COUNTRY_INFO!A17=0," ",COUNTRY_INFO!A17) -> Nigeria | B17: =IF(COUNTRY_INFO!B17=0," ",COUNTRY_INFO!B17) -> Abia | C17: =IF(COUNTRY_INFO!C17=0," ",COUNTRY_INFO!C17) -> Obi-Ngwa | D17: =IF(COUNTRY_INFO!$U$9:$U$1000="MDA1 (IVM+ALB)", COUNTRY_INFO!$U$9:$U$1000, " ") ->  | I17: 0 | M17: 0 | W17: 0
A18: =IF(COUNTRY_INFO!A18=0," ",COUNTRY_INFO!A18) -> Nigeria | B18: =IF(COUNTRY_INFO!B18=0," ",COUNTRY_INFO!B18) -> Abia | C18: =IF(COUNTRY_INFO!C18=0," ",COUNTRY_INFO!C18) -> Ohafia | D18: =IF(COUNTRY_INFO!$U$9:$U$1000="MDA1 (IVM+ALB)", COUNTRY_INFO!$U$9:$U$1000, " ") ->  | I18: 0 | M18: 0 | W18: 0
A19: =IF(COUNTRY_INFO!A19=0," ",COUNTRY_INFO!A19) -> Nigeria | B19: =IF(COUNTRY_INFO!B19=0," ",COUNTRY_INFO!B19) -> Abia | C19: =IF(COUNTRY_INFO!C19=0," ",COUNTRY_INFO!C19) -> Osisioma Ngwa | D19: =IF(COUNTRY_INFO!$U$9:$U$1000="MDA1 (IVM+ALB)", COUNTRY_INFO!$U$9:$U$1000, " ") ->  | I19: 0 | M19: 0 | W19: 0
A20: =IF(COUNTRY_INFO!A20=0," ",COUNTRY_INFO!A20) -> Nigeria | B20: =IF(COUNTRY_INFO!B20=0," ",COUNTRY_INFO!B20) -> Abia | C20: =IF(COUNTRY_INFO!C20=0," ",COUNTRY_INFO!C20) -> Ugwunagbo | D20: =IF(COUNTRY_INFO!$U$9:$U$1000="MDA1 (IVM+ALB)", COUNTRY_INFO!$U$9:$U$1000, " ") ->  | I20: 0 | M20: 0 | W20: 0
A21: =IF(COUNTRY_INFO!A21=0," ",COUNTRY_INFO!A21) -> Nigeria | B21: =IF(COUNTRY_INFO!B21=0," ",COUNTRY_INFO!B21) -> Abia | C21: =IF(COUNTRY_INFO!C21=0," ",COUNTRY_INFO!C21) -> Ukwa East | D21: =IF(COUNTRY_INFO!$U$9:$U$1000="MDA1 (IVM+ALB)", COUNTRY_INFO!$U$9:$U$1000, " ") ->  | I21: 0 | M21: 0 | W21: 0
A22: =IF(COUNTRY_INFO!A22=0," ",COUNTRY_INFO!A22) -> Nigeria | B22: =IF(COUNTRY_INFO!B22=0," ",COUNTRY_INFO!B22) -> Abia | C22: =IF(COUNTRY_INFO!C22=0," ",COUNTRY_INFO!C22) -> Ukwa West | D22: =IF(COUNTRY_INFO!$U$9:$U$1000="MDA1 (IVM+ALB)", COUNTRY_INFO!$U$9:$U$1000, " ") ->  | I22: 0 | M22: 0 | W22: 0
A23: =IF(COUNTRY_INFO!A23=0," ",COUNTRY_INFO!A23) -> Nigeria | B23: =IF(COUNTRY_INFO!B23=0," ",COUNTRY_INFO!B23) -> Abia | C23: =IF(COUNTRY_INFO!C23=0," ",COUNTRY_INFO!C23) -> Umuahia North | D23: =IF(COUNTRY_INFO!$U$9:$U$1000="MDA1 (IVM+ALB)", COUNTRY_INFO!$U$9:$U$1000, " ") ->  | I23: 0 | M23: 0 | W23: 0
A24: =IF(COUNTRY_INFO!A24=0," ",COUNTRY_INFO!A24) -> Nigeria | B24: =IF(COUNTRY_INFO!B24=0," ",COUNTRY_INFO!B24) -> Abia | C24: =IF(COUNTRY_INFO!C24=0," ",COUNTRY_INFO!C24) -> Umuahia South | D24: =IF(COUNTRY_INFO!$U$9:$U$1000="MDA1 (IVM+ALB)", COUNTRY_INFO!$U$9:$U$1000, " ") ->  | I24: 0 | M24: 0 | W24: 0
A25: =IF(COUNTRY_INFO!A25=0," ",COUNTRY_INFO!A25) -> Nigeria | B25: =IF(COUNTRY_INFO!B25=0," ",COUNTRY_INFO!B25) -> Abia | C25: =IF(COUNTRY_INFO!C25=0," ",COUNTRY_INFO!C25) -> Umu-Nneochi | D25: =IF(COUNTRY_INFO!$U$9:$U$1000="MDA1 (IVM+ALB)", COUNTRY_INFO!$U$9:$U$1000, " ") ->  | I25: 0 | M25: 0 | W25: 0
A26: =IF(COUNTRY_INFO!A26=0," ",COUNTRY_INFO!A26) -> Nigeria | B26: =IF(COUNTRY_INFO!B26=0," ",COUNTRY_INFO!B26) -> Adamawa | C26: =IF(COUNTRY_INFO!C26=0," ",COUNTRY_INFO!C26) -> Demsa | D26: =IF(COUNTRY_INFO!$U$9:$U$1000="MDA1 (IVM+ALB)", COUNTRY_INFO!$U$9:$U$1000, " ") -> MDA1 (IVM+ALB) | E26: Nov 2020 | G26: 71313 | H26: 132439 | I26: 203752 | K26: 75186 | L26: 128656 | M26: 203842 | O26: 105.4309873 | P26: 97.14359063 | Q26: 100.0441713 | U26: 75186 | V26: 128656 | W26: 203842 | AA26: 75186 | AB26: 128656
A27: =IF(COUNTRY_INFO!A27=0," ",COUNTRY_INFO!A27) -> Nigeria | B27: =IF(COUNTRY_INFO!B27=0," ",COUNTRY_INFO!B27) -> Adamawa | C27: =IF(COUNTRY_INFO!C27=0," ",COUNTRY_INFO!C27) -> Fufore | D27: =IF(COUNTRY_INFO!$U$9:$U$1000="MDA1 (IVM+ALB)", COUNTRY_INFO!$U$9:$U$1000, " ") -> MDA1 (IVM+ALB) | E27: Nov 2020 | G27: 82010 | H27: 152303 | I27: 234313 | K27: 98765 | L27: 135955 | M27: 234720 | O27: 120.4304353 | P27: 89.26613396 | Q27: 100.1736993 | U27: 98765 | V27: 135955 | W27: 234720 | AA27: 98765 | AB27: 135955
A28: =IF(COUNTRY_INFO!A28=0," ",COUNTRY_INFO!A28) -> Nigeria | B28: =IF(COUNTRY_INFO!B28=0," ",COUNTRY_INFO!B28) -> Adamawa | C28: =IF(COUNTRY_INFO!C28=0," ",COUNTRY_INFO!C28) -> Ganye | D28: =IF(COUNTRY_INFO!$U$9:$U$1000="MDA1 (IVM+ALB)", COUNTRY_INFO!$U$9:$U$1000, " ") -> MDA1 (IVM+ALB) | E28: Nov 2020 | G28: 64918 | H28: 120562 | I28: 185480 | K28: 70672 | L28: 114860 | M28: 185532 | O28: 108.8634893 | P28: 95.27048324 | Q28: 100.0280354 | U28: 70672 | V28: 114860 | W28: 185532 | AA28: 70672 | AB28: 114860
A29: =IF(COUNTRY_INFO!A29=0," ",COUNTRY_INFO!A29) -> Nigeria | B29: =IF(COUNTRY_INFO!B29=0," ",COUNTRY_INFO!B29) -> Adamawa | C29: =IF(COUNTRY_INFO!C29=0," ",COUNTRY_INFO!C29) -> Girei | D29: =IF(COUNTRY_INFO!$U$9:$U$1000="MDA1 (IVM+ALB)", COUNTRY_INFO!$U$9:$U$1000, " ") -> MDA1 (IVM+ALB) | E29: Nov 2020 | G29: 51430 | H29: 95513 | I29: 146943 | K29: 56537 | L29: 90476 | M29: 147013 | O29: 109.9300019 | P29: 94.72637233 | Q29: 100.0476375 | U29: 56537 | V29: 90476 | W29: 147013 | AA29: 56537 | AB29: 90476
A30: =IF(COUNTRY_INFO!A30=0," ",COUNTRY_INFO!A30) -> Nigeria | B30: =IF(COUNTRY_INFO!B30=0," ",COUNTRY_INFO!B30) -> Adamawa | C30: =IF(COUNTRY_INFO!C30=0," ",COUNTRY_INFO!C30) -> Gombi | D30: =IF(COUNTRY_INFO!$U$9:$U$1000="MDA1 (IVM+ALB)", COUNTRY_INFO!$U$9:$U$1000, " ") -> MDA1 (IVM+ALB) | E30: Nov 2020 | G30: 57932 | H30: 107588 | I30: 165520 | K30: 49328 | L30: 98485 | M30: 147813 | O30: 85.14810467 | P30: 91.53901922 | Q30: 89.30219913 | U30: 49328 | V30: 98485 | W30: 147813 | AA30: 49328 | AB30: 98485
A31: =IF(COUNTRY_INFO!A31=0," ",COUNTRY_INFO!A31) -> Nigeria | B31: =IF(COUNTRY_INFO!B31=0," ",COUNTRY_INFO!B31) -> Adamawa | C31: =IF(COUNTRY_INFO!C31=0," ",COUNTRY_INFO!C31) -> Guyuk | D31: =IF(COUNTRY_INFO!$U$9:$U$1000="MDA1 (IVM+ALB)", COUNTRY_INFO!$U$9:$U$1000, " ") -> MDA1 (IVM+ALB) | E31: Nov 2020 | G31: 70338 | H31: 130627 | I31: 200965 | K31: 74212 | L31: 127720 | M31: 201932 | O31: 105.5076914 | P31: 97.77457953 | Q31: 100.4811783 | U31: 74212 | V31: 127720 | W31: 201932 | AA31: 74212 | AB31: 127720
A32: =IF(COUNTRY_INFO!A32=0," ",COUNTRY_INFO!A32) -> Nigeria | B32: =IF(COUNTRY_INFO!B32=0," ",COUNTRY_INFO!B32) -> Adamawa | C32: =IF(COUNTRY_INFO!C32=0," ",COUNTRY_INFO!C32) -> Hong | D32: =IF(COUNTRY_INFO!$U$9:$U$1000="MDA1 (IVM+ALB)", COUNTRY_INFO!$U$9:$U$1000, " ") ->  | I32: 0 | L32: 0 | M32: 0 | V32: 0 | W32: 0 | AB32: 0
A33: =IF(COUNTRY_INFO!A33=0," ",COUNTRY_INFO!A33) -> Nigeria | B33: =IF(COUNTRY_INFO!B33=0," ",COUNTRY_INFO!B33) -> Adamawa | C33: =IF(COUNTRY_INFO!C33=0," ",COUNTRY_INFO!C33) -> Jada | D33: =IF(COUNTRY_INFO!$U$9:$U$1000="MDA1 (IVM+ALB)", COUNTRY_INFO!$U$9:$U$1000, " ") -> MDA1 (IVM+ALB) | E33: Nov 2020 | G33: 66653 | H33: 123785 | I33: 190438 | K33: 73689 | L33: 116843 | M33: 190532 | O33: 110.556164 | P33: 94.39188916 | Q33: 100.0493599 | U33: 73689 | V33: 116843 | W33: 190532 | AA33: 73689 | AB33: 116843
A34: =IF(COUNTRY_INFO!A34=0," ",COUNTRY_INFO!A34) -> Nigeria | B34: =IF(COUNTRY_INFO!B34=0," ",COUNTRY_INFO!B34) -> Adamawa | C34: =IF(COUNTRY_INFO!C34=0," ",COUNTRY_INFO!C34) -> Lamurde | D34: =IF(COUNTRY_INFO!$U$9:$U$1000="MDA1 (IVM+ALB)", COUNTRY_INFO!$U$9:$U$1000, " ") -> MDA1 (IVM+ALB) | E34: Nov 2020 | G34: 44629 | H34: 82882 | I34: 127511 | K34: 41756 | L34: 63496 | M34: 105252 | O34: 93.56248179 | P34: 76.61012041 | Q34: 82.54346684 | U34: 41756 | V34: 63496 | W34: 105252 | AA34: 41756 | AB34: 63496
A35: =IF(COUNTRY_INFO!A35=0," ",COUNTRY_INFO!A35) -> Nigeria | B35: =IF(COUNTRY_INFO!B35=0," ",COUNTRY_INFO!B35) -> Adamawa | C35: =IF(COUNTRY_INFO!C35=0," ",COUNTRY_INFO!C35) -> Madagali | D35: =IF(COUNTRY_INFO!$U$9:$U$1000="MDA1 (IVM+ALB)", COUNTRY_INFO!$U$9:$U$1000, " ") ->  | I35: 0 | L35: 0 | M35: 0 | V35: 0 | W35: 0 | AB35: 0
A36: =IF(COUNTRY_INFO!A36=0," ",COUNTRY_INFO!A36) -> Nigeria | B36: =IF(COUNTRY_INFO!B36=0," ",COUNTRY_INFO!B36) -> Adamawa | C36: =IF(COUNTRY_INFO!C36=0," ",COUNTRY_INFO!C36) -> Maiha | D36: =IF(COUNTRY_INFO!$U$9:$U$1000="MDA1 (IVM+ALB)", COUNTRY_INFO!$U$9:$U$1000, " ") -> MDA1 (IVM+ALB) | E36: Nov 2020 | G36: 44000 | H36: 81715 | I36: 125715 | K36: 51049 | L36: 75666 | M36: 126715 | O36: 116.0204545 | P36: 92.59744233 | Q36: 100.79545 | U36: 51049 | V36: 75666 | W36: 126715 | AA36: 51049 | AB36: 75666
A37: =IF(COUNTRY_INFO!A37=0," ",COUNTRY_INFO!A37) -> Nigeria | B37: =IF(COUNTRY_INFO!B37=0," ",COUNTRY_INFO!B37) -> Adamawa | C37: =IF(COUNTRY_INFO!C37=0," ",COUNTRY_INFO!C37) -> Mayo-belwa | D37: =IF(COUNTRY_INFO!$U$9:$U$1000="MDA1 (IVM+ALB)", COUNTRY_INFO!$U$9:$U$1000, " ") -> MDA1 (IVM+ALB) | E37: Nov 2020 | G37: 60583 | H37: 112511 | I37: 173094 | K37: 68277 | L37: 104930 | M37: 173207 | O37: 112.6999323 | P37: 93.26199216 | Q37: 100.0652824 | U37: 68277 | V37: 104930 | W37: 173207 | AA37: 68277 | AB37: 104930
A38: =IF(COUNTRY_INFO!A38=0," ",COUNTRY_INFO!A38) -> Nigeria | B38: =IF(COUNTRY_INFO!B38=0," ",COUNTRY_INFO!B38) -> Adamawa | C38: =IF(COUNTRY_INFO!C38=0," ",COUNTRY_INFO!C38) -> Michika | D38: =IF(COUNTRY_INFO!$U$9:$U$1000="MDA1 (IVM+ALB)", COUNTRY_INFO!$U$9:$U$1000, " ") -> MDA1 (IVM+ALB) | E38: Nov 2020 | G38: 61443 | H38: 114108 | I38: 175551 | K38: 59446 | L38: 116161 | M38: 175607 | O38: 96.74983318 | P38: 101.7991727 | Q38: 100.0318996 | U38: 59446 | V38: 116161 | W38: 175607 | AA38: 59446 | AB38: 116161
A39: =IF(COUNTRY_INFO!A39=0," ",COUNTRY_INFO!A39) -> Nigeria | B39: =IF(COUNTRY_INFO!B39=0," ",COUNTRY_INFO!B39) -> Adamawa | C39: =IF(COUNTRY_INFO!C39=0," ",COUNTRY_INFO!C39) -> Mubi North | D39: =IF(COUNTRY_INFO!$U$9:$U$1000="MDA1 (IVM+ALB)", COUNTRY_INFO!$U$9:$U$1000, " ") -> MDA1 (IVM+ALB) | E39: Nov 2020 | G39: 59769 | H39: 111000 | I39: 170769 | K39: 40412 | L39: 71875 | M39: 112287 | O39: 67.61364587 | P39: 64.75225225 | Q39: 65.75373751 | U39: 40412 | V39: 71875 | W39: 112287 | AA39: 40412 | AB39: 71875
A40: =IF(COUNTRY_INFO!A40=0," ",COUNTRY_INFO!A40) -> Nigeria | B40: =IF(COUNTRY_INFO!B40=0," ",COUNTRY_INFO!B40) -> Adamawa | C40: =IF(COUNTRY_INFO!C40=0," ",COUNTRY_INFO!C40) -> Mubi South | D40: =IF(COUNTRY_INFO!$U$9:$U$1000="MDA1 (IVM+ALB)", COUNTRY_INFO!$U$9:$U$1000, " ") -> MDA1 (IVM+ALB) | E40: Nov 2020 | G40: 51012 | H40: 94736 | I40: 145748 | K40: 47812 | L40: 74816 | M40: 122628 | O40: 93.7269662 | P40: 78.97314643 | Q40: 84.1370036 | U40: 47812 | V40: 74816 | W40: 122628 | AA40: 47812 | AB40: 74816
A41: =IF(COUNTRY_INFO!A41=0," ",COUNTRY_INFO!A41) -> Nigeria | B41: =IF(COUNTRY_INFO!B41=0," ",COUNTRY_INFO!B41) -> Adamawa | C41: =IF(COUNTRY_INFO!C41=0," ",COUNTRY_INFO!C41) -> Numan | D41: =IF(COUNTRY_INFO!$U$9:$U$1000="MDA1 (IVM+ALB)", COUNTRY_INFO!$U$9:$U$1000, " ") -> MDA1 (IVM+ALB) | E41: Nov 2020 | G41: 35893 | H41: 66658 | I41: 102551 | K41: 30629 | L41: 64346 | M41: 94975 | O41: 85.33418772 | P41: 96.5315491 | Q41: 92.61245624 | U41: 30629 | V41: 64346 | W41: 94975 | AA41: 30629 | AB41: 64346
A42: =IF(COUNTRY_INFO!A42=0," ",COUNTRY_INFO!A42) -> Nigeria | B42: =IF(COUNTRY_INFO!B42=0," ",COUNTRY_INFO!B42) -> Adamawa | C42: =IF(COUNTRY_INFO!C42=0," ",COUNTRY_INFO!C42) -> Shelleng | D42: =IF(COUNTRY_INFO!$U$9:$U$1000="MDA1 (IVM+ALB)", COUNTRY_INFO!$U$9:$U$1000, " ") -> MDA1 (IVM+ALB) | E42: Nov 2020 | G42: 58977 | H42: 109528 | I42: 168505 | K42: 68160 | L42: 100351 | M42: 168511 | O42: 115.5704766 | P42: 91.62132058 | Q42: 100.0035607 | U42: 68160 | V42: 100351 | W42: 168511 | AA42: 68160 | AB42: 100351
A43: =IF(COUNTRY_INFO!A43=0," ",COUNTRY_INFO!A43) -> Nigeria | B43: =IF(COUNTRY_INFO!B43=0," ",COUNTRY_INFO!B43) -> Adamawa | C43: =IF(COUNTRY_INFO!C43=0," ",COUNTRY_INFO!C43) -> Song | D43: =IF(COUNTRY_INFO!$U$9:$U$1000="MDA1 (IVM+ALB)", COUNTRY_INFO!$U$9:$U$1000, " ") -> MDA1 (IVM+ALB) | E43: Nov 2020 | G43: 76237 | H43: 141583 | I43: 217820 | K43: 91958 | L43: 126034 | M43: 217992 | O43: 120.6212207 | P43: 89.01774931 | Q43: 100.0789643 | U43: 91958 | V43: 126034 | W43: 217992 | AA43: 91958 | AB43: 126034
A44: =IF(COUNTRY_INFO!A44=0," ",COUNTRY_INFO!A44) -> Nigeria | B44: =IF(COUNTRY_INFO!B44=0," ",COUNTRY_INFO!B44) -> Adamawa | C44: =IF(COUNTRY_INFO!C44=0," ",COUNTRY_INFO!C44) -> Toungo | D44: =IF(COUNTRY_INFO!$U$9:$U$1000="MDA1 (IVM+ALB)", COUNTRY_INFO!$U$9:$U$1000, " ") -> MDA1 (IVM+ALB) | E44: Nov 2020 | G44: 20589 | H44: 38236 | I44: 58825 | K44: 21653 | L44: 37240 | M44: 58893 | O44: 105.1678081 | P44: 97.39512501 | Q44: 100.1155971 | U44: 21653 | V44: 37240 | W44: 58893 | AA44: 21653 | AB44: 37240
A45: =IF(COUNTRY_INFO!A45=0," ",COUNTRY_INFO!A45) -> Nigeria | B45: =IF(COUNTRY_INFO!B45=0," ",COUNTRY_INFO!B45) -> Adamawa | C45: =IF(COUNTRY_INFO!C45=0," ",COUNTRY_INFO!C45) -> Yola North | D45: =IF(COUNTRY_INFO!$U$9:$U$1000="MDA1 (IVM+ALB)", COUNTRY_INFO!$U$9:$U$1000, " ") ->  | I45: 0 | L45: 0 | M45: 0 | V45: 0 | W45: 0 | AB45: 0
A46: =IF(COUNTRY_INFO!A46=0," ",COUNTRY_INFO!A46) -> Nigeria | B46: =IF(COUNTRY_INFO!B46=0," ",COUNTRY_INFO!B46) -> Adamawa | C46: =IF(COUNTRY_INFO!C46=0," ",COUNTRY_INFO!C46) -> Yola South | D46: =IF(COUNTRY_INFO!$U$9:$U$1000="MDA1 (IVM+ALB)", COUNTRY_INFO!$U$9:$U$1000, " ") -> MDA1 (IVM+ALB) | E46: Nov 2020 | G46: 76993 | H46: 142987 | I46: 219980 | K46: 86036 | L46: 133991 | M46: 220027 | O46: 111.7452236 | P46: 93.70851896 | Q46: 100.0213656 | U46: 86036 | V46: 133991 | W46: 220027 | AA46: 86036 | AB46: 133991
A47: =IF(COUNTRY_INFO!A47=0," ",COUNTRY_INFO!A47) -> Nigeria | B47: =IF(COUNTRY_INFO!B47=0," ",COUNTRY_INFO!B47) -> Akwa Ibom | C47: =IF(COUNTRY_INFO!C47=0," ",COUNTRY_INFO!C47) -> Abak | D47: =IF(COUNTRY_INFO!$U$9:$U$1000="MDA1 (IVM+ALB)", COUNTRY_INFO!$U$9:$U$1000, " ") ->  | I47: 0 | L47: 0 | M47: 0 | V47: 0 | W47: 0 | AB47: 0
A48: =IF(COUNTRY_INFO!A48=0," ",COUNTRY_INFO!A48) -> Nigeria | B48: =IF(COUNTRY_INFO!B48=0," ",COUNTRY_INFO!B48) -> Akwa Ibom | C48: =IF(COUNTRY_INFO!C48=0," ",COUNTRY_INFO!C48) -> Eastern Obolo | D48: =IF(COUNTRY_INFO!$U$9:$U$1000="MDA1 (IVM+ALB)", COUNTRY_INFO!$U$9:$U$1000, " ") -> MDA1 (IVM+ALB) | E48: Nov 2020 | G48: 23953 | H48: 44484 | I48: 68437 | K48: 23044 | L48: 38789 | M48: 61833 | O48: 96.20506826 | P48: 87.1976441 | Q48: 90.35024913 | U48: 23044 | V48: 38789 | W48: 61833 | AA48: 23044 | AB48: 38789
A49: =IF(COUNTRY_INFO!A49=0," ",COUNTRY_INFO!A49) -> Nigeria | B49: =IF(COUNTRY_INFO!B49=0," ",COUNTRY_INFO!B49) -> Akwa Ibom | C49: =IF(COUNTRY_INFO!C49=0," ",COUNTRY_INFO!C49) -> Eket | D49: =IF(COUNTRY_INFO!$U$9:$U$1000="MDA1 (IVM+ALB)", COUNTRY_INFO!$U$9:$U$1000, " ") ->  | I49: 0 | L49: 0 | M49: 0 | V49: 0 | W49: 0 | AB49: 0
A50: =IF(COUNTRY_INFO!A50=0," ",COUNTRY_INFO!A50) -> Nigeria | B50: =IF(COUNTRY_INFO!B50=0," ",COUNTRY_INFO!B50) -> Akwa Ibom | C50: =IF(COUNTRY_INFO!C50=0," ",COUNTRY_INFO!C50) -> Esit Eket | D50: =IF(COUNTRY_INFO!$U$9:$U$1000="MDA1 (IVM+ALB)", COUNTRY_INFO!$U$9:$U$1000, " ") -> MDA1 (IVM+ALB) | E50: Nov 2020 | G50: 25202 | H50: 46804 | I50: 72006 | K50: 19053 | L50: 52690 | M50: 71743 | O50: 75.60114277 | P50: 112.5758482 | Q50: 99.63475266 | U50: 19053 | V50: 52690 | W50: 71743 | AA50: 19053 | AB50: 52690
A51: =IF(COUNTRY_INFO!A51=0," ",COUNTRY_INFO!A51) -> Nigeria | B51: =IF(COUNTRY_INFO!B51=0," ",COUNTRY_INFO!B51) -> Akwa Ibom | C51: =IF(COUNTRY_INFO!C51=0," ",COUNTRY_INFO!C51) -> Essien Udim | D51: =IF(COUNTRY_INFO!$U$9:$U$1000="MDA1 (IVM+ALB)", COUNTRY_INFO!$U$9:$U$1000, " ") ->  | I51: 0 | L51: 0 | M51: 0 | V51: 0 | W51: 0 | AB51: 0
A52: =IF(COUNTRY_INFO!A52=0," ",COUNTRY_INFO!A52) -> Nigeria | B52: =IF(COUNTRY_INFO!B52=0," ",COUNTRY_INFO!B52) -> Akwa Ibom | C52: =IF(COUNTRY_INFO!C52=0," ",COUNTRY_INFO!C52) -> Etim Ekpo | D52: =IF(COUNTRY_INFO!$U$9:$U$1000="MDA1 (IVM+ALB)", COUNTRY_INFO!$U$9:$U$1000, " ") -> MDA1 (IVM+ALB) | E52: Nov 2020 | G52: 41707 | H52: 77455 | I52: 119162 | K52: 42239 | L52: 70085 | M52: 112324 | O52: 101.2755653 | P52: 90.48479762 | Q52: 94.26159346 | U52: 42239 | V52: 70085 | W52: 112324 | AA52: 42239 | AB52: 70085
A53: =IF(COUNTRY_INFO!A53=0," ",COUNTRY_INFO!A53) -> Nigeria | B53: =IF(COUNTRY_INFO!B53=0," ",COUNTRY_INFO!B53) -> Akwa Ibom | C53: =IF(COUNTRY_INFO!C53=0," ",COUNTRY_INFO!C53) -> Etinan | D53: =IF(COUNTRY_INFO!$U$9:$U$1000="MDA1 (IVM+ALB)", COUNTRY_INFO!$U$9:$U$1000, " ") ->  | I53: 0 | L53: 0 | M53: 0 | V53: 0 | W53: 0 | AB53: 0
A54: =IF(COUNTRY_INFO!A54=0," ",COUNTRY_INFO!A54) -> Nigeria | B54: =IF(COUNTRY_INFO!B54=0," ",COUNTRY_INFO!B54) -> Akwa Ibom | C54: =IF(COUNTRY_INFO!C54=0," ",COUNTRY_INFO!C54) -> Ibeno | D54: =IF(COUNTRY_INFO!$U$9:$U$1000="MDA1 (IVM+ALB)", COUNTRY_INFO!$U$9:$U$1000, " ") -> MDA1 (IVM+ALB) | E54: Nov 2020 | G54: 29823 | H54: 55385 | I54: 85208 | K54: 30248 | L54: 52743 | M54: 82991 | O54: 101.4250746 | P54: 95.22975535 | Q54: 97.39813163 | U54: 30248 | V54: 52743 | W54: 82991 | AA54: 30248 | AB54: 52743
A55: =IF(COUNTRY_INFO!A55=0," ",COUNTRY_INFO!A55) -> Nigeria | B55: =IF(COUNTRY_INFO!B55=0," ",COUNTRY_INFO!B55) -> Akwa Ibom | C55: =IF(COUNTRY_INFO!C55=0," ",COUNTRY_INFO!C55) -> Ibesikpo Asutan | D55: =IF(COUNTRY_INFO!$U$9:$U$1000="MDA1 (IVM+ALB)", COUNTRY_INFO!$U$9:$U$1000, " ") ->  | I55: 0 | L55: 0 | M55: 0 | V55: 0 | W55: 0 | AB55: 0
A56: =IF(COUNTRY_INFO!A56=0," ",COUNTRY_INFO!A56) -> Nigeria | B56: =IF(COUNTRY_INFO!B56=0," ",COUNTRY_INFO!B56) -> Akwa Ibom | C56: =IF(COUNTRY_INFO!C56=0," ",COUNTRY_INFO!C56) -> Ibiono Ibom | D56: =IF(COUNTRY_INFO!$U$9:$U$1000="MDA1 (IVM+ALB)", COUNTRY_INFO!$U$9:$U$1000, " ") ->  | I56: 0 | L56: 0 | M56: 0 | V56: 0 | W56: 0 | AB56: 0
A57: =IF(COUNTRY_INFO!A57=0," ",COUNTRY_INFO!A57) -> Nigeria | B57: =IF(COUNTRY_INFO!B57=0," ",COUNTRY_INFO!B57) -> Akwa Ibom | C57: =IF(COUNTRY_INFO!C57=0," ",COUNTRY_INFO!C57) -> Ika | D57: =IF(COUNTRY_INFO!$U$9:$U$1000="MDA1 (IVM+ALB)", COUNTRY_INFO!$U$9:$U$1000, " ") ->  | I57: 0 | L57: 0 | M57: 0 | V57: 0 | W57: 0 | AB57: 0
A58: =IF(COUNTRY_INFO!A58=0," ",COUNTRY_INFO!A58) -> Nigeria | B58: =IF(COUNTRY_INFO!B58=0," ",COUNTRY_INFO!B58) -> Akwa Ibom | C58: =IF(COUNTRY_INFO!C58=0," ",COUNTRY_INFO!C58) -> Ikono | D58: =IF(COUNTRY_INFO!$U$9:$U$1000="MDA1 (IVM+ALB)", COUNTRY_INFO!$U$9:$U$1000, " ") ->  | I58: 0 | L58: 0 | M58: 0 | V58: 0 | W58: 0 | AB58: 0
A59: =IF(COUNTRY_INFO!A59=0," ",COUNTRY_INFO!A59) -> Nigeria | B59: =IF(COUNTRY_INFO!B59=0," ",COUNTRY_INFO!B59) -> Akwa Ibom | C59: =IF(COUNTRY_INFO!C59=0," ",COUNTRY_INFO!C59) -> Ikot Abasi | D59: =IF(COUNTRY_INFO!$U$9:$U$1000="MDA1 (IVM+ALB)", COUNTRY_INFO!$U$9:$U$1000, " ") -> MDA1 (IVM+ALB) | E59: Nov 2020 | G59: 52233 | H59: 97003 | I59: 149236 | K59: 42929 | L59: 82353 | M59: 125282 | O59: 82.18750598 | P59: 84.89737431 | Q59: 83.94891313 | U59: 42929 | V59: 82353 | W59: 125282 | AA59: 42929 | AB59: 82353
A60: =IF(COUNTRY_INFO!A60=0," ",COUNTRY_INFO!A60) -> Nigeria | B60: =IF(COUNTRY_INFO!B60=0," ",COUNTRY_INFO!B60) -> Akwa Ibom | C60: =IF(COUNTRY_INFO!C60=0," ",COUNTRY_INFO!C60) -> Ikot Ekpene | D60: =IF(COUNTRY_INFO!$U$9:$U$1000="MDA1 (IVM+ALB)", COUNTRY_INFO!$U$9:$U$1000, " ") -> MDA1 (IVM+ALB) | E60: Nov 2020 | G60: 56606 | H60: 105125 | I60: 161731 | K60: 44162 | L60: 107132 | M60: 151294 | O60: 78.01646469 | P60: 101.9091558 | Q60: 93.54669173 | U60: 44162 | V60: 107132 | W60: 151294 | AA60: 44162 | AB60: 107132
A61: =IF(COUNTRY_INFO!A61=0," ",COUNTRY_INFO!A61) -> Nigeria | B61: =IF(COUNTRY_INFO!B61=0," ",COUNTRY_INFO!B61) -> Akwa Ibom | C61: =IF(COUNTRY_INFO!C61=0," ",COUNTRY_INFO!C61) -> Ini | D61: =IF(COUNTRY_INFO!$U$9:$U$1000="MDA1 (IVM+ALB)", COUNTRY_INFO!$U$9:$U$1000, " ") ->  | I61: 0 | L61: 0 | M61: 0 | V61: 0 | W61: 0 | AB61: 0
A62: =IF(COUNTRY_INFO!A62=0," ",COUNTRY_INFO!A62) -> Nigeria | B62: =IF(COUNTRY_INFO!B62=0," ",COUNTRY_INFO!B62) -> Akwa Ibom | C62: =IF(COUNTRY_INFO!C62=0," ",COUNTRY_INFO!C62) -> Itu | D62: =IF(COUNTRY_INFO!$U$9:$U$1000="MDA1 (IVM+ALB)", COUNTRY_INFO!$U$9:$U$1000, " ") ->  | I62: 0 | L62: 0 | M62: 0 | V62: 0 | W62: 0 | AB62: 0
A63: =IF(COUNTRY_INFO!A63=0," ",COUNTRY_INFO!A63) -> Nigeria | B63: =IF(COUNTRY_INFO!B63=0," ",COUNTRY_INFO!B63) -> Akwa Ibom | C63: =IF(COUNTRY_INFO!C63=0," ",COUNTRY_INFO!C63) -> Mbo | D63: =IF(COUNTRY_INFO!$U$9:$U$1000="MDA1 (IVM+ALB)", COUNTRY_INFO!$U$9:$U$1000, " ") ->  | I63: 0 | L63: 0 | M63: 0 | V63: 0 | W63: 0 | AB63: 0
A64: =IF(COUNTRY_INFO!A64=0," ",COUNTRY_INFO!A64) -> Nigeria | B64: =IF(COUNTRY_INFO!B64=0," ",COUNTRY_INFO!B64) -> Akwa Ibom | C64: =IF(COUNTRY_INFO!C64=0," ",COUNTRY_INFO!C64) -> Mkpat Enin | D64: =IF(COUNTRY_INFO!$U$9:$U$1000="MDA1 (IVM+ALB)", COUNTRY_INFO!$U$9:$U$1000, " ") ->  | I64: 0 | L64: 0 | M64: 0 | V64: 0 | W64: 0 | AB64: 0
A65: =IF(COUNTRY_INFO!A65=0," ",COUNTRY_INFO!A65) -> Nigeria | B65: =IF(COUNTRY_INFO!B65=0," ",COUNTRY_INFO!B65) -> Akwa Ibom | C65: =IF(COUNTRY_INFO!C65=0," ",COUNTRY_INFO!C65) -> Nsit Atai | D65: =IF(COUNTRY_INFO!$U$9:$U$1000="MDA1 (IVM+ALB)", COUNTRY_INFO!$U$9:$U$1000, " ") ->  | I65: 0 | L65: 0 | M65: 0 | V65: 0 | W65: 0 | AB65: 0
A66: =IF(COUNTRY_INFO!A66=0," ",COUNTRY_INFO!A66) -> Nigeria | B66: =IF(COUNTRY_INFO!B66=0," ",COUNTRY_INFO!B66) -> Akwa Ibom | C66: =IF(COUNTRY_INFO!C66=0," ",COUNTRY_INFO!C66) -> Nsit Ibom | D66: =IF(COUNTRY_INFO!$U$9:$U$1000="MDA1 (IVM+ALB)", COUNTRY_INFO!$U$9:$U$1000, " ") ->  | I66: 0 | L66: 0 | M66: 0 | V66: 0 | W66: 0 | AB66: 0
A67: =IF(COUNTRY_INFO!A67=0," ",COUNTRY_INFO!A67) -> Nigeria | B67: =IF(COUNTRY_INFO!B67=0," ",COUNTRY_INFO!B67) -> Akwa Ibom | C67: =IF(COUNTRY_INFO!C67=0," ",COUNTRY_INFO!C67) -> Nsit Ubiom | D67: =IF(COUNTRY_INFO!$U$9:$U$1000="MDA1 (IVM+ALB)", COUNTRY_INFO!$U$9:$U$1000, " ") ->  | I67: 0 | L67: 0 | M67: 0 | V67: 0 | W67: 0 | AB67: 0
A68: =IF(COUNTRY_INFO!A68=0," ",COUNTRY_INFO!A68) -> Nigeria | B68: =IF(COUNTRY_INFO!B68=0," ",COUNTRY_INFO!B68) -> Akwa Ibom | C68: =IF(COUNTRY_INFO!C68=0," ",COUNTRY_INFO!C68) -> Obot Akara | D68: =IF(COUNTRY_INFO!$U$9:$U$1000="MDA1 (IVM+ALB)", COUNTRY_INFO!$U$9:$U$1000, " ") ->  | I68: 0 | L68: 0 | M68: 0 | V68: 0 | W68: 0 | AB68: 0
A69: =IF(COUNTRY_INFO!A69=0," ",COUNTRY_INFO!A69) -> Nigeria | B69: =IF(COUNTRY_INFO!B69=0," ",COUNTRY_INFO!B69) -> Akwa Ibom | C69: =IF(COUNTRY_INFO!C69=0," ",COUNTRY_INFO!C69) -> Okobo | D69: =IF(COUNTRY_INFO!$U$9:$U$1000="MDA1 (IVM+ALB)", COUNTRY_INFO!$U$9:$U$1000, " ") -> MDA1 (IVM+ALB) | E69: Nov 2020 | G69: 41168 | H69: 76456 | I69: 117624 | K69: 37145 | L69: 78267 | M69: 115412 | O69: 90.22784687 | P69: 102.3686826 | Q69: 98.11943141 | U69: 37145 | V69: 78267 | W69: 115412 | AA69: 37145 | AB69: 78267
A70: =IF(COUNTRY_INFO!A70=0," ",COUNTRY_INFO!A70) -> Nigeria | B70: =IF(COUNTRY_INFO!B70=0," ",COUNTRY_INFO!B70) -> Akwa Ibom | C70: =IF(COUNTRY_INFO!C70=0," ",COUNTRY_INFO!C70) -> Onna | D70: =IF(COUNTRY_INFO!$U$9:$U$1000="MDA1 (IVM+ALB)", COUNTRY_INFO!$U$9:$U$1000, " ") -> MDA1 (IVM+ALB) | E70: Nov 2020 | G70: 48810 | H70: 90648 | I70: 139458 | K70: 48101 | L70: 82105 | M70: 130206 | O70: 98.54742881 | P70: 90.57563322 | Q70: 93.36574453 | U70: 48101 | V70: 82105 | W70: 130206 | AA70: 48101 | AB70: 82105
A71: =IF(COUNTRY_INFO!A71=0," ",COUNTRY_INFO!A71) -> Nigeria | B71: =IF(COUNTRY_INFO!B71=0," ",COUNTRY_INFO!B71) -> Akwa Ibom | C71: =IF(COUNTRY_INFO!C71=0," ",COUNTRY_INFO!C71) -> Oron | D71: =IF(COUNTRY_INFO!$U$9:$U$1000="MDA1 (IVM+ALB)", COUNTRY_INFO!$U$9:$U$1000, " ") -> MDA1 (IVM+ALB) | E71: Nov 2020 | G71: 34602 | H71: 64262 | I71: 98864 | K71: 35162 | L71: 57778 | M71: 92940 | O71: 101.6184036 | P71: 89.91005571 | Q71: 94.00793009 | U71: 35162 | V71: 57778 | W71: 92940 | AA71: 35162 | AB71: 57778
A72: =IF(COUNTRY_INFO!A72=0," ",COUNTRY_INFO!A72) -> Nigeria | B72: =IF(COUNTRY_INFO!B72=0," ",COUNTRY_INFO!B72) -> Akwa Ibom | C72: =IF(COUNTRY_INFO!C72=0," ",COUNTRY_INFO!C72) -> Oruk Anam | D72: =IF(COUNTRY_INFO!$U$9:$U$1000="MDA1 (IVM+ALB)", COUNTRY_INFO!$U$9:$U$1000, " ") ->  | I72: 0 | L72: 0 | M72: 0 | V72: 0 | W72: 0 | AB72: 0
A73: =IF(COUNTRY_INFO!A73=0," ",COUNTRY_INFO!A73) -> Nigeria | B73: =IF(COUNTRY_INFO!B73=0," ",COUNTRY_INFO!B73) -> Akwa Ibom | C73: =IF(COUNTRY_INFO!C73=0," ",COUNTRY_INFO!C73) -> Udung Uko | D73: =IF(COUNTRY_INFO!$U$9:$U$1000="MDA1 (IVM+ALB)", COUNTRY_INFO!$U$9:$U$1000, " ") -> MDA1 (IVM+ALB) | E73: Nov 2020 | G73: 21079 | H73: 39146 | I73: 60225 | K73: 18778 | L73: 35111 | M73: 53889 | O73: 89.08392239 | P73: 89.69243345 | Q73: 89.47945205 | U73: 18778 | V73: 35111 | W73: 53889 | AA73: 18778 | AB73: 35111
A74: =IF(COUNTRY_INFO!A74=0," ",COUNTRY_INFO!A74) -> Nigeria | B74: =IF(COUNTRY_INFO!B74=0," ",COUNTRY_INFO!B74) -> Akwa Ibom | C74: =IF(COUNTRY_INFO!C74=0," ",COUNTRY_INFO!C74) -> Ukanafun | D74: =IF(COUNTRY_INFO!$U$9:$U$1000="MDA1 (IVM+ALB)", COUNTRY_INFO!$U$9:$U$1000, " ") ->  | I74: =SUM(F74:H74) -> 0 | L74: 0 | M74: =SUM(J74:L74) -> 0 | O74: =IF(G74<>0, IF(K74/G74*100=0, "-", K74/G74*100), " ") ->  | P74: =IF(H74<>0, IF(L74/H74*100=0, "-", L74/H74*100), " ") ->  | Q74: =IF(I74<>0, IF(M74/I74*100=0, "-", M74/I74*100), " ") ->  | V74: 0 | W74: 0 | AB74: 0
A75: =IF(COUNTRY_INFO!A75=0," ",COUNTRY_INFO!A75) -> Nigeria | B75: =IF(COUNTRY_INFO!B75=0," ",COUNTRY_INFO!B75) -> Akwa Ibom | C75: =IF(COUNTRY_INFO!C75=0," ",COUNTRY_INFO!C75) -> Uruan | D75: =IF(COUNTRY_INFO!$U$9:$U$1000="MDA1 (IVM+ALB)", COUNTRY_INFO!$U$9:$U$1000, " ") ->  | I75: 0 | M75: 0 | W75: 0
A76: =IF(COUNTRY_INFO!A76=0," ",COUNTRY_INFO!A76) -> Nigeria | B76: =IF(COUNTRY_INFO!B76=0," ",COUNTRY_INFO!B76) -> Akwa Ibom | C76: =IF(COUNTRY_INFO!C76=0," ",COUNTRY_INFO!C76) -> Urue-Offong/Oruko | D76: =IF(COUNTRY_INFO!$U$9:$U$1000="MDA1 (IVM+ALB)", COUNTRY_INFO!$U$9:$U$1000, " ") ->  | I76: 0 | L76: 0 | M76: 0 | V76: 0 | W76: 0 | AB76: 0
A77: =IF(COUNTRY_INFO!A77=0," ",COUNTRY_INFO!A77) -> Nigeria | B77: =IF(COUNTRY_INFO!B77=0," ",COUNTRY_INFO!B77) -> Akwa Ibom | C77: =IF(COUNTRY_INFO!C77=0," ",COUNTRY_INFO!C77) -> Uyo | D77: =IF(COUNTRY_INFO!$U$9:$U$1000="MDA1 (IVM+ALB)", COUNTRY_INFO!$U$9:$U$1000, " ") ->  | I77: 0 | L77: 0 | M77: 0 | V77: 0 | W77: 0 | AB77: 0
A78: =IF(COUNTRY_INFO!A78=0," ",COUNTRY_INFO!A78) -> Nigeria | B78: =IF(COUNTRY_INFO!B78=0," ",COUNTRY_INFO!B78) -> Anambra | C78: =IF(COUNTRY_INFO!C78=0," ",COUNTRY_INFO!C78) -> Aguata | D78: =IF(COUNTRY_INFO!$U$9:$U$1000="MDA1 (IVM+ALB)", COUNTRY_INFO!$U$9:$U$1000, " ") ->  | I78: 0 | M78: 0 | W78: 0
A79: =IF(COUNTRY_INFO!A79=0," ",COUNTRY_INFO!A79) -> Nigeria | B79: =IF(COUNTRY_INFO!B79=0," ",COUNTRY_INFO!B79) -> Anambra | C79: =IF(COUNTRY_INFO!C79=0," ",COUNTRY_INFO!C79) -> Anambra East | D79: =IF(COUNTRY_INFO!$U$9:$U$1000="MDA1 (IVM+ALB)", COUNTRY_INFO!$U$9:$U$1000, " ") ->  | I79: 0 | M79: 0 | W79: 0
A80: =IF(COUNTRY_INFO!A80=0," ",COUNTRY_INFO!A80) -> Nigeria | B80: =IF(COUNTRY_INFO!B80=0," ",COUNTRY_INFO!B80) -> Anambra | C80: =IF(COUNTRY_INFO!C80=0," ",COUNTRY_INFO!C80) -> Anambra West | D80: =IF(COUNTRY_INFO!$U$9:$U$1000="MDA1 (IVM+ALB)", COUNTRY_INFO!$U$9:$U$1000, " ") -> MDA1 (IVM+ALB) | E80: Nov 2020 | G80: 66235 | H80: 123008 | I80: 189243 | K80: 69707 | L80: 91896 | M80: 161603 | O80: 105.2419416 | P80: 74.70733611 | Q80: 85.39443995 | U80: 69707 | V80: 91896 | W80: 161603 | AA80: 69707 | AB80: 91896
A81: =IF(COUNTRY_INFO!A81=0," ",COUNTRY_INFO!A81) -> Nigeria | B81: =IF(COUNTRY_INFO!B81=0," ",COUNTRY_INFO!B81) -> Anambra | C81: =IF(COUNTRY_INFO!C81=0," ",COUNTRY_INFO!C81) -> Anaocha | D81: =IF(COUNTRY_INFO!$U$9:$U$1000="MDA1 (IVM+ALB)", COUNTRY_INFO!$U$9:$U$1000, " ") ->  | I81: 0 | M81: 0 | W81: 0
A82: =IF(COUNTRY_INFO!A82=0," ",COUNTRY_INFO!A82) -> Nigeria | B82: =IF(COUNTRY_INFO!B82=0," ",COUNTRY_INFO!B82) -> Anambra | C82: =IF(COUNTRY_INFO!C82=0," ",COUNTRY_INFO!C82) -> Awka North | D82: =IF(COUNTRY_INFO!$U$9:$U$1000="MDA1 (IVM+ALB)", COUNTRY_INFO!$U$9:$U$1000, " ") ->  | I82: 0 | M82: 0 | W82: 0
A83: =IF(COUNTRY_INFO!A83=0," ",COUNTRY_INFO!A83) -> Nigeria | B83: =IF(COUNTRY_INFO!B83=0," ",COUNTRY_INFO!B83) -> Anambra | C83: =IF(COUNTRY_INFO!C83=0," ",COUNTRY_INFO!C83) -> Awka south | D83: =IF(COUNTRY_INFO!$U$9:$U$1000="MDA1 (IVM+ALB)", COUNTRY_INFO!$U$9:$U$1000, " ") ->  | I83: 0 | M83: 0 | W83: 0
A84: =IF(COUNTRY_INFO!A84=0," ",COUNTRY_INFO!A84) -> Nigeria | B84: =IF(COUNTRY_INFO!B84=0," ",COUNTRY_INFO!B84) -> Anambra | C84: =IF(COUNTRY_INFO!C84=0," ",COUNTRY_INFO!C84) -> Ayamelum | D84: =IF(COUNTRY_INFO!$U$9:$U$1000="MDA1 (IVM+ALB)", COUNTRY_INFO!$U$9:$U$1000, " ") ->  | I84: 0 | M84: 0 | W84: 0
A85: =IF(COUNTRY_INFO!A85=0," ",COUNTRY_INFO!A85) -> Nigeria | B85: =IF(COUNTRY_INFO!B85=0," ",COUNTRY_INFO!B85) -> Anambra | C85: =IF(COUNTRY_INFO!C85=0," ",COUNTRY_INFO!C85) -> Dunukofia | D85: =IF(COUNTRY_INFO!$U$9:$U$1000="MDA1 (IVM+ALB)", COUNTRY_INFO!$U$9:$U$1000, " ") ->  | I85: 0 | M85: 0 | W85: 0
A86: =IF(COUNTRY_INFO!A86=0," ",COUNTRY_INFO!A86) -> Nigeria | B86: =IF(COUNTRY_INFO!B86=0," ",COUNTRY_INFO!B86) -> Anambra | C86: =IF(COUNTRY_INFO!C86=0," ",COUNTRY_INFO!C86) -> Ekwusigo | D86: =IF(COUNTRY_INFO!$U$9:$U$1000="MDA1 (IVM+ALB)", COUNTRY_INFO!$U$9:$U$1000, " ") ->  | I86: 0 | M86: 0 | W86: 0
A87: =IF(COUNTRY_INFO!A87=0," ",COUNTRY_INFO!A87) -> Nigeria | B87: =IF(COUNTRY_INFO!B87=0," ",COUNTRY_INFO!B87) -> Anambra | C87: =IF(COUNTRY_INFO!C87=0," ",COUNTRY_INFO!C87) -> Idemili North | D87: =IF(COUNTRY_INFO!$U$9:$U$1000="MDA1 (IVM+ALB)", COUNTRY_INFO!$U$9:$U$1000, " ") -> MDA1 (IVM+ALB) | E87: Nov 2020 | G87: 170432 | H87: 316516 | I87: 486948 | K87: 149466 | L87: 394695 | M87: 544161 | O87: 87.69831956 | P87: 124.6998572 | Q87: 111.7493038 | U87: 149466 | V87: 394695 | W87: 544161 | AA87: 149466 | AB87: 394695
A88: =IF(COUNTRY_INFO!A88=0," ",COUNTRY_INFO!A88) -> Nigeria | B88: =IF(COUNTRY_INFO!B88=0," ",COUNTRY_INFO!B88) -> Anambra | C88: =IF(COUNTRY_INFO!C88=0," ",COUNTRY_INFO!C88) -> Idemili South | D88: =IF(COUNTRY_INFO!$U$9:$U$1000="MDA1 (IVM+ALB)", COUNTRY_INFO!$U$9:$U$1000, " ") ->  | I88: 0 | M88: 0 | W88: 0
A89: =IF(COUNTRY_INFO!A89=0," ",COUNTRY_INFO!A89) -> Nigeria | B89: =IF(COUNTRY_INFO!B89=0," ",COUNTRY_INFO!B89) -> Anambra | C89: =IF(COUNTRY_INFO!C89=0," ",COUNTRY_INFO!C89) -> Ihiala | D89: =IF(COUNTRY_INFO!$U$9:$U$1000="MDA1 (IVM+ALB)", COUNTRY_INFO!$U$9:$U$1000, " ") ->  | I89: 0 | M89: 0 | W89: 0
A90: =IF(COUNTRY_INFO!A90=0," ",COUNTRY_INFO!A90) -> Nigeria | B90: =IF(COUNTRY_INFO!B90=0," ",COUNTRY_INFO!B90) -> Anambra | C90: =IF(COUNTRY_INFO!C90=0," ",COUNTRY_INFO!C90) -> Njikoka | D90: =IF(COUNTRY_INFO!$U$9:$U$1000="MDA1 (IVM+ALB)", COUNTRY_INFO!$U$9:$U$1000, " ") ->  | I90: 0 | M90: 0 | W90: 0
A91: =IF(COUNTRY_INFO!A91=0," ",COUNTRY_INFO!A91) -> Nigeria | B91: =IF(COUNTRY_INFO!B91=0," ",COUNTRY_INFO!B91) -> Anambra | C91: =IF(COUNTRY_INFO!C91=0," ",COUNTRY_INFO!C91) -> Nnewi North | D91: =IF(COUNTRY_INFO!$U$9:$U$1000="MDA1 (IVM+ALB)", COUNTRY_INFO!$U$9:$U$1000, " ") ->  | I91: 0 | M91: 0 | W91: 0
A92: =IF(COUNTRY_INFO!A92=0," ",COUNTRY_INFO!A92) -> Nigeria | B92: =IF(COUNTRY_INFO!B92=0," ",COUNTRY_INFO!B92) -> Anambra | C92: =IF(COUNTRY_INFO!C92=0," ",COUNTRY_INFO!C92) -> Nnewi South | D92: =IF(COUNTRY_INFO!$U$9:$U$1000="MDA1 (IVM+ALB)", COUNTRY_INFO!$U$9:$U$1000, " ") ->  | I92: 0 | M92: 0 | W92: 0
A93: =IF(COUNTRY_INFO!A93=0," ",COUNTRY_INFO!A93) -> Nigeria | B93: =IF(COUNTRY_INFO!B93=0," ",COUNTRY_INFO!B93) -> Anambra | C93: =IF(COUNTRY_INFO!C93=0," ",COUNTRY_INFO!C93) -> Ogbaru | D93: =IF(COUNTRY_INFO!$U$9:$U$1000="MDA1 (IVM+ALB)", COUNTRY_INFO!$U$9:$U$1000, " ") ->  | I93: 0 | M93: 0 | W93: 0
A94: =IF(COUNTRY_INFO!A94=0," ",COUNTRY_INFO!A94) -> Nigeria | B94: =IF(COUNTRY_INFO!B94=0," ",COUNTRY_INFO!B94) -> Anambra | C94: =IF(COUNTRY_INFO!C94=0," ",COUNTRY_INFO!C94) -> Onitsha North | D94: =IF(COUNTRY_INFO!$U$9:$U$1000="MDA1 (IVM+ALB)", COUNTRY_INFO!$U$9:$U$1000, " ") -> MDA1 (IVM+ALB) | E94: Nov 2020 | G94: 49431 | H94: 91801 | I94: 141232 | K94: 82473 | L94: 403490 | M94: 485963 | O94: 166.8446926 | P94: 439.5268025 | Q94: 344.0884502 | U94: 82473 | V94: 403490 | W94: 485963 | AA94: 82473 | AB94: 403490
A95: =IF(COUNTRY_INFO!A95=0," ",COUNTRY_INFO!A95) -> Nigeria | B95: =IF(COUNTRY_INFO!B95=0," ",COUNTRY_INFO!B95) -> Anambra | C95: =IF(COUNTRY_INFO!C95=0," ",COUNTRY_INFO!C95) -> Onitsha South | D95: =IF(COUNTRY_INFO!$U$9:$U$1000="MDA1 (IVM+ALB)", COUNTRY_INFO!$U$9:$U$1000, " ") ->  | I95: 0 | M95: 0 | W95: 0
A96: =IF(COUNTRY_INFO!A96=0," ",COUNTRY_INFO!A96) -> Nigeria | B96: =IF(COUNTRY_INFO!B96=0," ",COUNTRY_INFO!B96) -> Anambra | C96: =IF(COUNTRY_INFO!C96=0," ",COUNTRY_INFO!C96) -> Orumba North | D96: =IF(COUNTRY_INFO!$U$9:$U$1000="MDA1 (IVM+ALB)", COUNTRY_INFO!$U$9:$U$1000, " ") ->  | I96: 0 | M96: 0 | W96: 0
A97: =IF(COUNTRY_INFO!A97=0," ",COUNTRY_INFO!A97) -> Nigeria | B97: =IF(COUNTRY_INFO!B97=0," ",COUNTRY_INFO!B97) -> Anambra | C97: =IF(COUNTRY_INFO!C97=0," ",COUNTRY_INFO!C97) -> Orumba South | D97: =IF(COUNTRY_INFO!$U$9:$U$1000="MDA1 (IVM+ALB)", COUNTRY_INFO!$U$9:$U$1000, " ") ->  | I97: 0 | M97: 0 | W97: 0
A98: =IF(COUNTRY_INFO!A98=0," ",COUNTRY_INFO!A98) -> Nigeria | B98: =IF(COUNTRY_INFO!B98=0," ",COUNTRY_INFO!B98) -> Anambra | C98: =IF(COUNTRY_INFO!C98=0," ",COUNTRY_INFO!C98) -> Oyi | D98: =IF(COUNTRY_INFO!$U$9:$U$1000="MDA1 (IVM+ALB)", COUNTRY_INFO!$U$9:$U$1000, " ") ->  | I98: 0 | M98: 0 | W98: 0
A99: =IF(COUNTRY_INFO!A99=0," ",COUNTRY_INFO!A99) -> Nigeria | B99: =IF(COUNTRY_INFO!B99=0," ",COUNTRY_INFO!B99) -> Bauchi | C99: =IF(COUNTRY_INFO!C99=0," ",COUNTRY_INFO!C99) -> Alkaleri | D99: =IF(COUNTRY_INFO!$U$9:$U$1000="MDA1 (IVM+ALB)", COUNTRY_INFO!$U$9:$U$1000, " ") -> MDA1 (IVM+ALB) | E99: Dec 2020 | G99: 130326 | H99: 242034 | I99: 372360 | K99: 128780.75 | L99: 239164.25 | M99: 367945 | O99: 98.81431948 | P99: 98.81431948 | Q99: 98.81431948 | V99: 367945 | W99: 367945 | Y99: =T3_R1!L99 -> 0 | AB99: 367945
A100: =IF(COUNTRY_INFO!A100=0," ",COUNTRY_INFO!A100) -> Nigeria | B100: =IF(COUNTRY_INFO!B100=0," ",COUNTRY_INFO!B100) -> Bauchi | C100: =IF(COUNTRY_INFO!C100=0," ",COUNTRY_INFO!C100) -> Bauchi | D100: =IF(COUNTRY_INFO!$U$9:$U$1000="MDA1 (IVM+ALB)", COUNTRY_INFO!$U$9:$U$1000, " ") ->  | I100: 0 | L100: 0 | M100: 0 | V100: 0 | W100: 0 | AB100: 0
A101: =IF(COUNTRY_INFO!A101=0," ",COUNTRY_INFO!A101) -> Nigeria | B101: =IF(COUNTRY_INFO!B101=0," ",COUNTRY_INFO!B101) -> Bauchi | C101: =IF(COUNTRY_INFO!C101=0," ",COUNTRY_INFO!C101) -> Bogoro | D101: =IF(COUNTRY_INFO!$U$9:$U$1000="MDA1 (IVM+ALB)", COUNTRY_INFO!$U$9:$U$1000, " ") -> MDA1 (IVM+ALB) | E101: Dec 2020 | G101: 33317 | H101: 61874 | I101: 95191 | K101: 32497.85 | L101: 60353.15 | M101: 92851 | O101: 97.54134526 | P101: 97.54202088 | Q101: 97.54178441 | V101: 92851 | W101: 92851 | Y101: =T3_R1!L101 -> 0 | AB101: 92851
A102: =IF(COUNTRY_INFO!A102=0," ",COUNTRY_INFO!A102) -> Nigeria | B102: =IF(COUNTRY_INFO!B102=0," ",COUNTRY_INFO!B102) -> Bauchi | C102: =IF(COUNTRY_INFO!C102=0," ",COUNTRY_INFO!C102) -> Damban | D102: =IF(COUNTRY_INFO!$U$9:$U$1000="MDA1 (IVM+ALB)", COUNTRY_INFO!$U$9:$U$1000, " ") ->  | E102: Dec 2020 | I102: 0 | M102: 0 | V102: 280089 | W102: 280089 | Y102: =T3_R1!L102 -> 0
A103: =IF(COUNTRY_INFO!A103=0," ",COUNTRY_INFO!A103) -> Nigeria | B103: =IF(COUNTRY_INFO!B103=0," ",COUNTRY_INFO!B103) -> Bauchi | C103: =IF(COUNTRY_INFO!C103=0," ",COUNTRY_INFO!C103) -> Darazo | D103: =IF(COUNTRY_INFO!$U$9:$U$1000="MDA1 (IVM+ALB)", COUNTRY_INFO!$U$9:$U$1000, " ") -> MDA1 (IVM+ALB) | E103: Dec 2020 | G103: 59707 | H103: 110885 | I103: 170592 | K103: 98031.15 | L103: 182057.85 | M103: 280089 | O103: 164.18703 | P103: 164.1861839 | Q103: 164.18648 | V103: 284099 | W103: 284099 | Y103: =T3_R1!L103 -> 0 | AB103: 280089
A104: =IF(COUNTRY_INFO!A104=0," ",COUNTRY_INFO!A104) -> Nigeria | B104: =IF(COUNTRY_INFO!B104=0," ",COUNTRY_INFO!B104) -> Bauchi | C104: =IF(COUNTRY_INFO!C104=0," ",COUNTRY_INFO!C104) -> Dass | D104: =IF(COUNTRY_INFO!$U$9:$U$1000="MDA1 (IVM+ALB)", COUNTRY_INFO!$U$9:$U$1000, " ") ->  | I104: 0 | L104: 0 | M104: 0 | V104: 0 | W104: 0 | AB104: 0
A105: =IF(COUNTRY_INFO!A105=0," ",COUNTRY_INFO!A105) -> Nigeria | B105: =IF(COUNTRY_INFO!B105=0," ",COUNTRY_INFO!B105) -> Bauchi | C105: =IF(COUNTRY_INFO!C105=0," ",COUNTRY_INFO!C105) -> Gamawa | D105: =IF(COUNTRY_INFO!$U$9:$U$1000="MDA1 (IVM+ALB)", COUNTRY_INFO!$U$9:$U$1000, " ") ->  | I105: 0 | M105: 0 | W105: 0
A106: =IF(COUNTRY_INFO!A106=0," ",COUNTRY_INFO!A106) -> Nigeria | B106: =IF(COUNTRY_INFO!B106=0," ",COUNTRY_INFO!B106) -> Bauchi | C106: =IF(COUNTRY_INFO!C106=0," ",COUNTRY_INFO!C106) -> Ganjuwa | D106: =IF(COUNTRY_INFO!$U$9:$U$1000="MDA1 (IVM+ALB)", COUNTRY_INFO!$U$9:$U$1000, " ") -> MDA1 (IVM+ALB) | E106: Dec 2020 | G106: 110998 | H106: 206138 | I106: 317136 | K106: 110909.05 | L106: 205973.95 | M106: 316883 | O106: 99.91986342 | P106: 99.92041739 | Q106: 99.9202235 | V106: 316883 | W106: 316883 | Y106: =T3_R1!L106 -> 0 | AB106: 316883
A107: =IF(COUNTRY_INFO!A107=0," ",COUNTRY_INFO!A107) -> Nigeria | B107: =IF(COUNTRY_INFO!B107=0," ",COUNTRY_INFO!B107) -> Bauchi | C107: =IF(COUNTRY_INFO!C107=0," ",COUNTRY_INFO!C107) -> Giade | D107: =IF(COUNTRY_INFO!$U$9:$U$1000="MDA1 (IVM+ALB)", COUNTRY_INFO!$U$9:$U$1000, " ") -> MDA1 (IVM+ALB) | E107: Dec 2020 | G107: 62100 | H107: 115328 | I107: 177428 | K107: 61464.9 | L107: 114149.1 | M107: 175614 | O107: 98.97729469 | P107: 98.9777851 | Q107: 98.97761345 | V107: 175614 | W107: 175614 | Y107: =T3_R1!L107 -> 0 | AB107: 175614
A108: =IF(COUNTRY_INFO!A108=0," ",COUNTRY_INFO!A108) -> Nigeria | B108: =IF(COUNTRY_INFO!B108=0," ",COUNTRY_INFO!B108) -> Bauchi | C108: =IF(COUNTRY_INFO!C108=0," ",COUNTRY_INFO!C108) -> Itas/Gadua | D108: =IF(COUNTRY_INFO!$U$9:$U$1000="MDA1 (IVM+ALB)", COUNTRY_INFO!$U$9:$U$1000, " ") -> MDA1 (IVM+ALB) | E108: Dec 2020 | G108: 90990 | H108: 168982 | I108: 259972 | K108: 89716.2 | L108: 166615.8 | M108: 256332 | O108: 98.60006594 | P108: 98.59973252 | Q108: 98.59984921 | V108: 256332 | W108: 256332 | Y108: =T3_R1!L108 -> 0 | AB108: 256332
A109: =IF(COUNTRY_INFO!A109=0," ",COUNTRY_INFO!A109) -> Nigeria | B109: =IF(COUNTRY_INFO!B109=0," ",COUNTRY_INFO!B109) -> Bauchi | C109: =IF(COUNTRY_INFO!C109=0," ",COUNTRY_INFO!C109) -> Jama'are | D109: =IF(COUNTRY_INFO!$U$9:$U$1000="MDA1 (IVM+ALB)", COUNTRY_INFO!$U$9:$U$1000, " ") ->  | I109: 0 | L109: 0 | M109: 0 | V109: 0 | W109: 0 | AB109: 0
A110: =IF(COUNTRY_INFO!A110=0," ",COUNTRY_INFO!A110) -> Nigeria | B110: =IF(COUNTRY_INFO!B110=0," ",COUNTRY_INFO!B110) -> Bauchi | C110: =IF(COUNTRY_INFO!C110=0," ",COUNTRY_INFO!C110) -> Katagun | D110: =IF(COUNTRY_INFO!$U$9:$U$1000="MDA1 (IVM+ALB)", COUNTRY_INFO!$U$9:$U$1000, " ") ->  | I110: 0 | M110: 0 | W110: 0
A111: =IF(COUNTRY_INFO!A111=0," ",COUNTRY_INFO!A111) -> Nigeria | B111: =IF(COUNTRY_INFO!B111=0," ",COUNTRY_INFO!B111) -> Bauchi | C111: =IF(COUNTRY_INFO!C111=0," ",COUNTRY_INFO!C111) -> Kirfi | D111: =IF(COUNTRY_INFO!$U$9:$U$1000="MDA1 (IVM+ALB)", COUNTRY_INFO!$U$9:$U$1000, " ") ->  | I111: 0 | M111: 0 | W111: 0
A112: =IF(COUNTRY_INFO!A112=0," ",COUNTRY_INFO!A112) -> Nigeria | B112: =IF(COUNTRY_INFO!B112=0," ",COUNTRY_INFO!B112) -> Bauchi | C112: =IF(COUNTRY_INFO!C112=0," ",COUNTRY_INFO!C112) -> Misau | D112: =IF(COUNTRY_INFO!$U$9:$U$1000="MDA1 (IVM+ALB)", COUNTRY_INFO!$U$9:$U$1000, " ") -> MDA1 (IVM+ALB) | E112: Dec 2020 | G112: 104240 | H112: 193589 | I112: 297829 | K112: 104056.4 | L112: 193247.6 | M112: 297304 | O112: 99.823868 | P112: 99.823647 | Q112: 99.82372435 | V112: 297304 | W112: 297304 | Y112: =T3_R1!L112 -> 0 | AB112: 297304
A113: =IF(COUNTRY_INFO!A113=0," ",COUNTRY_INFO!A113) -> Nigeria | B113: =IF(COUNTRY_INFO!B113=0," ",COUNTRY_INFO!B113) -> Bauchi | C113: =IF(COUNTRY_INFO!C113=0," ",COUNTRY_INFO!C113) -> Ningi | D113: =IF(COUNTRY_INFO!$U$9:$U$1000="MDA1 (IVM+ALB)", COUNTRY_INFO!$U$9:$U$1000, " ") -> MDA1 (IVM+ALB) | E113: Dec 2020 | G113: 153180 | H113: 284477 | I113: 437657 | K113: 152930.05 | L113: 284012.95 | M113: 436943 | O113: 99.83682596 | P113: 99.83687609 | Q113: 99.83685854 | V113: 436943 | W113: 436943 | Y113: =T3_R1!L113 -> 0 | AB113: 436943
A114: =IF(COUNTRY_INFO!A114=0," ",COUNTRY_INFO!A114) -> Nigeria | B114: =IF(COUNTRY_INFO!B114=0," ",COUNTRY_INFO!B114) -> Bauchi | C114: =IF(COUNTRY_INFO!C114=0," ",COUNTRY_INFO!C114) -> Shira | D114: =IF(COUNTRY_INFO!$U$9:$U$1000="MDA1 (IVM+ALB)", COUNTRY_INFO!$U$9:$U$1000, " ") ->  | I114: 0 | M114: 0 | W114: 0
A115: =IF(COUNTRY_INFO!A115=0," ",COUNTRY_INFO!A115) -> Nigeria | B115: =IF(COUNTRY_INFO!B115=0," ",COUNTRY_INFO!B115) -> Bauchi | C115: =IF(COUNTRY_INFO!C115=0," ",COUNTRY_INFO!C115) -> Tafawa-Balewa | D115: =IF(COUNTRY_INFO!$U$9:$U$1000="MDA1 (IVM+ALB)", COUNTRY_INFO!$U$9:$U$1000, " ") -> MDA1 (IVM+ALB) | E115: Dec 2020 | G115: 87031 | H115: 161629 | I115: 248660 | K115: 87052.35 | L115: 161668.65 | M115: 248721 | O115: 100.0245315 | P115: 100.0245315 | Q115: 100.0245315 | V115: 248721 | W115: 248721 | Y115: =T3_R1!L115 -> 0 | AB115: 248721
A116: =IF(COUNTRY_INFO!A116=0," ",COUNTRY_INFO!A116) -> Nigeria | B116: =IF(COUNTRY_INFO!B116=0," ",COUNTRY_INFO!B116) -> Bauchi | C116: =IF(COUNTRY_INFO!C116=0," ",COUNTRY_INFO!C116) -> Toro | D116: =IF(COUNTRY_INFO!$U$9:$U$1000="MDA1 (IVM+ALB)", COUNTRY_INFO!$U$9:$U$1000, " ") -> MDA1 (IVM+ALB) | E116: Dec 2020 | G116: 138626 | H116: 257448 | I116: 396074 | K116: 138513.2 | L116: 257238.8 | M116: 395752 | O116: 99.91862998 | P116: 99.91874087 | Q116: 99.91870206 | V116: 395752 | W116: 395752 | Y116: =T3_R1!L116 -> 0 | AB116: 395752
A117: =IF(COUNTRY_INFO!A117=0," ",COUNTRY_INFO!A117) -> Nigeria | B117: =IF(COUNTRY_INFO!B117=0," ",COUNTRY_INFO!B117) -> Bauchi | C117: =IF(COUNTRY_INFO!C117=0," ",COUNTRY_INFO!C117) -> Warji | D117: =IF(COUNTRY_INFO!$U$9:$U$1000="MDA1 (IVM+ALB)", COUNTRY_INFO!$U$9:$U$1000, " ") -> MDA1 (IVM+ALB) | E117: Dec 2020 | G117: 45385 | H117: 84287 | I117: 129672 | K117: 45353 | L117: 84227 | M117: 129580 | O117: 99.92949212 | P117: 99.92881465 | Q117: 99.92905176 | V117: 129580 | W117: 129580 | Y117: =T3_R1!L117 -> 0 | AB117: 129580
A118: =IF(COUNTRY_INFO!A118=0," ",COUNTRY_INFO!A118) -> Nigeria | B118: =IF(COUNTRY_INFO!B118=0," ",COUNTRY_INFO!B118) -> Bauchi | C118: =IF(COUNTRY_INFO!C118=0," ",COUNTRY_INFO!C118) -> Zaki | D118: =IF(COUNTRY_INFO!$U$9:$U$1000="MDA1 (IVM+ALB)", COUNTRY_INFO!$U$9:$U$1000, " ") ->  | I118: 0 | L118: 0 | M118: 0 | V118: 0 | W118: 0 | AB118: 0
A119: =IF(COUNTRY_INFO!A119=0," ",COUNTRY_INFO!A119) -> Nigeria | B119: =IF(COUNTRY_INFO!B119=0," ",COUNTRY_INFO!B119) -> Bayelsa | C119: =IF(COUNTRY_INFO!C119=0," ",COUNTRY_INFO!C119) -> Brass | D119: =IF(COUNTRY_INFO!$U$9:$U$1000="MDA1 (IVM+ALB)", COUNTRY_INFO!$U$9:$U$1000, " ") ->  | I119: 0 | M119: 0 | W119: 0
A120: =IF(COUNTRY_INFO!A120=0," ",COUNTRY_INFO!A120) -> Nigeria | B120: =IF(COUNTRY_INFO!B120=0," ",COUNTRY_INFO!B120) -> Bayelsa | C120: =IF(COUNTRY_INFO!C120=0," ",COUNTRY_INFO!C120) -> Ekeremo | D120: =IF(COUNTRY_INFO!$U$9:$U$1000="MDA1 (IVM+ALB)", COUNTRY_INFO!$U$9:$U$1000, " ") ->  | I120: 0 | L120: 0 | M120: 0 | V120: 0 | W120: 0 | AB120: 0
A121: =IF(COUNTRY_INFO!A121=0," ",COUNTRY_INFO!A121) -> Nigeria | B121: =IF(COUNTRY_INFO!B121=0," ",COUNTRY_INFO!B121) -> Bayelsa | C121: =IF(COUNTRY_INFO!C121=0," ",COUNTRY_INFO!C121) -> Kolokuma/Opokuma | D121: =IF(COUNTRY_INFO!$U$9:$U$1000="MDA1 (IVM+ALB)", COUNTRY_INFO!$U$9:$U$1000, " ") -> MDA1 (IVM+ALB) | E121: Dec 2020 | G121: 30579 | H121: 56790 | I121: 87369 | K121: 15555 | L121: 72410 | M121: 87965 | O121: 50.86824291 | P121: 127.5048424 | Q121: 100.6821642 | U121: 15555 | V121: 72410 | W121: 87965 | AA121: 15555 | AB121: 72410
A122: =IF(COUNTRY_INFO!A122=0," ",COUNTRY_INFO!A122) -> Nigeria | B122: =IF(COUNTRY_INFO!B122=0," ",COUNTRY_INFO!B122) -> Bayelsa | C122: =IF(COUNTRY_INFO!C122=0," ",COUNTRY_INFO!C122) -> Nembe | D122: =IF(COUNTRY_INFO!$U$9:$U$1000="MDA1 (IVM+ALB)", COUNTRY_INFO!$U$9:$U$1000, " ") -> MDA1 (IVM+ALB) | E122: Dec 2020 | G122: 51801 | H122: 96201 | I122: 148002 | K122: 51216 | L122: 73308 | M122: 124524 | O122: 98.87067817 | P122: 76.20295007 | Q122: 84.13670086 | U122: 51216 | V122: 73308 | W122: 124524 | AA122: 51216 | AB122: 73308
A123: =IF(COUNTRY_INFO!A123=0," ",COUNTRY_INFO!A123) -> Nigeria | B123: =IF(COUNTRY_INFO!B123=0," ",COUNTRY_INFO!B123) -> Bayelsa | C123: =IF(COUNTRY_INFO!C123=0," ",COUNTRY_INFO!C123) -> Ogbia | D123: =IF(COUNTRY_INFO!$U$9:$U$1000="MDA1 (IVM+ALB)", COUNTRY_INFO!$U$9:$U$1000, " ") -> MDA1 (IVM+ALB) | E123: Dec 2020 | G123: 71185 | H123: 132200 | I123: 203385 | K123: 69729 | L123: 113745 | M123: 183474 | O123: 97.95462527 | P123: 86.04009077 | Q123: 90.21019249 | U123: 69729 | V123: 113745 | W123: 183474 | AA123: 69729 | AB123: 113745
A124: =IF(COUNTRY_INFO!A124=0," ",COUNTRY_INFO!A124) -> Nigeria | B124: =IF(COUNTRY_INFO!B124=0," ",COUNTRY_INFO!B124) -> Bayelsa | C124: =IF(COUNTRY_INFO!C124=0," ",COUNTRY_INFO!C124) -> Sagbama | D124: =IF(COUNTRY_INFO!$U$9:$U$1000="MDA1 (IVM+ALB)", COUNTRY_INFO!$U$9:$U$1000, " ") ->  | I124: 0 | M124: 0 | W124: 0
A125: =IF(COUNTRY_INFO!A125=0," ",COUNTRY_INFO!A125) -> Nigeria | B125: =IF(COUNTRY_INFO!B125=0," ",COUNTRY_INFO!B125) -> Bayelsa | C125: =IF(COUNTRY_INFO!C125=0," ",COUNTRY_INFO!C125) -> Southern Ijaw | D125: =IF(COUNTRY_INFO!$U$9:$U$1000="MDA1 (IVM+ALB)", COUNTRY_INFO!$U$9:$U$1000, " ") -> MDA1 (IVM+ALB) | E125: Dec 2020 | G125: 126370 | H125: 234688 | I125: 361058 | K125: 136124 | L125: 190617 | M125: 326741 | O125: 107.7186041 | P125: 81.22145146 | Q125: 90.49543287 | U125: 136124 | V125: 190617 | W125: 326741 | AA125: 136124 | AB125: 190617
A126: =IF(COUNTRY_INFO!A126=0," ",COUNTRY_INFO!A126) -> Nigeria | B126: =IF(COUNTRY_INFO!B126=0," ",COUNTRY_INFO!B126) -> Bayelsa | C126: =IF(COUNTRY_INFO!C126=0," ",COUNTRY_INFO!C126) -> Yenegoa | D126: =IF(COUNTRY_INFO!$U$9:$U$1000="MDA1 (IVM+ALB)", COUNTRY_INFO!$U$9:$U$1000, " ") ->  | I126: 0 | M126: 0 | W126: 0
A127: =IF(COUNTRY_INFO!A127=0," ",COUNTRY_INFO!A127) -> Nigeria | B127: =IF(COUNTRY_INFO!B127=0," ",COUNTRY_INFO!B127) -> Benue | C127: =IF(COUNTRY_INFO!C127=0," ",COUNTRY_INFO!C127) -> Ado | D127: =IF(COUNTRY_INFO!$U$9:$U$1000="MDA1 (IVM+ALB)", COUNTRY_INFO!$U$9:$U$1000, " ") -> MDA1 (IVM+ALB) | E127: Dec 2020 | G127: 70772 | H127: 131433 | I127: 202205 | K127: 75618 | L127: 93753 | M127: 169371 | O127: 106.8473408 | P127: 71.33140079 | Q127: 83.76202369 | U127: 75618 | V127: 93753 | W127: 169371 | AA127: 75618 | AB127: 93753
A128: =IF(COUNTRY_INFO!A128=0," ",COUNTRY_INFO!A128) -> Nigeria | B128: =IF(COUNTRY_INFO!B128=0," ",COUNTRY_INFO!B128) -> Benue | C128: =IF(COUNTRY_INFO!C128=0," ",COUNTRY_INFO!C128) -> Agatu | D128: =IF(COUNTRY_INFO!$U$9:$U$1000="MDA1 (IVM+ALB)", COUNTRY_INFO!$U$9:$U$1000, " ") ->  | I128: 0 | K128: 0 | L128: 0 | M128: 0 | U128: 0 | V128: 0 | W128: 0 | AA128: 0 | AB128: 0
A129: =IF(COUNTRY_INFO!A129=0," ",COUNTRY_INFO!A129) -> Nigeria | B129: =IF(COUNTRY_INFO!B129=0," ",COUNTRY_INFO!B129) -> Benue | C129: =IF(COUNTRY_INFO!C129=0," ",COUNTRY_INFO!C129) -> Apa | D129: =IF(COUNTRY_INFO!$U$9:$U$1000="MDA1 (IVM+ALB)", COUNTRY_INFO!$U$9:$U$1000, " ") -> MDA1 (IVM+ALB) | E129: Dec 2020 | G129: 38283 | H129: 71098 | I129: 109381 | K129: 39715 | L129: 51193 | M129: 90908 | O129: 103.7405637 | P129: 72.00343188 | Q129: 83.11132646 | U129: 39715 | V129: 51193 | W129: 90908 | AA129: 39715 | AB129: 51193
A130: =IF(COUNTRY_INFO!A130=0," ",COUNTRY_INFO!A130) -> Nigeria | B130: =IF(COUNTRY_INFO!B130=0," ",COUNTRY_INFO!B130) -> Benue | C130: =IF(COUNTRY_INFO!C130=0," ",COUNTRY_INFO!C130) -> Buruku | D130: =IF(COUNTRY_INFO!$U$9:$U$1000="MDA1 (IVM+ALB)", COUNTRY_INFO!$U$9:$U$1000, " ") ->  | I130: 0 | K130: 0 | L130: 0 | M130: 0 | U130: 0 | V130: 0 | W130: 0 | AA130: 0 | AB130: 0
A131: =IF(COUNTRY_INFO!A131=0," ",COUNTRY_INFO!A131) -> Nigeria | B131: =IF(COUNTRY_INFO!B131=0," ",COUNTRY_INFO!B131) -> Benue | C131: =IF(COUNTRY_INFO!C131=0," ",COUNTRY_INFO!C131) -> Gboko | D131: =IF(COUNTRY_INFO!$U$9:$U$1000="MDA1 (IVM+ALB)", COUNTRY_INFO!$U$9:$U$1000, " ") -> MDA1 (IVM+ALB) | E131: Dec 2020 | G131: 142007 | H131: 263727 | I131: 405734 | K131: 122084 | L131: 208024 | M131: 330108 | O131: 85.97040991 | P131: 78.87853728 | Q131: 81.36069445 | U131: 122084 | V131: 208024 | W131: 330108 | AA131: 122084 | AB131: 208024
A132: =IF(COUNTRY_INFO!A132=0," ",COUNTRY_INFO!A132) -> Nigeria | B132: =IF(COUNTRY_INFO!B132=0," ",COUNTRY_INFO!B132) -> Benue | C132: =IF(COUNTRY_INFO!C132=0," ",COUNTRY_INFO!C132) -> Guma | D132: =IF(COUNTRY_INFO!$U$9:$U$1000="MDA1 (IVM+ALB)", COUNTRY_INFO!$U$9:$U$1000, " ") -> MDA1 (IVM+ALB) | E132: Dec 2020 | G132: 75803 | H132: 140777 | I132: 216580 | K132: 90325 | L132: 90522 | M132: 180847 | O132: 119.1575531 | P132: 64.30169701 | Q132: 83.50124665 | U132: 90325 | V132: 90522 | W132: 180847 | AA132: 90325 | AB132: 90522
A133: =IF(COUNTRY_INFO!A133=0," ",COUNTRY_INFO!A133) -> Nigeria | B133: =IF(COUNTRY_INFO!B133=0," ",COUNTRY_INFO!B133) -> Benue | C133: =IF(COUNTRY_INFO!C133=0," ",COUNTRY_INFO!C133) -> Gwer East | D133: =IF(COUNTRY_INFO!$U$9:$U$1000="MDA1 (IVM+ALB)", COUNTRY_INFO!$U$9:$U$1000, " ") -> MDA1 (IVM+ALB) | E133: Dec 2020 | G133: 64744 | H133: 120239 | I133: 184983 | K133: 54346 | L133: 100042 | M133: 154388 | O133: 83.93982454 | P133: 83.20262145 | Q133: 83.46064233 | U133: 54346 | V133: 100042 | W133: 154388 | AA133: 54346 | AB133: 100042
A134: =IF(COUNTRY_INFO!A134=0," ",COUNTRY_INFO!A134) -> Nigeria | B134: =IF(COUNTRY_INFO!B134=0," ",COUNTRY_INFO!B134) -> Benue | C134: =IF(COUNTRY_INFO!C134=0," ",COUNTRY_INFO!C134) -> Gwer West | D134: =IF(COUNTRY_INFO!$U$9:$U$1000="MDA1 (IVM+ALB)", COUNTRY_INFO!$U$9:$U$1000, " ") ->  | I134: 0 | K134: 0 | L134: 0 | M134: 0 | U134: 0 | V134: 0 | W134: 0 | AA134: 0 | AB134: 0
A135: =IF(COUNTRY_INFO!A135=0," ",COUNTRY_INFO!A135) -> Nigeria | B135: =IF(COUNTRY_INFO!B135=0," ",COUNTRY_INFO!B135) -> Benue | C135: =IF(COUNTRY_INFO!C135=0," ",COUNTRY_INFO!C135) -> Katsina-Ala | D135: =IF(COUNTRY_INFO!$U$9:$U$1000="MDA1 (IVM+ALB)", COUNTRY_INFO!$U$9:$U$1000, " ") -> MDA1 (IVM+ALB) | E135: Dec 2020 | G135: 88906 | H135: 165111 | I135: 254017 | K135: 36816 | L135: 172788 | M135: 209604 | O135: 41.41002857 | P135: 104.6495994 | Q135: 82.51573714 | U135: 36816 | V135: 172788 | W135: 209604 | AA135: 36816 | AB135: 172788
A136: =IF(COUNTRY_INFO!A136=0," ",COUNTRY_INFO!A136) -> Nigeria | B136: =IF(COUNTRY_INFO!B136=0," ",COUNTRY_INFO!B136) -> Benue | C136: =IF(COUNTRY_INFO!C136=0," ",COUNTRY_INFO!C136) -> Konshisha | D136: =IF(COUNTRY_INFO!$U$9:$U$1000="MDA1 (IVM+ALB)", COUNTRY_INFO!$U$9:$U$1000, " ") -> MDA1 (IVM+ALB) | E136: Dec 2020 | G136: 89283 | H136: 165812 | I136: 255095 | K136: 65406 | L136: 148125 | M136: 213531 | O136: 73.25694701 | P136: 89.33310014 | Q136: 83.7064623 | U136: 65406 | V136: 148125 | W136: 213531 | AA136: 65406 | AB136: 148125
A137: =IF(COUNTRY_INFO!A137=0," ",COUNTRY_INFO!A137) -> Nigeria | B137: =IF(COUNTRY_INFO!B137=0," ",COUNTRY_INFO!B137) -> Benue | C137: =IF(COUNTRY_INFO!C137=0," ",COUNTRY_INFO!C137) -> Kwande | D137: =IF(COUNTRY_INFO!$U$9:$U$1000="MDA1 (IVM+ALB)", COUNTRY_INFO!$U$9:$U$1000, " ") -> MDA1 (IVM+ALB) | E137: Dec 2020 | G137: 98393 | H137: 182729 | I137: 281122 | K137: 75871 | L137: 158184 | M137: 234055 | O137: 77.11016028 | P137: 86.56753991 | Q137: 83.25744694 | U137: 75871 | V137: 158184 | W137: 234055 | AA137: 75871 | AB137: 158184
A138: =IF(COUNTRY_INFO!A138=0," ",COUNTRY_INFO!A138) -> Nigeria | B138: =IF(COUNTRY_INFO!B138=0," ",COUNTRY_INFO!B138) -> Benue | C138: =IF(COUNTRY_INFO!C138=0," ",COUNTRY_INFO!C138) -> Logo | D138: =IF(COUNTRY_INFO!$U$9:$U$1000="MDA1 (IVM+ALB)", COUNTRY_INFO!$U$9:$U$1000, " ") -> MDA1 (IVM+ALB) | E138: Dec 2020 | G138: 66887 | H138: 124218 | I138: =SUM(F138:H138) -> 191105 | K138: 70224 | L138: 88097 | M138: =SUM(J138:L138) -> 158321 | O138: =IF(G138<>0, IF(K138/G138*100=0, "-", K138/G138*100), " ") -> 104.9890113 | P138: =IF(H138<>0, IF(L138/H138*100=0, "-", L138/H138*100), " ") -> 70.92128355 | Q138: =IF(I138<>0, IF(M138/I138*100=0, "-", M138/I138*100), " ") -> 82.84503284 | U138: 70224 | V138: 88097 | W138: 158321 | AA138: 70224 | AB138: 88097
A139: =IF(COUNTRY_INFO!A139=0," ",COUNTRY_INFO!A139) -> Nigeria | B139: =IF(COUNTRY_INFO!B139=0," ",COUNTRY_INFO!B139) -> Benue | C139: =IF(COUNTRY_INFO!C139=0," ",COUNTRY_INFO!C139) -> Makurdi | D139: =IF(COUNTRY_INFO!$U$9:$U$1000="MDA1 (IVM+ALB)", COUNTRY_INFO!$U$9:$U$1000, " ") -> MDA1 (IVM+ALB) | E139: Dec 2020 | G139: 117660 | H139: 218512 | I139: 336172 | K139: 26584 | L139: 59301 | M139: 85885 | O139: 22.59391467 | P139: 27.13855532 | Q139: 25.5479338 | U139: 26584 | V139: 59301 | W139: 85885 | AA139: 26584 | AB139: 59301
A140: =IF(COUNTRY_INFO!A140=0," ",COUNTRY_INFO!A140) -> Nigeria | B140: =IF(COUNTRY_INFO!B140=0," ",COUNTRY_INFO!B140) -> Benue | C140: =IF(COUNTRY_INFO!C140=0," ",COUNTRY_INFO!C140) -> Obi | D140: =IF(COUNTRY_INFO!$U$9:$U$1000="MDA1 (IVM+ALB)", COUNTRY_INFO!$U$9:$U$1000, " ") -> MDA1 (IVM+ALB) | E140: Dec 2020 | G140: 39110 | H140: 72633 | I140: 111743 | K140: 32751 | L140: 58141 | M140: 90892 | O140: 83.74073127 | P140: 80.04763675 | Q140: 81.34021818 | U140: 32751 | V140: 58141 | W140: 90892 | AA140: 32751 | AB140: 58141
A141: =IF(COUNTRY_INFO!A141=0," ",COUNTRY_INFO!A141) -> Nigeria | B141: =IF(COUNTRY_INFO!B141=0," ",COUNTRY_INFO!B141) -> Benue | C141: =IF(COUNTRY_INFO!C141=0," ",COUNTRY_INFO!C141) -> Ogbadibo | D141: =IF(COUNTRY_INFO!$U$9:$U$1000="MDA1 (IVM+ALB)", COUNTRY_INFO!$U$9:$U$1000, " ") ->  | I141: 0 | K141: 0 | L141: 0 | M141: 0 | U141: 0 | V141: 0 | W141: 0 | AA141: 0 | AB141: 0
A142: =IF(COUNTRY_INFO!A142=0," ",COUNTRY_INFO!A142) -> Nigeria | B142: =IF(COUNTRY_INFO!B142=0," ",COUNTRY_INFO!B142) -> Benue | C142: =IF(COUNTRY_INFO!C142=0," ",COUNTRY_INFO!C142) -> Ohimini | D142: =IF(COUNTRY_INFO!$U$9:$U$1000="MDA1 (IVM+ALB)", COUNTRY_INFO!$U$9:$U$1000, " ") -> MDA1 (IVM+ALB) | E142: Dec 2020 | G142: 28281 | H142: 52521 | I142: 80802 | K142: 17111 | L142: 50218 | M142: 67329 | O142: 60.50351826 | P142: 95.6150873 | Q142: 83.32590777 | U142: 17111 | V142: 50218 | W142: 67329 | AA142: 17111 | AB142: 50218
A143: =IF(COUNTRY_INFO!A143=0," ",COUNTRY_INFO!A143) -> Nigeria | B143: =IF(COUNTRY_INFO!B143=0," ",COUNTRY_INFO!B143) -> Benue | C143: =IF(COUNTRY_INFO!C143=0," ",COUNTRY_INFO!C143) -> Oju | D143: =IF(COUNTRY_INFO!$U$9:$U$1000="MDA1 (IVM+ALB)", COUNTRY_INFO!$U$9:$U$1000, " ") -> MDA1 (IVM+ALB) | E143: Dec 2020 | G143: 67351 | H143: 125080 | I143: 192431 | K143: 56914 | L143: 100638 | M143: 157552 | O143: 84.50357085 | P143: 80.4589063 | Q143: 81.87454204 | U143: 56914 | V143: 100638 | W143: 157552 | AA143: 56914 | AB143: 100638
A144: =IF(COUNTRY_INFO!A144=0," ",COUNTRY_INFO!A144) -> Nigeria | B144: =IF(COUNTRY_INFO!B144=0," ",COUNTRY_INFO!B144) -> Benue | C144: =IF(COUNTRY_INFO!C144=0," ",COUNTRY_INFO!C144) -> Okpokwu | D144: =IF(COUNTRY_INFO!$U$9:$U$1000="MDA1 (IVM+ALB)", COUNTRY_INFO!$U$9:$U$1000, " ") ->  | I144: 0 | K144: 0 | L144: 0 | M144: 0 | U144: 0 | V144: 0 | W144: 0 | AA144: 0 | AB144: 0
A145: =IF(COUNTRY_INFO!A145=0," ",COUNTRY_INFO!A145) -> Nigeria | B145: =IF(COUNTRY_INFO!B145=0," ",COUNTRY_INFO!B145) -> Benue | C145: =IF(COUNTRY_INFO!C145=0," ",COUNTRY_INFO!C145) -> Otukpo | D145: =IF(COUNTRY_INFO!$U$9:$U$1000="MDA1 (IVM+ALB)", COUNTRY_INFO!$U$9:$U$1000, " ") -> MDA1 (IVM+ALB) | E145: Dec 2020 | G145: 103524 | H145: 192258 | I145: 295782 | K145: 94450 | L145: 151496 | M145: 245946 | O145: 91.23488273 | P145: 78.79828148 | Q145: 83.15110453 | U145: 94450 | V145: 151496 | W145: 245946 | AA145: 94450 | AB145: 151496
A146: =IF(COUNTRY_INFO!A146=0," ",COUNTRY_INFO!A146) -> Nigeria | B146: =IF(COUNTRY_INFO!B146=0," ",COUNTRY_INFO!B146) -> Benue | C146: =IF(COUNTRY_INFO!C146=0," ",COUNTRY_INFO!C146) -> Tarka | D146: =IF(COUNTRY_INFO!$U$9:$U$1000="MDA1 (IVM+ALB)", COUNTRY_INFO!$U$9:$U$1000, " ") -> MDA1 (IVM+ALB) | E146: Dec 2020 | G146: 31450 | H146: 58408 | I146: 89858 | K146: 26744 | L146: 48256 | M146: 75000 | O146: 85.03656598 | P146: 82.61881934 | Q146: 83.46502259 | U146: 26744 | V146: 48256 | W146: 75000 | AA146: 26744 | AB146: 48256
A147: =IF(COUNTRY_INFO!A147=0," ",COUNTRY_INFO!A147) -> Nigeria | B147: =IF(COUNTRY_INFO!B147=0," ",COUNTRY_INFO!B147) -> Benue | C147: =IF(COUNTRY_INFO!C147=0," ",COUNTRY_INFO!C147) -> Ukum | D147: =IF(COUNTRY_INFO!$U$9:$U$1000="MDA1 (IVM+ALB)", COUNTRY_INFO!$U$9:$U$1000, " ") -> MDA1 (IVM+ALB) | E147: Dec 2020 | G147: 85825 | H147: 159389 | I147: 245214 | K147: 80727 | L147: 123371 | M147: 204098 | O147: 94.06000583 | P147: 77.40245563 | Q147: 83.23260499 | U147: 80727 | V147: 123371 | W147: 204098 | AA147: 80727 | AB147: 123371
A148: =IF(COUNTRY_INFO!A148=0," ",COUNTRY_INFO!A148) -> Nigeria | B148: =IF(COUNTRY_INFO!B148=0," ",COUNTRY_INFO!B148) -> Benue | C148: =IF(COUNTRY_INFO!C148=0," ",COUNTRY_INFO!C148) -> Ushongo | D148: =IF(COUNTRY_INFO!$U$9:$U$1000="MDA1 (IVM+ALB)", COUNTRY_INFO!$U$9:$U$1000, " ") ->  | I148: 0 | K148: 0 | L148: 0 | M148: 0 | U148: 0 | V148: 0 | W148: 0 | AA148: 0 | AB148: 0
A149: =IF(COUNTRY_INFO!A149=0," ",COUNTRY_INFO!A149) -> Nigeria | B149: =IF(COUNTRY_INFO!B149=0," ",COUNTRY_INFO!B149) -> Benue | C149: =IF(COUNTRY_INFO!C149=0," ",COUNTRY_INFO!C149) -> Vandeikya | D149: =IF(COUNTRY_INFO!$U$9:$U$1000="MDA1 (IVM+ALB)", COUNTRY_INFO!$U$9:$U$1000, " ") ->  | I149: 0 | K149: 0 | L149: 0 | M149: 0 | U149: 0 | V149: 0 | W149: 0 | AA149: 0 | AB149: 0
A150: =IF(COUNTRY_INFO!A150=0," ",COUNTRY_INFO!A150) -> Nigeria | B150: =IF(COUNTRY_INFO!B150=0," ",COUNTRY_INFO!B150) -> Borno | C150: =IF(COUNTRY_INFO!C150=0," ",COUNTRY_INFO!C150) -> Abadam | D150: =IF(COUNTRY_INFO!$U$9:$U$1000="MDA1 (IVM+ALB)", COUNTRY_INFO!$U$9:$U$1000, " ") ->  | I150: 0 | M150: 0 | W150: 0
A151: =IF(COUNTRY_INFO!A151=0," ",COUNTRY_INFO!A151) -> Nigeria | B151: =IF(COUNTRY_INFO!B151=0," ",COUNTRY_INFO!B151) -> Borno | C151: =IF(COUNTRY_INFO!C151=0," ",COUNTRY_INFO!C151) -> Askira/Uba | D151: =IF(COUNTRY_INFO!$U$9:$U$1000="MDA1 (IVM+ALB)", COUNTRY_INFO!$U$9:$U$1000, " ") ->  | I151: 0 | L151: 0 | M151: 0 | V151: 0 | W151: 0 | AB151: 0
A152: =IF(COUNTRY_INFO!A152=0," ",COUNTRY_INFO!A152) -> Nigeria | B152: =IF(COUNTRY_INFO!B152=0," ",COUNTRY_INFO!B152) -> Borno | C152: =IF(COUNTRY_INFO!C152=0," ",COUNTRY_INFO!C152) -> Bama | D152: =IF(COUNTRY_INFO!$U$9:$U$1000="MDA1 (IVM+ALB)", COUNTRY_INFO!$U$9:$U$1000, " ") ->  | I152: 0 | L152: 0 | M152: 0 | V152: 0 | W152: 0 | AB152: 0
A153: =IF(COUNTRY_INFO!A153=0," ",COUNTRY_INFO!A153) -> Nigeria | B153: =IF(COUNTRY_INFO!B153=0," ",COUNTRY_INFO!B153) -> Borno | C153: =IF(COUNTRY_INFO!C153=0," ",COUNTRY_INFO!C153) -> Bayo | D153: =IF(COUNTRY_INFO!$U$9:$U$1000="MDA1 (IVM+ALB)", COUNTRY_INFO!$U$9:$U$1000, " ") ->  | I153: 0 | L153: 0 | M153: 0 | V153: 0 | W153: 0 | AB153: 0
A154: =IF(COUNTRY_INFO!A154=0," ",COUNTRY_INFO!A154) -> Nigeria | B154: =IF(COUNTRY_INFO!B154=0," ",COUNTRY_INFO!B154) -> Borno | C154: =IF(COUNTRY_INFO!C154=0," ",COUNTRY_INFO!C154) -> Biu | D154: =IF(COUNTRY_INFO!$U$9:$U$1000="MDA1 (IVM+ALB)", COUNTRY_INFO!$U$9:$U$1000, " ") ->  | I154: 0 | M154: 0 | W154: 0
A155: =IF(COUNTRY_INFO!A155=0," ",COUNTRY_INFO!A155) -> Nigeria | B155: =IF(COUNTRY_INFO!B155=0," ",COUNTRY_INFO!B155) -> Borno | C155: =IF(COUNTRY_INFO!C155=0," ",COUNTRY_INFO!C155) -> Chibok | D155: =IF(COUNTRY_INFO!$U$9:$U$1000="MDA1 (IVM+ALB)", COUNTRY_INFO!$U$9:$U$1000, " ") ->  | I155: 0 | L155: 0 | M155: 0 | V155: 0 | W155: 0 | AB155: 0
A156: =IF(COUNTRY_INFO!A156=0," ",COUNTRY_INFO!A156) -> Nigeria | B156: =IF(COUNTRY_INFO!B156=0," ",COUNTRY_INFO!B156) -> Borno | C156: =IF(COUNTRY_INFO!C156=0," ",COUNTRY_INFO!C156) -> Damboa | D156: =IF(COUNTRY_INFO!$U$9:$U$1000="MDA1 (IVM+ALB)", COUNTRY_INFO!$U$9:$U$1000, " ") ->  | I156: 0 | M156: 0 | W156: 0
A157: =IF(COUNTRY_INFO!A157=0," ",COUNTRY_INFO!A157) -> Nigeria | B157: =IF(COUNTRY_INFO!B157=0," ",COUNTRY_INFO!B157) -> Borno | C157: =IF(COUNTRY_INFO!C157=0," ",COUNTRY_INFO!C157) -> Dikwa | D157: =IF(COUNTRY_INFO!$U$9:$U$1000="MDA1 (IVM+ALB)", COUNTRY_INFO!$U$9:$U$1000, " ") ->  | I157: 0 | L157: 0 | M157: 0 | V157: 0 | W157: 0 | AB157: 0
A158: =IF(COUNTRY_INFO!A158=0," ",COUNTRY_INFO!A158) -> Nigeria | B158: =IF(COUNTRY_INFO!B158=0," ",COUNTRY_INFO!B158) -> Borno | C158: =IF(COUNTRY_INFO!C158=0," ",COUNTRY_INFO!C158) -> Gubio | D158: =IF(COUNTRY_INFO!$U$9:$U$1000="MDA1 (IVM+ALB)", COUNTRY_INFO!$U$9:$U$1000, " ") -> MDA1 (IVM+ALB) | E158: Feb 2020 | G158: 60444 | H158: 112253 | I158: 172697 | K158: 2416.75 | L158: 4488.25 | M158: 6905 | O158: 3.998329032 | P158: 3.99833412 | Q158: 3.998332339 | V158: 6905 | W158: 6905 | Y158: =T3_R1!L158 -> 0 | AB158: 6905
A159: =IF(COUNTRY_INFO!A159=0," ",COUNTRY_INFO!A159) -> Nigeria | B159: =IF(COUNTRY_INFO!B159=0," ",COUNTRY_INFO!B159) -> Borno | C159: =IF(COUNTRY_INFO!C159=0," ",COUNTRY_INFO!C159) -> Guzamala | D159: =IF(COUNTRY_INFO!$U$9:$U$1000="MDA1 (IVM+ALB)", COUNTRY_INFO!$U$9:$U$1000, " ") ->  | I159: 0 | M159: 0 | W159: 0
A160: =IF(COUNTRY_INFO!A160=0," ",COUNTRY_INFO!A160) -> Nigeria | B160: =IF(COUNTRY_INFO!B160=0," ",COUNTRY_INFO!B160) -> Borno | C160: =IF(COUNTRY_INFO!C160=0," ",COUNTRY_INFO!C160) -> Gwoza | D160: =IF(COUNTRY_INFO!$U$9:$U$1000="MDA1 (IVM+ALB)", COUNTRY_INFO!$U$9:$U$1000, " ") ->  | I160: 0 | L160: 0 | M160: 0 | V160: 0 | W160: 0 | AB160: 0
A161: =IF(COUNTRY_INFO!A161=0," ",COUNTRY_INFO!A161) -> Nigeria | B161: =IF(COUNTRY_INFO!B161=0," ",COUNTRY_INFO!B161) -> Borno | C161: =IF(COUNTRY_INFO!C161=0," ",COUNTRY_INFO!C161) -> Hawul | D161: =IF(COUNTRY_INFO!$U$9:$U$1000="MDA1 (IVM+ALB)", COUNTRY_INFO!$U$9:$U$1000, " ") ->  | I161: 0 | M161: 0 | W161: 0
A162: =IF(COUNTRY_INFO!A162=0," ",COUNTRY_INFO!A162) -> Nigeria | B162: =IF(COUNTRY_INFO!B162=0," ",COUNTRY_INFO!B162) -> Borno | C162: =IF(COUNTRY_INFO!C162=0," ",COUNTRY_INFO!C162) -> Jere | D162: =IF(COUNTRY_INFO!$U$9:$U$1000="MDA1 (IVM+ALB)", COUNTRY_INFO!$U$9:$U$1000, " ") ->  | I162: 0 | M162: 0 | W162: 0
A163: =IF(COUNTRY_INFO!A163=0," ",COUNTRY_INFO!A163) -> Nigeria | B163: =IF(COUNTRY_INFO!B163=0," ",COUNTRY_INFO!B163) -> Borno | C163: =IF(COUNTRY_INFO!C163=0," ",COUNTRY_INFO!C163) -> Kaga | D163: =IF(COUNTRY_INFO!$U$9:$U$1000="MDA1 (IVM+ALB)", COUNTRY_INFO!$U$9:$U$1000, " ") ->  | I163: 0 | L163: 0 | M163: 0 | V163: 0 | W163: 0 | AB163: 0
A164: =IF(COUNTRY_INFO!A164=0," ",COUNTRY_INFO!A164) -> Nigeria | B164: =IF(COUNTRY_INFO!B164=0," ",COUNTRY_INFO!B164) -> Borno | C164: =IF(COUNTRY_INFO!C164=0," ",COUNTRY_INFO!C164) -> Kala Balge | D164: =IF(COUNTRY_INFO!$U$9:$U$1000="MDA1 (IVM+ALB)", COUNTRY_INFO!$U$9:$U$1000, " ") ->  | I164: 0 | L164: 0 | M164: 0 | V164: 0 | W164: 0 | AB164: 0
A165: =IF(COUNTRY_INFO!A165=0," ",COUNTRY_INFO!A165) -> Nigeria | B165: =IF(COUNTRY_INFO!B165=0," ",COUNTRY_INFO!B165) -> Borno | C165: =IF(COUNTRY_INFO!C165=0," ",COUNTRY_INFO!C165) -> Konduga | D165: =IF(COUNTRY_INFO!$U$9:$U$1000="MDA1 (IVM+ALB)", COUNTRY_INFO!$U$9:$U$1000, " ") ->  | I165: 0 | L165: 0 | M165: 0 | V165: 0 | W165: 0 | AB165: 0
A166: =IF(COUNTRY_INFO!A166=0," ",COUNTRY_INFO!A166) -> Nigeria | B166: =IF(COUNTRY_INFO!B166=0," ",COUNTRY_INFO!B166) -> Borno | C166: =IF(COUNTRY_INFO!C166=0," ",COUNTRY_INFO!C166) -> Kukawa | D166: =IF(COUNTRY_INFO!$U$9:$U$1000="MDA1 (IVM+ALB)", COUNTRY_INFO!$U$9:$U$1000, " ") ->  | I166: 0 | L166: 0 | M166: 0 | V166: 0 | W166: 0 | AB166: 0
A167: =IF(COUNTRY_INFO!A167=0," ",COUNTRY_INFO!A167) -> Nigeria | B167: =IF(COUNTRY_INFO!B167=0," ",COUNTRY_INFO!B167) -> Borno | C167: =IF(COUNTRY_INFO!C167=0," ",COUNTRY_INFO!C167) -> Kwaya Kusar | D167: =IF(COUNTRY_INFO!$U$9:$U$1000="MDA1 (IVM+ALB)", COUNTRY_INFO!$U$9:$U$1000, " ") ->  | I167: 0 | M167: 0 | W167: 0
A168: =IF(COUNTRY_INFO!A168=0," ",COUNTRY_INFO!A168) -> Nigeria | B168: =IF(COUNTRY_INFO!B168=0," ",COUNTRY_INFO!B168) -> Borno | C168: =IF(COUNTRY_INFO!C168=0," ",COUNTRY_INFO!C168) -> Mafa | D168: =IF(COUNTRY_INFO!$U$9:$U$1000="MDA1 (IVM+ALB)", COUNTRY_INFO!$U$9:$U$1000, " ") ->  | I168: 0 | L168: 0 | M168: 0 | V168: 0 | W168: 0 | AB168: 0
A169: =IF(COUNTRY_INFO!A169=0," ",COUNTRY_INFO!A169) -> Nigeria | B169: =IF(COUNTRY_INFO!B169=0," ",COUNTRY_INFO!B169) -> Borno | C169: =IF(COUNTRY_INFO!C169=0," ",COUNTRY_INFO!C169) -> Magumeri | D169: =IF(COUNTRY_INFO!$U$9:$U$1000="MDA1 (IVM+ALB)", COUNTRY_INFO!$U$9:$U$1000, " ") -> MDA1 (IVM+ALB) | E169: Feb 2020 | G169: 55480 | H169: 103034 | I169: 158514 | K169: 6662.6 | L169: 12373.4 | M169: 19036 | O169: 12.00901226 | P169: 12.00904556 | Q169: 12.0090339 | V169: 19036 | W169: 19036 | Y169: =T3_R1!L169 -> 0 | AB169: 19036
A170: =IF(COUNTRY_INFO!A170=0," ",COUNTRY_INFO!A170) -> Nigeria | B170: =IF(COUNTRY_INFO!B170=0," ",COUNTRY_INFO!B170) -> Borno | C170: =IF(COUNTRY_INFO!C170=0," ",COUNTRY_INFO!C170) -> Maiduguri | D170: =IF(COUNTRY_INFO!$U$9:$U$1000="MDA1 (IVM+ALB)", COUNTRY_INFO!$U$9:$U$1000, " ") -> MDA1 (IVM+ALB) | E170: Feb 2020 | G170: 206319 | H170: 383164 | I170: 589483 | K170: 12273.45 | L170: 22793.55 | M170: 35067 | O170: 5.948773501 | P170: 5.948771283 | Q170: 5.94877206 | V170: 35067 | W170: 35067 | Y170: =T3_R1!L170 -> 0 | AB170: 35067
A171: =IF(COUNTRY_INFO!A171=0," ",COUNTRY_INFO!A171) -> Nigeria | B171: =IF(COUNTRY_INFO!B171=0," ",COUNTRY_INFO!B171) -> Borno | C171: =IF(COUNTRY_INFO!C171=0," ",COUNTRY_INFO!C171) -> Marte | D171: =IF(COUNTRY_INFO!$U$9:$U$1000="MDA1 (IVM+ALB)", COUNTRY_INFO!$U$9:$U$1000, " ") ->  | I171: 0 | L171: 0 | M171: 0 | V171: 0 | W171: 0 | AB171: 0
A172: =IF(COUNTRY_INFO!A172=0," ",COUNTRY_INFO!A172) -> Nigeria | B172: =IF(COUNTRY_INFO!B172=0," ",COUNTRY_INFO!B172) -> Borno | C172: =IF(COUNTRY_INFO!C172=0," ",COUNTRY_INFO!C172) -> Mobbar | D172: =IF(COUNTRY_INFO!$U$9:$U$1000="MDA1 (IVM+ALB)", COUNTRY_INFO!$U$9:$U$1000, " ") -> MDA1 (IVM+ALB) | E172: Feb 2020 | G172: 46152 | H172: 85711 | I172: 131863 | K172: 3150 | L172: 5850 | M172: 9000 | O172: 6.825273011 | P172: 6.825261635 | Q172: 6.825265617 | V172: 9000 | W172: 9000 | Y172: =T3_R1!L172 -> 0 | AB172: 9000
A173: =IF(COUNTRY_INFO!A173=0," ",COUNTRY_INFO!A173) -> Nigeria | B173: =IF(COUNTRY_INFO!B173=0," ",COUNTRY_INFO!B173) -> Borno | C173: =IF(COUNTRY_INFO!C173=0," ",COUNTRY_INFO!C173) -> Monguno | D173: =IF(COUNTRY_INFO!$U$9:$U$1000="MDA1 (IVM+ALB)", COUNTRY_INFO!$U$9:$U$1000, " ") ->  | I173: 0 | M173: 0 | W173: 0
A174: =IF(COUNTRY_INFO!A174=0," ",COUNTRY_INFO!A174) -> Nigeria | B174: =IF(COUNTRY_INFO!B174=0," ",COUNTRY_INFO!B174) -> Borno | C174: =IF(COUNTRY_INFO!C174=0," ",COUNTRY_INFO!C174) -> Ngala | D174: =IF(COUNTRY_INFO!$U$9:$U$1000="MDA1 (IVM+ALB)", COUNTRY_INFO!$U$9:$U$1000, " ") ->  | I174: 0 | M174: 0 | W174: 0
A175: =IF(COUNTRY_INFO!A175=0," ",COUNTRY_INFO!A175) -> Nigeria | B175: =IF(COUNTRY_INFO!B175=0," ",COUNTRY_INFO!B175) -> Borno | C175: =IF(COUNTRY_INFO!C175=0," ",COUNTRY_INFO!C175) -> Nganzai | D175: =IF(COUNTRY_INFO!$U$9:$U$1000="MDA1 (IVM+ALB)", COUNTRY_INFO!$U$9:$U$1000, " ") -> MDA1 (IVM+ALB) | E175: Feb 2020 | G175: 39484 | H175: 73327 | I175: 112811 | K175: 14000 | L175: 26000 | M175: 40000 | O175: 35.45740047 | P175: 35.4576077 | Q175: 35.45753517 | V175: 40000 | W175: 40000 | Y175: =T3_R1!L175 -> 0 | AB175: 40000
A176: =IF(COUNTRY_INFO!A176=0," ",COUNTRY_INFO!A176) -> Nigeria | B176: =IF(COUNTRY_INFO!B176=0," ",COUNTRY_INFO!B176) -> Borno | C176: =IF(COUNTRY_INFO!C176=0," ",COUNTRY_INFO!C176) -> Shani | D176: =IF(COUNTRY_INFO!$U$9:$U$1000="MDA1 (IVM+ALB)", COUNTRY_INFO!$U$9:$U$1000, " ") ->  | I176: 0 | M176: 0 | W176: 0
A177: =IF(COUNTRY_INFO!A177=0," ",COUNTRY_INFO!A177) -> Nigeria | B177: =IF(COUNTRY_INFO!B177=0," ",COUNTRY_INFO!B177) -> Cross River | C177: =IF(COUNTRY_INFO!C177=0," ",COUNTRY_INFO!C177) -> Abi | D177: =IF(COUNTRY_INFO!$U$9:$U$1000="MDA1 (IVM+ALB)", COUNTRY_INFO!$U$9:$U$1000, " ") ->  | I177: 0 | M177: 0 | W177: 0
A178: =IF(COUNTRY_INFO!A178=0," ",COUNTRY_INFO!A178) -> Nigeria | B178: =IF(COUNTRY_INFO!B178=0," ",COUNTRY_INFO!B178) -> Cross River | C178: =IF(COUNTRY_INFO!C178=0," ",COUNTRY_INFO!C178) -> Akamkpa | D178: =IF(COUNTRY_INFO!$U$9:$U$1000="MDA1 (IVM+ALB)", COUNTRY_INFO!$U$9:$U$1000, " ") ->  | I178: 0 | M178: 0 | W178: 0
A179: =IF(COUNTRY_INFO!A179=0," ",COUNTRY_INFO!A179) -> Nigeria | B179: =IF(COUNTRY_INFO!B179=0," ",COUNTRY_INFO!B179) -> Cross River | C179: =IF(COUNTRY_INFO!C179=0," ",COUNTRY_INFO!C179) -> Akpabuyo | D179: =IF(COUNTRY_INFO!$U$9:$U$1000="MDA1 (IVM+ALB)", COUNTRY_INFO!$U$9:$U$1000, " ") ->  | I179: 0 | L179: 0 | M179: 0 | V179: 0 | W179: 0 | AB179: 0
A180: =IF(COUNTRY_INFO!A180=0," ",COUNTRY_INFO!A180) -> Nigeria | B180: =IF(COUNTRY_INFO!B180=0," ",COUNTRY_INFO!B180) -> Cross River | C180: =IF(COUNTRY_INFO!C180=0," ",COUNTRY_INFO!C180) -> Bakasi | D180: =IF(COUNTRY_INFO!$U$9:$U$1000="MDA1 (IVM+ALB)", COUNTRY_INFO!$U$9:$U$1000, " ") ->  | I180: 0 | L180: 0 | M180: 0 | V180: 0 | W180: 0 | AB180: 0
A181: =IF(COUNTRY_INFO!A181=0," ",COUNTRY_INFO!A181) -> Nigeria | B181: =IF(COUNTRY_INFO!B181=0," ",COUNTRY_INFO!B181) -> Cross River | C181: =IF(COUNTRY_INFO!C181=0," ",COUNTRY_INFO!C181) -> Bekwara | D181: =IF(COUNTRY_INFO!$U$9:$U$1000="MDA1 (IVM+ALB)", COUNTRY_INFO!$U$9:$U$1000, " ") ->  | I181: 0 | M181: 0 | W181: 0
A182: =IF(COUNTRY_INFO!A182=0," ",COUNTRY_INFO!A182) -> Nigeria | B182: =IF(COUNTRY_INFO!B182=0," ",COUNTRY_INFO!B182) -> Cross River | C182: =IF(COUNTRY_INFO!C182=0," ",COUNTRY_INFO!C182) -> Biase | D182: =IF(COUNTRY_INFO!$U$9:$U$1000="MDA1 (IVM+ALB)", COUNTRY_INFO!$U$9:$U$1000, " ") ->  | I182: 0 | M182: 0 | W182: 0
A183: =IF(COUNTRY_INFO!A183=0," ",COUNTRY_INFO!A183) -> Nigeria | B183: =IF(COUNTRY_INFO!B183=0," ",COUNTRY_INFO!B183) -> Cross River | C183: =IF(COUNTRY_INFO!C183=0," ",COUNTRY_INFO!C183) -> Boki | D183: =IF(COUNTRY_INFO!$U$9:$U$1000="MDA1 (IVM+ALB)", COUNTRY_INFO!$U$9:$U$1000, " ") ->  | I183: 0 | M183: 0 | W183: 0
A184: =IF(COUNTRY_INFO!A184=0," ",COUNTRY_INFO!A184) -> Nigeria | B184: =IF(COUNTRY_INFO!B184=0," ",COUNTRY_INFO!B184) -> Cross River | C184: =IF(COUNTRY_INFO!C184=0," ",COUNTRY_INFO!C184) -> Calabar Municipal | D184: =IF(COUNTRY_INFO!$U$9:$U$1000="MDA1 (IVM+ALB)", COUNTRY_INFO!$U$9:$U$1000, " ") ->  | I184: 0 | L184: 0 | M184: 0 | V184: 0 | W184: 0 | AB184: 0
A185: =IF(COUNTRY_INFO!A185=0," ",COUNTRY_INFO!A185) -> Nigeria | B185: =IF(COUNTRY_INFO!B185=0," ",COUNTRY_INFO!B185) -> Cross River | C185: =IF(COUNTRY_INFO!C185=0," ",COUNTRY_INFO!C185) -> Calabar South | D185: =IF(COUNTRY_INFO!$U$9:$U$1000="MDA1 (IVM+ALB)", COUNTRY_INFO!$U$9:$U$1000, " ") ->  | I185: 0 | M185: 0 | W185: 0
A186: =IF(COUNTRY_INFO!A186=0," ",COUNTRY_INFO!A186) -> Nigeria | B186: =IF(COUNTRY_INFO!B186=0," ",COUNTRY_INFO!B186) -> Cross River | C186: =IF(COUNTRY_INFO!C186=0," ",COUNTRY_INFO!C186) -> Etung | D186: =IF(COUNTRY_INFO!$U$9:$U$1000="MDA1 (IVM+ALB)", COUNTRY_INFO!$U$9:$U$1000, " ") ->  | I186: 0 | L186: 0 | M186: 0 | V186: 0 | W186: 0 | AB186: 0
A187: =IF(COUNTRY_INFO!A187=0," ",COUNTRY_INFO!A187) -> Nigeria | B187: =IF(COUNTRY_INFO!B187=0," ",COUNTRY_INFO!B187) -> Cross River | C187: =IF(COUNTRY_INFO!C187=0," ",COUNTRY_INFO!C187) -> Ikom | D187: =IF(COUNTRY_INFO!$U$9:$U$1000="MDA1 (IVM+ALB)", COUNTRY_INFO!$U$9:$U$1000, " ") ->  | I187: 0 | M187: 0 | W187: 0
A188: =IF(COUNTRY_INFO!A188=0," ",COUNTRY_INFO!A188) -> Nigeria | B188: =IF(COUNTRY_INFO!B188=0," ",COUNTRY_INFO!B188) -> Cross River | C188: =IF(COUNTRY_INFO!C188=0," ",COUNTRY_INFO!C188) -> Obanliku | D188: =IF(COUNTRY_INFO!$U$9:$U$1000="MDA1 (IVM+ALB)", COUNTRY_INFO!$U$9:$U$1000, " ") ->  | I188: 0 | L188: 0 | M188: 0 | V188: 0 | W188: 0 | AB188: 0
A189: =IF(COUNTRY_INFO!A189=0," ",COUNTRY_INFO!A189) -> Nigeria | B189: =IF(COUNTRY_INFO!B189=0," ",COUNTRY_INFO!B189) -> Cross River | C189: =IF(COUNTRY_INFO!C189=0," ",COUNTRY_INFO!C189) -> Obubra | D189: =IF(COUNTRY_INFO!$U$9:$U$1000="MDA1 (IVM+ALB)", COUNTRY_INFO!$U$9:$U$1000, " ") ->  | I189: 0 | M189: 0 | W189: 0
A190: =IF(COUNTRY_INFO!A190=0," ",COUNTRY_INFO!A190) -> Nigeria | B190: =IF(COUNTRY_INFO!B190=0," ",COUNTRY_INFO!B190) -> Cross River | C190: =IF(COUNTRY_INFO!C190=0," ",COUNTRY_INFO!C190) -> Obudu | D190: =IF(COUNTRY_INFO!$U$9:$U$1000="MDA1 (IVM+ALB)", COUNTRY_INFO!$U$9:$U$1000, " ") ->  | I190: 0 | L190: 0 | M190: 0 | V190: 0 | W190: 0 | AB190: 0
A191: =IF(COUNTRY_INFO!A191=0," ",COUNTRY_INFO!A191) -> Nigeria | B191: =IF(COUNTRY_INFO!B191=0," ",COUNTRY_INFO!B191) -> Cross River | C191: =IF(COUNTRY_INFO!C191=0," ",COUNTRY_INFO!C191) -> Odukpani | D191: =IF(COUNTRY_INFO!$U$9:$U$1000="MDA1 (IVM+ALB)", COUNTRY_INFO!$U$9:$U$1000, " ") ->  | I191: 0 | L191: 0 | M191: 0 | V191: 0 | W191: 0 | AB191: 0
A192: =IF(COUNTRY_INFO!A192=0," ",COUNTRY_INFO!A192) -> Nigeria | B192: =IF(COUNTRY_INFO!B192=0," ",COUNTRY_INFO!B192) -> Cross River | C192: =IF(COUNTRY_INFO!C192=0," ",COUNTRY_INFO!C192) -> Ogoja | D192: =IF(COUNTRY_INFO!$U$9:$U$1000="MDA1 (IVM+ALB)", COUNTRY_INFO!$U$9:$U$1000, " ") ->  | I192: 0 | M192: 0 | W192: 0
A193: =IF(COUNTRY_INFO!A193=0," ",COUNTRY_INFO!A193) -> Nigeria | B193: =IF(COUNTRY_INFO!B193=0," ",COUNTRY_INFO!B193) -> Cross River | C193: =IF(COUNTRY_INFO!C193=0," ",COUNTRY_INFO!C193) -> Yakur | D193: =IF(COUNTRY_INFO!$U$9:$U$1000="MDA1 (IVM+ALB)", COUNTRY_INFO!$U$9:$U$1000, " ") ->  | I193: 0 | L193: 0 | M193: 0 | V193: 0 | W193: 0 | AB193: 0
A194: =IF(COUNTRY_INFO!A194=0," ",COUNTRY_INFO!A194) -> Nigeria | B194: =IF(COUNTRY_INFO!B194=0," ",COUNTRY_INFO!B194) -> Cross River | C194: =IF(COUNTRY_INFO!C194=0," ",COUNTRY_INFO!C194) -> Yala | D194: =IF(COUNTRY_INFO!$U$9:$U$1000="MDA1 (IVM+ALB)", COUNTRY_INFO!$U$9:$U$1000, " ") -> MDA1 (IVM+ALB) | E194: Dec 2020 | G194: 83416 | H194: 154916 | I194: 238332 | K194: 99244 | L194: 99954 | M194: 199198 | O194: 118.974777 | P194: 64.52141806 | Q194: 83.580048 | U194: 99244 | V194: 99954 | W194: 199198 | AA194: 99244 | AB194: 99954
